Workbook

Sheet Ativos
A1: Capital de Risco Baseado no Risco de Mercado
A2: Fluxos de caixa dos Ativos Financeiros
A4: EMFSEQ | B4: ENTCODIGO | C4: MRFMESANO | D4: QUAID | E4: ATVCODIGO | F4: TPFOPERADOR | G4: FTRCODIGO | H4: LCRCODIGO | I4: TCTCODIGO | J4: TPECODIGO | K4: EMFPRAZOFLUXO | L4: EMFVLREXPRISCO | M4: EMFCNPJFUNDO | N4: EMFCODISIN | O4: EMFCODCUSTODIA | P4: EMFMULTIPLOFATOR | Q4: EMFTXCONTRATADO | R4: EMFTXMERCADO | S4: TPFOPERADORDERIVATIVO | T4: EMFVLRDERIVATIVO | U4: EMFCODGRUPO | W4: VALOR | X4: VALOR - AJUSTE DAS EXP. PRE EM TITULOS %DI | Y4: FATOR - AJUSTE DAS EXP. PRE EM TITULOS %DI | Z4: PRAZO ANUAL | AA4: GRUPAMENTO | AB4: VERTTICE ANTERIOR | AC4: VERTICE POSTERIOR | AD4: ALOCACAO ANTERIOR | AE4: ALOCACAO POSTERIOR | AF4: TOTALIZAÇÃO ATIVOS
W5: =IF(AND(ISBLANK(grupo),ISERROR(VLOOKUP(U5,codgrupo_excedentes,1,0))),L5*IF(F5="+",1,-1),IF(AND(NOT(ISBLANK(grupo)),U5=grupo),L5*IF(F5="+",1,-1),0)) -> 0 | X5: =IF(AND(OR(G5="TD1",G5="TS1"),Q5<>R5),(R5-Q5)/100*W5,W5) -> 0 | Y5: =IF(AND(OR(G5="TD1",G5="TS1"),Q5<>R5),"JJ1",G5) -> 0 | Z5: =K5/252 -> 0 | AA5: =VLOOKUP(Y5,rel_indices,3,0) ->  | AB5: =IFERROR(VLOOKUP(Z5,IF(VLOOKUP(Y5,rel_juros,2,0)="INDICES",vert_indices,IF(VLOOKUP(Y5,rel_juros,2,0)="PRE",vert_pre,vert_cambial)),1,1),"") ->  | AC5: =IFERROR(VLOOKUP(AB5,IF(VLOOKUP(Y5,rel_juros,2,0)="INDICES",vert_indices,IF(VLOOKUP(Y5,rel_juros,2,0)="PRE",vert_pre,vert_cambial)),2,0),"") ->  | AD5: =IFERROR(X5*(AC5-Z5)/(AC5-AB5),"") ->  | AE5: =IFERROR(IF(AC5=0,0,X5*(Z5-AB5)/(AC5-AB5)),"") ->  | AF5: =IF(P5=0,IF(ISERROR(VLOOKUP(E5,calc_total_ativos,1,0)),L5*IF(F5="+",1,-1),T5*IF(S5="+",1,-1)),0) -> 0

Sheet Passivos
A1: Capital de Risco Baseado no Risco de Mercado
A2: Fluxos de caixa de Direitos e Obrigações Relacionados a Contratos de Seguros
A4: EMCSEQ | B4: ENTCODIGO | C4: MRFMESANO | D4: QUAID | E4: DOCCODIGO | F4: TPFOPERADOR | G4: FTRCODIGO | H4: EMCPRAZOFLUXO | I4: EMCVLREXPRISCO | J4: EMCMULTIPLOFATOR | K4: EMCCODGRUPO | L4: EMCSEMREGISTRO | N4: VALOR | O4: Prazo Anual | P4: GRUPAMENTO | Q4: VERTTICE ANTERIOR | R4: VERTICE POSTERIOR | S4: ALOCACAO ANTERIOR | T4: ALOCACAO POSTERIOR
M5: x | N5: =IF(AND(ISBLANK(grupo),ISERROR(VLOOKUP(K5,codgrupo_excedentes,1,0))),I5*IF(F5="+",1,-1),IF(AND(NOT(ISBLANK(grupo)),K5=grupo),I5*IF(F5="+",1,-1),0)) -> 0 | O5: =H5/252 -> 0 | P5: =VLOOKUP(G5,rel_indices,3,0) ->  | Q5: =IFERROR(VLOOKUP(O5,IF(VLOOKUP(G5,rel_juros,2,0)="INDICES",vert_indices,IF(VLOOKUP(G5,rel_juros,2,0)="PRE",vert_pre,vert_cambial)),1,1),"") ->  | R5: =IFERROR(VLOOKUP(Q5,IF(VLOOKUP(G5,rel_juros,2,0)="INDICES",vert_indices,IF(VLOOKUP(G5,rel_juros,2,0)="PRE",vert_pre,vert_cambial)),2,0),"") ->  | S5: =IFERROR(N5*(R5-O5)/(R5-Q5),"") ->  | T5: =IFERROR(IF(R5=0,0,N5*(O5-Q5)/(R5-Q5)),"") -> 

Sheet Demais
A1: Capital de Risco Baseado no Risco de Mercado
A2: Fluxos de caixa dos Demais Ativos e Passivos
A4: EMDSEQ | B4: ENTCODIGO | C4: MRFMESANO | D4: QUAID | E4: DODCODIGO | F4: TPFOPERADOR | G4: FTRCODIGO | H4: EMDPRAZOFLUXO | I4: EMDVLREXPRISCO | J4: EMDMULTIPLOFATOR | L4: VALOR | M4: Prazo Anual | N4: GRUPAMENTO | O4: VERTTICE ANTERIOR | P4: VERTICE POSTERIOR | Q4: ALOCACAO ANTERIOR | R4: ALOCACAO POSTERIOR
L5: =IF(ISBLANK(grupo),I5*IF(F5="+",1,-1),"") -> 0 | M5: =H5/252 -> 0 | N5: =VLOOKUP(G5,rel_indices,3,0) ->  | O5: =IFERROR(VLOOKUP(M5,IF(VLOOKUP(G5,rel_juros,2,0)="INDICES",vert_indices,IF(VLOOKUP(G5,rel_juros,2,0)="PRE",vert_pre,vert_cambial)),1,1),"") ->  | P5: =IFERROR(VLOOKUP(O5,IF(VLOOKUP(G5,rel_juros,2,0)="INDICES",vert_indices,IF(VLOOKUP(G5,rel_juros,2,0)="PRE",vert_pre,vert_cambial)),2,0),"") ->  | Q5: =IFERROR(L5*(P5-M5)/(P5-O5),"") ->  | R5: =IFERROR(IF(P5=0,0,L5*(M5-O5)/(P5-O5)),"") -> 

Sheet Excedentes
A1: Capital de Risco Baseado no Risco de Mercado
A2: Detalhamento dos Grupos de Excedentes Financeiros para fins de cálculo de acordo com o §3º do artigo 50 da Resolução CNSP nº 321/2015
A4: EMESEQ | B4: ENTCODIGO | C4: MRFMESANO | D4: QUAID | E4: EMECODGRUPO | F4: EMEPEF | G4: EMEVLRCONTATIVOS | H4: EMEPERCREVERSAO | I4: EMEPERCDEDUCAO | K4: CRmerc.exc i

Sheet Calculo CRmerc
A1: Capital de Risco Baseado no Risco de Mercado | F1: Cálculo do CRmerc | J1: TRATAMENTO DOS EXCEDENTES
A2: Cálculo do CRmerc (Resolução CNSP nº 321/2015) | F2: CRmerc.geral | G2: =IF(ISBLANK(grupo),SQRT(MMULT(MMULT(vet_exposicoes,matriz_fatores),TRANSPOSE(vet_exposicoes))),"") -> 0 | J2: Grupo de Produtos com Excedentes
F3: Σ CRmerc.exci | G3: =SUM(Excedentes!$K:$K) -> 0 | J3: CRmerc.geral i (R$) | L3: =IF(AND(NOT(ISBLANK(grupo)),NOT(ISERROR(VLOOKUP(grupo,codgrupo_excedentes,1,0)))),SQRT(MMULT(MMULT(vet_exposicoes,matriz_fatores),TRANSPOSE(vet_exposicoes))),"") -> 
A4: CRmerc | B4: = E' x F x E | F4: CRmerc (R$) | G4: =IF(ISBLANK(grupo),'Racional de Calculo'!D4+SUM(Excedentes!$K:$K),"") -> 0 | J4: CRmerc.exc i (R$) | L4: =IF(AND(NOT(ISBLANK(grupo)),NOT(ISERROR(VLOOKUP(grupo,codgrupo_excedentes,1,0)))),L3-MIN(L3*VLOOKUP(grupo,excedentes,4,0)/100,MAX(0,(VLOOKUP(grupo,excedentes,2,0)+ (SUMIF(Ativos!$U:$U,grupo,Ativos!$AF:$AF)-VLOOKUP(grupo,excedentes,3,0))*(1-VLOOKUP(grupo,excedentes,5,0)/100/2)))),"") -> 
B6: TR | F6: IGPM | J6: IPCA
B7: At. Fin | C7: Pass. Tec | D7: Demais | E7: Exp. Liq. | F7: At. Fin | G7: Pass. Tec | H7: Demais | I7: Exp. Liq. | J7: At. Fin | K7: Pass. Tec | L7: Demais | M7: Exp. Liq.
A8: Indexado | B8: =SUMIF(Ativos!$AA:$AA,"TR",Ativos!$X:$X) -> 0 | C8: =SUMIF(Passivos!$P:$P,"TR",Passivos!$N:$N) -> 0 | D8: =SUMIF(Demais!$N:$N,"TR",Demais!$L:$L) -> 0 | E8: =B8+C8+D8 -> 0 | F8: =SUMIF(Ativos!$AA:$AA,"IGPM",Ativos!$X:$X) -> 0 | G8: =SUMIF(Passivos!$P:$P,"IGPM",Passivos!$N:$N) -> 0 | H8: =SUMIF(Demais!$N:$N,"IGPM",Demais!$L:$L) -> 0 | I8: =F8+G8+H8 -> 0 | J8: =SUMIF(Ativos!$AA:$AA,"IPCA",Ativos!$X:$X) -> 0 | K8: =SUMIF(Passivos!$P:$P,"IPCA",Passivos!$N:$N) -> 0 | L8: =SUMIF(Demais!$N:$N,"IPCA",Demais!$L:$L) -> 0 | M8: =J8+K8+L8 -> 0
A9: 0.25 | B9: =SUMIFS(Ativos!$AD:$AD,Ativos!$AA:$AA,"TR",Ativos!$AB:$AB,$A9)+SUMIFS(Ativos!$AE:$AE,Ativos!$AA:$AA,"TR",Ativos!$AC:$AC,$A9) -> 0 | C9: =SUMIFS(Passivos!$S:$S,Passivos!$P:$P,"TR",Passivos!$Q:$Q,$A9)+SUMIFS(Passivos!$T:$T,Passivos!$P:$P,"TR",Passivos!$R:$R,$A9) -> 0 | D9: =SUMIFS(Demais!$Q:$Q,Demais!$N:$N,"TR",Demais!$O:$O,$A9)+SUMIFS(Demais!$R:$R,Demais!$N:$N,"TR",Demais!$P:$P,$A9) -> 0 | E9: =B9+C9+D9 -> 0 | F9: =SUMIFS(Ativos!$AD:$AD,Ativos!$AA:$AA,"IGPM",Ativos!$AB:$AB,$A9)+SUMIFS(Ativos!$AE:$AE,Ativos!$AA:$AA,"IGPM",Ativos!$AC:$AC,$A9) -> 0 | G9: =SUMIFS(Passivos!$S:$S,Passivos!$P:$P,"IGPM",Passivos!$Q:$Q,$A9)+SUMIFS(Passivos!$T:$T,Passivos!$P:$P,"IGPM",Passivos!$R:$R,$A9) -> 0 | H9: =SUMIFS(Demais!$Q:$Q,Demais!$N:$N,"IGPM",Demais!$O:$O,$A9)+SUMIFS(Demais!$R:$R,Demais!$N:$N,"IGPM",Demais!$P:$P,$A9) -> 0 | I9: =F9+G9+H9 -> 0 | J9: =SUMIFS(Ativos!$AD:$AD,Ativos!$AA:$AA,"IPCA",Ativos!$AB:$AB,$A9)+SUMIFS(Ativos!$AE:$AE,Ativos!$AA:$AA,"IPCA",Ativos!$AC:$AC,$A9) -> 0 | K9: =SUMIFS(Passivos!$S:$S,Passivos!$P:$P,"IPCA",Passivos!$Q:$Q,$A9)+SUMIFS(Passivos!$T:$T,Passivos!$P:$P,"IPCA",Passivos!$R:$R,$A9) -> 0 | L9: =SUMIFS(Demais!$Q:$Q,Demais!$N:$N,"IPCA",Demais!$O:$O,$A9)+SUMIFS(Demais!$R:$R,Demais!$N:$N,"IPCA",Demais!$P:$P,$A9) -> 0 | M9: =J9+K9+L9 -> 0
A10: 0.5 | B10: =SUMIFS(Ativos!$AD:$AD,Ativos!$AA:$AA,"TR",Ativos!$AB:$AB,$A10)+SUMIFS(Ativos!$AE:$AE,Ativos!$AA:$AA,"TR",Ativos!$AC:$AC,$A10) -> 0 | C10: =SUMIFS(Passivos!$S:$S,Passivos!$P:$P,"TR",Passivos!$Q:$Q,$A10)+SUMIFS(Passivos!$T:$T,Passivos!$P:$P,"TR",Passivos!$R:$R,$A10) -> 0 | D10: =SUMIFS(Demais!$Q:$Q,Demais!$N:$N,"TR",Demais!$O:$O,$A10)+SUMIFS(Demais!$R:$R,Demais!$N:$N,"TR",Demais!$P:$P,$A10) -> 0 | E10: =B10+C10+D10 -> 0 | F10: =SUMIFS(Ativos!$AD:$AD,Ativos!$AA:$AA,"IGPM",Ativos!$AB:$AB,$A10)+SUMIFS(Ativos!$AE:$AE,Ativos!$AA:$AA,"IGPM",Ativos!$AC:$AC,$A10) -> 0 | G10: =SUMIFS(Passivos!$S:$S,Passivos!$P:$P,"IGPM",Passivos!$Q:$Q,$A10)+SUMIFS(Passivos!$T:$T,Passivos!$P:$P,"IGPM",Passivos!$R:$R,$A10) -> 0 | H10: =SUMIFS(Demais!$Q:$Q,Demais!$N:$N,"IGPM",Demais!$O:$O,$A10)+SUMIFS(Demais!$R:$R,Demais!$N:$N,"IGPM",Demais!$P:$P,$A10) -> 0 | I10: =F10+G10+H10 -> 0 | J10: =SUMIFS(Ativos!$AD:$AD,Ativos!$AA:$AA,"IPCA",Ativos!$AB:$AB,$A10)+SUMIFS(Ativos!$AE:$AE,Ativos!$AA:$AA,"IPCA",Ativos!$AC:$AC,$A10) -> 0 | K10: =SUMIFS(Passivos!$S:$S,Passivos!$P:$P,"IPCA",Passivos!$Q:$Q,$A10)+SUMIFS(Passivos!$T:$T,Passivos!$P:$P,"IPCA",Passivos!$R:$R,$A10) -> 0 | L10: =SUMIFS(Demais!$Q:$Q,Demais!$N:$N,"IPCA",Demais!$O:$O,$A10)+SUMIFS(Demais!$R:$R,Demais!$N:$N,"IPCA",Demais!$P:$P,$A10) -> 0 | M10: =J10+K10+L10 -> 0
A11: 1 | B11: =SUMIFS(Ativos!$AD:$AD,Ativos!$AA:$AA,"TR",Ativos!$AB:$AB,$A11)+SUMIFS(Ativos!$AE:$AE,Ativos!$AA:$AA,"TR",Ativos!$AC:$AC,$A11) -> 0 | C11: =SUMIFS(Passivos!$S:$S,Passivos!$P:$P,"TR",Passivos!$Q:$Q,$A11)+SUMIFS(Passivos!$T:$T,Passivos!$P:$P,"TR",Passivos!$R:$R,$A11) -> 0 | D11: =SUMIFS(Demais!$Q:$Q,Demais!$N:$N,"TR",Demais!$O:$O,$A11)+SUMIFS(Demais!$R:$R,Demais!$N:$N,"TR",Demais!$P:$P,$A11) -> 0 | E11: 0 | F11: =SUMIFS(Ativos!$AD:$AD,Ativos!$AA:$AA,"IGPM",Ativos!$AB:$AB,$A11)+SUMIFS(Ativos!$AE:$AE,Ativos!$AA:$AA,"IGPM",Ativos!$AC:$AC,$A11) -> 0 | G11: =SUMIFS(Passivos!$S:$S,Passivos!$P:$P,"IGPM",Passivos!$Q:$Q,$A11)+SUMIFS(Passivos!$T:$T,Passivos!$P:$P,"IGPM",Passivos!$R:$R,$A11) -> 0 | H11: =SUMIFS(Demais!$Q:$Q,Demais!$N:$N,"IGPM",Demais!$O:$O,$A11)+SUMIFS(Demais!$R:$R,Demais!$N:$N,"IGPM",Demais!$P:$P,$A11) -> 0 | I11: 0 | J11: =SUMIFS(Ativos!$AD:$AD,Ativos!$AA:$AA,"IPCA",Ativos!$AB:$AB,$A11)+SUMIFS(Ativos!$AE:$AE,Ativos!$AA:$AA,"IPCA",Ativos!$AC:$AC,$A11) -> 0 | K11: =SUMIFS(Passivos!$S:$S,Passivos!$P:$P,"IPCA",Passivos!$Q:$Q,$A11)+SUMIFS(Passivos!$T:$T,Passivos!$P:$P,"IPCA",Passivos!$R:$R,$A11) -> 0 | L11: =SUMIFS(Demais!$Q:$Q,Demais!$N:$N,"IPCA",Demais!$O:$O,$A11)+SUMIFS(Demais!$R:$R,Demais!$N:$N,"IPCA",Demais!$P:$P,$A11) -> 0 | M11: 0
A12: 1.5 | B12: =SUMIFS(Ativos!$AD:$AD,Ativos!$AA:$AA,"TR",Ativos!$AB:$AB,$A12)+SUMIFS(Ativos!$AE:$AE,Ativos!$AA:$AA,"TR",Ativos!$AC:$AC,$A12) -> 0 | C12: =SUMIFS(Passivos!$S:$S,Passivos!$P:$P,"TR",Passivos!$Q:$Q,$A12)+SUMIFS(Passivos!$T:$T,Passivos!$P:$P,"TR",Passivos!$R:$R,$A12) -> 0 | D12: =SUMIFS(Demais!$Q:$Q,Demais!$N:$N,"TR",Demais!$O:$O,$A12)+SUMIFS(Demais!$R:$R,Demais!$N:$N,"TR",Demais!$P:$P,$A12) -> 0 | E12: 0 | F12: =SUMIFS(Ativos!$AD:$AD,Ativos!$AA:$AA,"IGPM",Ativos!$AB:$AB,$A12)+SUMIFS(Ativos!$AE:$AE,Ativos!$AA:$AA,"IGPM",Ativos!$AC:$AC,$A12) -> 0 | G12: =SUMIFS(Passivos!$S:$S,Passivos!$P:$P,"IGPM",Passivos!$Q:$Q,$A12)+SUMIFS(Passivos!$T:$T,Passivos!$P:$P,"IGPM",Passivos!$R:$R,$A12) -> 0 | H12: =SUMIFS(Demais!$Q:$Q,Demais!$N:$N,"IGPM",Demais!$O:$O,$A12)+SUMIFS(Demais!$R:$R,Demais!$N:$N,"IGPM",Demais!$P:$P,$A12) -> 0 | I12: 0 | J12: =SUMIFS(Ativos!$AD:$AD,Ativos!$AA:$AA,"IPCA",Ativos!$AB:$AB,$A12)+SUMIFS(Ativos!$AE:$AE,Ativos!$AA:$AA,"IPCA",Ativos!$AC:$AC,$A12) -> 0 | K12: =SUMIFS(Passivos!$S:$S,Passivos!$P:$P,"IPCA",Passivos!$Q:$Q,$A12)+SUMIFS(Passivos!$T:$T,Passivos!$P:$P,"IPCA",Passivos!$R:$R,$A12) -> 0 | L12: =SUMIFS(Demais!$Q:$Q,Demais!$N:$N,"IPCA",Demais!$O:$O,$A12)+SUMIFS(Demais!$R:$R,Demais!$N:$N,"IPCA",Demais!$P:$P,$A12) -> 0 | M12: 0
A13: 2 | B13: =SUMIFS(Ativos!$AD:$AD,Ativos!$AA:$AA,"TR",Ativos!$AB:$AB,$A13)+SUMIFS(Ativos!$AE:$AE,Ativos!$AA:$AA,"TR",Ativos!$AC:$AC,$A13) -> 0 | C13: =SUMIFS(Passivos!$S:$S,Passivos!$P:$P,"TR",Passivos!$Q:$Q,$A13)+SUMIFS(Passivos!$T:$T,Passivos!$P:$P,"TR",Passivos!$R:$R,$A13) -> 0 | D13: =SUMIFS(Demais!$Q:$Q,Demais!$N:$N,"TR",Demais!$O:$O,$A13)+SUMIFS(Demais!$R:$R,Demais!$N:$N,"TR",Demais!$P:$P,$A13) -> 0 | E13: 0 | F13: =SUMIFS(Ativos!$AD:$AD,Ativos!$AA:$AA,"IGPM",Ativos!$AB:$AB,$A13)+SUMIFS(Ativos!$AE:$AE,Ativos!$AA:$AA,"IGPM",Ativos!$AC:$AC,$A13) -> 0 | G13: =SUMIFS(Passivos!$S:$S,Passivos!$P:$P,"IGPM",Passivos!$Q:$Q,$A13)+SUMIFS(Passivos!$T:$T,Passivos!$P:$P,"IGPM",Passivos!$R:$R,$A13) -> 0 | H13: =SUMIFS(Demais!$Q:$Q,Demais!$N:$N,"IGPM",Demais!$O:$O,$A13)+SUMIFS(Demais!$R:$R,Demais!$N:$N,"IGPM",Demais!$P:$P,$A13) -> 0 | I13: 0 | J13: =SUMIFS(Ativos!$AD:$AD,Ativos!$AA:$AA,"IPCA",Ativos!$AB:$AB,$A13)+SUMIFS(Ativos!$AE:$AE,Ativos!$AA:$AA,"IPCA",Ativos!$AC:$AC,$A13) -> 0 | K13: =SUMIFS(Passivos!$S:$S,Passivos!$P:$P,"IPCA",Passivos!$Q:$Q,$A13)+SUMIFS(Passivos!$T:$T,Passivos!$P:$P,"IPCA",Passivos!$R:$R,$A13) -> 0 | L13: =SUMIFS(Demais!$Q:$Q,Demais!$N:$N,"IPCA",Demais!$O:$O,$A13)+SUMIFS(Demais!$R:$R,Demais!$N:$N,"IPCA",Demais!$P:$P,$A13) -> 0 | M13: 0
A14: 2.5 | B14: =SUMIFS(Ativos!$AD:$AD,Ativos!$AA:$AA,"TR",Ativos!$AB:$AB,$A14)+SUMIFS(Ativos!$AE:$AE,Ativos!$AA:$AA,"TR",Ativos!$AC:$AC,$A14) -> 0 | C14: =SUMIFS(Passivos!$S:$S,Passivos!$P:$P,"TR",Passivos!$Q:$Q,$A14)+SUMIFS(Passivos!$T:$T,Passivos!$P:$P,"TR",Passivos!$R:$R,$A14) -> 0 | D14: =SUMIFS(Demais!$Q:$Q,Demais!$N:$N,"TR",Demais!$O:$O,$A14)+SUMIFS(Demais!$R:$R,Demais!$N:$N,"TR",Demais!$P:$P,$A14) -> 0 | E14: 0 | F14: =SUMIFS(Ativos!$AD:$AD,Ativos!$AA:$AA,"IGPM",Ativos!$AB:$AB,$A14)+SUMIFS(Ativos!$AE:$AE,Ativos!$AA:$AA,"IGPM",Ativos!$AC:$AC,$A14) -> 0 | G14: =SUMIFS(Passivos!$S:$S,Passivos!$P:$P,"IGPM",Passivos!$Q:$Q,$A14)+SUMIFS(Passivos!$T:$T,Passivos!$P:$P,"IGPM",Passivos!$R:$R,$A14) -> 0 | H14: =SUMIFS(Demais!$Q:$Q,Demais!$N:$N,"IGPM",Demais!$O:$O,$A14)+SUMIFS(Demais!$R:$R,Demais!$N:$N,"IGPM",Demais!$P:$P,$A14) -> 0 | I14: 0 | J14: =SUMIFS(Ativos!$AD:$AD,Ativos!$AA:$AA,"IPCA",Ativos!$AB:$AB,$A14)+SUMIFS(Ativos!$AE:$AE,Ativos!$AA:$AA,"IPCA",Ativos!$AC:$AC,$A14) -> 0 | K14: =SUMIFS(Passivos!$S:$S,Passivos!$P:$P,"IPCA",Passivos!$Q:$Q,$A14)+SUMIFS(Passivos!$T:$T,Passivos!$P:$P,"IPCA",Passivos!$R:$R,$A14) -> 0 | L14: =SUMIFS(Demais!$Q:$Q,Demais!$N:$N,"IPCA",Demais!$O:$O,$A14)+SUMIFS(Demais!$R:$R,Demais!$N:$N,"IPCA",Demais!$P:$P,$A14) -> 0 | M14: 0
A15: 3 | B15: =SUMIFS(Ativos!$AD:$AD,Ativos!$AA:$AA,"TR",Ativos!$AB:$AB,$A15)+SUMIFS(Ativos!$AE:$AE,Ativos!$AA:$AA,"TR",Ativos!$AC:$AC,$A15) -> 0 | C15: =SUMIFS(Passivos!$S:$S,Passivos!$P:$P,"TR",Passivos!$Q:$Q,$A15)+SUMIFS(Passivos!$T:$T,Passivos!$P:$P,"TR",Passivos!$R:$R,$A15) -> 0 | D15: =SUMIFS(Demais!$Q:$Q,Demais!$N:$N,"TR",Demais!$O:$O,$A15)+SUMIFS(Demais!$R:$R,Demais!$N:$N,"TR",Demais!$P:$P,$A15) -> 0 | E15: 0 | F15: =SUMIFS(Ativos!$AD:$AD,Ativos!$AA:$AA,"IGPM",Ativos!$AB:$AB,$A15)+SUMIFS(Ativos!$AE:$AE,Ativos!$AA:$AA,"IGPM",Ativos!$AC:$AC,$A15) -> 0 | G15: =SUMIFS(Passivos!$S:$S,Passivos!$P:$P,"IGPM",Passivos!$Q:$Q,$A15)+SUMIFS(Passivos!$T:$T,Passivos!$P:$P,"IGPM",Passivos!$R:$R,$A15) -> 0 | H15: =SUMIFS(Demais!$Q:$Q,Demais!$N:$N,"IGPM",Demais!$O:$O,$A15)+SUMIFS(Demais!$R:$R,Demais!$N:$N,"IGPM",Demais!$P:$P,$A15) -> 0 | I15: 0 | J15: =SUMIFS(Ativos!$AD:$AD,Ativos!$AA:$AA,"IPCA",Ativos!$AB:$AB,$A15)+SUMIFS(Ativos!$AE:$AE,Ativos!$AA:$AA,"IPCA",Ativos!$AC:$AC,$A15) -> 0 | K15: =SUMIFS(Passivos!$S:$S,Passivos!$P:$P,"IPCA",Passivos!$Q:$Q,$A15)+SUMIFS(Passivos!$T:$T,Passivos!$P:$P,"IPCA",Passivos!$R:$R,$A15) -> 0 | L15: =SUMIFS(Demais!$Q:$Q,Demais!$N:$N,"IPCA",Demais!$O:$O,$A15)+SUMIFS(Demais!$R:$R,Demais!$N:$N,"IPCA",Demais!$P:$P,$A15) -> 0 | M15: 0
A16: 4 | B16: =SUMIFS(Ativos!$AD:$AD,Ativos!$AA:$AA,"TR",Ativos!$AB:$AB,$A16)+SUMIFS(Ativos!$AE:$AE,Ativos!$AA:$AA,"TR",Ativos!$AC:$AC,$A16) -> 0 | C16: =SUMIFS(Passivos!$S:$S,Passivos!$P:$P,"TR",Passivos!$Q:$Q,$A16)+SUMIFS(Passivos!$T:$T,Passivos!$P:$P,"TR",Passivos!$R:$R,$A16) -> 0 | D16: =SUMIFS(Demais!$Q:$Q,Demais!$N:$N,"TR",Demais!$O:$O,$A16)+SUMIFS(Demais!$R:$R,Demais!$N:$N,"TR",Demais!$P:$P,$A16) -> 0 | E16: 0 | F16: =SUMIFS(Ativos!$AD:$AD,Ativos!$AA:$AA,"IGPM",Ativos!$AB:$AB,$A16)+SUMIFS(Ativos!$AE:$AE,Ativos!$AA:$AA,"IGPM",Ativos!$AC:$AC,$A16) -> 0 | G16: =SUMIFS(Passivos!$S:$S,Passivos!$P:$P,"IGPM",Passivos!$Q:$Q,$A16)+SUMIFS(Passivos!$T:$T,Passivos!$P:$P,"IGPM",Passivos!$R:$R,$A16) -> 0 | H16: =SUMIFS(Demais!$Q:$Q,Demais!$N:$N,"IGPM",Demais!$O:$O,$A16)+SUMIFS(Demais!$R:$R,Demais!$N:$N,"IGPM",Demais!$P:$P,$A16) -> 0 | I16: 0 | J16: =SUMIFS(Ativos!$AD:$AD,Ativos!$AA:$AA,"IPCA",Ativos!$AB:$AB,$A16)+SUMIFS(Ativos!$AE:$AE,Ativos!$AA:$AA,"IPCA",Ativos!$AC:$AC,$A16) -> 0 | K16: =SUMIFS(Passivos!$S:$S,Passivos!$P:$P,"IPCA",Passivos!$Q:$Q,$A16)+SUMIFS(Passivos!$T:$T,Passivos!$P:$P,"IPCA",Passivos!$R:$R,$A16) -> 0 | L16: =SUMIFS(Demais!$Q:$Q,Demais!$N:$N,"IPCA",Demais!$O:$O,$A16)+SUMIFS(Demais!$R:$R,Demais!$N:$N,"IPCA",Demais!$P:$P,$A16) -> 0 | M16: 0
A17: 5 | B17: =SUMIFS(Ativos!$AD:$AD,Ativos!$AA:$AA,"TR",Ativos!$AB:$AB,$A17)+SUMIFS(Ativos!$AE:$AE,Ativos!$AA:$AA,"TR",Ativos!$AC:$AC,$A17) -> 0 | C17: =SUMIFS(Passivos!$S:$S,Passivos!$P:$P,"TR",Passivos!$Q:$Q,$A17)+SUMIFS(Passivos!$T:$T,Passivos!$P:$P,"TR",Passivos!$R:$R,$A17) -> 0 | D17: =SUMIFS(Demais!$Q:$Q,Demais!$N:$N,"TR",Demais!$O:$O,$A17)+SUMIFS(Demais!$R:$R,Demais!$N:$N,"TR",Demais!$P:$P,$A17) -> 0 | E17: 0 | F17: =SUMIFS(Ativos!$AD:$AD,Ativos!$AA:$AA,"IGPM",Ativos!$AB:$AB,$A17)+SUMIFS(Ativos!$AE:$AE,Ativos!$AA:$AA,"IGPM",Ativos!$AC:$AC,$A17) -> 0 | G17: =SUMIFS(Passivos!$S:$S,Passivos!$P:$P,"IGPM",Passivos!$Q:$Q,$A17)+SUMIFS(Passivos!$T:$T,Passivos!$P:$P,"IGPM",Passivos!$R:$R,$A17) -> 0 | H17: =SUMIFS(Demais!$Q:$Q,Demais!$N:$N,"IGPM",Demais!$O:$O,$A17)+SUMIFS(Demais!$R:$R,Demais!$N:$N,"IGPM",Demais!$P:$P,$A17) -> 0 | I17: 0 | J17: =SUMIFS(Ativos!$AD:$AD,Ativos!$AA:$AA,"IPCA",Ativos!$AB:$AB,$A17)+SUMIFS(Ativos!$AE:$AE,Ativos!$AA:$AA,"IPCA",Ativos!$AC:$AC,$A17) -> 0 | K17: =SUMIFS(Passivos!$S:$S,Passivos!$P:$P,"IPCA",Passivos!$Q:$Q,$A17)+SUMIFS(Passivos!$T:$T,Passivos!$P:$P,"IPCA",Passivos!$R:$R,$A17) -> 0 | L17: =SUMIFS(Demais!$Q:$Q,Demais!$N:$N,"IPCA",Demais!$O:$O,$A17)+SUMIFS(Demais!$R:$R,Demais!$N:$N,"IPCA",Demais!$P:$P,$A17) -> 0 | M17: 0
A18: 10 | B18: =SUMIFS(Ativos!$AD:$AD,Ativos!$AA:$AA,"TR",Ativos!$AB:$AB,$A18)+SUMIFS(Ativos!$AE:$AE,Ativos!$AA:$AA,"TR",Ativos!$AC:$AC,$A18) -> 0 | C18: =SUMIFS(Passivos!$S:$S,Passivos!$P:$P,"TR",Passivos!$Q:$Q,$A18)+SUMIFS(Passivos!$T:$T,Passivos!$P:$P,"TR",Passivos!$R:$R,$A18) -> 0 | D18: =SUMIFS(Demais!$Q:$Q,Demais!$N:$N,"TR",Demais!$O:$O,$A18)+SUMIFS(Demais!$R:$R,Demais!$N:$N,"TR",Demais!$P:$P,$A18) -> 0 | E18: 0 | F18: =SUMIFS(Ativos!$AD:$AD,Ativos!$AA:$AA,"IGPM",Ativos!$AB:$AB,$A18)+SUMIFS(Ativos!$AE:$AE,Ativos!$AA:$AA,"IGPM",Ativos!$AC:$AC,$A18) -> 0 | G18: =SUMIFS(Passivos!$S:$S,Passivos!$P:$P,"IGPM",Passivos!$Q:$Q,$A18)+SUMIFS(Passivos!$T:$T,Passivos!$P:$P,"IGPM",Passivos!$R:$R,$A18) -> 0 | H18: =SUMIFS(Demais!$Q:$Q,Demais!$N:$N,"IGPM",Demais!$O:$O,$A18)+SUMIFS(Demais!$R:$R,Demais!$N:$N,"IGPM",Demais!$P:$P,$A18) -> 0 | I18: 0 | J18: =SUMIFS(Ativos!$AD:$AD,Ativos!$AA:$AA,"IPCA",Ativos!$AB:$AB,$A18)+SUMIFS(Ativos!$AE:$AE,Ativos!$AA:$AA,"IPCA",Ativos!$AC:$AC,$A18) -> 0 | K18: =SUMIFS(Passivos!$S:$S,Passivos!$P:$P,"IPCA",Passivos!$Q:$Q,$A18)+SUMIFS(Passivos!$T:$T,Passivos!$P:$P,"IPCA",Passivos!$R:$R,$A18) -> 0 | L18: =SUMIFS(Demais!$Q:$Q,Demais!$N:$N,"IPCA",Demais!$O:$O,$A18)+SUMIFS(Demais!$R:$R,Demais!$N:$N,"IPCA",Demais!$P:$P,$A18) -> 0 | M18: 0
A19: 15 | B19: =SUMIFS(Ativos!$AD:$AD,Ativos!$AA:$AA,"TR",Ativos!$AB:$AB,$A19)+SUMIFS(Ativos!$AE:$AE,Ativos!$AA:$AA,"TR",Ativos!$AC:$AC,$A19) -> 0 | C19: =SUMIFS(Passivos!$S:$S,Passivos!$P:$P,"TR",Passivos!$Q:$Q,$A19)+SUMIFS(Passivos!$T:$T,Passivos!$P:$P,"TR",Passivos!$R:$R,$A19) -> 0 | D19: =SUMIFS(Demais!$Q:$Q,Demais!$N:$N,"TR",Demais!$O:$O,$A19)+SUMIFS(Demais!$R:$R,Demais!$N:$N,"TR",Demais!$P:$P,$A19) -> 0 | E19: 0 | F19: =SUMIFS(Ativos!$AD:$AD,Ativos!$AA:$AA,"IGPM",Ativos!$AB:$AB,$A19)+SUMIFS(Ativos!$AE:$AE,Ativos!$AA:$AA,"IGPM",Ativos!$AC:$AC,$A19) -> 0 | G19: =SUMIFS(Passivos!$S:$S,Passivos!$P:$P,"IGPM",Passivos!$Q:$Q,$A19)+SUMIFS(Passivos!$T:$T,Passivos!$P:$P,"IGPM",Passivos!$R:$R,$A19) -> 0 | H19: =SUMIFS(Demais!$Q:$Q,Demais!$N:$N,"IGPM",Demais!$O:$O,$A19)+SUMIFS(Demais!$R:$R,Demais!$N:$N,"IGPM",Demais!$P:$P,$A19) -> 0 | I19: 0 | J19: =SUMIFS(Ativos!$AD:$AD,Ativos!$AA:$AA,"IPCA",Ativos!$AB:$AB,$A19)+SUMIFS(Ativos!$AE:$AE,Ativos!$AA:$AA,"IPCA",Ativos!$AC:$AC,$A19) -> 0 | K19: =SUMIFS(Passivos!$S:$S,Passivos!$P:$P,"IPCA",Passivos!$Q:$Q,$A19)+SUMIFS(Passivos!$T:$T,Passivos!$P:$P,"IPCA",Passivos!$R:$R,$A19) -> 0 | L19: =SUMIFS(Demais!$Q:$Q,Demais!$N:$N,"IPCA",Demais!$O:$O,$A19)+SUMIFS(Demais!$R:$R,Demais!$N:$N,"IPCA",Demais!$P:$P,$A19) -> 0 | M19: 0
A20: 20 | B20: =SUMIFS(Ativos!$AD:$AD,Ativos!$AA:$AA,"TR",Ativos!$AB:$AB,$A20)+SUMIFS(Ativos!$AE:$AE,Ativos!$AA:$AA,"TR",Ativos!$AC:$AC,$A20) -> 0 | C20: =SUMIFS(Passivos!$S:$S,Passivos!$P:$P,"TR",Passivos!$Q:$Q,$A20)+SUMIFS(Passivos!$T:$T,Passivos!$P:$P,"TR",Passivos!$R:$R,$A20) -> 0 | D20: =SUMIFS(Demais!$Q:$Q,Demais!$N:$N,"TR",Demais!$O:$O,$A20)+SUMIFS(Demais!$R:$R,Demais!$N:$N,"TR",Demais!$P:$P,$A20) -> 0 | E20: 0 | F20: =SUMIFS(Ativos!$AD:$AD,Ativos!$AA:$AA,"IGPM",Ativos!$AB:$AB,$A20)+SUMIFS(Ativos!$AE:$AE,Ativos!$AA:$AA,"IGPM",Ativos!$AC:$AC,$A20) -> 0 | G20: =SUMIFS(Passivos!$S:$S,Passivos!$P:$P,"IGPM",Passivos!$Q:$Q,$A20)+SUMIFS(Passivos!$T:$T,Passivos!$P:$P,"IGPM",Passivos!$R:$R,$A20) -> 0 | H20: =SUMIFS(Demais!$Q:$Q,Demais!$N:$N,"IGPM",Demais!$O:$O,$A20)+SUMIFS(Demais!$R:$R,Demais!$N:$N,"IGPM",Demais!$P:$P,$A20) -> 0 | I20: 0 | J20: =SUMIFS(Ativos!$AD:$AD,Ativos!$AA:$AA,"IPCA",Ativos!$AB:$AB,$A20)+SUMIFS(Ativos!$AE:$AE,Ativos!$AA:$AA,"IPCA",Ativos!$AC:$AC,$A20) -> 0 | K20: =SUMIFS(Passivos!$S:$S,Passivos!$P:$P,"IPCA",Passivos!$Q:$Q,$A20)+SUMIFS(Passivos!$T:$T,Passivos!$P:$P,"IPCA",Passivos!$R:$R,$A20) -> 0 | L20: =SUMIFS(Demais!$Q:$Q,Demais!$N:$N,"IPCA",Demais!$O:$O,$A20)+SUMIFS(Demais!$R:$R,Demais!$N:$N,"IPCA",Demais!$P:$P,$A20) -> 0 | M20: 0
A21: 25 | B21: =SUMIFS(Ativos!$AD:$AD,Ativos!$AA:$AA,"TR",Ativos!$AB:$AB,$A21)+SUMIFS(Ativos!$AE:$AE,Ativos!$AA:$AA,"TR",Ativos!$AC:$AC,$A21) -> 0 | C21: =SUMIFS(Passivos!$S:$S,Passivos!$P:$P,"TR",Passivos!$Q:$Q,$A21)+SUMIFS(Passivos!$T:$T,Passivos!$P:$P,"TR",Passivos!$R:$R,$A21) -> 0 | D21: =SUMIFS(Demais!$Q:$Q,Demais!$N:$N,"TR",Demais!$O:$O,$A21)+SUMIFS(Demais!$R:$R,Demais!$N:$N,"TR",Demais!$P:$P,$A21) -> 0 | E21: 0 | F21: =SUMIFS(Ativos!$AD:$AD,Ativos!$AA:$AA,"IGPM",Ativos!$AB:$AB,$A21)+SUMIFS(Ativos!$AE:$AE,Ativos!$AA:$AA,"IGPM",Ativos!$AC:$AC,$A21) -> 0 | G21: =SUMIFS(Passivos!$S:$S,Passivos!$P:$P,"IGPM",Passivos!$Q:$Q,$A21)+SUMIFS(Passivos!$T:$T,Passivos!$P:$P,"IGPM",Passivos!$R:$R,$A21) -> 0 | H21: =SUMIFS(Demais!$Q:$Q,Demais!$N:$N,"IGPM",Demais!$O:$O,$A21)+SUMIFS(Demais!$R:$R,Demais!$N:$N,"IGPM",Demais!$P:$P,$A21) -> 0 | I21: 0 | J21: =SUMIFS(Ativos!$AD:$AD,Ativos!$AA:$AA,"IPCA",Ativos!$AB:$AB,$A21)+SUMIFS(Ativos!$AE:$AE,Ativos!$AA:$AA,"IPCA",Ativos!$AC:$AC,$A21) -> 0 | K21: =SUMIFS(Passivos!$S:$S,Passivos!$P:$P,"IPCA",Passivos!$Q:$Q,$A21)+SUMIFS(Passivos!$T:$T,Passivos!$P:$P,"IPCA",Passivos!$R:$R,$A21) -> 0 | L21: =SUMIFS(Demais!$Q:$Q,Demais!$N:$N,"IPCA",Demais!$O:$O,$A21)+SUMIFS(Demais!$R:$R,Demais!$N:$N,"IPCA",Demais!$P:$P,$A21) -> 0 | M21: 0
A22: 30 | B22: =SUMIFS(Ativos!$AD:$AD,Ativos!$AA:$AA,"TR",Ativos!$AB:$AB,$A22)+SUMIFS(Ativos!$AE:$AE,Ativos!$AA:$AA,"TR",Ativos!$AC:$AC,$A22) -> 0 | C22: =SUMIFS(Passivos!$S:$S,Passivos!$P:$P,"TR",Passivos!$Q:$Q,$A22)+SUMIFS(Passivos!$T:$T,Passivos!$P:$P,"TR",Passivos!$R:$R,$A22) -> 0 | D22: =SUMIFS(Demais!$Q:$Q,Demais!$N:$N,"TR",Demais!$O:$O,$A22)+SUMIFS(Demais!$R:$R,Demais!$N:$N,"TR",Demais!$P:$P,$A22) -> 0 | E22: 0 | F22: =SUMIFS(Ativos!$AD:$AD,Ativos!$AA:$AA,"IGPM",Ativos!$AB:$AB,$A22)+SUMIFS(Ativos!$AE:$AE,Ativos!$AA:$AA,"IGPM",Ativos!$AC:$AC,$A22) -> 0 | G22: =SUMIFS(Passivos!$S:$S,Passivos!$P:$P,"IGPM",Passivos!$Q:$Q,$A22)+SUMIFS(Passivos!$T:$T,Passivos!$P:$P,"IGPM",Passivos!$R:$R,$A22) -> 0 | H22: =SUMIFS(Demais!$Q:$Q,Demais!$N:$N,"IGPM",Demais!$O:$O,$A22)+SUMIFS(Demais!$R:$R,Demais!$N:$N,"IGPM",Demais!$P:$P,$A22) -> 0 | I22: 0 | J22: =SUMIFS(Ativos!$AD:$AD,Ativos!$AA:$AA,"IPCA",Ativos!$AB:$AB,$A22)+SUMIFS(Ativos!$AE:$AE,Ativos!$AA:$AA,"IPCA",Ativos!$AC:$AC,$A22) -> 0 | K22: =SUMIFS(Passivos!$S:$S,Passivos!$P:$P,"IPCA",Passivos!$Q:$Q,$A22)+SUMIFS(Passivos!$T:$T,Passivos!$P:$P,"IPCA",Passivos!$R:$R,$A22) -> 0 | L22: =SUMIFS(Demais!$Q:$Q,Demais!$N:$N,"IPCA",Demais!$O:$O,$A22)+SUMIFS(Demais!$R:$R,Demais!$N:$N,"IPCA",Demais!$P:$P,$A22) -> 0 | M22: 0
A23: 35 | B23: =SUMIFS(Ativos!$AD:$AD,Ativos!$AA:$AA,"TR",Ativos!$AB:$AB,$A23)+SUMIFS(Ativos!$AE:$AE,Ativos!$AA:$AA,"TR",Ativos!$AC:$AC,$A23) -> 0 | C23: =SUMIFS(Passivos!$S:$S,Passivos!$P:$P,"TR",Passivos!$Q:$Q,$A23)+SUMIFS(Passivos!$T:$T,Passivos!$P:$P,"TR",Passivos!$R:$R,$A23) -> 0 | D23: =SUMIFS(Demais!$Q:$Q,Demais!$N:$N,"TR",Demais!$O:$O,$A23)+SUMIFS(Demais!$R:$R,Demais!$N:$N,"TR",Demais!$P:$P,$A23) -> 0 | E23: 0 | F23: =SUMIFS(Ativos!$AD:$AD,Ativos!$AA:$AA,"IGPM",Ativos!$AB:$AB,$A23)+SUMIFS(Ativos!$AE:$AE,Ativos!$AA:$AA,"IGPM",Ativos!$AC:$AC,$A23) -> 0 | G23: =SUMIFS(Passivos!$S:$S,Passivos!$P:$P,"IGPM",Passivos!$Q:$Q,$A23)+SUMIFS(Passivos!$T:$T,Passivos!$P:$P,"IGPM",Passivos!$R:$R,$A23) -> 0 | H23: =SUMIFS(Demais!$Q:$Q,Demais!$N:$N,"IGPM",Demais!$O:$O,$A23)+SUMIFS(Demais!$R:$R,Demais!$N:$N,"IGPM",Demais!$P:$P,$A23) -> 0 | I23: 0 | J23: =SUMIFS(Ativos!$AD:$AD,Ativos!$AA:$AA,"IPCA",Ativos!$AB:$AB,$A23)+SUMIFS(Ativos!$AE:$AE,Ativos!$AA:$AA,"IPCA",Ativos!$AC:$AC,$A23) -> 0 | K23: =SUMIFS(Passivos!$S:$S,Passivos!$P:$P,"IPCA",Passivos!$Q:$Q,$A23)+SUMIFS(Passivos!$T:$T,Passivos!$P:$P,"IPCA",Passivos!$R:$R,$A23) -> 0 | L23: =SUMIFS(Demais!$Q:$Q,Demais!$N:$N,"IPCA",Demais!$O:$O,$A23)+SUMIFS(Demais!$R:$R,Demais!$N:$N,"IPCA",Demais!$P:$P,$A23) -> 0 | M23: 0
A24: 40 | B24: =SUMIFS(Ativos!$AD:$AD,Ativos!$AA:$AA,"TR",Ativos!$AB:$AB,$A24)+SUMIFS(Ativos!$AE:$AE,Ativos!$AA:$AA,"TR",Ativos!$AC:$AC,$A24) -> 0 | C24: =SUMIFS(Passivos!$S:$S,Passivos!$P:$P,"TR",Passivos!$Q:$Q,$A24)+SUMIFS(Passivos!$T:$T,Passivos!$P:$P,"TR",Passivos!$R:$R,$A24) -> 0 | D24: =SUMIFS(Demais!$Q:$Q,Demais!$N:$N,"TR",Demais!$O:$O,$A24)+SUMIFS(Demais!$R:$R,Demais!$N:$N,"TR",Demais!$P:$P,$A24) -> 0 | E24: 0 | F24: =SUMIFS(Ativos!$AD:$AD,Ativos!$AA:$AA,"IGPM",Ativos!$AB:$AB,$A24)+SUMIFS(Ativos!$AE:$AE,Ativos!$AA:$AA,"IGPM",Ativos!$AC:$AC,$A24) -> 0 | G24: =SUMIFS(Passivos!$S:$S,Passivos!$P:$P,"IGPM",Passivos!$Q:$Q,$A24)+SUMIFS(Passivos!$T:$T,Passivos!$P:$P,"IGPM",Passivos!$R:$R,$A24) -> 0 | H24: =SUMIFS(Demais!$Q:$Q,Demais!$N:$N,"IGPM",Demais!$O:$O,$A24)+SUMIFS(Demais!$R:$R,Demais!$N:$N,"IGPM",Demais!$P:$P,$A24) -> 0 | I24: 0 | J24: =SUMIFS(Ativos!$AD:$AD,Ativos!$AA:$AA,"IPCA",Ativos!$AB:$AB,$A24)+SUMIFS(Ativos!$AE:$AE,Ativos!$AA:$AA,"IPCA",Ativos!$AC:$AC,$A24) -> 0 | K24: =SUMIFS(Passivos!$S:$S,Passivos!$P:$P,"IPCA",Passivos!$Q:$Q,$A24)+SUMIFS(Passivos!$T:$T,Passivos!$P:$P,"IPCA",Passivos!$R:$R,$A24) -> 0 | L24: =SUMIFS(Demais!$Q:$Q,Demais!$N:$N,"IPCA",Demais!$O:$O,$A24)+SUMIFS(Demais!$R:$R,Demais!$N:$N,"IPCA",Demais!$P:$P,$A24) -> 0 | M24: 0
A25: 45 | B25: =SUMIFS(Ativos!$AD:$AD,Ativos!$AA:$AA,"TR",Ativos!$AB:$AB,$A25)+SUMIFS(Ativos!$AE:$AE,Ativos!$AA:$AA,"TR",Ativos!$AC:$AC,$A25) -> 0 | C25: =SUMIFS(Passivos!$S:$S,Passivos!$P:$P,"TR",Passivos!$Q:$Q,$A25)+SUMIFS(Passivos!$T:$T,Passivos!$P:$P,"TR",Passivos!$R:$R,$A25) -> 0 | D25: =SUMIFS(Demais!$Q:$Q,Demais!$N:$N,"TR",Demais!$O:$O,$A25)+SUMIFS(Demais!$R:$R,Demais!$N:$N,"TR",Demais!$P:$P,$A25) -> 0 | E25: 0 | F25: =SUMIFS(Ativos!$AD:$AD,Ativos!$AA:$AA,"IGPM",Ativos!$AB:$AB,$A25)+SUMIFS(Ativos!$AE:$AE,Ativos!$AA:$AA,"IGPM",Ativos!$AC:$AC,$A25) -> 0 | G25: =SUMIFS(Passivos!$S:$S,Passivos!$P:$P,"IGPM",Passivos!$Q:$Q,$A25)+SUMIFS(Passivos!$T:$T,Passivos!$P:$P,"IGPM",Passivos!$R:$R,$A25) -> 0 | H25: =SUMIFS(Demais!$Q:$Q,Demais!$N:$N,"IGPM",Demais!$O:$O,$A25)+SUMIFS(Demais!$R:$R,Demais!$N:$N,"IGPM",Demais!$P:$P,$A25) -> 0 | I25: 0 | J25: =SUMIFS(Ativos!$AD:$AD,Ativos!$AA:$AA,"IPCA",Ativos!$AB:$AB,$A25)+SUMIFS(Ativos!$AE:$AE,Ativos!$AA:$AA,"IPCA",Ativos!$AC:$AC,$A25) -> 0 | K25: =SUMIFS(Passivos!$S:$S,Passivos!$P:$P,"IPCA",Passivos!$Q:$Q,$A25)+SUMIFS(Passivos!$T:$T,Passivos!$P:$P,"IPCA",Passivos!$R:$R,$A25) -> 0 | L25: =SUMIFS(Demais!$Q:$Q,Demais!$N:$N,"IPCA",Demais!$O:$O,$A25)+SUMIFS(Demais!$R:$R,Demais!$N:$N,"IPCA",Demais!$P:$P,$A25) -> 0 | M25: 0
A26: 50 | B26: =SUMIFS(Ativos!$AD:$AD,Ativos!$AA:$AA,"TR",Ativos!$AB:$AB,$A26)+SUMIFS(Ativos!$AE:$AE,Ativos!$AA:$AA,"TR",Ativos!$AC:$AC,$A26) -> 0 | C26: =SUMIFS(Passivos!$S:$S,Passivos!$P:$P,"TR",Passivos!$Q:$Q,$A26)+SUMIFS(Passivos!$T:$T,Passivos!$P:$P,"TR",Passivos!$R:$R,$A26) -> 0 | D26: =SUMIFS(Demais!$Q:$Q,Demais!$N:$N,"TR",Demais!$O:$O,$A26)+SUMIFS(Demais!$R:$R,Demais!$N:$N,"TR",Demais!$P:$P,$A26) -> 0 | E26: =B26+C26+D26 -> 0 | F26: =SUMIFS(Ativos!$AD:$AD,Ativos!$AA:$AA,"IGPM",Ativos!$AB:$AB,$A26)+SUMIFS(Ativos!$AE:$AE,Ativos!$AA:$AA,"IGPM",Ativos!$AC:$AC,$A26) -> 0 | G26: =SUMIFS(Passivos!$S:$S,Passivos!$P:$P,"IGPM",Passivos!$Q:$Q,$A26)+SUMIFS(Passivos!$T:$T,Passivos!$P:$P,"IGPM",Passivos!$R:$R,$A26) -> 0 | H26: =SUMIFS(Demais!$Q:$Q,Demais!$N:$N,"IGPM",Demais!$O:$O,$A26)+SUMIFS(Demais!$R:$R,Demais!$N:$N,"IGPM",Demais!$P:$P,$A26) -> 0 | I26: =F26+G26+H26 -> 0 | J26: =SUMIFS(Ativos!$AD:$AD,Ativos!$AA:$AA,"IPCA",Ativos!$AB:$AB,$A26)+SUMIFS(Ativos!$AE:$AE,Ativos!$AA:$AA,"IPCA",Ativos!$AC:$AC,$A26) -> 0 | K26: =SUMIFS(Passivos!$S:$S,Passivos!$P:$P,"IPCA",Passivos!$Q:$Q,$A26)+SUMIFS(Passivos!$T:$T,Passivos!$P:$P,"IPCA",Passivos!$R:$R,$A26) -> 0 | L26: =SUMIFS(Demais!$Q:$Q,Demais!$N:$N,"IPCA",Demais!$O:$O,$A26)+SUMIFS(Demais!$R:$R,Demais!$N:$N,"IPCA",Demais!$P:$P,$A26) -> 0 | M26: =J26+K26+L26 -> 0
B29: Cupons Cambiais | F29: PRÉ | K29: Ações
B30: At. Fin | C30: Pass. Tec | D30: Demais | E30: Exp. Liq. | F30: At. Fin | G30: Pass. Tec | H30: Demais | I30: Exp. Liq. | K30: At. Fin | L30: Pass. Tec | M30: Demais | N30: Exp. Liq.
A31: Indexado | B31: =SUMIF(Ativos!$AA:$AA,"CAMBIAL",Ativos!$X:$X) -> 0 | C31: =SUMIF(Passivos!$P:$P,"CAMBIAL",Passivos!$N:$N) -> 0 | D31: =SUMIF(Demais!$N:$N,"CAMBIAL",Demais!$L:$L) -> 0 | E31: =B31+C31+D31 -> 0 | K31: =SUMIF(Ativos!$AA:$AA,"ACOES",Ativos!$X:$X) -> 0 | L31: =SUMIF(Passivos!$P:$P,"ACOES",Passivos!$N:$N) -> 0 | M31: =SUMIF(Demais!$N:$N,"ACOES",Demais!$L:$L) -> 0 | N31: =K31+L31+M31 -> 0
A32: =1/12 -> 0.08333333333 | B32: =SUMIFS(Ativos!$AD:$AD,Ativos!$AA:$AA,"CAMBIAL",Ativos!$AB:$AB,$A32)+SUMIFS(Ativos!$AE:$AE,Ativos!$AA:$AA,"CAMBIAL",Ativos!$AC:$AC,$A32) -> 0 | C32: =SUMIFS(Passivos!$S:$S,Passivos!$P:$P,"CAMBIAL",Passivos!$Q:$Q,$A32)+SUMIFS(Passivos!$T:$T,Passivos!$P:$P,"CAMBIAL",Passivos!$R:$R,$A32) -> 0 | D32: =SUMIFS(Demais!$Q:$Q,Demais!$N:$N,"CAMBIAL",Demais!$O:$O,$A32)+SUMIFS(Demais!$R:$R,Demais!$N:$N,"CAMBIAL",Demais!$P:$P,$A32) -> 0 | E32: =B32+C32+D32 -> 0 | F32: =SUMIFS(Ativos!$AD:$AD,Ativos!$AA:$AA,"PRE",Ativos!$AB:$AB,$A32)+SUMIFS(Ativos!$AE:$AE,Ativos!$AA:$AA,"PRE",Ativos!$AC:$AC,$A32) -> 0 | G32: =SUMIFS(Passivos!$S:$S,Passivos!$P:$P,"PRE",Passivos!$Q:$Q,$A32)+SUMIFS(Passivos!$T:$T,Passivos!$P:$P,"PRE",Passivos!$R:$R,$A32) -> 0 | H32: =SUMIFS(Demais!$Q:$Q,Demais!$N:$N,"PRE",Demais!$O:$O,$A32)+SUMIFS(Demais!$R:$R,Demais!$N:$N,"PRE",Demais!$P:$P,$A32) -> 0 | I32: =F32+G32+H32 -> 0
A33: 0.25 | B33: =SUMIFS(Ativos!$AD:$AD,Ativos!$AA:$AA,"CAMBIAL",Ativos!$AB:$AB,$A33)+SUMIFS(Ativos!$AE:$AE,Ativos!$AA:$AA,"CAMBIAL",Ativos!$AC:$AC,$A33) -> 0 | C33: =SUMIFS(Passivos!$S:$S,Passivos!$P:$P,"CAMBIAL",Passivos!$Q:$Q,$A33)+SUMIFS(Passivos!$T:$T,Passivos!$P:$P,"CAMBIAL",Passivos!$R:$R,$A33) -> 0 | D33: =SUMIFS(Demais!$Q:$Q,Demais!$N:$N,"CAMBIAL",Demais!$O:$O,$A33)+SUMIFS(Demais!$R:$R,Demais!$N:$N,"CAMBIAL",Demais!$P:$P,$A33) -> 0 | E33: 0 | F33: =SUMIFS(Ativos!$AD:$AD,Ativos!$AA:$AA,"PRE",Ativos!$AB:$AB,$A33)+SUMIFS(Ativos!$AE:$AE,Ativos!$AA:$AA,"PRE",Ativos!$AC:$AC,$A33) -> 0 | G33: =SUMIFS(Passivos!$S:$S,Passivos!$P:$P,"PRE",Passivos!$Q:$Q,$A33)+SUMIFS(Passivos!$T:$T,Passivos!$P:$P,"PRE",Passivos!$R:$R,$A33) -> 0 | H33: =SUMIFS(Demais!$Q:$Q,Demais!$N:$N,"PRE",Demais!$O:$O,$A33)+SUMIFS(Demais!$R:$R,Demais!$N:$N,"PRE",Demais!$P:$P,$A33) -> 0 | I33: =F33+G33+H33 -> 0 | K33: Câmbio
A34: 0.5 | B34: =SUMIFS(Ativos!$AD:$AD,Ativos!$AA:$AA,"CAMBIAL",Ativos!$AB:$AB,$A34)+SUMIFS(Ativos!$AE:$AE,Ativos!$AA:$AA,"CAMBIAL",Ativos!$AC:$AC,$A34) -> 0 | C34: =SUMIFS(Passivos!$S:$S,Passivos!$P:$P,"CAMBIAL",Passivos!$Q:$Q,$A34)+SUMIFS(Passivos!$T:$T,Passivos!$P:$P,"CAMBIAL",Passivos!$R:$R,$A34) -> 0 | D34: =SUMIFS(Demais!$Q:$Q,Demais!$N:$N,"CAMBIAL",Demais!$O:$O,$A34)+SUMIFS(Demais!$R:$R,Demais!$N:$N,"CAMBIAL",Demais!$P:$P,$A34) -> 0 | E34: 0 | F34: =SUMIFS(Ativos!$AD:$AD,Ativos!$AA:$AA,"PRE",Ativos!$AB:$AB,$A34)+SUMIFS(Ativos!$AE:$AE,Ativos!$AA:$AA,"PRE",Ativos!$AC:$AC,$A34) -> 0 | G34: =SUMIFS(Passivos!$S:$S,Passivos!$P:$P,"PRE",Passivos!$Q:$Q,$A34)+SUMIFS(Passivos!$T:$T,Passivos!$P:$P,"PRE",Passivos!$R:$R,$A34) -> 0 | H34: =SUMIFS(Demais!$Q:$Q,Demais!$N:$N,"PRE",Demais!$O:$O,$A34)+SUMIFS(Demais!$R:$R,Demais!$N:$N,"PRE",Demais!$P:$P,$A34) -> 0 | I34: 0 | K34: At. Fin | L34: Pass. Tec | M34: Demais | N34: Exp. Liq.
A35: 1 | B35: =SUMIFS(Ativos!$AD:$AD,Ativos!$AA:$AA,"CAMBIAL",Ativos!$AB:$AB,$A35)+SUMIFS(Ativos!$AE:$AE,Ativos!$AA:$AA,"CAMBIAL",Ativos!$AC:$AC,$A35) -> 0 | C35: =SUMIFS(Passivos!$S:$S,Passivos!$P:$P,"CAMBIAL",Passivos!$Q:$Q,$A35)+SUMIFS(Passivos!$T:$T,Passivos!$P:$P,"CAMBIAL",Passivos!$R:$R,$A35) -> 0 | D35: =SUMIFS(Demais!$Q:$Q,Demais!$N:$N,"CAMBIAL",Demais!$O:$O,$A35)+SUMIFS(Demais!$R:$R,Demais!$N:$N,"CAMBIAL",Demais!$P:$P,$A35) -> 0 | E35: 0 | F35: =SUMIFS(Ativos!$AD:$AD,Ativos!$AA:$AA,"PRE",Ativos!$AB:$AB,$A35)+SUMIFS(Ativos!$AE:$AE,Ativos!$AA:$AA,"PRE",Ativos!$AC:$AC,$A35) -> 0 | G35: =SUMIFS(Passivos!$S:$S,Passivos!$P:$P,"PRE",Passivos!$Q:$Q,$A35)+SUMIFS(Passivos!$T:$T,Passivos!$P:$P,"PRE",Passivos!$R:$R,$A35) -> 0 | H35: =SUMIFS(Demais!$Q:$Q,Demais!$N:$N,"PRE",Demais!$O:$O,$A35)+SUMIFS(Demais!$R:$R,Demais!$N:$N,"PRE",Demais!$P:$P,$A35) -> 0 | I35: 0 | K35: =SUMIF(Ativos!$AA:$AA,"MOEDA",Ativos!$X:$X) -> 0 | L35: =SUMIF(Passivos!$P:$P,"MOEDA",Passivos!$N:$N) -> 0 | M35: =SUMIF(Demais!$N:$N,"MOEDA",Demais!$L:$L) -> 0 | N35: =K35+L35+M35 -> 0
A36: 1.5 | B36: =SUMIFS(Ativos!$AD:$AD,Ativos!$AA:$AA,"CAMBIAL",Ativos!$AB:$AB,$A36)+SUMIFS(Ativos!$AE:$AE,Ativos!$AA:$AA,"CAMBIAL",Ativos!$AC:$AC,$A36) -> 0 | C36: =SUMIFS(Passivos!$S:$S,Passivos!$P:$P,"CAMBIAL",Passivos!$Q:$Q,$A36)+SUMIFS(Passivos!$T:$T,Passivos!$P:$P,"CAMBIAL",Passivos!$R:$R,$A36) -> 0 | D36: =SUMIFS(Demais!$Q:$Q,Demais!$N:$N,"CAMBIAL",Demais!$O:$O,$A36)+SUMIFS(Demais!$R:$R,Demais!$N:$N,"CAMBIAL",Demais!$P:$P,$A36) -> 0 | E36: 0 | F36: =SUMIFS(Ativos!$AD:$AD,Ativos!$AA:$AA,"PRE",Ativos!$AB:$AB,$A36)+SUMIFS(Ativos!$AE:$AE,Ativos!$AA:$AA,"PRE",Ativos!$AC:$AC,$A36) -> 0 | G36: =SUMIFS(Passivos!$S:$S,Passivos!$P:$P,"PRE",Passivos!$Q:$Q,$A36)+SUMIFS(Passivos!$T:$T,Passivos!$P:$P,"PRE",Passivos!$R:$R,$A36) -> 0 | H36: =SUMIFS(Demais!$Q:$Q,Demais!$N:$N,"PRE",Demais!$O:$O,$A36)+SUMIFS(Demais!$R:$R,Demais!$N:$N,"PRE",Demais!$P:$P,$A36) -> 0 | I36: 0
A37: 2 | B37: =SUMIFS(Ativos!$AD:$AD,Ativos!$AA:$AA,"CAMBIAL",Ativos!$AB:$AB,$A37)+SUMIFS(Ativos!$AE:$AE,Ativos!$AA:$AA,"CAMBIAL",Ativos!$AC:$AC,$A37) -> 0 | C37: =SUMIFS(Passivos!$S:$S,Passivos!$P:$P,"CAMBIAL",Passivos!$Q:$Q,$A37)+SUMIFS(Passivos!$T:$T,Passivos!$P:$P,"CAMBIAL",Passivos!$R:$R,$A37) -> 0 | D37: =SUMIFS(Demais!$Q:$Q,Demais!$N:$N,"CAMBIAL",Demais!$O:$O,$A37)+SUMIFS(Demais!$R:$R,Demais!$N:$N,"CAMBIAL",Demais!$P:$P,$A37) -> 0 | E37: 0 | F37: =SUMIFS(Ativos!$AD:$AD,Ativos!$AA:$AA,"PRE",Ativos!$AB:$AB,$A37)+SUMIFS(Ativos!$AE:$AE,Ativos!$AA:$AA,"PRE",Ativos!$AC:$AC,$A37) -> 0 | G37: =SUMIFS(Passivos!$S:$S,Passivos!$P:$P,"PRE",Passivos!$Q:$Q,$A37)+SUMIFS(Passivos!$T:$T,Passivos!$P:$P,"PRE",Passivos!$R:$R,$A37) -> 0 | H37: =SUMIFS(Demais!$Q:$Q,Demais!$N:$N,"PRE",Demais!$O:$O,$A37)+SUMIFS(Demais!$R:$R,Demais!$N:$N,"PRE",Demais!$P:$P,$A37) -> 0 | I37: 0 | K37: Commodities
A38: 2.5 | B38: =SUMIFS(Ativos!$AD:$AD,Ativos!$AA:$AA,"CAMBIAL",Ativos!$AB:$AB,$A38)+SUMIFS(Ativos!$AE:$AE,Ativos!$AA:$AA,"CAMBIAL",Ativos!$AC:$AC,$A38) -> 0 | C38: =SUMIFS(Passivos!$S:$S,Passivos!$P:$P,"CAMBIAL",Passivos!$Q:$Q,$A38)+SUMIFS(Passivos!$T:$T,Passivos!$P:$P,"CAMBIAL",Passivos!$R:$R,$A38) -> 0 | D38: =SUMIFS(Demais!$Q:$Q,Demais!$N:$N,"CAMBIAL",Demais!$O:$O,$A38)+SUMIFS(Demais!$R:$R,Demais!$N:$N,"CAMBIAL",Demais!$P:$P,$A38) -> 0 | E38: 0 | F38: =SUMIFS(Ativos!$AD:$AD,Ativos!$AA:$AA,"PRE",Ativos!$AB:$AB,$A38)+SUMIFS(Ativos!$AE:$AE,Ativos!$AA:$AA,"PRE",Ativos!$AC:$AC,$A38) -> 0 | G38: =SUMIFS(Passivos!$S:$S,Passivos!$P:$P,"PRE",Passivos!$Q:$Q,$A38)+SUMIFS(Passivos!$T:$T,Passivos!$P:$P,"PRE",Passivos!$R:$R,$A38) -> 0 | H38: =SUMIFS(Demais!$Q:$Q,Demais!$N:$N,"PRE",Demais!$O:$O,$A38)+SUMIFS(Demais!$R:$R,Demais!$N:$N,"PRE",Demais!$P:$P,$A38) -> 0 | I38: 0 | K38: At. Fin | L38: Pass. Tec | M38: Demais | N38: Exp. Liq.
A39: 3 | B39: =SUMIFS(Ativos!$AD:$AD,Ativos!$AA:$AA,"CAMBIAL",Ativos!$AB:$AB,$A39)+SUMIFS(Ativos!$AE:$AE,Ativos!$AA:$AA,"CAMBIAL",Ativos!$AC:$AC,$A39) -> 0 | C39: =SUMIFS(Passivos!$S:$S,Passivos!$P:$P,"CAMBIAL",Passivos!$Q:$Q,$A39)+SUMIFS(Passivos!$T:$T,Passivos!$P:$P,"CAMBIAL",Passivos!$R:$R,$A39) -> 0 | D39: =SUMIFS(Demais!$Q:$Q,Demais!$N:$N,"CAMBIAL",Demais!$O:$O,$A39)+SUMIFS(Demais!$R:$R,Demais!$N:$N,"CAMBIAL",Demais!$P:$P,$A39) -> 0 | E39: 0 | F39: =SUMIFS(Ativos!$AD:$AD,Ativos!$AA:$AA,"PRE",Ativos!$AB:$AB,$A39)+SUMIFS(Ativos!$AE:$AE,Ativos!$AA:$AA,"PRE",Ativos!$AC:$AC,$A39) -> 0 | G39: =SUMIFS(Passivos!$S:$S,Passivos!$P:$P,"PRE",Passivos!$Q:$Q,$A39)+SUMIFS(Passivos!$T:$T,Passivos!$P:$P,"PRE",Passivos!$R:$R,$A39) -> 0 | H39: =SUMIFS(Demais!$Q:$Q,Demais!$N:$N,"PRE",Demais!$O:$O,$A39)+SUMIFS(Demais!$R:$R,Demais!$N:$N,"PRE",Demais!$P:$P,$A39) -> 0 | I39: 0 | K39: =SUMIF(Ativos!$AA:$AA,"COMMODITY",Ativos!$X:$X) -> 0 | L39: =SUMIF(Passivos!$P:$P,"COMMODITY",Passivos!$N:$N) -> 0 | M39: =SUMIF(Demais!$N:$N,"COMMODITY",Demais!$L:$L) -> 0 | N39: =K39+L39+M39 -> 0
A40: 4 | B40: =SUMIFS(Ativos!$AD:$AD,Ativos!$AA:$AA,"CAMBIAL",Ativos!$AB:$AB,$A40)+SUMIFS(Ativos!$AE:$AE,Ativos!$AA:$AA,"CAMBIAL",Ativos!$AC:$AC,$A40) -> 0 | C40: =SUMIFS(Passivos!$S:$S,Passivos!$P:$P,"CAMBIAL",Passivos!$Q:$Q,$A40)+SUMIFS(Passivos!$T:$T,Passivos!$P:$P,"CAMBIAL",Passivos!$R:$R,$A40) -> 0 | D40: =SUMIFS(Demais!$Q:$Q,Demais!$N:$N,"CAMBIAL",Demais!$O:$O,$A40)+SUMIFS(Demais!$R:$R,Demais!$N:$N,"CAMBIAL",Demais!$P:$P,$A40) -> 0 | E40: 0 | F40: =SUMIFS(Ativos!$AD:$AD,Ativos!$AA:$AA,"PRE",Ativos!$AB:$AB,$A40)+SUMIFS(Ativos!$AE:$AE,Ativos!$AA:$AA,"PRE",Ativos!$AC:$AC,$A40) -> 0 | G40: =SUMIFS(Passivos!$S:$S,Passivos!$P:$P,"PRE",Passivos!$Q:$Q,$A40)+SUMIFS(Passivos!$T:$T,Passivos!$P:$P,"PRE",Passivos!$R:$R,$A40) -> 0 | H40: =SUMIFS(Demais!$Q:$Q,Demais!$N:$N,"PRE",Demais!$O:$O,$A40)+SUMIFS(Demais!$R:$R,Demais!$N:$N,"PRE",Demais!$P:$P,$A40) -> 0 | I40: 0
A41: 5 | B41: =SUMIFS(Ativos!$AD:$AD,Ativos!$AA:$AA,"CAMBIAL",Ativos!$AB:$AB,$A41)+SUMIFS(Ativos!$AE:$AE,Ativos!$AA:$AA,"CAMBIAL",Ativos!$AC:$AC,$A41) -> 0 | C41: =SUMIFS(Passivos!$S:$S,Passivos!$P:$P,"CAMBIAL",Passivos!$Q:$Q,$A41)+SUMIFS(Passivos!$T:$T,Passivos!$P:$P,"CAMBIAL",Passivos!$R:$R,$A41) -> 0 | D41: =SUMIFS(Demais!$Q:$Q,Demais!$N:$N,"CAMBIAL",Demais!$O:$O,$A41)+SUMIFS(Demais!$R:$R,Demais!$N:$N,"CAMBIAL",Demais!$P:$P,$A41) -> 0 | E41: 0 | F41: =SUMIFS(Ativos!$AD:$AD,Ativos!$AA:$AA,"PRE",Ativos!$AB:$AB,$A41)+SUMIFS(Ativos!$AE:$AE,Ativos!$AA:$AA,"PRE",Ativos!$AC:$AC,$A41) -> 0 | G41: =SUMIFS(Passivos!$S:$S,Passivos!$P:$P,"PRE",Passivos!$Q:$Q,$A41)+SUMIFS(Passivos!$T:$T,Passivos!$P:$P,"PRE",Passivos!$R:$R,$A41) -> 0 | H41: =SUMIFS(Demais!$Q:$Q,Demais!$N:$N,"PRE",Demais!$O:$O,$A41)+SUMIFS(Demais!$R:$R,Demais!$N:$N,"PRE",Demais!$P:$P,$A41) -> 0 | I41: 0
A42: 10 | B42: =SUMIFS(Ativos!$AD:$AD,Ativos!$AA:$AA,"CAMBIAL",Ativos!$AB:$AB,$A42)+SUMIFS(Ativos!$AE:$AE,Ativos!$AA:$AA,"CAMBIAL",Ativos!$AC:$AC,$A42) -> 0 | C42: =SUMIFS(Passivos!$S:$S,Passivos!$P:$P,"CAMBIAL",Passivos!$Q:$Q,$A42)+SUMIFS(Passivos!$T:$T,Passivos!$P:$P,"CAMBIAL",Passivos!$R:$R,$A42) -> 0 | D42: =SUMIFS(Demais!$Q:$Q,Demais!$N:$N,"CAMBIAL",Demais!$O:$O,$A42)+SUMIFS(Demais!$R:$R,Demais!$N:$N,"CAMBIAL",Demais!$P:$P,$A42) -> 0 | E42: 0 | F42: =SUMIFS(Ativos!$AD:$AD,Ativos!$AA:$AA,"PRE",Ativos!$AB:$AB,$A42)+SUMIFS(Ativos!$AE:$AE,Ativos!$AA:$AA,"PRE",Ativos!$AC:$AC,$A42) -> 0 | G42: =SUMIFS(Passivos!$S:$S,Passivos!$P:$P,"PRE",Passivos!$Q:$Q,$A42)+SUMIFS(Passivos!$T:$T,Passivos!$P:$P,"PRE",Passivos!$R:$R,$A42) -> 0 | H42: =SUMIFS(Demais!$Q:$Q,Demais!$N:$N,"PRE",Demais!$O:$O,$A42)+SUMIFS(Demais!$R:$R,Demais!$N:$N,"PRE",Demais!$P:$P,$A42) -> 0 | I42: 0
A43: 15 | F43: =SUMIFS(Ativos!$AD:$AD,Ativos!$AA:$AA,"PRE",Ativos!$AB:$AB,$A43)+SUMIFS(Ativos!$AE:$AE,Ativos!$AA:$AA,"PRE",Ativos!$AC:$AC,$A43) -> 0 | G43: =SUMIFS(Passivos!$S:$S,Passivos!$P:$P,"PRE",Passivos!$Q:$Q,$A43)+SUMIFS(Passivos!$T:$T,Passivos!$P:$P,"PRE",Passivos!$R:$R,$A43) -> 0 | H43: =SUMIFS(Demais!$Q:$Q,Demais!$N:$N,"PRE",Demais!$O:$O,$A43)+SUMIFS(Demais!$R:$R,Demais!$N:$N,"PRE",Demais!$P:$P,$A43) -> 0 | I43: 0

Sheet Racional de Calculo (hidden)
A1: Capital de Risco Baseado no Risco de Mercado
A2: Fórmula Padrão SUSEP (Resolução CNSP nº 317/2014)
B4: CRmerc.geral (R$) | D4: =IF(ISBLANK(grupo),SQRT(MMULT(MMULT(vet_exposicoes,matriz_fatores),TRANSPOSE(vet_exposicoes))),"") -> 0 | F4: TRATAMENTO DOS EXCEDENTES
F5: Grupo de Produtos com Excedentes
B6: CRmerc.exc (R$) | D6: =SUM(Excedentes!$K:$K) -> 0 | F6: CRmerc.geral i (R$) | I6: =IF(AND(NOT(ISBLANK(grupo)),NOT(ISERROR(VLOOKUP(grupo,codgrupo_excedentes,1,0)))),SQRT(MMULT(MMULT(vet_exposicoes,matriz_fatores),TRANSPOSE(vet_exposicoes))),"") -> 
F7: CRmerc.exc i (R$) | I7: =IF(AND(NOT(ISBLANK(grupo)),NOT(ISERROR(VLOOKUP(grupo,codgrupo_excedentes,1,0)))),H7-MIN(H7*VLOOKUP(grupo,excedentes,4,0)/100,(VLOOKUP(grupo,excedentes,2,0)+ (SUMIF(Ativos!$U:$U,grupo,Ativos!$W:$W)-VLOOKUP(grupo,excedentes,3,0))*(1-VLOOKUP(grupo,excedentes,5,0)/100/2))),"") -> 
A9: Vetor de Exposições
A10: Vértices Pre (Anuais) | M10: Vértices Cupom de IGPM (Anuais) | AE10: Vértices Cupom de IPCA (Anuais) | AW10: VERTICES TR | BO10: Vértices Cupom Cambial (Anuais) | BZ10: Valor Indexado a IGPM | CA10: Valor Indexado a IPCA | CB10: Valor Indexado a TR | CC10: Valor Indexado a Ações | CD10: Valor Indexado a Câmbio | CE10: Valor Indexado a Commodities
A11: =1/12 -> 0.08333333333 | B11: 0.25 | C11: 0.5 | D11: 1 | E11: 1.5 | F11: 2 | G11: 2.5 | H11: 3 | I11: 4 | J11: 5 | K11: 10 | L11: 15 | M11: 0.25 | N11: 0.5 | O11: 1 | P11: 1.5 | Q11: 2 | R11: 2.5 | S11: 3 | T11: 4 | U11: 5 | V11: 10 | W11: 15 | X11: 20 | Y11: 25 | Z11: 30 | AA11: 35 | AB11: 40 | AC11: 45 | AD11: 50 | AE11: 0.25 | AF11: 0.5 | AG11: 1 | AH11: 1.5 | AI11: 2 | AJ11: 2.5 | AK11: 3 | AL11: 4 | AM11: 5 | AN11: 10 | AO11: 15 | AP11: 20 | AQ11: 25 | AR11: 30 | AS11: 35 | AT11: 40 | AU11: 45 | AV11: 50 | AW11: 0.25 | AX11: 0.5 | AY11: 1 | AZ11: 1.5 | BA11: 2 | BB11: 2.5 | BC11: 3 | BD11: 4 | BE11: 5 | BF11: 10 | BG11: 15 | BH11: 20 | BI11: 25 | BJ11: 30 | BK11: 35 | BL11: 40 | BM11: 45 | BN11: 50 | BO11: =1/12 -> 0.08333333333 | BP11: 0.25 | BQ11: 0.5 | BR11: 1 | BS11: 1.5 | BT11: 2 | BU11: 2.5 | BV11: 3 | BW11: 4 | BX11: 5 | BY11: 10
A12: ='Calculo CRmerc'!$I$32 -> 0 | B12: ='Calculo CRmerc'!$I$33 -> 0 | C12: ='Calculo CRmerc'!$I$34 -> 0 | D12: ='Calculo CRmerc'!$I$35 -> 0 | E12: ='Calculo CRmerc'!$I$36 -> 0 | F12: ='Calculo CRmerc'!$I$37 -> 0 | G12: ='Calculo CRmerc'!$I$38 -> 0 | H12: ='Calculo CRmerc'!$I$39 -> 0 | I12: ='Calculo CRmerc'!$I$40 -> 0 | J12: ='Calculo CRmerc'!$I$41 -> 0 | K12: ='Calculo CRmerc'!$I$42 -> 0 | L12: ='Calculo CRmerc'!$I$43 -> 0 | M12: ='Calculo CRmerc'!$I$9 -> 0 | N12: ='Calculo CRmerc'!$I$10 -> 0 | O12: ='Calculo CRmerc'!$I$11 -> 0 | P12: ='Calculo CRmerc'!$I$12 -> 0 | Q12: ='Calculo CRmerc'!$I$13 -> 0 | R12: ='Calculo CRmerc'!$I$14 -> 0 | S12: ='Calculo CRmerc'!$I$15 -> 0 | T12: ='Calculo CRmerc'!$I$16 -> 0 | U12: ='Calculo CRmerc'!$I$17 -> 0 | V12: ='Calculo CRmerc'!$I$18 -> 0 | W12: ='Calculo CRmerc'!$I$19 -> 0 | X12: ='Calculo CRmerc'!$I$20 -> 0 | Y12: ='Calculo CRmerc'!$I$21 -> 0 | Z12: ='Calculo CRmerc'!$I$22 -> 0 | AA12: ='Calculo CRmerc'!$I$23 -> 0 | AB12: ='Calculo CRmerc'!$I$24 -> 0 | AC12: ='Calculo CRmerc'!$I$25 -> 0 | AD12: ='Calculo CRmerc'!$I$26 -> 0 | AE12: ='Calculo CRmerc'!$M$9 -> 0 | AF12: ='Calculo CRmerc'!$M$10 -> 0 | AG12: ='Calculo CRmerc'!$M$11 -> 0 | AH12: ='Calculo CRmerc'!$M$12 -> 0 | AI12: ='Calculo CRmerc'!$M$13 -> 0 | AJ12: ='Calculo CRmerc'!$M$14 -> 0 | AK12: ='Calculo CRmerc'!$M$15 -> 0 | AL12: ='Calculo CRmerc'!$M$16 -> 0 | AM12: ='Calculo CRmerc'!$M$17 -> 0 | AN12: ='Calculo CRmerc'!$M$18 -> 0 | AO12: ='Calculo CRmerc'!$M$19 -> 0 | AP12: ='Calculo CRmerc'!$M$20 -> 0 | AQ12: ='Calculo CRmerc'!$M$21 -> 0 | AR12: ='Calculo CRmerc'!$M$22 -> 0 | AS12: ='Calculo CRmerc'!$M$23 -> 0 | AT12: ='Calculo CRmerc'!$M$24 -> 0 | AU12: ='Calculo CRmerc'!$M$25 -> 0 | AV12: ='Calculo CRmerc'!$M$26 -> 0 | AW12: ='Calculo CRmerc'!$E$9 -> 0 | AX12: ='Calculo CRmerc'!$E$10 -> 0 | AY12: ='Calculo CRmerc'!$E$11 -> 0 | AZ12: ='Calculo CRmerc'!$E$12 -> 0 | BA12: ='Calculo CRmerc'!$E$13 -> 0 | BB12: ='Calculo CRmerc'!$E$14 -> 0 | BC12: ='Calculo CRmerc'!$E$15 -> 0 | BD12: ='Calculo CRmerc'!$E$16 -> 0 | BE12: ='Calculo CRmerc'!$E$17 -> 0 | BF12: ='Calculo CRmerc'!$E$18 -> 0 | BG12: ='Calculo CRmerc'!$E$19 -> 0 | BH12: ='Calculo CRmerc'!$E$20 -> 0 | BI12: ='Calculo CRmerc'!$E$21 -> 0 | BJ12: ='Calculo CRmerc'!$E$22 -> 0 | BK12: ='Calculo CRmerc'!$E$23 -> 0 | BL12: ='Calculo CRmerc'!$E$24 -> 0 | BM12: ='Calculo CRmerc'!$E$25 -> 0 | BN12: ='Calculo CRmerc'!$E$26 -> 0 | BO12: ='Calculo CRmerc'!$E$32 -> 0 | BP12: ='Calculo CRmerc'!$E$33 -> 0 | BQ12: ='Calculo CRmerc'!$E$34 -> 0 | BR12: ='Calculo CRmerc'!$E$35 -> 0 | BS12: ='Calculo CRmerc'!$E$36 -> 0 | BT12: ='Calculo CRmerc'!$E$37 -> 0 | BU12: ='Calculo CRmerc'!$E$38 -> 0 | BV12: ='Calculo CRmerc'!$E$39 -> 0 | BW12: ='Calculo CRmerc'!$E$40 -> 0 | BX12: ='Calculo CRmerc'!$E$41 -> 0 | BY12: ='Calculo CRmerc'!$E$42 -> 0 | BZ12: ='Calculo CRmerc'!$I$8 -> 0 | CA12: ='Calculo CRmerc'!$M$8 -> 0 | CB12: ='Calculo CRmerc'!$E$8 -> 0 | CC12: ='Calculo CRmerc'!$N$31 -> 0 | CD12: ='Calculo CRmerc'!$N$35+'Calculo CRmerc'!$E$31 -> 0 | CE12: ='Calculo CRmerc'!$N$39 -> 0
A14: Matriz de Fatores
B15: pre.21 | C15: pre.63 | D15: pre.126 | E15: pre.252 | F15: pre.378 | G15: pre.504 | H15: pre.630 | I15: pre.756 | J15: pre.1008 | K15: pre.1260 | L15: pre.2520 | M15: pre.3780 | N15: igpm.63 | O15: igpm.126 | P15: igpm.252 | Q15: igpm.378 | R15: igpm.504 | S15: igpm.630 | T15: igpm.756 | U15: igpm.1008 | V15: igpm.1260 | W15: igpm.2520 | X15: igpm.3780 | Y15: igpm.5040 | Z15: igpm.6300 | AA15: igpm.7560 | AB15: igpm.8820 | AC15: igpm.10080 | AD15: igpm.11340 | AE15: igpm.12600 | AF15: ipca.63 | AG15: ipca.126 | AH15: ipca.252 | AI15: ipca.378 | AJ15: ipca.504 | AK15: ipca.630 | AL15: ipca.756 | AM15: ipca.1008 | AN15: ipca.1260 | AO15: ipca.2520 | AP15: ipca.3780 | AQ15: ipca.5040 | AR15: ipca.6300 | AS15: ipca.7560 | AT15: ipca.8820 | AU15: ipca.10080 | AV15: ipca.11340 | AW15: ipca.12600 | AX15: tr.63 | AY15: tr.126 | AZ15: tr.252 | BA15: tr.378 | BB15: tr.504 | BC15: tr.630 | BD15: tr.756 | BE15: tr.1008 | BF15: tr.1260 | BG15: tr.2520 | BH15: tr.3780 | BI15: tr.5040 | BJ15: tr.6300 | BK15: tr.7560 | BL15: tr.8820 | BM15: tr.10080 | BN15: tr.11340 | BO15: tr.12600 | BP15: dolar.30 | BQ15: dolar.90 | BR15: dolar.180 | BS15: dolar.360 | BT15: dolar.540 | BU15: dolar.720 | BV15: dolar.900 | BW15: dolar.1080 | BX15: dolar.1440 | BY15: dolar.1800 | BZ15: dolar.3600 | CA15: igpm | CB15: ipca | CC15: tr | CD15: ibovespa | CE15: dolar | CF15: commodity
A16: pre.21 | B16: 6e-07 | C16: 1.9e-06 | D16: 3.8e-06 | E16: 6.5e-06 | F16: 8.2e-06 | G16: 9.3e-06 | H16: 1.02e-05 | I16: 1.1e-05 | J16: 1.23e-05 | K16: 1.35e-05 | L16: 2.26e-05 | M16: 3.4e-05 | N16: 4e-06 | O16: 7.1e-06 | P16: 1.09e-05 | Q16: 1.28e-05 | R16: 1.37e-05 | S16: 1.43e-05 | T16: 1.52e-05 | U16: 1.69e-05 | V16: 1.96e-05 | W16: 4.01e-05 | X16: 5.91e-05 | Y16: 7.49e-05 | Z16: 8.89e-05 | AA16: 0.0001018 | AB16: 0.0001143 | AC16: 0.0001265 | AD16: 0.0001386 | AE16: 0.0001507 | AF16: 3.5e-06 | AG16: 4.3e-06 | AH16: 7.3e-06 | AI16: 9.9e-06 | AJ16: 1.19e-05 | AK16: 1.33e-05 | AL16: 1.51e-05 | AM16: 1.78e-05 | AN16: 1.99e-05 | AO16: 2.89e-05 | AP16: 3.59e-05 | AQ16: 4.51e-05 | AR16: 5.71e-05 | AS16: 7.68e-05 | AT16: 9.64e-05 | AU16: 0.0001125 | AV16: 0.0001264 | AW16: 0.0001381 | AX16: 1.5e-06 | AY16: 2.8e-06 | AZ16: 4.8e-06 | BA16: 6.2e-06 | BB16: 7.2e-06 | BC16: 8.3e-06 | BD16: 9.4e-06 | BE16: 1.13e-05 | BF16: 1.26e-05 | BG16: 2.26e-05 | BH16: 3.17e-05 | BI16: 4.08e-05 | BJ16: 4.97e-05 | BK16: 5.86e-05 | BL16: 6.75e-05 | BM16: 7.64e-05 | BN16: 8.53e-05 | BO16: 9.41e-05 | BP16: 1e-07 | BQ16: 2e-07 | BR16: 3e-07 | BS16: 6e-07 | BT16: 9e-07 | BU16: 1.1e-06 | BV16: 1.4e-06 | BW16: 1.8e-06 | BX16: 2.6e-06 | BY16: 3.4e-06 | BZ16: 2.9e-06 | CA16: -5.7e-06 | CB16: -1.5e-06 | CC16: 1e-07 | CD16: 4.37e-05 | CE16: -1.04e-05 | CF16: -2.81e-05
A17: pre.63 | B17: 1.9e-06 | C17: 6.9e-06 | D17: 1.53e-05 | E17: 3.08e-05 | F17: 4.19e-05 | G17: 5.02e-05 | H17: 5.71e-05 | I17: 6.38e-05 | J17: 7.47e-05 | K17: 8.4e-05 | L17: 0.0001315 | M17: 0.0001797 | N17: 1.28e-05 | O17: 2.3e-05 | P17: 3.79e-05 | Q17: 4.79e-05 | R17: 5.5e-05 | S17: 6.03e-05 | T17: 6.65e-05 | U17: 7.65e-05 | V17: 8.84e-05 | W17: 0.0001706 | X17: 0.0002488 | Y17: 0.0003194 | Z17: 0.0003852 | AA17: 0.0004478 | AB17: 0.0005087 | AC17: 0.0005687 | AD17: 0.0006283 | AE17: 0.0006876 | AF17: 1.28e-05 | AG17: 1.52e-05 | AH17: 3.25e-05 | AI17: 4.91e-05 | AJ17: 6.11e-05 | AK17: 6.86e-05 | AL17: 7.75e-05 | AM17: 9.03e-05 | AN17: 9.93e-05 | AO17: 0.0001356 | AP17: 0.0001658 | AQ17: 0.0002057 | AR17: 0.0002535 | AS17: 0.0003274 | AT17: 0.0003949 | AU17: 0.0004456 | AV17: 0.0004886 | AW17: 0.0005244 | AX17: 4.6e-06 | AY17: 9.4e-06 | AZ17: 1.73e-05 | BA17: 2.34e-05 | BB17: 2.79e-05 | BC17: 3.28e-05 | BD17: 3.72e-05 | BE17: 4.54e-05 | BF17: 5.07e-05 | BG17: 9.28e-05 | BH17: 0.0001335 | BI17: 0.0001742 | BJ17: 0.0002146 | BK17: 0.0002548 | BL17: 0.0002949 | BM17: 0.0003349 | BN17: 0.0003749 | BO17: 0.0004148 | BP17: 2e-07 | BQ17: 7e-07 | BR17: 1.3e-06 | BS17: 2.3e-06 | BT17: 3.2e-06 | BU17: 4e-06 | BV17: 5e-06 | BW17: 6.1e-06 | BX17: 8.6e-06 | BY17: 1.07e-05 | BZ17: 7.3e-06 | CA17: -2.14e-05 | CB17: -6e-06 | CC17: 9e-07 | CD17: 0.0001438 | CE17: -1.79e-05 | CF17: -7.13e-05
A18: pre.126 | B18: 3.8e-06 | C18: 1.53e-05 | D18: 3.9e-05 | E18: 9.04e-05 | F18: 0.0001326 | G18: 0.0001664 | H18: 0.0001951 | I18: 0.0002235 | J18: 0.0002706 | K18: 0.0003108 | L18: 0.0004912 | M18: 0.0006539 | N18: 1.67e-05 | O18: 3.86e-05 | P18: 8.08e-05 | Q18: 0.0001162 | R18: 0.0001446 | S18: 0.0001665 | T18: 0.0001892 | U18: 0.0002233 | V18: 0.0002599 | W18: 0.0004936 | X18: 0.0007163 | Y18: 0.0009235 | Z18: 0.0011207 | AA18: 0.0013111 | AB18: 0.0014973 | AC18: 0.001681 | AD18: 0.0018635 | AE18: 0.0020452 | AF18: 2.68e-05 | AG18: 3.16e-05 | AH18: 8.58e-05 | AI18: 0.0001432 | AJ18: 0.0001858 | AK18: 0.0002128 | AL18: 0.0002424 | AM18: 0.0002832 | AN18: 0.0003106 | AO18: 0.0004197 | AP18: 0.0005167 | AQ18: 0.0006382 | AR18: 0.0007681 | AS18: 0.0009608 | AT18: 0.0011246 | AU18: 0.0012395 | AV18: 0.001337 | AW18: 0.0014209 | AX18: 9.9e-06 | AY18: 2.15e-05 | AZ18: 4.32e-05 | BA18: 6.14e-05 | BB18: 7.55e-05 | BC18: 9.05e-05 | BD18: 0.0001043 | BE18: 0.0001297 | BF18: 0.0001464 | BG18: 0.0002741 | BH18: 0.000398 | BI18: 0.0005222 | BJ18: 0.0006456 | BK18: 0.0007686 | BL18: 0.0008911 | BM18: 0.0010135 | BN18: 0.0011356 | BO18: 0.0012577 | BP18: 5e-07 | BQ18: 1.4e-06 | BR18: 2.6e-06 | BS18: 4.8e-06 | BT18: 6.7e-06 | BU18: 8.5e-06 | BV18: 1.07e-05 | BW18: 1.28e-05 | BX18: 1.71e-05 | BY18: 1.94e-05 | BZ18: -6.2e-06 | CA18: -5.26e-05 | CB18: -1.53e-05 | CC18: 3.1e-06 | CD18: 0.0003335 | CE18: -3.15e-05 | CF18: -9.31e-05
A19: pre.252 | B19: 6.5e-06 | C19: 3.08e-05 | D19: 9.04e-05 | E19: 0.0002469 | F19: 0.000397 | G19: 0.0005272 | H19: 0.0006417 | I19: 0.0007544 | J19: 0.0009438 | K19: 0.0011054 | L19: 0.0017917 | M19: 0.0023669 | N19: -3.96e-05 | O19: -3.7e-06 | P19: 0.0001129 | Q19: 0.0002368 | R19: 0.0003442 | S19: 0.0004274 | T19: 0.0005055 | U19: 0.0006179 | V19: 0.0007286 | W19: 0.0014049 | X19: 0.0020497 | Y19: 0.0026554 | Z19: 0.0032365 | AA19: 0.0038 | AB19: 0.0043524 | AC19: 0.0048981 | AD19: 0.00544 | AE19: 0.0059797 | AF19: 4.59e-05 | AG19: 4.84e-05 | AH19: 0.0001955 | AI19: 0.000374 | AJ19: 0.0005174 | AK19: 0.000614 | AL19: 0.000715 | AM19: 0.0008551 | AN19: 0.0009479 | AO19: 0.0013054 | AP19: 0.0016362 | AQ19: 0.002027 | AR19: 0.0024042 | AS19: 0.0029372 | AT19: 0.0033565 | AU19: 0.0036279 | AV19: 0.0038604 | AW19: 0.0040697 | AX19: 1.99e-05 | AY19: 4.76e-05 | AZ19: 0.0001066 | BA19: 0.0001611 | BB19: 0.0002069 | BC19: 0.0002561 | BD19: 0.0003021 | BE19: 0.0003876 | BF19: 0.0004458 | BG19: 0.0008555 | BH19: 0.0012425 | BI19: 0.0016276 | BJ19: 0.0020102 | BK19: 0.002391 | BL19: 0.0027707 | BM19: 0.0031497 | BN19: 0.0035282 | BO19: 0.0039064 | BP19: 6e-07 | BQ19: 1.8e-06 | BR19: 3.6e-06 | BS19: 7.5e-06 | BT19: 1.15e-05 | BU19: 1.54e-05 | BV19: 1.96e-05 | BW19: 2.28e-05 | BX19: 2.68e-05 | BY19: 2.34e-05 | BZ19: -7.84e-05 | CA19: -0.0001137 | CB19: -3.25e-05 | CC19: 8.6e-06 | CD19: 0.0008263 | CE19: -0.0001533 | CF19: -0.0001182
A20: pre.378 | B20: 8.2e-06 | C20: 4.19e-05 | D20: 0.0001326 | E20: 0.000397 | F20: 0.0006754 | G20: 0.0009306 | H20: 0.0011611 | I20: 0.0013885 | J20: 0.0017741 | K20: 0.0021029 | L20: 0.0034778 | M20: 0.0046077 | N20: -0.0001615 | O20: -0.0001318 | P20: 5.63e-05 | Q20: 0.0002874 | R20: 0.0004946 | S20: 0.0006565 | T20: 0.0008019 | U20: 0.0010095 | V20: 0.001207 | W20: 0.0024001 | X20: 0.0035418 | Y20: 0.0046103 | Z20: 0.0056322 | AA20: 0.0066219 | AB20: 0.0075912 | AC20: 0.0085485 | AD20: 0.0094988 | AE20: 0.0104453 | AF20: 5.31e-05 | AG20: 4.46e-05 | AH20: 0.000273 | AI20: 0.0005794 | AJ20: 0.0008414 | AK20: 0.0010281 | AL20: 0.0012208 | AM20: 0.0014952 | AN20: 0.0016797 | AO20: 0.0023757 | AP20: 0.003022 | AQ20: 0.0037662 | AR20: 0.0044595 | AS20: 0.0054198 | AT20: 0.0061596 | AU20: 0.0066306 | AV20: 0.0070407 | AW20: 0.0074199 | AX20: 2.8e-05 | AY20: 7.03e-05 | AZ20: 0.0001673 | BA20: 0.000263 | BB20: 0.0003474 | BC20: 0.0004393 | BD20: 0.0005268 | BE20: 0.0006912 | BF20: 0.000806 | BG20: 0.0015749 | BH20: 0.0022847 | BI20: 0.0029857 | BJ20: 0.0036805 | BK20: 0.0043717 | BL20: 0.0050607 | BM20: 0.0057484 | BN20: 0.0064354 | BO20: 0.0071218 | BP20: 3e-07 | BQ20: 9e-07 | BR20: 2.2e-06 | BS20: 6.7e-06 | BT20: 1.27e-05 | BU20: 1.89e-05 | BV20: 2.52e-05 | BW20: 2.96e-05 | BX20: 3.33e-05 | BY20: 2.4e-05 | BZ20: -0.0001432 | CA20: -0.0001519 | CB20: -4.51e-05 | CC20: 1.31e-05 | CD20: 0.0014729 | CE20: -0.0004536 | CF20: -0.0002101
A21: pre.504 | B21: 9.3e-06 | C21: 5.02e-05 | D21: 0.0001664 | E21: 0.0005272 | F21: 0.0009306 | G21: 0.0013151 | H21: 0.0016698 | I21: 0.0020217 | J21: 0.0026235 | K21: 0.0031365 | L21: 0.0052558 | M21: 0.006978 | N21: -0.000305 | O21: -0.0002933 | P21: -4.1e-05 | Q21: 0.0002992 | R21: 0.00061 | S21: 0.0008543 | T21: 0.0010698 | U21: 0.0013777 | V21: 0.0016662 | W21: 0.0033979 | X21: 0.0050517 | Y21: 0.0065875 | Z21: 0.0080487 | AA21: 0.0094602 | AB21: 0.010841 | AC21: 0.012204 | AD21: 0.0135569 | AE21: 0.0149043 | AF21: 5.3e-05 | AG21: 3.25e-05 | AH21: 0.0003262 | AI21: 0.0007493 | AJ21: 0.0011281 | AK21: 0.001409 | AL21: 0.0016985 | AM21: 0.00212 | AN21: 0.0024085 | AO21: 0.0034883 | AP21: 0.004484 | AQ21: 0.0056092 | AR21: 0.0066408 | AS21: 0.0080605 | AT21: 0.0091528 | AU21: 0.0098543 | AV21: 0.0104758 | AW21: 0.0110607 | AX21: 3.49e-05 | AY21: 9e-05 | AZ21: 0.000222 | BA21: 0.000358 | BB21: 0.000482 | BC21: 0.0006184 | BD21: 0.00075 | BE21: 0.0009996 | BF21: 0.0011771 | BG21: 0.002333 | BH21: 0.0033846 | BI21: 0.0044167 | BJ21: 0.0054377 | BK21: 0.0064526 | BL21: 0.0074642 | BM21: 0.008474 | BN21: 0.0094826 | BO21: 0.0104904 | BP21: -3e-07 | BQ21: -7e-07 | BR21: -5e-07 | BS21: 3.8e-06 | BT21: 1.15e-05 | BU21: 2.01e-05 | BV21: 2.87e-05 | BW21: 3.5e-05 | BX21: 4e-05 | BY21: 2.83e-05 | BZ21: -0.0001793 | CA21: -0.0001739 | CB21: -5.54e-05 | CC21: 1.64e-05 | CD21: 0.0022316 | CE21: -0.0008734 | CF21: -0.000319
A22: pre.630 | B22: 1.02e-05 | C22: 5.71e-05 | D22: 0.0001951 | E22: 0.0006417 | F22: 0.0011611 | G22: 0.0016698 | H22: 0.0021472 | I22: 0.0026236 | J22: 0.0034447 | K22: 0.0041454 | L22: 0.0070107 | M22: 0.0093188 | N22: -0.0004461 | O22: -0.000456 | P22: -0.0001438 | Q22: 0.0003031 | R22: 0.000716 | S22: 0.001042 | T22: 0.0013272 | U22: 0.0017363 | V22: 0.0021171 | W22: 0.0043913 | X22: 0.0065508 | Y22: 0.0085395 | Z22: 0.0104216 | AA22: 0.0122352 | AB22: 0.0140075 | AC22: 0.0157563 | AD22: 0.0174921 | AE22: 0.0192209 | AF22: 4.86e-05 | AG22: 1.89e-05 | AH22: 0.0003672 | AI22: 0.0008951 | AJ22: 0.0013836 | AK22: 0.0017564 | AL22: 0.0021409 | AM22: 0.0027101 | AN22: 0.0031057 | AO22: 0.0045861 | AP22: 0.0059374 | AQ22: 0.0074403 | AR22: 0.0088038 | AS22: 0.0106778 | AT22: 0.0121248 | AU22: 0.0130666 | AV22: 0.0139149 | AW22: 0.014724 | AX22: 4.11e-05 | AY22: 0.0001077 | AZ22: 0.0002719 | BA22: 0.0004461 | BB22: 0.0006085 | BC22: 0.0007887 | BD22: 0.0009639 | BE22: 0.0012992 | BF22: 0.0015407 | BG22: 0.0030897 | BH22: 0.0044864 | BI22: 0.0058511 | BJ22: 0.0071989 | BK22: 0.008538 | BL22: 0.0098725 | BM22: 0.0112046 | BN22: 0.0125351 | BO22: 0.0138647 | BP22: -1e-06 | BQ22: -2.5e-06 | BR22: -3.5e-06 | BS22: 2e-07 | BT22: 9.5e-06 | BU22: 2.04e-05 | BV22: 3.14e-05 | BW22: 3.96e-05 | BX22: 4.72e-05 | BY22: 3.5e-05 | BZ22: -0.0001988 | CA22: -0.0001892 | CB22: -6.5e-05 | CC22: 1.89e-05 | CD22: 0.003048 | CE22: -0.0013407 | CF22: -0.000394
A23: pre.756 | B23: 1.1e-05 | C23: 6.38e-05 | D23: 0.0002235 | E23: 0.0007544 | F23: 0.0013885 | G23: 0.0020217 | H23: 0.0026236 | I23: 0.0032278 | J23: 0.0042766 | K23: 0.0051736 | L23: 0.0088188 | M23: 0.0117384 | N23: -0.0005833 | O23: -0.0006155 | P23: -0.0002416 | Q23: 0.000315 | R23: 0.0008328 | S23: 0.001243 | T23: 0.0016004 | U23: 0.0021154 | V23: 0.0025937 | W23: 0.0054398 | X23: 0.0081251 | Y23: 0.0105791 | Z23: 0.012891 | AA23: 0.015114 | AB23: 0.0172845 | AC23: 0.0194258 | AD23: 0.0215511 | AE23: 0.023668 | AF23: 4.23e-05 | AG23: 5.9e-06 | AH23: 0.0004072 | AI23: 0.0010383 | AJ23: 0.0016367 | AK23: 0.0021024 | AL23: 0.0025833 | AM23: 0.0033043 | AN23: 0.0038114 | AO23: 0.0057143 | AP23: 0.0074346 | AQ23: 0.0093213 | AR23: 0.0110187 | AS23: 0.0133534 | AT23: 0.015164 | AU23: 0.0163581 | AV23: 0.0174492 | AW23: 0.0185017 | AX23: 4.74e-05 | AY23: 0.0001255 | AZ23: 0.000322 | BA23: 0.0005347 | BB23: 0.000736 | BC23: 0.0009607 | BD23: 0.0011808 | BE23: 0.0016045 | BF23: 0.001913 | BG23: 0.0038741 | BH23: 0.0056332 | BI23: 0.0073466 | BJ23: 0.0090368 | BK23: 0.0107154 | BL23: 0.0123881 | BM23: 0.0140575 | BN23: 0.0157251 | BO23: 0.0173915 | BP23: -1.6e-06 | BQ23: -4.3e-06 | BR23: -6.4e-06 | BS23: -3.1e-06 | BT23: 7.8e-06 | BU23: 2.11e-05 | BV23: 3.46e-05 | BW23: 4.5e-05 | BX23: 5.56e-05 | BY23: 4.32e-05 | BZ23: -0.0002182 | CA23: -0.0002053 | CB23: -7.52e-05 | CC23: 2.11e-05 | CD23: 0.0039382 | CE23: -0.0018395 | CF23: -0.0004272
A24: pre.1008 | B24: 1.23e-05 | C24: 7.47e-05 | D24: 0.0002706 | E24: 0.0009438 | F24: 0.0017741 | G24: 0.0026235 | H24: 0.0034447 | I24: 0.0042766 | J24: 0.0057383 | K24: 0.0069984 | L24: 0.0121312 | M24: 0.0162446 | N24: -0.0008115 | O24: -0.0008852 | P24: -0.0004021 | Q24: 0.0003498 | R24: 0.0010542 | S24: 0.0016143 | T24: 0.0021014 | U24: 0.002808 | V24: 0.0034655 | W24: 0.0073712 | X24: 0.0110192 | Y24: 0.0143149 | Z24: 0.0173992 | AA24: 0.0203556 | AB24: 0.0232388 | AC24: 0.0260821 | AD24: 0.0289046 | AE24: 0.0317163 | AF24: 2.55e-05 | AG24: -1.87e-05 | AH24: 0.0004692 | AI24: 0.0012759 | AJ24: 0.0020656 | AK24: 0.0026951 | AL24: 0.0033462 | AM24: 0.0043371 | AN24: 0.0050451 | AO24: 0.0077207 | AP24: 0.0101043 | AQ24: 0.0126609 | AR24: 0.0149309 | AS24: 0.0180651 | AT24: 0.0205154 | AU24: 0.0221686 | AV24: 0.0237154 | AW24: 0.0252342 | AX24: 5.77e-05 | AY24: 0.0001551 | AZ24: 0.0004066 | BA24: 0.0006857 | BB24: 0.0009552 | BC24: 0.0012585 | BD24: 0.0015584 | BE24: 0.002141 | BF24: 0.0025719 | BG24: 0.0052886 | BH24: 0.0077157 | BI24: 0.0100709 | BJ24: 0.0123907 | BK24: 0.0146933 | BL24: 0.0169873 | BM24: 0.0192768 | BN24: 0.0215637 | BO24: 0.023849 | BP24: -2.7e-06 | BQ24: -7.2e-06 | BR24: -1.12e-05 | BS24: -8.1e-06 | BT24: 6.5e-06 | BU24: 2.49e-05 | BV24: 4.38e-05 | BW24: 5.87e-05 | BX24: 7.48e-05 | BY24: 6.04e-05 | BZ24: -0.0002784 | CA24: -0.000234 | CB24: -9.35e-05 | CC24: 2.38e-05 | CD24: 0.0056776 | CE24: -0.0027911 | CF24: -0.0003641
A25: pre.1260 | B25: 1.35e-05 | C25: 8.4e-05 | D25: 0.0003108 | E25: 0.0011054 | F25: 0.0021029 | G25: 0.0031365 | H25: 0.0041454 | I25: 0.0051736 | J25: 0.0069984 | K25: 0.0085887 | L25: 0.01519 | M25: 0.0205649 | N25: -0.0009934 | O25: -0.0011034 | P25: -0.0005269 | Q25: 0.000392 | R25: 0.0012557 | S25: 0.0019433 | T25: 0.0025412 | U25: 0.0034134 | V25: 0.0042295 | W25: 0.0090979 | X25: 0.0136225 | Y25: 0.01768 | Z25: 0.021461 | AA25: 0.0250782 | AB25: 0.0286031 | AC25: 0.0320787 | AD25: 0.0355287 | AE25: 0.0389659 | AF25: 8.5e-06 | AG25: -4.22e-05 | AH25: 0.0005166 | AI25: 0.0014744 | AJ25: 0.0024304 | AK25: 0.0032025 | AL25: 0.0040009 | AM25: 0.0052242 | AN25: 0.0061051 | AO25: 0.0094519 | AP25: 0.0124077 | AQ25: 0.0155287 | AR25: 0.0182734 | AS25: 0.0220796 | AT25: 0.0250769 | AU25: 0.0271364 | AV25: 0.0290981 | AW25: 0.0310492 | AX25: 6.58e-05 | AY25: 0.0001791 | AZ25: 0.0004762 | BA25: 0.0008111 | BB25: 0.0011386 | BC25: 0.0015094 | BD25: 0.0018783 | BE25: 0.0025995 | BF25: 0.0031388 | BG25: 0.0065288 | BH25: 0.0095563 | BI25: 0.0124891 | BJ25: 0.0153754 | BK25: 0.0182394 | BL25: 0.0210923 | BM25: 0.0239394 | BN25: 0.0267832 | BO25: 0.0296249 | BP25: -3.7e-06 | BQ25: -9.9e-06 | BR25: -1.54e-05 | BS25: -1.13e-05 | BT25: 8.2e-06 | BU25: 3.29e-05 | BV25: 5.81e-05 | BW25: 7.8e-05 | BX25: 9.9e-05 | BY25: 7.85e-05 | BZ25: -0.0003969 | CA25: -0.0002635 | CB25: -0.0001107 | CC25: 2.51e-05 | CD25: 0.0073572 | CE25: -0.0036908 | CF25: -0.0001882
A26: pre.2520 | B26: 2.26e-05 | C26: 0.0001315 | D26: 0.0004912 | E26: 0.0017917 | F26: 0.0034778 | G26: 0.0052558 | H26: 0.0070107 | I26: 0.0088188 | J26: 0.0121312 | K26: 0.01519 | L26: 0.0300198 | M26: 0.0438555 | N26: -0.0016526 | O26: -0.0019166 | P26: -0.0010177 | Q26: 0.0005082 | R26: 0.0019445 | S26: 0.0030867 | T26: 0.0040801 | U26: 0.0055668 | V26: 0.0070116 | W26: 0.0160615 | X26: 0.024525 | Y26: 0.0319806 | Z26: 0.0388532 | AA26: 0.0453957 | AB26: 0.0517584 | AC26: 0.0580271 | AD26: 0.0642481 | AE26: 0.0704456 | AF26: -7.63e-05 | AG26: -0.0001739 | AH26: 0.0006371 | AI26: 0.0022182 | AJ26: 0.0038808 | AK26: 0.0052583 | AL26: 0.0066685 | AM26: 0.0088301 | AN26: 0.0103793 | AO26: 0.0162728 | AP26: 0.0214686 | AQ26: 0.026781 | AR26: 0.0313375 | AS26: 0.0377279 | AT26: 0.0428483 | AU26: 0.0465195 | AV26: 0.0501555 | AW26: 0.0538664 | AX26: 9.21e-05 | AY26: 0.0002625 | AZ26: 0.0007251 | BA26: 0.0012685 | BB26: 0.0018206 | BC26: 0.0024576 | BD26: 0.0031035 | BE26: 0.0043899 | BF26: 0.0053813 | BG26: 0.0115857 | BH26: 0.0171595 | BI26: 0.0225501 | BJ26: 0.0278492 | BK26: 0.0331041 | BL26: 0.038337 | BM26: 0.0435583 | BN26: 0.0487729 | BO26: 0.0539833 | BP26: -1.04e-05 | BQ26: -2.83e-05 | BR26: -4.4e-05 | BS26: -3.18e-05 | BT26: 2.59e-05 | BU26: 9.9e-05 | BV26: 0.0001732 | BW26: 0.0002304 | BX26: 0.0002784 | BY26: 0.0001756 | BZ26: -0.0018884 | CA26: -0.0004573 | CB26: -0.0002136 | CC26: 2.52e-05 | CD26: 0.0153426 | CE26: -0.0082058 | CF26: 0.0013765
A27: pre.3780 | B27: 3.4e-05 | C27: 0.0001797 | D27: 0.0006539 | E27: 0.0023669 | F27: 0.0046077 | G27: 0.006978 | H27: 0.0093188 | I27: 0.0117384 | J27: 0.0162446 | K27: 0.0205649 | L27: 0.0438555 | M27: 0.0675445 | N27: -0.0021381 | O27: -0.0025307 | P27: -0.0014497 | Q27: 0.0004808 | R27: 0.0022992 | S27: 0.0037442 | T27: 0.0050011 | U27: 0.0069196 | V27: 0.0088365 | W27: 0.0213275 | X27: 0.0331552 | Y27: 0.0434826 | Z27: 0.0529417 | AA27: 0.0619198 | AB27: 0.0706399 | AC27: 0.0792262 | AD27: 0.0877448 | AE27: 0.0962299 | AF27: -0.0001742 | AG27: -0.0003083 | AH27: 0.0006638 | AI27: 0.0027284 | AJ27: 0.004971 | AK27: 0.0068566 | AL27: 0.0087734 | AM27: 0.0116966 | AN27: 0.0137637 | AO27: 0.0215616 | AP27: 0.0285305 | AQ27: 0.035587 | AR27: 0.0415325 | AS27: 0.0498318 | AT27: 0.0564146 | AU27: 0.0610866 | AV27: 0.0657222 | AW27: 0.0704615 | AX27: 0.0001082 | AY27: 0.0003179 | AZ27: 0.0008938 | BA27: 0.001586 | BB27: 0.0023067 | BC27: 0.0031492 | BD27: 0.0040137 | BE27: 0.0057532 | BF27: 0.0071148 | BG27: 0.0156143 | BH27: 0.0232813 | BI27: 0.0306955 | BJ27: 0.0379818 | BK27: 0.0452056 | BL27: 0.0523982 | BM27: 0.0595741 | BN27: 0.0667404 | BO27: 0.0739006 | BP27: -1.86e-05 | BQ27: -5.09e-05 | BR27: -8.01e-05 | BS27: -6.13e-05 | BT27: 3.98e-05 | BU27: 0.0001697 | BV27: 0.0003023 | BW27: 0.000404 | BX27: 0.0004807 | BY27: 0.0002643 | BZ27: -0.0040214 | CA27: -0.0006906 | CB27: -0.0003356 | CC27: 2.35e-05 | CD27: 0.0221521 | CE27: -0.0124935 | CF27: 0.0031113
A28: igpm.63 | B28: 4e-06 | C28: 1.28e-05 | D28: 1.67e-05 | E28: -3.96e-05 | F28: -0.0001615 | G28: -0.000305 | H28: -0.0004461 | I28: -0.0005833 | J28: -0.0008115 | K28: -0.0009934 | L28: -0.0016526 | M28: -0.0021381 | N28: 0.0008711 | O28: 0.0010165 | P28: 0.0009823 | Q28: 0.0008427 | R28: 0.0007039 | S28: 0.0005884 | T28: 0.0005146 | U28: 0.0004041 | V28: 0.0003412 | W28: 0.0001392 | X28: -6.07e-05 | Y28: -0.0002132 | Z28: -0.0003287 | AA28: -0.0004237 | AB28: -0.0005084 | AC28: -0.0005878 | AD28: -0.0006645 | AE28: -0.0007395 | AF28: 0.0001231 | AG28: 0.0001481 | AH28: 0.0002177 | AI28: 0.0002052 | AJ28: 0.0001401 | AK28: 6.35e-05 | AL28: -4e-06 | AM28: -0.0001158 | AN28: -0.0001991 | AO28: -0.0005487 | AP28: -0.0009271 | AQ28: -0.0012512 | AR28: -0.0014359 | AS28: -0.001617 | AT28: -0.0016956 | AU28: -0.001718 | AV28: -0.0017685 | AW28: -0.0018582 | AX28: 1.05e-05 | AY28: 1.62e-05 | AZ28: 7.3e-06 | BA28: -2.02e-05 | BB28: -5.55e-05 | BC28: -9.58e-05 | BD28: -0.0001367 | BE28: -0.0002148 | BF28: -0.0002714 | BG28: -0.0005495 | BH28: -0.0007559 | BI28: -0.0009467 | BJ28: -0.0011324 | BK28: -0.0013165 | BL28: -0.0015 | BM28: -0.0016833 | BN28: -0.0018666 | BO28: -0.0020499 | BP28: -1.5e-06 | BQ28: -3.7e-06 | BR28: -4.9e-06 | BS28: -1e-06 | BT28: 7.5e-06 | BU28: 1.56e-05 | BV28: 2.2e-05 | BW28: 2.56e-05 | BX28: 2.68e-05 | BY28: 2.1e-05 | BZ28: -2.42e-05 | CA28: -0.0001154 | CB28: -2.51e-05 | CC28: -4.9e-06 | CD28: 0.0001737 | CE28: 0.0002708 | CF28: 0.0010141
A29: igpm.126 | B29: 7.1e-06 | C29: 2.3e-05 | D29: 3.86e-05 | E29: -3.7e-06 | F29: -0.0001318 | G29: -0.0002933 | H29: -0.000456 | I29: -0.0006155 | J29: -0.0008852 | K29: -0.0011034 | L29: -0.0019166 | M29: -0.0025307 | N29: 0.0010165 | O29: 0.0013151 | P29: 0.0013718 | Q29: 0.0012219 | R29: 0.0010583 | S29: 0.0009225 | T29: 0.0008469 | U29: 0.000743 | V29: 0.0007077 | W29: 0.0006832 | X29: 0.0005716 | Y29: 0.0004796 | Z29: 0.0004187 | AA29: 0.0003769 | AB29: 0.0003456 | AC29: 0.0003203 | AD29: 0.0002989 | AE29: 0.0002801 | AF29: 0.0001575 | AG29: 0.0001802 | AH29: 0.0002982 | AI29: 0.0003161 | AJ29: 0.0002557 | AK29: 0.0001711 | AL29: 9.83e-05 | AM29: -2.51e-05 | AN29: -0.0001167 | AO29: -0.0004983 | AP29: -0.0009627 | AQ29: -0.0013974 | AR29: -0.0016697 | AS29: -0.0019168 | AT29: -0.0020164 | AU29: -0.0020251 | AV29: -0.0020517 | AW29: -0.0021164 | AX29: 1.77e-05 | AY29: 3.08e-05 | AZ29: 3.22e-05 | BA29: 8.9e-06 | BB29: -2.68e-05 | BC29: -6.87e-05 | BD29: -0.0001129 | BE29: -0.0001991 | BF29: -0.000264 | BG29: -0.0005637 | BH29: -0.0007759 | BI29: -0.0009668 | BJ29: -0.0011505 | BK29: -0.0013319 | BL29: -0.0015126 | BM29: -0.0016931 | BN29: -0.0018737 | BO29: -0.0020543 | BP29: -1.2e-06 | BQ29: -3e-06 | BR29: -4.2e-06 | BS29: -2.3e-06 | BT29: 2.6e-06 | BU29: 7.1e-06 | BV29: 1.01e-05 | BW29: 1.08e-05 | BX29: 6.9e-06 | BY29: -2.8e-06 | BZ29: -7.83e-05 | CA29: -0.0001554 | CB29: -3.07e-05 | CC29: -5.9e-06 | CD29: 0.0002484 | CE29: 0.0005188 | CF29: 0.0013175
A30: igpm.252 | B30: 1.09e-05 | C30: 3.79e-05 | D30: 8.08e-05 | E30: 0.0001129 | F30: 5.63e-05 | G30: -4.1e-05 | H30: -0.0001438 | I30: -0.0002416 | J30: -0.0004021 | K30: -0.0005269 | L30: -0.0010177 | M30: -0.0014497 | N30: 0.0009823 | O30: 0.0013718 | P30: 0.0016562 | Q30: 0.0016558 | R30: 0.0015733 | S30: 0.0014787 | T30: 0.0014441 | U30: 0.0013939 | V30: 0.0014294 | W30: 0.0018795 | X30: 0.002157 | Y30: 0.0024094 | Z30: 0.0026732 | AA30: 0.0029448 | AB30: 0.0032209 | AC30: 0.0035004 | AD30: 0.0037828 | AE30: 0.0040678 | AF30: 0.0001937 | AG30: 0.0002077 | AH30: 0.0003968 | AI30: 0.0005029 | AJ30: 0.0005065 | AK30: 0.0004618 | AL30: 0.0004335 | AM30: 0.0003829 | AN30: 0.0003561 | AO30: 0.0003048 | AP30: 0.0001048 | AQ30: -0.0001151 | AR30: -0.0002382 | AS30: -0.0002611 | AT30: -0.000185 | AU30: -5.98e-05 | AV30: 6.92e-05 | AW30: 0.0001838 | AX30: 3e-05 | AY30: 6e-05 | AZ30: 9.62e-05 | BA30: 0.0001046 | BB30: 9.6e-05 | BC30: 8.39e-05 | BD30: 6.88e-05 | BE30: 3.95e-05 | BF30: 1.74e-05 | BG30: 2.11e-05 | BH30: 9.68e-05 | BI30: 0.0001894 | BJ30: 0.000286 | BK30: 0.0003833 | BL30: 0.0004802 | BM30: 0.0005766 | BN30: 0.0006726 | BO30: 0.0007683 | BP30: -3e-07 | BQ30: -9e-07 | BR30: -2.1e-06 | BS30: -6.1e-06 | BT30: -1.16e-05 | BU30: -1.82e-05 | BV30: -2.69e-05 | BW30: -3.67e-05 | BX30: -6.2e-05 | BY30: -8.95e-05 | BZ30: -0.0001894 | CA30: -0.000187 | CB30: -2.45e-05 | CC30: -5.3e-06 | CD30: 0.0010899 | CE30: 0.000488 | CF30: 0.0013725
A31: igpm.378 | B31: 1.28e-05 | C31: 4.79e-05 | D31: 0.0001162 | E31: 0.0002368 | F31: 0.0002874 | G31: 0.0002992 | H31: 0.0003031 | I31: 0.000315 | J31: 0.0003498 | K31: 0.000392 | L31: 0.0005082 | M31: 0.0004808 | N31: 0.0008427 | O31: 0.0012219 | P31: 0.0016558 | Q31: 0.0018415 | R31: 0.0019053 | S31: 0.0019096 | T31: 0.0019544 | U31: 0.002 | V31: 0.0021212 | W31: 0.0030923 | X31: 0.0038733 | Y31: 0.0046098 | Z31: 0.0053429 | AA31: 0.006072 | AB31: 0.0067977 | AC31: 0.007522 | AD31: 0.0082465 | AE31: 0.0089721 | AF31: 0.0001959 | AG31: 0.0002084 | AH31: 0.0004578 | AI31: 0.0006665 | AJ31: 0.0007669 | AK31: 0.000797 | AL31: 0.0008475 | AM31: 0.0009254 | AN31: 0.0010042 | AO31: 0.0014506 | AP31: 0.0017001 | AQ31: 0.0018977 | AR31: 0.0020996 | AS31: 0.002514 | AT31: 0.0029219 | AU31: 0.0032756 | AV31: 0.0036399 | AW31: 0.0040063 | AX31: 3.81e-05 | AY31: 8.18e-05 | AZ31: 0.000152 | BA31: 0.0001967 | BB31: 0.0002232 | BC31: 0.0002513 | BD31: 0.0002767 | BE31: 0.0003284 | BF31: 0.0003689 | BG31: 0.0007756 | BH31: 0.0012193 | BI31: 0.0016715 | BJ31: 0.0021234 | BK31: 0.0025737 | BL31: 0.0030223 | BM31: 0.0034698 | BN31: 0.0039164 | BO31: 0.0043624 | BP31: 0 | BQ31: -4e-07 | BR31: -2e-06 | BS31: -9e-06 | BT31: -1.92e-05 | BU31: -3.07e-05 | BV31: -4.47e-05 | BW31: -5.94e-05 | BX31: -9.58e-05 | BY31: -0.0001334 | BZ31: -0.0002452 | CA31: -0.0002111 | CB31: -1.61e-05 | CC31: -3.8e-06 | CD31: 0.0020888 | CE31: 0.0001659 | CF31: 0.0011532
A32: igpm.504 | B32: 1.37e-05 | C32: 5.5e-05 | D32: 0.0001446 | E32: 0.0003442 | F32: 0.0004946 | G32: 0.00061 | H32: 0.000716 | I32: 0.0008328 | J32: 0.0010542 | K32: 0.0012557 | L32: 0.0019445 | M32: 0.0022992 | N32: 0.0007039 | O32: 0.0010583 | P32: 0.0015733 | Q32: 0.0019053 | R32: 0.00211 | S32: 0.0022249 | T32: 0.0023618 | U32: 0.0025272 | V32: 0.0027447 | W32: 0.0042095 | X32: 0.0054489 | Y32: 0.0066267 | Z32: 0.007789 | AA32: 0.0089375 | AB32: 0.010076 | AC32: 0.0112091 | AD32: 0.01234 | AE32: 0.0134705 | AF32: 0.0001897 | AG32: 0.0002 | AH32: 0.0005001 | AI32: 0.0008045 | AJ32: 0.0010017 | AK32: 0.00111 | AL32: 0.0012419 | AM32: 0.0014505 | AN32: 0.0016332 | AO32: 0.0025419 | AP32: 0.0031993 | AQ32: 0.0037915 | AR32: 0.0043283 | AS32: 0.0052079 | AT32: 0.005989 | AU32: 0.0066072 | AV32: 0.0072271 | AW32: 0.0078488 | AX32: 4.34e-05 | AY32: 9.77e-05 | AZ32: 0.0001956 | BA32: 0.0002716 | BB32: 0.0003291 | BC32: 0.0003929 | BD32: 0.0004544 | BE32: 0.0005781 | BF32: 0.000674 | BG32: 0.0014291 | BH32: 0.0021878 | BI32: 0.0029476 | BJ32: 0.0037036 | BK32: 0.004456 | BL32: 0.0052059 | BM32: 0.005954 | BN32: 0.0067008 | BO32: 0.0074468 | BP32: 3e-07 | BQ32: 7e-07 | BR32: 1e-07 | BS32: -5.1e-06 | BT32: -1.39e-05 | BU32: -2.44e-05 | BV32: -3.74e-05 | BW32: -5.15e-05 | BX32: -8.69e-05 | BY32: -0.0001248 | BZ32: -0.000242 | CA32: -0.0002388 | CB32: -1.11e-05 | CC32: -2.6e-06 | CD32: 0.0029464 | CE32: -0.00027 | CF32: 0.0009756
A33: igpm.630 | B33: 1.43e-05 | C33: 6.03e-05 | D33: 0.0001665 | E33: 0.0004274 | F33: 0.0006565 | G33: 0.0008543 | H33: 0.001042 | I33: 0.001243 | J33: 0.0016143 | K33: 0.0019433 | L33: 0.0030867 | M33: 0.0037442 | N33: 0.0005884 | O33: 0.0009225 | P33: 0.0014787 | Q33: 0.0019096 | R33: 0.0022249 | S33: 0.0024364 | T33: 0.0026581 | U33: 0.0029424 | V33: 0.0032541 | W33: 0.0051393 | X33: 0.0067316 | Y33: 0.0082384 | Z33: 0.0097174 | AA33: 0.0111747 | AB33: 0.0126175 | AC33: 0.0140523 | AD33: 0.0154835 | AE33: 0.0169138 | AF33: 0.000186 | AG33: 0.0001914 | AH33: 0.0005288 | AI33: 0.0009096 | AJ33: 0.0011873 | AK33: 0.0013624 | AL33: 0.0015632 | AM33: 0.0018816 | AN33: 0.0021495 | AO33: 0.0034179 | AP33: 0.0043797 | AQ33: 0.0052755 | AR33: 0.0060893 | AS33: 0.0073673 | AT33: 0.0084823 | AU33: 0.0093437 | AV33: 0.0101906 | AW33: 0.011029 | AX33: 4.73e-05 | AY33: 0.0001092 | AZ33: 0.0002282 | BA33: 0.0003283 | BB33: 0.0004101 | BC33: 0.0005018 | BD33: 0.0005915 | BE33: 0.0007711 | BF33: 0.0009097 | BG33: 0.0019298 | BH33: 0.002926 | BI33: 0.0039171 | BJ33: 0.0049016 | BK33: 0.0058812 | BL33: 0.0068574 | BM33: 0.0078314 | BN33: 0.0088039 | BO33: 0.0097754 | BP33: 8e-07 | BQ33: 2.2e-06 | BR33: 3.5e-06 | BS33: 2.7e-06 | BT33: -1.6e-06 | BU33: -8.2e-06 | BV33: -1.71e-05 | BW33: -2.75e-05 | BX33: -5.51e-05 | BY33: -8.72e-05 | BZ33: -0.0002052 | CA33: -0.0002637 | CB33: -9.3e-06 | CC33: -1.7e-06 | CD33: 0.003613 | CE33: -0.000718 | CF33: 0.0009221
A34: igpm.756 | B34: 1.52e-05 | C34: 6.65e-05 | D34: 0.0001892 | E34: 0.0005055 | F34: 0.0008019 | G34: 0.0010698 | H34: 0.0013272 | I34: 0.0016004 | J34: 0.0021014 | K34: 0.0025412 | L34: 0.0040801 | M34: 0.0050011 | N34: 0.0005146 | O34: 0.0008469 | P34: 0.0014441 | Q34: 0.0019544 | R34: 0.0023618 | S34: 0.0026581 | T34: 0.002959 | U34: 0.0033607 | V34: 0.0037697 | W34: 0.0060789 | X34: 0.0079947 | Y34: 0.0097887 | Z34: 0.0115399 | AA34: 0.0132616 | AB34: 0.0149647 | AC34: 0.016658 | AD34: 0.0183472 | AE34: 0.0200352 | AF34: 0.0001923 | AG34: 0.0001911 | AH34: 0.0005662 | AI34: 0.0010184 | AJ34: 0.0013697 | AK34: 0.0016048 | AL34: 0.0018679 | AM34: 0.0022847 | AN34: 0.0026284 | AO34: 0.0042101 | AP34: 0.0054234 | AQ34: 0.0065713 | AR34: 0.0076254 | AS34: 0.0092628 | AT34: 0.0106901 | AU34: 0.011786 | AV34: 0.0128513 | AW34: 0.0138954 | AX34: 5.2e-05 | AY34: 0.0001218 | AZ34: 0.0002609 | BA34: 0.0003832 | BB34: 0.0004867 | BC34: 0.0006034 | BD34: 0.000718 | BE34: 0.0009468 | BF34: 0.0011227 | BG34: 0.0023789 | BH34: 0.0035879 | BI34: 0.0047864 | BJ34: 0.0059756 | BK34: 0.0071587 | BL34: 0.0083377 | BM34: 0.009514 | BN34: 0.0106887 | BO34: 0.0118621 | BP34: 1.3e-06 | BQ34: 3.8e-06 | BR34: 7e-06 | BS34: 1.14e-05 | BT34: 1.22e-05 | BU34: 1.03e-05 | BV34: 6.5e-06 | BW34: 6e-07 | BX34: -1.72e-05 | BY34: -4.18e-05 | BZ34: -0.0001634 | CA34: -0.0002926 | CB34: -9.9e-06 | CC34: -1.2e-06 | CD34: 0.0042607 | CE34: -0.0011616 | CF34: 0.0010017
A35: igpm.1008 | B35: 1.69e-05 | C35: 7.65e-05 | D35: 0.0002233 | E35: 0.0006179 | F35: 0.0010095 | G35: 0.0013777 | H35: 0.0017363 | I35: 0.0021154 | J35: 0.002808 | K35: 0.0034134 | L35: 0.0055668 | M35: 0.0069196 | N35: 0.0004041 | O35: 0.000743 | P35: 0.0013939 | Q35: 0.002 | R35: 0.0025272 | S35: 0.0029424 | T35: 0.0033607 | U35: 0.0039511 | V35: 0.0045252 | W35: 0.007564 | X35: 0.0099969 | Y35: 0.0122123 | Z35: 0.0143451 | AA35: 0.0164304 | AB35: 0.0184895 | AC35: 0.0205361 | AD35: 0.0225782 | AE35: 0.0246198 | AF35: 0.0002075 | AG35: 0.0001918 | AH35: 0.0006169 | AI35: 0.0011716 | AJ35: 0.001632 | AK35: 0.0019576 | AL35: 0.0023138 | AM35: 0.0028766 | AN35: 0.003331 | AO35: 0.0053615 | AP35: 0.0069198 | AQ35: 0.0084042 | AR35: 0.0097844 | AS35: 0.0119307 | AT35: 0.0138177 | AU35: 0.0152756 | AV35: 0.0166858 | AW35: 0.0180589 | AX35: 5.98e-05 | AY35: 0.0001417 | AZ35: 0.0003108 | BA35: 0.0004666 | BB35: 0.000603 | BC35: 0.000757 | BD35: 0.000909 | BE35: 0.0012114 | BF35: 0.0014428 | BG35: 0.0030507 | BH35: 0.0045749 | BI35: 0.0060789 | BJ35: 0.0075693 | BK35: 0.0090514 | BL35: 0.0105283 | BM35: 0.0120021 | BN35: 0.0134739 | BO35: 0.0149442 | BP35: 1.8e-06 | BQ35: 5.7e-06 | BR35: 1.19e-05 | BS35: 2.5e-05 | BT35: 3.58e-05 | BU35: 4.36e-05 | BV35: 5.09e-05 | BW35: 5.5e-05 | BX35: 5.89e-05 | BY35: 5.15e-05 | BZ35: -7.85e-05 | CA35: -0.0003336 | CB35: -1.5e-05 | CC35: -3e-07 | CD35: 0.0052745 | CE35: -0.0019218 | CF35: 0.0012917
A36: igpm.1260 | B36: 1.96e-05 | C36: 8.84e-05 | D36: 0.0002599 | E36: 0.0007286 | F36: 0.001207 | G36: 0.0016662 | H36: 0.0021171 | I36: 0.0025937 | J36: 0.0034655 | K36: 0.0042295 | L36: 0.0070116 | M36: 0.0088365 | N36: 0.0003412 | O36: 0.0007077 | P36: 0.0014294 | Q36: 0.0021212 | R36: 0.0027447 | S36: 0.0032541 | T36: 0.0037697 | U36: 0.0045252 | V36: 0.0052604 | W36: 0.0091276 | X36: 0.0121861 | Y36: 0.0148995 | Z36: 0.0174724 | AA36: 0.0199708 | AB36: 0.0224311 | AC36: 0.0248744 | AD36: 0.0273119 | AE36: 0.029749 | AF36: 0.0002318 | AG36: 0.0002011 | AH36: 0.0006794 | AI36: 0.0013351 | AJ36: 0.0018994 | AK36: 0.0023092 | AL36: 0.0027529 | AM36: 0.0034528 | AN36: 0.0040124 | AO36: 0.0064855 | AP36: 0.0083767 | AQ36: 0.0101605 | AR36: 0.0118162 | AS36: 0.0144132 | AT36: 0.0167211 | AU36: 0.018531 | AV36: 0.0202959 | AW36: 0.022022 | AX36: 6.97e-05 | AY36: 0.000165 | AZ36: 0.0003656 | BA36: 0.0005551 | BB36: 0.0007237 | BC36: 0.0009144 | BD36: 0.0011029 | BE36: 0.0014775 | BF36: 0.0017638 | BG36: 0.0037279 | BH36: 0.0055752 | BI36: 0.007393 | BJ36: 0.0091926 | BK36: 0.0109815 | BL36: 0.0127643 | BM36: 0.0145433 | BN36: 0.0163198 | BO36: 0.0180946 | BP36: 1.8e-06 | BQ36: 6.3e-06 | BR36: 1.43e-05 | BS36: 3.4e-05 | BT36: 5.37e-05 | BU36: 7.12e-05 | BV36: 8.94e-05 | BW36: 0.0001038 | BX36: 0.0001295 | BY36: 0.0001389 | BZ36: -9.9e-06 | CA36: -0.0003768 | CB36: -2.29e-05 | CC36: 9e-07 | CD36: 0.006381 | CE36: -0.0026425 | CF36: 0.0016535
A37: igpm.2520 | B37: 4.01e-05 | C37: 0.0001706 | D37: 0.0004936 | E37: 0.0014049 | F37: 0.0024001 | G37: 0.0033979 | H37: 0.0043913 | I37: 0.0054398 | J37: 0.0073712 | K37: 0.0090979 | L37: 0.0160615 | M37: 0.0213275 | N37: 0.0001392 | O37: 0.0006832 | P37: 0.0018795 | Q37: 0.0030923 | R37: 0.0042095 | S37: 0.0051393 | T37: 0.0060789 | U37: 0.007564 | V37: 0.0091276 | W37: 0.0187685 | X37: 0.0273151 | Y37: 0.0347388 | Z37: 0.0415548 | AA37: 0.0480367 | AB37: 0.0543441 | AC37: 0.0605659 | AD37: 0.0667491 | AE37: 0.072917 | AF37: 0.0003992 | AG37: 0.0002654 | AH37: 0.0011 | AI37: 0.0023898 | AJ37: 0.0035752 | AK37: 0.0044778 | AL37: 0.005439 | AM37: 0.0069661 | AN37: 0.0081888 | AO37: 0.0136398 | AP37: 0.017796 | AQ37: 0.0214646 | AR37: 0.0247116 | AS37: 0.0299623 | AT37: 0.0347844 | AU37: 0.0387841 | AV37: 0.0428623 | AW37: 0.0469731 | AX37: 0.0001352 | AY37: 0.0003155 | AZ37: 0.000711 | BA37: 0.0011051 | BB37: 0.0014675 | BC37: 0.0018795 | BD37: 0.0022896 | BE37: 0.0031057 | BF37: 0.0037324 | BG37: 0.0079381 | BH37: 0.0118507 | BI37: 0.0156834 | BJ37: 0.0194708 | BK37: 0.0232336 | BL37: 0.0269826 | BM37: 0.0307236 | BN37: 0.0344594 | BO37: 0.0381919 | BP37: 3.2e-06 | BQ37: 1.1e-05 | BR37: 2.63e-05 | BS37: 7.05e-05 | BT37: 0.0001258 | BU37: 0.0001861 | BV37: 0.0002573 | BW37: 0.0003256 | BX37: 0.0004714 | BY37: 0.0005778 | BZ37: 0.0002878 | CA37: -0.0006408 | CB37: -7.16e-05 | CC37: 1.45e-05 | CD37: 0.0137188 | CE37: -0.0064239 | CF37: 0.0029033
A38: igpm.3780 | B38: 5.91e-05 | C38: 0.0002488 | D38: 0.0007163 | E38: 0.0020497 | F38: 0.0035418 | G38: 0.0050517 | H38: 0.0065508 | I38: 0.0081251 | J38: 0.0110192 | K38: 0.0136225 | L38: 0.024525 | M38: 0.0331552 | N38: -6.07e-05 | O38: 0.0005716 | P38: 0.002157 | Q38: 0.0038733 | R38: 0.0054489 | S38: 0.0067316 | T38: 0.0079947 | U38: 0.0099969 | V38: 0.0121861 | W38: 0.0273151 | X38: 0.042229 | Y38: 0.0556513 | Z38: 0.0680938 | AA38: 0.0799417 | AB38: 0.0914518 | AC38: 0.1027791 | AD38: 0.1140102 | AE38: 0.1251916 | AF38: 0.000533 | AG38: 0.0002878 | AH38: 0.0014865 | AI38: 0.0034022 | AJ38: 0.0051712 | AK38: 0.0065204 | AL38: 0.0079496 | AM38: 0.0102332 | AN38: 0.0120822 | AO38: 0.0204558 | AP38: 0.0268461 | AQ38: 0.0323497 | AR38: 0.0371106 | AS38: 0.0448599 | AT38: 0.0520198 | AU38: 0.0580366 | AV38: 0.0642472 | AW38: 0.0705594 | AX38: 0.0001882 | AY38: 0.0004419 | AZ38: 0.0010078 | BA38: 0.0015823 | BB38: 0.0021164 | BC38: 0.0027248 | BD38: 0.0033325 | BE38: 0.0045445 | BF38: 0.0054779 | BG38: 0.0116932 | BH38: 0.0174609 | BI38: 0.0231071 | BJ38: 0.0286845 | BK38: 0.0342248 | BL38: 0.0397446 | BM38: 0.0452522 | BN38: 0.0507523 | BO38: 0.0562475 | BP38: 9.6e-06 | BQ38: 2.9e-05 | BR38: 5.72e-05 | BS38: 0.0001173 | BT38: 0.0001835 | BU38: 0.000259 | BV38: 0.0003559 | BW38: 0.0004555 | BX38: 0.0006841 | BY38: 0.000868 | BZ38: 0.0004856 | CA38: -0.0008541 | CB38: -9.83e-05 | CC38: 3.29e-05 | CD38: 0.020351 | CE38: -0.0092636 | CF38: 0.0029555
A39: igpm.5040 | B39: 7.49e-05 | C39: 0.0003194 | D39: 0.0009235 | E39: 0.0026554 | F39: 0.0046103 | G39: 0.0065875 | H39: 0.0085395 | I39: 0.0105791 | J39: 0.0143149 | K39: 0.01768 | L39: 0.0319806 | M39: 0.0434826 | N39: -0.0002132 | O39: 0.0004796 | P39: 0.0024094 | Q39: 0.0046098 | R39: 0.0066267 | S39: 0.0082384 | T39: 0.0097887 | U39: 0.0122123 | V39: 0.0148995 | W39: 0.0347388 | X39: 0.0556513 | Y39: 0.0750738 | Z39: 0.0933256 | AA39: 0.1107973 | AB39: 0.1277935 | AC39: 0.1445134 | AD39: 0.1610757 | AE39: 0.1775477 | AF39: 0.0006311 | AG39: 0.0002885 | AH39: 0.0018569 | AI39: 0.004377 | AJ39: 0.0066822 | AK39: 0.0084224 | AL39: 0.0102574 | AM39: 0.013189 | AN39: 0.0155784 | AO39: 0.0265312 | AP39: 0.0348963 | AQ39: 0.0420201 | AR39: 0.0481095 | AS39: 0.0580452 | AT39: 0.0672302 | AU39: 0.0749749 | AV39: 0.0830075 | AW39: 0.0911988 | AX39: 0.0002303 | AY39: 0.0005471 | AZ39: 0.0012607 | BA39: 0.0019905 | BB39: 0.002672 | BC39: 0.0034488 | BD39: 0.0042258 | BE39: 0.0057768 | BF39: 0.0069731 | BG39: 0.0149058 | BH39: 0.0222576 | BI39: 0.0294526 | BJ39: 0.0365591 | BK39: 0.0436178 | BL39: 0.0506501 | BM39: 0.0576669 | BN39: 0.0646741 | BO39: 0.071675 | BP39: 1.75e-05 | BQ39: 5.05e-05 | BR39: 9.28e-05 | BS39: 0.0001634 | BT39: 0.0002274 | BU39: 0.0003018 | BV39: 0.0004057 | BW39: 0.0005184 | BX39: 0.0007912 | BY39: 0.0010211 | BZ39: 0.0005568 | CA39: -0.0010231 | CB39: -0.000106 | CC39: 5.16e-05 | CD39: 0.0260164 | CE39: -0.0114239 | CF39: 0.0026279
A40: igpm.6300 | B40: 8.89e-05 | C40: 0.0003852 | D40: 0.0011207 | E40: 0.0032365 | F40: 0.0056322 | G40: 0.0080487 | H40: 0.0104216 | I40: 0.012891 | J40: 0.0173992 | K40: 0.021461 | L40: 0.0388532 | M40: 0.0529417 | N40: -0.0003287 | O40: 0.0004187 | P40: 0.0026732 | Q40: 0.0053429 | R40: 0.007789 | S40: 0.0097174 | T40: 0.0115399 | U40: 0.0143451 | V40: 0.0174724 | W40: 0.0415548 | X40: 0.0680938 | Y40: 0.0933256 | Z40: 0.1173028 | AA40: 0.1403664 | AB40: 0.1628384 | AC40: 0.1849482 | AD40: 0.2068401 | AE40: 0.2285998 | AF40: 0.0007089 | AG40: 0.0002792 | AH40: 0.0022192 | AI40: 0.0053294 | AJ40: 0.0081437 | AK40: 0.010244 | AL40: 0.0124495 | AM40: 0.0159652 | AN40: 0.0188414 | AO40: 0.032146 | AP40: 0.0423153 | AQ40: 0.0509173 | AR40: 0.058214 | AS40: 0.0701404 | AT40: 0.0811631 | AU40: 0.0904709 | AV40: 0.1001526 | AW40: 0.1100458 | AX40: 0.0002669 | AY40: 0.0006415 | AZ40: 0.0014905 | BA40: 0.0023621 | BB40: 0.0031775 | BC40: 0.004107 | BD40: 0.0050375 | BE40: 0.0068956 | BF40: 0.0083296 | BG40: 0.0178169 | BH40: 0.0266021 | BI40: 0.0351989 | BJ40: 0.0436893 | BK40: 0.0521222 | BL40: 0.0605235 | BM40: 0.0689063 | BN40: 0.0772776 | BO40: 0.0856414 | BP40: 2.52e-05 | BQ40: 7.14e-05 | BR40: 0.0001268 | BS40: 0.0002051 | BT40: 0.0002626 | BU40: 0.0003303 | BV40: 0.000434 | BW40: 0.000552 | BX40: 0.0008496 | BY40: 0.0011069 | BZ40: 0.0005441 | CA40: -0.00117 | CB40: -0.0001045 | CC40: 7e-05 | CD40: 0.0311732 | CE40: -0.0133123 | CF40: 0.0022344
A41: igpm.7560 | B41: 0.0001018 | C41: 0.0004478 | D41: 0.0013111 | E41: 0.0038 | F41: 0.0066219 | G41: 0.0094602 | H41: 0.0122352 | I41: 0.015114 | J41: 0.0203556 | K41: 0.0250782 | L41: 0.0453957 | M41: 0.0619198 | N41: -0.0004237 | O41: 0.0003769 | P41: 0.0029448 | Q41: 0.006072 | R41: 0.0089375 | S41: 0.0111747 | T41: 0.0132616 | U41: 0.0164304 | V41: 0.0199708 | W41: 0.0480367 | X41: 0.0799417 | Y41: 0.1107973 | Z41: 0.1403664 | AA41: 0.1689161 | AB41: 0.1967712 | AC41: 0.2241838 | AD41: 0.2513202 | AE41: 0.2782828 | AF41: 0.0007762 | AG41: 0.0002657 | AH41: 0.0025742 | AI41: 0.0062624 | AJ41: 0.0095687 | AK41: 0.0120118 | AL41: 0.0145685 | AM41: 0.0186339 | AN41: 0.0219672 | AO41: 0.0374922 | AP41: 0.0493669 | AQ41: 0.0593662 | AR41: 0.067803 | AS41: 0.0816119 | AT41: 0.0943706 | AU41: 0.1051535 | AV41: 0.1163917 | AW41: 0.1278919 | AX41: 0.0003007 | AY41: 0.0007303 | AZ41: 0.001708 | BA41: 0.0027138 | BB41: 0.0036558 | BC41: 0.0047294 | BD41: 0.0058046 | BE41: 0.0079524 | BF41: 0.0096104 | BG41: 0.0205641 | BH41: 0.0307016 | BI41: 0.0406207 | BJ41: 0.0504166 | BK41: 0.0601462 | BL41: 0.069839 | BM41: 0.0795106 | BN41: 0.0891688 | BO41: 0.0988184 | BP41: 3.25e-05 | BQ41: 9.11e-05 | BR41: 0.0001587 | BS41: 0.0002433 | BT41: 0.0002932 | BU41: 0.0003528 | BV41: 0.0004539 | BW41: 0.0005741 | BX41: 0.0008884 | BY41: 0.0011638 | BZ41: 0.0004869 | CA41: -0.0013073 | CB41: -9.93e-05 | CC41: 8.81e-05 | CD41: 0.0360696 | CE41: -0.015099 | CF41: 0.0018518
A42: igpm.8820 | B42: 0.0001143 | C42: 0.0005087 | D42: 0.0014973 | E42: 0.0043524 | F42: 0.0075912 | G42: 0.010841 | H42: 0.0140075 | I42: 0.0172845 | J42: 0.0232388 | K42: 0.0286031 | L42: 0.0517584 | M42: 0.0706399 | N42: -0.0005084 | O42: 0.0003456 | P42: 0.0032209 | Q42: 0.0067977 | R42: 0.010076 | S42: 0.0126175 | T42: 0.0149647 | U42: 0.0184895 | V42: 0.0224311 | W42: 0.0543441 | X42: 0.0914518 | Y42: 0.1277935 | Z42: 0.1628384 | AA42: 0.1967712 | AB42: 0.2299135 | AC42: 0.2625366 | AD42: 0.2948267 | AE42: 0.3269022 | AF42: 0.0008388 | AG42: 0.000251 | AH42: 0.0029241 | AI42: 0.0071811 | AJ42: 0.010969 | AK42: 0.0137459 | AL42: 0.0166438 | AM42: 0.0212414 | AN42: 0.0250166 | AO42: 0.0426915 | AP42: 0.0562187 | AQ42: 0.0675729 | AR42: 0.077116 | AS42: 0.092752 | AT42: 0.107195 | AU42: 0.1194084 | AV42: 0.1321556 | AW42: 0.1452137 | AX42: 0.0003333 | AY42: 0.0008163 | AZ42: 0.0019191 | BA42: 0.0030553 | BB42: 0.00412 | BC42: 0.0053334 | BD42: 0.0065488 | BE42: 0.0089771 | BF42: 0.0108523 | BG42: 0.0232271 | BH42: 0.0346753 | BI42: 0.0458763 | BJ42: 0.0569379 | BK42: 0.0679243 | BL42: 0.0788692 | BM42: 0.08979 | BN42: 0.1006958 | BO42: 0.1115918 | BP42: 3.94e-05 | BQ42: 0.0001098 | BR42: 0.0001891 | BS42: 0.0002795 | BT42: 0.0003218 | BU42: 0.0003732 | BV42: 0.0004711 | BW42: 0.0005926 | BX42: 0.0009203 | BY42: 0.0012099 | BZ42: 0.0004099 | CA42: -0.001441 | CB42: -9.29e-05 | CC42: 0.0001059 | CD42: 0.0408383 | CE42: -0.0168516 | CF42: 0.0014948
A43: igpm.10080 | B43: 0.0001265 | C43: 0.0005687 | D43: 0.001681 | E43: 0.0048981 | F43: 0.0085485 | G43: 0.012204 | H43: 0.0157563 | I43: 0.0194258 | J43: 0.0260821 | K43: 0.0320787 | L43: 0.0580271 | M43: 0.0792262 | N43: -0.0005878 | O43: 0.0003203 | P43: 0.0035004 | Q43: 0.007522 | R43: 0.0112091 | S43: 0.0140523 | T43: 0.016658 | U43: 0.0205361 | V43: 0.0248744 | W43: 0.0605659 | X43: 0.1027791 | Y43: 0.1445134 | Z43: 0.1849482 | AA43: 0.2241838 | AB43: 0.2625366 | AC43: 0.3002952 | AD43: 0.3376655 | AE43: 0.3747811 | AF43: 0.0008997 | AG43: 0.0002364 | AH43: 0.003271 | AI43: 0.0080906 | AJ43: 0.0123543 | AK43: 0.0154602 | AL43: 0.0186944 | AM43: 0.0238161 | AN43: 0.0280259 | AO43: 0.0478149 | AP43: 0.0629675 | AQ43: 0.0756558 | AR43: 0.0862892 | AS43: 0.1037261 | AT43: 0.1198288 | AU43: 0.1334512 | AV43: 0.1476841 | AW43: 0.1622756 | AX43: 0.0003654 | AY43: 0.000901 | AZ43: 0.0021272 | BA43: 0.003392 | BB43: 0.0045775 | BC43: 0.0059285 | BD43: 0.007282 | BE43: 0.0099866 | BF43: 0.0120755 | BG43: 0.0258497 | BH43: 0.0385888 | BI43: 0.0510522 | BJ43: 0.0633603 | BK43: 0.0755846 | BL43: 0.0877627 | BM43: 0.099914 | BN43: 0.1120486 | BO43: 0.1241722 | BP43: 4.61e-05 | BQ43: 0.000128 | BR43: 0.0002185 | BS43: 0.0003146 | BT43: 0.0003496 | BU43: 0.0003931 | BV43: 0.0004879 | BW43: 0.0006106 | BX43: 0.0009507 | BY43: 0.001253 | BZ43: 0.0003259 | CA43: -0.0015738 | CB43: -8.62e-05 | CC43: 0.0001235 | CD43: 0.045548 | CE43: -0.0185965 | CF43: 0.0011624
A44: igpm.11340 | B44: 0.0001386 | C44: 0.0006283 | D44: 0.0018635 | E44: 0.00544 | F44: 0.0094988 | G44: 0.0135569 | H44: 0.0174921 | I44: 0.0215511 | J44: 0.0289046 | K44: 0.0355287 | L44: 0.0642481 | M44: 0.0877448 | N44: -0.0006645 | O44: 0.0002989 | P44: 0.0037828 | Q44: 0.0082465 | R44: 0.01234 | S44: 0.0154835 | T44: 0.0183472 | U44: 0.0225782 | V44: 0.0273119 | W44: 0.0667491 | X44: 0.1140102 | Y44: 0.1610757 | Z44: 0.2068401 | AA44: 0.2513202 | AB44: 0.2948267 | AC44: 0.3376655 | AD44: 0.3800612 | AE44: 0.4221628 | AF44: 0.0009603 | AG44: 0.0002226 | AH44: 0.0036164 | AI44: 0.0089946 | AJ44: 0.0137308 | AK44: 0.0171635 | AL44: 0.0207319 | AM44: 0.026374 | AN44: 0.0310152 | AO44: 0.052901 | AP44: 0.0696657 | AQ44: 0.0836785 | AR44: 0.0953954 | AS44: 0.1146214 | AT44: 0.132373 | AU44: 0.1473946 | AV44: 0.1631025 | AW44: 0.1792158 | AX44: 0.0003973 | AY44: 0.0009853 | AZ44: 0.0023342 | BA44: 0.0037266 | BB44: 0.0050322 | BC44: 0.0065199 | BD44: 0.0080105 | BE44: 0.0109894 | BF44: 0.0132904 | BG44: 0.0284544 | BH44: 0.0424756 | BI44: 0.056193 | BJ44: 0.0697392 | BK44: 0.0831931 | BL44: 0.0965961 | BM44: 0.1099695 | BN44: 0.1233246 | BO44: 0.1366677 | BP44: 5.27e-05 | BQ44: 0.0001458 | BR44: 0.0002474 | BS44: 0.0003492 | BT44: 0.0003772 | BU44: 0.0004131 | BV44: 0.0005051 | BW44: 0.0006291 | BX44: 0.0009817 | BY44: 0.0012962 | BZ44: 0.0002408 | CA44: -0.0017067 | CB44: -7.96e-05 | CC44: 0.0001408 | CD44: 0.050233 | CE44: -0.0203433 | CF44: 0.0008503
A45: igpm.12600 | B45: 0.0001507 | C45: 0.0006876 | D45: 0.0020452 | E45: 0.0059797 | F45: 0.0104453 | G45: 0.0149043 | H45: 0.0192209 | I45: 0.023668 | J45: 0.0317163 | K45: 0.0389659 | L45: 0.0704456 | M45: 0.0962299 | N45: -0.0007395 | O45: 0.0002801 | P45: 0.0040678 | Q45: 0.0089721 | R45: 0.0134705 | S45: 0.0169138 | T45: 0.0200352 | U45: 0.0246198 | V45: 0.029749 | W45: 0.072917 | X45: 0.1251916 | Y45: 0.1775477 | Z45: 0.2285998 | AA45: 0.2782828 | AB45: 0.3269022 | AC45: 0.3747811 | AD45: 0.4221628 | AE45: 0.4692113 | AF45: 0.0010211 | AG45: 0.0002096 | AH45: 0.0039612 | AI45: 0.0098956 | AJ45: 0.0151024 | AK45: 0.018861 | AL45: 0.0227626 | AM45: 0.0289238 | AN45: 0.0339952 | AO45: 0.0579698 | AP45: 0.0763405 | AQ45: 0.0916735 | AR45: 0.1044715 | AS45: 0.1254823 | AT45: 0.1448786 | AU45: 0.1612955 | AV45: 0.1784738 | AW45: 0.1961038 | AX45: 0.0004293 | AY45: 0.0010696 | AZ45: 0.0025409 | BA45: 0.0040606 | BB45: 0.0054859 | BC45: 0.0071099 | BD45: 0.0087373 | BE45: 0.0119897 | BF45: 0.0145023 | BG45: 0.0310524 | BH45: 0.0463524 | BI45: 0.0613205 | BJ45: 0.0761017 | BK45: 0.090782 | BL45: 0.1054068 | BM45: 0.1199993 | BN45: 0.1345717 | BO45: 0.149131 | BP45: 5.91e-05 | BQ45: 0.0001633 | BR45: 0.0002758 | BS45: 0.0003834 | BT45: 0.0004048 | BU45: 0.0004334 | BV45: 0.0005229 | BW45: 0.0006484 | BX45: 0.0010137 | BY45: 0.0013405 | BZ45: 0.0001571 | CA45: -0.0018402 | CB45: -7.34e-05 | CC45: 0.0001581 | CD45: 0.0549098 | CE45: -0.0220951 | CF45: 0.0005547
A46: ipca.63 | B46: 3.5e-06 | C46: 1.28e-05 | D46: 2.68e-05 | E46: 4.59e-05 | F46: 5.31e-05 | G46: 5.3e-05 | H46: 4.86e-05 | I46: 4.23e-05 | J46: 2.55e-05 | K46: 8.5e-06 | L46: -7.63e-05 | M46: -0.0001742 | N46: 0.0001231 | O46: 0.0001575 | P46: 0.0001937 | Q46: 0.0001959 | R46: 0.0001897 | S46: 0.000186 | T46: 0.0001923 | U46: 0.0002075 | V46: 0.0002318 | W46: 0.0003992 | X46: 0.000533 | Y46: 0.0006311 | Z46: 0.0007089 | AA46: 0.0007762 | AB46: 0.0008388 | AC46: 0.0008997 | AD46: 0.0009603 | AE46: 0.0010211 | AF46: 0.0003625 | AG46: 0.0001717 | AH46: 0.0001688 | AI46: 0.0002148 | AJ46: 0.0002304 | AK46: 0.0002258 | AL46: 0.0002285 | AM46: 0.0002325 | AN46: 0.0002417 | AO46: 0.0003412 | AP46: 0.0004632 | AQ46: 0.0006413 | AR46: 0.0008421 | AS46: 0.0010864 | AT46: 0.0012379 | AU46: 0.0012646 | AV46: 0.001214 | AW46: 0.0011085 | AX46: 6.1e-06 | AY46: 1.21e-05 | AZ46: 2.13e-05 | BA46: 2.62e-05 | BB46: 2.75e-05 | BC46: 2.77e-05 | BD46: 2.65e-05 | BE46: 2.24e-05 | BF46: 1.75e-05 | BG46: 2.3e-05 | BH46: 6.46e-05 | BI46: 0.0001232 | BJ46: 0.0001875 | BK46: 0.0002532 | BL46: 0.000319 | BM46: 0.0003845 | BN46: 0.0004498 | BO46: 0.0005149 | BP46: 1.3e-06 | BQ46: 4e-06 | BR46: 8.4e-06 | BS46: 1.73e-05 | BT46: 2.42e-05 | BU46: 2.96e-05 | BV46: 3.62e-05 | BW46: 4.29e-05 | BX46: 6.34e-05 | BY46: 9.06e-05 | BZ46: 0.0002218 | CA46: 2.39e-05 | CB46: -3e-06 | CC46: -6e-07 | CD46: 0.0004419 | CE46: -0.0004035 | CF46: 0.0004757
A47: ipca.126 | B47: 4.3e-06 | C47: 1.52e-05 | D47: 3.16e-05 | E47: 4.84e-05 | F47: 4.46e-05 | G47: 3.25e-05 | H47: 1.89e-05 | I47: 5.9e-06 | J47: -1.87e-05 | K47: -4.22e-05 | L47: -0.0001739 | M47: -0.0003083 | N47: 0.0001481 | O47: 0.0001802 | P47: 0.0002077 | Q47: 0.0002084 | R47: 0.0002 | S47: 0.0001914 | T47: 0.0001911 | U47: 0.0001918 | V47: 0.0002011 | W47: 0.0002654 | X47: 0.0002878 | Y47: 0.0002885 | Z47: 0.0002792 | AA47: 0.0002657 | AB47: 0.000251 | AC47: 0.0002364 | AD47: 0.0002226 | AE47: 0.0002096 | AF47: 0.0001717 | AG47: 0.0001611 | AH47: 0.0001881 | AI47: 0.0001911 | AJ47: 0.0001833 | AK47: 0.0001749 | AL47: 0.0001801 | AM47: 0.0001958 | AN47: 0.000213 | AO47: 0.0002706 | AP47: 0.0003 | AQ47: 0.000388 | AR47: 0.0005295 | AS47: 0.0007328 | AT47: 0.0008987 | AU47: 0.0009876 | AV47: 0.0010223 | AW47: 0.0010136 | AX47: 1.21e-05 | AY47: 2.39e-05 | AZ47: 4.03e-05 | BA47: 4.82e-05 | BB47: 5.07e-05 | BC47: 5.29e-05 | BD47: 5.38e-05 | BE47: 5.46e-05 | BF47: 5.32e-05 | BG47: 7.67e-05 | BH47: 0.0001093 | BI47: 0.000145 | BJ47: 0.0001816 | BK47: 0.0002182 | BL47: 0.0002548 | BM47: 0.0002914 | BN47: 0.0003278 | BO47: 0.0003643 | BP47: 1.1e-06 | BQ47: 3.2e-06 | BR47: 6.2e-06 | BS47: 1.16e-05 | BT47: 1.56e-05 | BU47: 1.89e-05 | BV47: 2.29e-05 | BW47: 2.69e-05 | BX47: 3.81e-05 | BY47: 5.17e-05 | BZ47: 0.0001127 | CA47: 1e-06 | CB47: -1.76e-05 | CC47: 1.9e-06 | CD47: 0.0003215 | CE47: -0.0001334 | CF47: 0.0002609
A48: ipca.252 | B48: 7.3e-06 | C48: 3.25e-05 | D48: 8.58e-05 | E48: 0.0001955 | F48: 0.000273 | G48: 0.0003262 | H48: 0.0003672 | I48: 0.0004072 | J48: 0.0004692 | K48: 0.0005166 | L48: 0.0006371 | M48: 0.0006638 | N48: 0.0002177 | O48: 0.0002982 | P48: 0.0003968 | Q48: 0.0004578 | R48: 0.0005001 | S48: 0.0005288 | T48: 0.0005662 | U48: 0.0006169 | V48: 0.0006794 | W48: 0.0011 | X48: 0.0014865 | Y48: 0.0018569 | Z48: 0.0022192 | AA48: 0.0025742 | AB48: 0.0029241 | AC48: 0.003271 | AD48: 0.0036164 | AE48: 0.0039612 | AF48: 0.0001688 | AG48: 0.0001881 | AH48: 0.0003741 | AI48: 0.000523 | AJ48: 0.0006052 | AK48: 0.0006411 | AL48: 0.0006936 | AM48: 0.0007673 | AN48: 0.0008233 | AO48: 0.0010687 | AP48: 0.0012564 | AQ48: 0.0015247 | AR48: 0.0018546 | AS48: 0.0023671 | AT48: 0.0028207 | AU48: 0.0031461 | AV48: 0.0034139 | AW48: 0.003633 | AX48: 2.61e-05 | AY48: 5.69e-05 | AZ48: 0.0001114 | BA48: 0.0001519 | BB48: 0.0001796 | BC48: 0.0002084 | BD48: 0.0002335 | BE48: 0.0002789 | BF48: 0.0003072 | BG48: 0.0005595 | BH48: 0.0008173 | BI48: 0.0010792 | BJ48: 0.0013408 | BK48: 0.0016017 | BL48: 0.0018618 | BM48: 0.0021214 | BN48: 0.0023807 | BO48: 0.0026397 | BP48: 8e-07 | BQ48: 2.5e-06 | BR48: 5e-06 | BS48: 1.03e-05 | BT48: 1.52e-05 | BU48: 1.95e-05 | BV48: 2.41e-05 | BW48: 2.81e-05 | BX48: 3.69e-05 | BY48: 4.54e-05 | BZ48: 8.67e-05 | CA48: -6.75e-05 | CB48: -3.25e-05 | CC48: 7.3e-06 | CD48: 0.0009749 | CE48: -0.0001774 | CF48: 0.0005153
A49: ipca.378 | B49: 9.9e-06 | C49: 4.91e-05 | D49: 0.0001432 | E49: 0.000374 | F49: 0.0005794 | G49: 0.0007493 | H49: 0.0008951 | I49: 0.0010383 | J49: 0.0012759 | K49: 0.0014744 | L49: 0.0022182 | M49: 0.0027284 | N49: 0.0002052 | O49: 0.0003161 | P49: 0.0005029 | Q49: 0.0006665 | R49: 0.0008045 | S49: 0.0009096 | T49: 0.0010184 | U49: 0.0011716 | V49: 0.0013351 | W49: 0.0023898 | X49: 0.0034022 | Y49: 0.004377 | Z49: 0.0053294 | AA49: 0.0062624 | AB49: 0.0071811 | AC49: 0.0080906 | AD49: 0.0089946 | AE49: 0.0098956 | AF49: 0.0002148 | AG49: 0.0001911 | AH49: 0.000523 | AI49: 0.0008771 | AJ49: 0.001115 | AK49: 0.0012446 | AL49: 0.0013868 | AM49: 0.0015733 | AN49: 0.0017023 | AO49: 0.0023038 | AP49: 0.0028559 | AQ49: 0.0035309 | AR49: 0.004253 | AS49: 0.0053343 | AT49: 0.0062727 | AU49: 0.0069553 | AV49: 0.0075532 | AW49: 0.0080827 | AX49: 3.81e-05 | AY49: 8.76e-05 | AZ49: 0.0001853 | BA49: 0.0002681 | BB49: 0.0003329 | BC49: 0.0004019 | BD49: 0.0004654 | BE49: 0.0005836 | BF49: 0.0006638 | BG49: 0.0012753 | BH49: 0.0018777 | BI49: 0.0024841 | BJ49: 0.0030886 | BK49: 0.0036907 | BL49: 0.0042911 | BM49: 0.0048903 | BN49: 0.0054886 | BO49: 0.0060864 | BP49: 0 | BQ49: 5e-07 | BR49: 2.4e-06 | BS49: 1.04e-05 | BT49: 2.13e-05 | BU49: 3.21e-05 | BV49: 4.32e-05 | BW49: 5.24e-05 | BX49: 6.94e-05 | BY49: 8.08e-05 | BZ49: 8.83e-05 | CA49: -0.0001387 | CB49: -4.32e-05 | CC49: 1.21e-05 | CD49: 0.0019735 | CE49: -0.0006214 | CF49: 0.0007117
A50: ipca.504 | B50: 1.19e-05 | C50: 6.11e-05 | D50: 0.0001858 | E50: 0.0005174 | F50: 0.0008414 | G50: 0.0011281 | H50: 0.0013836 | I50: 0.0016367 | J50: 0.0020656 | K50: 0.0024304 | L50: 0.0038808 | M50: 0.004971 | N50: 0.0001401 | O50: 0.0002557 | P50: 0.0005065 | Q50: 0.0007669 | R50: 0.0010017 | S50: 0.0011873 | T50: 0.0013697 | U50: 0.001632 | V50: 0.0018994 | W50: 0.0035752 | X50: 0.0051712 | Y50: 0.0066822 | Z50: 0.0081437 | AA50: 0.0095687 | AB50: 0.010969 | AC50: 0.0123543 | AD50: 0.0137308 | AE50: 0.0151024 | AF50: 0.0002304 | AG50: 0.0001833 | AH50: 0.0006052 | AI50: 0.001115 | AJ50: 0.0014963 | AK50: 0.0017305 | AL50: 0.0019754 | AM50: 0.0023051 | AN50: 0.0025289 | AO50: 0.0035075 | AP50: 0.0044264 | AQ50: 0.00553 | AR50: 0.0066809 | AS50: 0.0083736 | AT50: 0.0098318 | AU50: 0.0108907 | AV50: 0.0118244 | AW50: 0.0126602 | AX50: 4.75e-05 | AY50: 0.000112 | AZ50: 0.0002462 | BA50: 0.0003674 | BB50: 0.0004681 | BC50: 0.0005772 | BD50: 0.0006801 | BE50: 0.0008743 | BF50: 0.0010103 | BG50: 0.0019835 | BH50: 0.0029168 | BI50: 0.0038476 | BJ50: 0.0047729 | BK50: 0.0056939 | BL50: 0.0066121 | BM50: 0.0075285 | BN50: 0.0084436 | BO50: 0.0093579 | BP50: -8e-07 | BQ50: -1.4e-06 | BR50: 3e-07 | BS50: 1.19e-05 | BT50: 2.99e-05 | BU50: 4.86e-05 | BV50: 6.81e-05 | BW50: 8.43e-05 | BX50: 0.000114 | BY50: 0.0001316 | BZ50: 9.52e-05 | CA50: -0.0001873 | CB50: -5.22e-05 | CC50: 1.54e-05 | CD50: 0.0029054 | CE50: -0.0011888 | CF50: 0.0007126
A51: ipca.630 | B51: 1.33e-05 | C51: 6.86e-05 | D51: 0.0002128 | E51: 0.000614 | F51: 0.0010281 | G51: 0.001409 | H51: 0.0017564 | I51: 0.0021024 | J51: 0.0026951 | K51: 0.0032025 | L51: 0.0052583 | M51: 0.0068566 | N51: 6.35e-05 | O51: 0.0001711 | P51: 0.0004618 | Q51: 0.000797 | R51: 0.00111 | S51: 0.0013624 | T51: 0.0016048 | U51: 0.0019576 | V51: 0.0023092 | W51: 0.0044778 | X51: 0.0065204 | Y51: 0.0084224 | Z51: 0.010244 | AA51: 0.0120118 | AB51: 0.0137459 | AC51: 0.0154602 | AD51: 0.0171635 | AE51: 0.018861 | AF51: 0.0002258 | AG51: 0.0001749 | AH51: 0.0006411 | AI51: 0.0012446 | AJ51: 0.0017305 | AK51: 0.0020548 | AL51: 0.0023923 | AM51: 0.0028636 | AN51: 0.003186 | AO51: 0.0045016 | AP51: 0.0057149 | AQ51: 0.0071769 | AR51: 0.0087012 | AS51: 0.0109251 | AT51: 0.0128347 | AU51: 0.0142146 | AV51: 0.0154254 | AW51: 0.0165054 | AX51: 5.41e-05 | AY51: 0.0001291 | AZ51: 0.0002898 | BA51: 0.0004406 | BB51: 0.0005703 | BC51: 0.0007125 | BD51: 0.0008484 | BE51: 0.0011071 | BF51: 0.0012912 | BG51: 0.0025644 | BH51: 0.0037634 | BI51: 0.0049513 | BJ51: 0.0061295 | BK51: 0.0073016 | BL51: 0.0084699 | BM51: 0.0096359 | BN51: 0.0108004 | BO51: 0.0119639 | BP51: -1.1e-06 | BQ51: -2.1e-06 | BR51: -3e-07 | BS51: 1.47e-05 | BT51: 3.85e-05 | BU51: 6.36e-05 | BV51: 9e-05 | BW51: 0.0001125 | BX51: 0.0001542 | BY51: 0.000179 | BZ51: 0.0001103 | CA51: -0.0002097 | CB51: -5.73e-05 | CC51: 1.72e-05 | CD51: 0.0036475 | CE51: -0.0017331 | CF51: 0.0005951
A52: ipca.756 | B52: 1.51e-05 | C52: 7.75e-05 | D52: 0.0002424 | E52: 0.000715 | F52: 0.0012208 | G52: 0.0016985 | H52: 0.0021409 | I52: 0.0025833 | J52: 0.0033462 | K52: 0.0040009 | L52: 0.0066685 | M52: 0.0087734 | N52: -4e-06 | O52: 9.83e-05 | P52: 0.0004335 | Q52: 0.0008475 | R52: 0.0012419 | S52: 0.0015632 | T52: 0.0018679 | U52: 0.0023138 | V52: 0.0027529 | W52: 0.005439 | X52: 0.0079496 | Y52: 0.0102574 | Z52: 0.0124495 | AA52: 0.0145685 | AB52: 0.0166438 | AC52: 0.0186944 | AD52: 0.0207319 | AE52: 0.0227626 | AF52: 0.0002285 | AG52: 0.0001801 | AH52: 0.0006936 | AI52: 0.0013868 | AJ52: 0.0019754 | AK52: 0.0023923 | AL52: 0.0028289 | AM52: 0.0034596 | AN52: 0.0038981 | AO52: 0.0056007 | AP52: 0.007124 | AQ52: 0.0089668 | AR52: 0.010897 | AS52: 0.0137037 | AT52: 0.0161084 | AU52: 0.0178367 | AV52: 0.0193425 | AW52: 0.0206764 | AX52: 6.21e-05 | AY52: 0.0001489 | AZ52: 0.0003385 | BA52: 0.000521 | BB52: 0.0006816 | BC52: 0.000859 | BD52: 0.00103 | BE52: 0.0013575 | BF52: 0.0015929 | BG52: 0.0031873 | BH52: 0.0046712 | BI52: 0.0061344 | BJ52: 0.0075833 | BK52: 0.009024 | BL52: 0.0104599 | BM52: 0.011893 | BN52: 0.0133243 | BO52: 0.0147544 | BP52: -1.1e-06 | BQ52: -2e-06 | BR52: 8e-07 | BS52: 1.97e-05 | BT52: 4.89e-05 | BU52: 8e-05 | BV52: 0.0001131 | BW52: 0.0001418 | BX52: 0.0001961 | BY52: 0.0002301 | BZ52: 0.0001438 | CA52: -0.000226 | CB52: -6.18e-05 | CC52: 1.89e-05 | CD52: 0.0044715 | CE52: -0.002338 | CF52: 0.0004686
A53: ipca.1008 | B53: 1.78e-05 | C53: 9.03e-05 | D53: 0.0002832 | E53: 0.0008551 | F53: 0.0014952 | G53: 0.00212 | H53: 0.0027101 | I53: 0.0033043 | J53: 0.0043371 | K53: 0.0052242 | L53: 0.0088301 | M53: 0.0116966 | N53: -0.0001158 | O53: -2.51e-05 | P53: 0.0003829 | Q53: 0.0009254 | R53: 0.0014505 | S53: 0.0018816 | T53: 0.0022847 | U53: 0.0028766 | V53: 0.0034528 | W53: 0.0069661 | X53: 0.0102332 | Y53: 0.013189 | Z53: 0.0159652 | AA53: 0.0186339 | AB53: 0.0212414 | AC53: 0.0238161 | AD53: 0.026374 | AE53: 0.0289238 | AF53: 0.0002325 | AG53: 0.0001958 | AH53: 0.0007673 | AI53: 0.0015733 | AJ53: 0.0023051 | AK53: 0.0028636 | AL53: 0.0034596 | AM53: 0.0043667 | AN53: 0.0050216 | AO53: 0.007451 | AP53: 0.0095 | AQ53: 0.0119661 | AR53: 0.0145624 | AS53: 0.0183327 | AT53: 0.0215523 | AU53: 0.0238453 | AV53: 0.0258199 | AW53: 0.0275489 | AX53: 7.41e-05 | AY53: 0.0001781 | AZ53: 0.0004104 | BA53: 0.0006413 | BB53: 0.0008501 | BC53: 0.001083 | BD53: 0.0013099 | BE53: 0.001748 | BF53: 0.0020672 | BG53: 0.0041827 | BH53: 0.0061259 | BI53: 0.0080308 | BJ53: 0.0099133 | BK53: 0.0117839 | BL53: 0.013648 | BM53: 0.0155084 | BN53: 0.0173665 | BO53: 0.0192232 | BP53: -3e-07 | BQ53: 7e-07 | BR53: 6.4e-06 | BS53: 3.2e-05 | BT53: 6.82e-05 | BU53: 0.0001064 | BV53: 0.0001481 | BW53: 0.0001852 | BX53: 0.0002597 | BY53: 0.0003128 | BZ53: 0.0002452 | CA53: -0.0002255 | CB53: -6.02e-05 | CC53: 2.05e-05 | CD53: 0.005853 | CE53: -0.0034111 | CF53: 0.0002027
A54: ipca.1260 | B54: 1.99e-05 | C54: 9.93e-05 | D54: 0.0003106 | E54: 0.0009479 | F54: 0.0016797 | G54: 0.0024085 | H54: 0.0031057 | I54: 0.0038114 | J54: 0.0050451 | K54: 0.0061051 | L54: 0.0103793 | M54: 0.0137637 | N54: -0.0001991 | O54: -0.0001167 | P54: 0.0003561 | Q54: 0.0010042 | R54: 0.0016332 | S54: 0.0021495 | T54: 0.0026284 | U54: 0.003331 | V54: 0.0040124 | W54: 0.0081888 | X54: 0.0120822 | Y54: 0.0155784 | Z54: 0.0188414 | AA54: 0.0219672 | AB54: 0.0250166 | AC54: 0.0280259 | AD54: 0.0310152 | AE54: 0.0339952 | AF54: 0.0002417 | AG54: 0.000213 | AH54: 0.0008233 | AI54: 0.0017023 | AJ54: 0.0025289 | AK54: 0.003186 | AL54: 0.0038981 | AM54: 0.0050216 | AN54: 0.0058611 | AO54: 0.0089752 | AP54: 0.0115038 | AQ54: 0.0144832 | AR54: 0.0176038 | AS54: 0.0221357 | AT54: 0.0259936 | AU54: 0.0287245 | AV54: 0.0310628 | AW54: 0.0330981 | AX54: 8.3e-05 | AY54: 0.0001989 | AZ54: 0.0004613 | BA54: 0.0007269 | BB54: 0.0009711 | BC54: 0.0012452 | BD54: 0.0015142 | BE54: 0.0020367 | BF54: 0.0024216 | BG54: 0.0049466 | BH54: 0.0072533 | BI54: 0.0095074 | BJ54: 0.0117326 | BK54: 0.0139426 | BL54: 0.0161447 | BM54: 0.0183423 | BN54: 0.0205373 | BO54: 0.0227305 | BP54: 1.1e-06 | BQ54: 4.6e-06 | BR54: 1.36e-05 | BS54: 4.44e-05 | BT54: 8.4e-05 | BU54: 0.0001252 | BV54: 0.0001714 | BW54: 0.0002138 | BX54: 0.000304 | BY54: 0.0003761 | BZ54: 0.0003715 | CA54: -0.0002079 | CB54: -5e-05 | CC54: 2.09e-05 | CD54: 0.007005 | CE54: -0.0042922 | CF54: 3.2e-06
A55: ipca.2520 | B55: 2.89e-05 | C55: 0.0001356 | D55: 0.0004197 | E55: 0.0013054 | F55: 0.0023757 | G55: 0.0034883 | H55: 0.0045861 | I55: 0.0057143 | J55: 0.0077207 | K55: 0.0094519 | L55: 0.0162728 | M55: 0.0215616 | N55: -0.0005487 | O55: -0.0004983 | P55: 0.0003048 | Q55: 0.0014506 | R55: 0.0025419 | S55: 0.0034179 | T55: 0.0042101 | U55: 0.0053615 | V55: 0.0064855 | W55: 0.0136398 | X55: 0.0204558 | Y55: 0.0265312 | Z55: 0.032146 | AA55: 0.0374922 | AB55: 0.0426915 | AC55: 0.0478149 | AD55: 0.052901 | AE55: 0.0579698 | AF55: 0.0003412 | AG55: 0.0002706 | AH55: 0.0010687 | AI55: 0.0023038 | AJ55: 0.0035075 | AK55: 0.0045016 | AL55: 0.0056007 | AM55: 0.007451 | AN55: 0.0089752 | AO55: 0.0156025 | AP55: 0.0212651 | AQ55: 0.0271438 | AR55: 0.0327095 | AS55: 0.0405318 | AT55: 0.0469506 | AU55: 0.0513325 | AV55: 0.055081 | AW55: 0.0583657 | AX55: 0.0001207 | AY55: 0.0002841 | AZ55: 0.0006623 | BA55: 0.001062 | BB55: 0.0014436 | BC55: 0.0018798 | BD55: 0.0023163 | BE55: 0.0031826 | BF55: 0.0038443 | BG55: 0.0081512 | BH55: 0.0120909 | BI55: 0.0159272 | BJ55: 0.0197076 | BK55: 0.0234593 | BL55: 0.0271959 | BM55: 0.0309243 | BN55: 0.0346476 | BO55: 0.0383679 | BP55: 2.3e-06 | BQ55: 7.7e-06 | BR55: 1.78e-05 | BS55: 4.89e-05 | BT55: 9.19e-05 | BU55: 0.0001427 | BV55: 0.000206 | BW55: 0.0002716 | BX55: 0.000429 | BY55: 0.0005821 | BZ55: 0.0008272 | CA55: -0.0002135 | CB55: 6.9e-06 | CC55: 2.4e-05 | CD55: 0.0122119 | CE55: -0.0074998 | CF55: -0.0003566
A56: ipca.3780 | B56: 3.59e-05 | C56: 0.0001658 | D56: 0.0005167 | E56: 0.0016362 | F56: 0.003022 | G56: 0.004484 | H56: 0.0059374 | I56: 0.0074346 | J56: 0.0101043 | K56: 0.0124077 | L56: 0.0214686 | M56: 0.0285305 | N56: -0.0009271 | O56: -0.0009627 | P56: 0.0001048 | Q56: 0.0017001 | R56: 0.0031993 | S56: 0.0043797 | T56: 0.0054234 | U56: 0.0069198 | V56: 0.0083767 | W56: 0.017796 | X56: 0.0268461 | Y56: 0.0348963 | Z56: 0.0423153 | AA56: 0.0493669 | AB56: 0.0562187 | AC56: 0.0629675 | AD56: 0.0696657 | AE56: 0.0763405 | AF56: 0.0004632 | AG56: 0.0003 | AH56: 0.0012564 | AI56: 0.0028559 | AJ56: 0.0044264 | AK56: 0.0057149 | AL56: 0.007124 | AM56: 0.0095 | AN56: 0.0115038 | AO56: 0.0212651 | AP56: 0.030722 | AQ56: 0.0404098 | AR56: 0.0490696 | AS56: 0.0605037 | AT56: 0.0693602 | AU56: 0.0749512 | AV56: 0.0795449 | AW56: 0.0834872 | AX56: 0.0001571 | AY56: 0.0003648 | AZ56: 0.0008484 | BA56: 0.0013696 | BB56: 0.0018758 | BC56: 0.002459 | BD56: 0.0030477 | BE56: 0.004227 | BF56: 0.0051426 | BG56: 0.0111055 | BH56: 0.0165812 | BI56: 0.0219105 | BJ56: 0.0271603 | BK56: 0.0323689 | BL56: 0.0375559 | BM56: 0.0427307 | BN56: 0.0478984 | BO56: 0.0530614 | BP56: -5.1e-06 | BQ56: -1.47e-05 | BR56: -2.42e-05 | BS56: -1.81e-05 | BT56: 2.34e-05 | BU56: 8.76e-05 | BV56: 0.0001695 | BW56: 0.0002575 | BX56: 0.0004589 | BY56: 0.000645 | BZ56: 0.0007894 | CA56: -0.0003557 | CB56: 1.44e-05 | CC56: 3.37e-05 | CD56: 0.0166356 | CE56: -0.0101243 | CF56: -0.0008037
A57: ipca.5040 | B57: 4.51e-05 | C57: 0.0002057 | D57: 0.0006382 | E57: 0.002027 | F57: 0.0037662 | G57: 0.0056092 | H57: 0.0074403 | I57: 0.0093213 | J57: 0.0126609 | K57: 0.0155287 | L57: 0.026781 | M57: 0.035587 | N57: -0.0012512 | O57: -0.0013974 | P57: -0.0001151 | Q57: 0.0018977 | R57: 0.0037915 | S57: 0.0052755 | T57: 0.0065713 | U57: 0.0084042 | V57: 0.0101605 | W57: 0.0214646 | X57: 0.0323497 | Y57: 0.0420201 | Z57: 0.0509173 | AA57: 0.0593662 | AB57: 0.0675729 | AC57: 0.0756558 | AD57: 0.0836785 | AE57: 0.0916735 | AF57: 0.0006413 | AG57: 0.000388 | AH57: 0.0015247 | AI57: 0.0035309 | AJ57: 0.00553 | AK57: 0.0071769 | AL57: 0.0089668 | AM57: 0.0119661 | AN57: 0.0144832 | AO57: 0.0271438 | AP57: 0.0404098 | AQ57: 0.0546168 | AR57: 0.0675601 | AS57: 0.0841411 | AT57: 0.096791 | AU57: 0.1044936 | AV57: 0.1105052 | AW57: 0.1154215 | AX57: 0.0002038 | AY57: 0.0004673 | AZ57: 0.0010745 | BA57: 0.0017282 | BB57: 0.0023655 | BC57: 0.0031028 | BD57: 0.0038497 | BE57: 0.0053522 | BF57: 0.006526 | BG57: 0.0141713 | BH57: 0.0211892 | BI57: 0.0280141 | BJ57: 0.0347353 | BK57: 0.0414031 | BL57: 0.0480429 | BM57: 0.0546669 | BN57: 0.0612817 | BO57: 0.0678905 | BP57: -1.13e-05 | BQ57: -3.24e-05 | BR57: -5.58e-05 | BS57: -6.11e-05 | BT57: -8.9e-06 | BU57: 7.77e-05 | BV57: 0.0001868 | BW57: 0.0003033 | BX57: 0.0005607 | BY57: 0.0007873 | BZ57: 0.0007894 | CA57: -0.0005071 | CB57: 1.3e-06 | CC57: 4.88e-05 | CD57: 0.0209834 | CE57: -0.0136705 | CF57: -0.0017776
A58: ipca.6300 | B58: 5.71e-05 | C58: 0.0002535 | D58: 0.0007681 | E58: 0.0024042 | F58: 0.0044595 | G58: 0.0066408 | H58: 0.0088038 | I58: 0.0110187 | J58: 0.0149309 | K58: 0.0182734 | L58: 0.0313375 | M58: 0.0415325 | N58: -0.0014359 | O58: -0.0016697 | P58: -0.0002382 | Q58: 0.0020996 | R58: 0.0043283 | S58: 0.0060893 | T58: 0.0076254 | U58: 0.0097844 | V58: 0.0118162 | W58: 0.0247116 | X58: 0.0371106 | Y58: 0.0481095 | Z58: 0.058214 | AA58: 0.067803 | AB58: 0.077116 | AC58: 0.0862892 | AD58: 0.0953954 | AE58: 0.1044715 | AF58: 0.0008421 | AG58: 0.0005295 | AH58: 0.0018546 | AI58: 0.004253 | AJ58: 0.0066809 | AK58: 0.0087012 | AL58: 0.010897 | AM58: 0.0145624 | AN58: 0.0176038 | AO58: 0.0327095 | AP58: 0.0490696 | AQ58: 0.0675601 | AR58: 0.0853388 | AS58: 0.1083019 | AT58: 0.1264642 | AU58: 0.1380344 | AV58: 0.1470779 | AW58: 0.1543701 | AX58: 0.0002578 | AY58: 0.0005825 | AZ58: 0.0013116 | BA58: 0.002084 | BB58: 0.0028336 | BC58: 0.0037035 | BD58: 0.0045864 | BE58: 0.0063674 | BF58: 0.0077619 | BG58: 0.0168537 | BH58: 0.0251823 | BI58: 0.0332742 | BJ58: 0.0412414 | BK58: 0.0491448 | BL58: 0.0570149 | BM58: 0.0648665 | BN58: 0.0727072 | BO58: 0.0805408 | BP58: -1.32e-05 | BQ58: -3.74e-05 | BR58: -6.2e-05 | BS58: -5.57e-05 | BT58: 2.31e-05 | BU58: 0.0001441 | BV58: 0.0002947 | BW58: 0.000454 | BX58: 0.0008097 | BY58: 0.0011266 | BZ58: 0.0011163 | CA58: -0.0006052 | CB58: 6e-07 | CC58: 6.49e-05 | CD58: 0.0249334 | CE58: -0.0178927 | CF58: -0.0030303
A59: ipca.7560 | B59: 7.68e-05 | C59: 0.0003274 | D59: 0.0009608 | E59: 0.0029372 | F59: 0.0054198 | G59: 0.0080605 | H59: 0.0106778 | I59: 0.0133534 | J59: 0.0180651 | K59: 0.0220796 | L59: 0.0377279 | M59: 0.0498318 | N59: -0.001617 | O59: -0.0019168 | P59: -0.0002611 | Q59: 0.002514 | R59: 0.0052079 | S59: 0.0073673 | T59: 0.0092628 | U59: 0.0119307 | V59: 0.0144132 | W59: 0.0299623 | X59: 0.0448599 | Y59: 0.0580452 | Z59: 0.0701404 | AA59: 0.0816119 | AB59: 0.092752 | AC59: 0.1037261 | AD59: 0.1146214 | AE59: 0.1254823 | AF59: 0.0010864 | AG59: 0.0007328 | AH59: 0.0023671 | AI59: 0.0053343 | AJ59: 0.0083736 | AK59: 0.0109251 | AL59: 0.0137037 | AM59: 0.0183327 | AN59: 0.0221357 | AO59: 0.0405318 | AP59: 0.0605037 | AQ59: 0.0841411 | AR59: 0.1083019 | AS59: 0.1404224 | AT59: 0.1673417 | AU59: 0.1858961 | AV59: 0.200967 | AW59: 0.2134016 | AX59: 0.0003382 | AY59: 0.0007527 | AZ59: 0.0016546 | BA59: 0.0025886 | BB59: 0.0034879 | BC59: 0.0045351 | BD59: 0.0055998 | BE59: 0.007754 | BF59: 0.0094435 | BG59: 0.0204806 | BH59: 0.0305726 | BI59: 0.0403694 | BJ59: 0.0500132 | BK59: 0.0595795 | BL59: 0.0691056 | BM59: 0.0786093 | BN59: 0.0880999 | BO59: 0.0975821 | BP59: -1.41e-05 | BQ59: -3.9e-05 | BR59: -6.06e-05 | BS59: -3.03e-05 | BT59: 9.23e-05 | BU59: 0.000269 | BV59: 0.0004896 | BW59: 0.0007236 | BX59: 0.0012608 | BY59: 0.0017576 | BZ59: 0.0018868 | CA59: -0.0006974 | CB59: 2.41e-05 | CC59: 8.51e-05 | CD59: 0.0306917 | CE59: -0.0238802 | CF59: -0.0044423
A60: ipca.8820 | B60: 9.64e-05 | C60: 0.0003949 | D60: 0.0011246 | E60: 0.0033565 | F60: 0.0061596 | G60: 0.0091528 | H60: 0.0121248 | I60: 0.015164 | J60: 0.0205154 | K60: 0.0250769 | L60: 0.0428483 | M60: 0.0564146 | N60: -0.0016956 | O60: -0.0020164 | P60: -0.000185 | Q60: 0.0029219 | R60: 0.005989 | S60: 0.0084823 | T60: 0.0106901 | U60: 0.0138177 | V60: 0.0167211 | W60: 0.0347844 | X60: 0.0520198 | Y60: 0.0672302 | Z60: 0.0811631 | AA60: 0.0943706 | AB60: 0.107195 | AC60: 0.1198288 | AD60: 0.132373 | AE60: 0.1448786 | AF60: 0.0012379 | AG60: 0.0008987 | AH60: 0.0028207 | AI60: 0.0062727 | AJ60: 0.0098318 | AK60: 0.0128347 | AL60: 0.0161084 | AM60: 0.0215523 | AN60: 0.0259936 | AO60: 0.0469506 | AP60: 0.0693602 | AQ60: 0.096791 | AR60: 0.1264642 | AS60: 0.1673417 | AT60: 0.2036604 | AU60: 0.2306472 | AV60: 0.2535382 | AW60: 0.2730296 | AX60: 0.0004122 | AY60: 0.0009057 | AZ60: 0.001948 | BA60: 0.0030033 | BB60: 0.0040118 | BC60: 0.0051909 | BD60: 0.0063922 | BE60: 0.0088313 | BF60: 0.0107491 | BG60: 0.0233077 | BH60: 0.0347802 | BI60: 0.0459099 | BJ60: 0.0568637 | BK60: 0.067729 | BL60: 0.0785485 | BM60: 0.0893427 | BN60: 0.1001221 | BO60: 0.1108919 | BP60: -1.52e-05 | BQ60: -4.14e-05 | BR60: -6.15e-05 | BS60: -1.08e-05 | BT60: 0.0001543 | BU60: 0.0003889 | BV60: 0.0006856 | BW60: 0.0010042 | BX60: 0.0017537 | BY60: 0.00247 | BZ60: 0.002842 | CA60: -0.0007331 | CB60: 6.7e-05 | CC60: 0.0001009 | CD60: 0.035719 | CE60: -0.0291845 | CF60: -0.005328
A61: ipca.10080 | B61: 0.0001125 | C61: 0.0004456 | D61: 0.0012395 | E61: 0.0036279 | F61: 0.0066306 | G61: 0.0098543 | H61: 0.0130666 | I61: 0.0163581 | J61: 0.0221686 | K61: 0.0271364 | L61: 0.0465195 | M61: 0.0610866 | N61: -0.001718 | O61: -0.0020251 | P61: -5.98e-05 | Q61: 0.0032756 | R61: 0.0066072 | S61: 0.0093437 | T61: 0.011786 | U61: 0.0152756 | V61: 0.018531 | W61: 0.0387841 | X61: 0.0580366 | Y61: 0.0749749 | Z61: 0.0904709 | AA61: 0.1051535 | AB61: 0.1194084 | AC61: 0.1334512 | AD61: 0.1473946 | AE61: 0.1612955 | AF61: 0.0012646 | AG61: 0.0009876 | AH61: 0.0031461 | AI61: 0.0069553 | AJ61: 0.0108907 | AK61: 0.0142146 | AL61: 0.0178367 | AM61: 0.0238453 | AN61: 0.0287245 | AO61: 0.0513325 | AP61: 0.0749512 | AQ61: 0.1044936 | AR61: 0.1380344 | AS61: 0.1858961 | AT61: 0.2306472 | AU61: 0.2660055 | AV61: 0.2971302 | AW61: 0.3243886 | AX61: 0.0004682 | AY61: 0.0010195 | AZ61: 0.0021565 | BA61: 0.0032862 | BB61: 0.0043597 | BC61: 0.0056202 | BD61: 0.0069079 | BE61: 0.0095323 | BF61: 0.0116028 | BG61: 0.0251935 | BH61: 0.0376086 | BI61: 0.0496475 | BJ61: 0.061494 | BK61: 0.0732442 | BL61: 0.0849447 | BM61: 0.0966177 | BN61: 0.1082747 | BO61: 0.1199214 | BP61: -1.79e-05 | BQ61: -4.93e-05 | BR61: -7.45e-05 | BS61: -1.81e-05 | BT61: 0.000177 | BU61: 0.0004604 | BV61: 0.0008246 | BW61: 0.0012222 | BX61: 0.0021734 | BY61: 0.0031032 | BZ61: 0.0037348 | CA61: -0.0007259 | CB61: 0.0001152 | CC61: 0.0001103 | CD61: 0.0396382 | CE61: -0.0329786 | CF61: -0.0054311
A62: ipca.11340 | B62: 0.0001264 | C62: 0.0004886 | D62: 0.001337 | E62: 0.0038604 | F62: 0.0070407 | G62: 0.0104758 | H62: 0.0139149 | I62: 0.0174492 | J62: 0.0237154 | K62: 0.0290981 | L62: 0.0501555 | M62: 0.0657222 | N62: -0.0017685 | O62: -0.0020517 | P62: 6.92e-05 | Q62: 0.0036399 | R62: 0.0072271 | S62: 0.0101906 | T62: 0.0128513 | U62: 0.0166858 | V62: 0.0202959 | W62: 0.0428623 | X62: 0.0642472 | Y62: 0.0830075 | Z62: 0.1001526 | AA62: 0.1163917 | AB62: 0.1321556 | AC62: 0.1476841 | AD62: 0.1631025 | AE62: 0.1784738 | AF62: 0.001214 | AG62: 0.0010223 | AH62: 0.0034139 | AI62: 0.0075532 | AJ62: 0.0118244 | AK62: 0.0154254 | AL62: 0.0193425 | AM62: 0.0258199 | AN62: 0.0310628 | AO62: 0.055081 | AP62: 0.0795449 | AQ62: 0.1105052 | AR62: 0.1470779 | AS62: 0.200967 | AT62: 0.2535382 | AU62: 0.2971302 | AV62: 0.3366632 | AW62: 0.3720892 | AX62: 0.0005152 | AY62: 0.0011157 | AZ62: 0.0023335 | BA62: 0.003527 | BB62: 0.0046576 | BC62: 0.0059906 | BD62: 0.0073562 | BE62: 0.0101501 | BF62: 0.0123631 | BG62: 0.0269178 | BH62: 0.0402222 | BI62: 0.0531198 | BJ62: 0.0658093 | BK62: 0.078395 | BL62: 0.0909269 | BM62: 0.1034294 | BN62: 0.1159145 | BO62: 0.1283886 | BP62: -2.29e-05 | BQ62: -6.43e-05 | BR62: -0.0001022 | BS62: -5.52e-05 | BT62: 0.000159 | BU62: 0.0004844 | BV62: 0.0009096 | BW62: 0.0013815 | BX62: 0.0025231 | BY62: 0.0036556 | BZ62: 0.0045195 | CA62: -0.000712 | CB62: 0.0001605 | CC62: 0.0001167 | CD62: 0.0434681 | CE62: -0.0359798 | CF62: -0.0049403
A63: ipca.12600 | B63: 0.0001381 | C63: 0.0005244 | D63: 0.0014209 | E63: 0.0040697 | F63: 0.0074199 | G63: 0.0110607 | H63: 0.014724 | I63: 0.0185017 | J63: 0.0252342 | K63: 0.0310492 | L63: 0.0538664 | M63: 0.0704615 | N63: -0.0018582 | O63: -0.0021164 | P63: 0.0001838 | Q63: 0.0040063 | R63: 0.0078488 | S63: 0.011029 | T63: 0.0138954 | U63: 0.0180589 | V63: 0.022022 | W63: 0.0469731 | X63: 0.0705594 | Y63: 0.0911988 | Z63: 0.1100458 | AA63: 0.1278919 | AB63: 0.1452137 | AC63: 0.1622756 | AD63: 0.1792158 | AE63: 0.1961038 | AF63: 0.0011085 | AG63: 0.0010136 | AH63: 0.003633 | AI63: 0.0080827 | AJ63: 0.0126602 | AK63: 0.0165054 | AL63: 0.0206764 | AM63: 0.0275489 | AN63: 0.0330981 | AO63: 0.0583657 | AP63: 0.0834872 | AQ63: 0.1154215 | AR63: 0.1543701 | AS63: 0.2134016 | AT63: 0.2730296 | AU63: 0.3243886 | AV63: 0.3720892 | AW63: 0.4156335 | AX63: 0.0005535 | AY63: 0.0011959 | AZ63: 0.0024848 | BA63: 0.0037367 | BB63: 0.0049215 | BC63: 0.0063237 | BD63: 0.0077645 | BE63: 0.0107226 | BF63: 0.0130754 | BG63: 0.0285719 | BH63: 0.0427517 | BI63: 0.0564956 | BJ63: 0.070016 | BK63: 0.0834248 | BL63: 0.0967761 | BM63: 0.1100957 | BN63: 0.1233966 | BO63: 0.1366857 | BP63: -2.96e-05 | BQ63: -8.48e-05 | BR63: -0.0001415 | BS63: -0.0001158 | BT63: 0.000108 | BU63: 0.0004679 | BV63: 0.000946 | BW63: 0.0014851 | BX63: 0.0027982 | BY63: 0.0041132 | BZ63: 0.0051619 | CA63: -0.0006994 | CB63: 0.0001988 | CC63: 0.0001213 | CD63: 0.0472372 | CE63: -0.0383132 | CF63: -0.0039809
A64: tr.63 | B64: 1.5e-06 | C64: 4.6e-06 | D64: 9.9e-06 | E64: 1.99e-05 | F64: 2.8e-05 | G64: 3.49e-05 | H64: 4.11e-05 | I64: 4.74e-05 | J64: 5.77e-05 | K64: 6.58e-05 | L64: 9.21e-05 | M64: 0.0001082 | N64: 1.05e-05 | O64: 1.77e-05 | P64: 3e-05 | Q64: 3.81e-05 | R64: 4.34e-05 | S64: 4.73e-05 | T64: 5.2e-05 | U64: 5.98e-05 | V64: 6.97e-05 | W64: 0.0001352 | X64: 0.0001882 | Y64: 0.0002303 | Z64: 0.0002669 | AA64: 0.0003007 | AB64: 0.0003333 | AC64: 0.0003654 | AD64: 0.0003973 | AE64: 0.0004293 | AF64: 6.1e-06 | AG64: 1.21e-05 | AH64: 2.61e-05 | AI64: 3.81e-05 | AJ64: 4.75e-05 | AK64: 5.41e-05 | AL64: 6.21e-05 | AM64: 7.41e-05 | AN64: 8.3e-05 | AO64: 0.0001207 | AP64: 0.0001571 | AQ64: 0.0002038 | AR64: 0.0002578 | AS64: 0.0003382 | AT64: 0.0004122 | AU64: 0.0004682 | AV64: 0.0005152 | AW64: 0.0005535 | AX64: 5.8e-06 | AY64: 1.15e-05 | AZ64: 2.07e-05 | BA64: 2.77e-05 | BB64: 3.31e-05 | BC64: 3.9e-05 | BD64: 4.46e-05 | BE64: 5.54e-05 | BF64: 6.27e-05 | BG64: 0.0001172 | BH64: 0.0001675 | BI64: 0.0002169 | BJ64: 0.0002656 | BK64: 0.0003141 | BL64: 0.0003624 | BM64: 0.0004106 | BN64: 0.0004588 | BO64: 0.000507 | BP64: 1e-07 | BQ64: 2e-07 | BR64: 5e-07 | BS64: 1.5e-06 | BT64: 2.8e-06 | BU64: 4.1e-06 | BV64: 5.5e-06 | BW64: 6.8e-06 | BX64: 9e-06 | BY64: 1.04e-05 | BZ64: 8.1e-06 | CA64: -1.27e-05 | CB64: -1.6e-06 | CC64: 8e-07 | CD64: 0.0001698 | CE64: -6.54e-05 | CF64: -8.14e-05
A65: tr.126 | B65: 2.8e-06 | C65: 9.4e-06 | D65: 2.15e-05 | E65: 4.76e-05 | F65: 7.03e-05 | G65: 9e-05 | H65: 0.0001077 | I65: 0.0001255 | J65: 0.0001551 | K65: 0.0001791 | L65: 0.0002625 | M65: 0.0003179 | N65: 1.62e-05 | O65: 3.08e-05 | P65: 6e-05 | Q65: 8.18e-05 | R65: 9.77e-05 | S65: 0.0001092 | T65: 0.0001218 | U65: 0.0001417 | V65: 0.000165 | W65: 0.0003155 | X65: 0.0004419 | Y65: 0.0005471 | Z65: 0.0006415 | AA65: 0.0007303 | AB65: 0.0008163 | AC65: 0.000901 | AD65: 0.0009853 | AE65: 0.0010696 | AF65: 1.21e-05 | AG65: 2.39e-05 | AH65: 5.69e-05 | AI65: 8.76e-05 | AJ65: 0.000112 | AK65: 0.0001291 | AL65: 0.0001489 | AM65: 0.0001781 | AN65: 0.0001989 | AO65: 0.0002841 | AP65: 0.0003648 | AQ65: 0.0004673 | AR65: 0.0005825 | AS65: 0.0007527 | AT65: 0.0009057 | AU65: 0.0010195 | AV65: 0.0011157 | AW65: 0.0011959 | AX65: 1.15e-05 | AY65: 2.34e-05 | AZ65: 4.36e-05 | BA65: 5.95e-05 | BB65: 7.17e-05 | BC65: 8.53e-05 | BD65: 9.81e-05 | BE65: 0.0001225 | BF65: 0.0001393 | BG65: 0.0002626 | BH65: 0.0003767 | BI65: 0.0004887 | BJ65: 0.0005995 | BK65: 0.0007096 | BL65: 0.0008194 | BM65: 0.000929 | BN65: 0.0010384 | BO65: 0.0011478 | BP65: 1e-07 | BQ65: 5e-07 | BR65: 1.2e-06 | BS65: 3.3e-06 | BT65: 5.8e-06 | BU65: 8.4e-06 | BV65: 1.11e-05 | BW65: 1.34e-05 | BX65: 1.73e-05 | BY65: 1.91e-05 | BZ65: 8e-06 | CA65: -2.63e-05 | CB65: -4.4e-06 | CC65: 1.8e-06 | CD65: 0.0003372 | CE65: -0.0001187 | CF65: -0.000156
A66: tr.252 | B66: 4.8e-06 | C66: 1.73e-05 | D66: 4.32e-05 | E66: 0.0001066 | F66: 0.0001673 | G66: 0.000222 | H66: 0.0002719 | I66: 0.000322 | J66: 0.0004066 | K66: 0.0004762 | L66: 0.0007251 | M66: 0.0008938 | N66: 7.3e-06 | O66: 3.22e-05 | P66: 9.62e-05 | Q66: 0.000152 | R66: 0.0001956 | S66: 0.0002282 | T66: 0.0002609 | U66: 0.0003108 | V66: 0.0003656 | W66: 0.000711 | X66: 0.0010078 | Y66: 0.0012607 | Z66: 0.0014905 | AA66: 0.001708 | AB66: 0.0019191 | AC66: 0.0021272 | AD66: 0.0023342 | AE66: 0.0025409 | AF66: 2.13e-05 | AG66: 4.03e-05 | AH66: 0.0001114 | AI66: 0.0001853 | AJ66: 0.0002462 | AK66: 0.0002898 | AL66: 0.0003385 | AM66: 0.0004104 | AN66: 0.0004613 | AO66: 0.0006623 | AP66: 0.0008484 | AQ66: 0.0010745 | AR66: 0.0013116 | AS66: 0.0016546 | AT66: 0.001948 | AU66: 0.0021565 | AV66: 0.0023335 | AW66: 0.0024848 | AX66: 2.07e-05 | AY66: 4.36e-05 | AZ66: 8.59e-05 | BA66: 0.0001215 | BB66: 0.0001501 | BC66: 0.0001817 | BD66: 0.0002116 | BE66: 0.0002686 | BF66: 0.0003081 | BG66: 0.0005899 | BH66: 0.00085 | BI66: 0.0011054 | BJ66: 0.0013578 | BK66: 0.0016087 | BL66: 0.0018587 | BM66: 0.0021083 | BN66: 0.0023577 | BO66: 0.0026069 | BP66: 2e-07 | BQ66: 8e-07 | BR66: 2e-06 | BS66: 5.8e-06 | BT66: 1.05e-05 | BU66: 1.52e-05 | BV66: 2e-05 | BW66: 2.38e-05 | BX66: 2.98e-05 | BY66: 3.09e-05 | BZ66: 3e-07 | CA66: -5.13e-05 | CB66: -1.06e-05 | CC66: 3.8e-06 | CD66: 0.0006689 | CE66: -0.0002268 | CF66: -0.0002696
A67: tr.378 | B67: 6.2e-06 | C67: 2.34e-05 | D67: 6.14e-05 | E67: 0.0001611 | F67: 0.000263 | G67: 0.000358 | H67: 0.0004461 | I67: 0.0005347 | J67: 0.0006857 | K67: 0.0008111 | L67: 0.0012685 | M67: 0.001586 | N67: -2.02e-05 | O67: 8.9e-06 | P67: 0.0001046 | Q67: 0.0001967 | R67: 0.0002716 | S67: 0.0003283 | T67: 0.0003832 | U67: 0.0004666 | V67: 0.0005551 | W67: 0.0011051 | X67: 0.0015823 | Y67: 0.0019905 | Z67: 0.0023621 | AA67: 0.0027138 | AB67: 0.0030553 | AC67: 0.003392 | AD67: 0.0037266 | AE67: 0.0040606 | AF67: 2.62e-05 | AG67: 4.82e-05 | AH67: 0.0001519 | AI67: 0.0002681 | AJ67: 0.0003674 | AK67: 0.0004406 | AL67: 0.000521 | AM67: 0.0006413 | AN67: 0.0007269 | AO67: 0.001062 | AP67: 0.0013696 | AQ67: 0.0017282 | AR67: 0.002084 | AS67: 0.0025886 | AT67: 0.0030033 | AU67: 0.0032862 | AV67: 0.003527 | AW67: 0.0037367 | AX67: 2.77e-05 | AY67: 5.95e-05 | AZ67: 0.0001215 | BA67: 0.0001768 | BB67: 0.0002232 | BC67: 0.0002744 | BD67: 0.0003233 | BE67: 0.0004162 | BF67: 0.0004815 | BG67: 0.0009337 | BH67: 0.0013488 | BI67: 0.0017557 | BJ67: 0.0021578 | BK67: 0.0025573 | BL67: 0.0029555 | BM67: 0.003353 | BN67: 0.00375 | BO67: 0.0041468 | BP67: 2e-07 | BQ67: 7e-07 | BR67: 2e-06 | BS67: 6.6e-06 | BT67: 1.29e-05 | BU67: 1.92e-05 | BV67: 2.57e-05 | BW67: 3.06e-05 | BX67: 3.75e-05 | BY67: 3.71e-05 | BZ67: -1.31e-05 | CA67: -7.23e-05 | CB67: -1.67e-05 | CC67: 5.5e-06 | CD67: 0.0010109 | CE67: -0.0003601 | CF67: -0.0003467
A68: tr.504 | B68: 7.2e-06 | C68: 2.79e-05 | D68: 7.55e-05 | E68: 0.0002069 | F68: 0.0003474 | G68: 0.000482 | H68: 0.0006085 | I68: 0.000736 | J68: 0.0009552 | K68: 0.0011386 | L68: 0.0018206 | M68: 0.0023067 | N68: -5.55e-05 | O68: -2.68e-05 | P68: 9.6e-05 | Q68: 0.0002232 | R68: 0.0003291 | S68: 0.0004101 | T68: 0.0004867 | U68: 0.000603 | V68: 0.0007237 | W68: 0.0014675 | X68: 0.0021164 | Y68: 0.002672 | Z68: 0.0031775 | AA68: 0.0036558 | AB68: 0.00412 | AC68: 0.0045775 | AD68: 0.0050322 | AE68: 0.0054859 | AF68: 2.75e-05 | AG68: 5.07e-05 | AH68: 0.0001796 | AI68: 0.0003329 | AJ68: 0.0004681 | AK68: 0.0005703 | AL68: 0.0006816 | AM68: 0.0008501 | AN68: 0.0009711 | AO68: 0.0014436 | AP68: 0.0018758 | AQ68: 0.0023655 | AR68: 0.0028336 | AS68: 0.0034879 | AT68: 0.0040118 | AU68: 0.0043597 | AV68: 0.0046576 | AW68: 0.0049215 | AX68: 3.31e-05 | AY68: 7.17e-05 | AZ68: 0.0001501 | BA68: 0.0002232 | BB68: 0.0002864 | BC68: 0.0003564 | BD68: 0.0004235 | BE68: 0.0005518 | BF68: 0.0006429 | BG68: 0.0012611 | BH68: 0.0018257 | BI68: 0.002378 | BJ68: 0.0029233 | BK68: 0.0034652 | BL68: 0.0040052 | BM68: 0.0045441 | BN68: 0.0050825 | BO68: 0.0056205 | BP68: 0 | BQ68: 2e-07 | BR68: 1.2e-06 | BS68: 6.2e-06 | BT68: 1.35e-05 | BU68: 2.12e-05 | BV68: 2.88e-05 | BW68: 3.46e-05 | BX68: 4.2e-05 | BY68: 3.99e-05 | BZ68: -2.97e-05 | CA68: -8.84e-05 | CB68: -2.17e-05 | CC68: 6.7e-06 | CD68: 0.0013455 | CE68: -0.0005122 | CF68: -0.0003945
A69: tr.630 | B69: 8.3e-06 | C69: 3.28e-05 | D69: 9.05e-05 | E69: 0.0002561 | F69: 0.0004393 | G69: 0.0006184 | H69: 0.0007887 | I69: 0.0009607 | J69: 0.0012585 | K69: 0.0015094 | L69: 0.0024576 | M69: 0.0031492 | N69: -9.58e-05 | O69: -6.87e-05 | P69: 8.39e-05 | Q69: 0.0002513 | R69: 0.0003929 | S69: 0.0005018 | T69: 0.0006034 | U69: 0.000757 | V69: 0.0009144 | W69: 0.0018795 | X69: 0.0027248 | Y69: 0.0034488 | Z69: 0.004107 | AA69: 0.0047294 | AB69: 0.0053334 | AC69: 0.0059285 | AD69: 0.0065199 | AE69: 0.0071099 | AF69: 2.77e-05 | AG69: 5.29e-05 | AH69: 0.0002084 | AI69: 0.0004019 | AJ69: 0.0005772 | AK69: 0.0007125 | AL69: 0.000859 | AM69: 0.001083 | AN69: 0.0012452 | AO69: 0.0018798 | AP69: 0.002459 | AQ69: 0.0031028 | AR69: 0.0037035 | AS69: 0.0045351 | AT69: 0.0051909 | AU69: 0.0056202 | AV69: 0.0059906 | AW69: 0.0063237 | AX69: 3.9e-05 | AY69: 8.53e-05 | AZ69: 0.0001817 | BA69: 0.0002744 | BB69: 0.0003564 | BC69: 0.0004475 | BD69: 0.0005355 | BE69: 0.0007045 | BF69: 0.0008257 | BG69: 0.0016365 | BH69: 0.0023738 | BI69: 0.0030937 | BJ69: 0.0038043 | BK69: 0.00451 | BL69: 0.0052133 | BM69: 0.0059152 | BN69: 0.0066164 | BO69: 0.0073171 | BP69: -2e-07 | BQ69: -5e-07 | BR69: 1e-07 | BS69: 5.2e-06 | BT69: 1.38e-05 | BU69: 2.3e-05 | BV69: 3.22e-05 | BW69: 3.9e-05 | BX69: 4.7e-05 | BY69: 4.3e-05 | BZ69: -4.94e-05 | CA69: -0.0001054 | CB69: -2.69e-05 | CC69: 7.9e-06 | CD69: 0.0017418 | CE69: -0.0007045 | CF69: -0.000443
A70: tr.756 | B70: 9.4e-06 | C70: 3.72e-05 | D70: 0.0001043 | E70: 0.0003021 | F70: 0.0005268 | G70: 0.00075 | H70: 0.0009639 | I70: 0.0011808 | J70: 0.0015584 | K70: 0.0018783 | L70: 0.0031035 | M70: 0.0040137 | N70: -0.0001367 | O70: -0.0001129 | P70: 6.88e-05 | Q70: 0.0002767 | R70: 0.0004544 | S70: 0.0005915 | T70: 0.000718 | U70: 0.000909 | V70: 0.0011029 | W70: 0.0022896 | X70: 0.0033325 | Y70: 0.0042258 | Z70: 0.0050375 | AA70: 0.0058046 | AB70: 0.0065488 | AC70: 0.007282 | AD70: 0.0080105 | AE70: 0.0087373 | AF70: 2.65e-05 | AG70: 5.38e-05 | AH70: 0.0002335 | AI70: 0.0004654 | AJ70: 0.0006801 | AK70: 0.0008484 | AL70: 0.00103 | AM70: 0.0013099 | AN70: 0.0015142 | AO70: 0.0023163 | AP70: 0.0030477 | AQ70: 0.0038497 | AR70: 0.0045864 | AS70: 0.0055998 | AT70: 0.0063922 | AU70: 0.0069079 | AV70: 0.0073562 | AW70: 0.0077645 | AX70: 4.46e-05 | AY70: 9.81e-05 | AZ70: 0.0002116 | BA70: 0.0003233 | BB70: 0.0004235 | BC70: 0.0005355 | BD70: 0.0006444 | BE70: 0.0008543 | BF70: 0.0010063 | BG70: 0.002013 | BH70: 0.0029258 | BI70: 0.0038157 | BJ70: 0.0046935 | BK70: 0.0055651 | BL70: 0.0064337 | BM70: 0.0073005 | BN70: 0.0081664 | BO70: 0.0090317 | BP70: -5e-07 | BQ70: -1.3e-06 | BR70: -1.2e-06 | BS70: 4e-06 | BT70: 1.37e-05 | BU70: 2.44e-05 | BV70: 3.51e-05 | BW70: 4.29e-05 | BX70: 5.16e-05 | BY70: 4.58e-05 | BZ70: -7.03e-05 | CA70: -0.0001206 | CB70: -3.16e-05 | CC70: 8.8e-06 | CD70: 0.0021474 | CE70: -0.0009127 | CF70: -0.0004808
A71: tr.1008 | B71: 1.13e-05 | C71: 4.54e-05 | D71: 0.0001297 | E71: 0.0003876 | F71: 0.0006912 | G71: 0.0009996 | H71: 0.0012992 | I71: 0.0016045 | J71: 0.002141 | K71: 0.0025995 | L71: 0.0043899 | M71: 0.0057532 | N71: -0.0002148 | O71: -0.0001991 | P71: 3.95e-05 | Q71: 0.0003284 | R71: 0.0005781 | S71: 0.0007711 | T71: 0.0009468 | U71: 0.0012114 | V71: 0.0014775 | W71: 0.0031057 | X71: 0.0045445 | Y71: 0.0057768 | Z71: 0.0068956 | AA71: 0.0079524 | AB71: 0.0089771 | AC71: 0.0099866 | AD71: 0.0109894 | AE71: 0.0119897 | AF71: 2.24e-05 | AG71: 5.46e-05 | AH71: 0.0002789 | AI71: 0.0005836 | AJ71: 0.0008743 | AK71: 0.0011071 | AL71: 0.0013575 | AM71: 0.001748 | AN71: 0.0020367 | AO71: 0.0031826 | AP71: 0.004227 | AQ71: 0.0053522 | AR71: 0.0063674 | AS71: 0.007754 | AT71: 0.0088313 | AU71: 0.0095323 | AV71: 0.0101501 | AW71: 0.0107226 | AX71: 5.54e-05 | AY71: 0.0001225 | AZ71: 0.0002686 | BA71: 0.0004162 | BB71: 0.0005518 | BC71: 0.0007045 | BD71: 0.0008543 | BE71: 0.0011456 | BF71: 0.0013599 | BG71: 0.0027643 | BH71: 0.0040344 | BI71: 0.0052697 | BJ71: 0.006487 | BK71: 0.0076953 | BL71: 0.0088992 | BM71: 0.0101006 | BN71: 0.0113007 | BO71: 0.0124999 | BP71: -1.1e-06 | BQ71: -2.9e-06 | BR71: -4e-06 | BS71: 1.1e-06 | BT71: 1.31e-05 | BU71: 2.69e-05 | BV71: 4.06e-05 | BW71: 5.07e-05 | BX71: 6.11e-05 | BY71: 5.18e-05 | BZ71: -0.0001123 | CA71: -0.000148 | CB71: -3.99e-05 | CC71: 1.04e-05 | CD71: 0.0029751 | CE71: -0.0013565 | CF71: -0.0005342
A72: tr.1260 | B72: 1.26e-05 | C72: 5.07e-05 | D72: 0.0001464 | E72: 0.0004458 | F72: 0.000806 | G72: 0.0011771 | H72: 0.0015407 | I72: 0.001913 | J72: 0.0025719 | K72: 0.0031388 | L72: 0.0053813 | M72: 0.0071148 | N72: -0.0002714 | O72: -0.000264 | P72: 1.74e-05 | Q72: 0.0003689 | R72: 0.000674 | S72: 0.0009097 | T72: 0.0011227 | U72: 0.0014428 | V72: 0.0017638 | W72: 0.0037324 | X72: 0.0054779 | Y72: 0.0069731 | Z72: 0.0083296 | AA72: 0.0096104 | AB72: 0.0108523 | AC72: 0.0120755 | AD72: 0.0132904 | AE72: 0.0145023 | AF72: 1.75e-05 | AG72: 5.32e-05 | AH72: 0.0003072 | AI72: 0.0006638 | AJ72: 0.0010103 | AK72: 0.0012912 | AL72: 0.0015929 | AM72: 0.0020672 | AN72: 0.0024216 | AO72: 0.0038443 | AP72: 0.0051426 | AQ72: 0.006526 | AR72: 0.0077619 | AS72: 0.0094435 | AT72: 0.0107491 | AU72: 0.0116028 | AV72: 0.0123631 | AW72: 0.0130754 | AX72: 6.27e-05 | AY72: 0.0001393 | AZ72: 0.0003081 | BA72: 0.0004815 | BB72: 0.0006429 | BC72: 0.0008257 | BD72: 0.0010063 | BE72: 0.0013599 | BF72: 0.0016236 | BG72: 0.0033437 | BH72: 0.0049002 | BI72: 0.0064122 | BJ72: 0.0079011 | BK72: 0.0093787 | BL72: 0.0108506 | BM72: 0.0123195 | BN72: 0.0137866 | BO72: 0.0152526 | BP72: -1.6e-06 | BQ72: -4.4e-06 | BR72: -6.4e-06 | BS72: -1.6e-06 | BT72: 1.21e-05 | BU72: 2.84e-05 | BV72: 4.45e-05 | BW72: 5.65e-05 | BX72: 6.85e-05 | BY72: 5.69e-05 | BZ72: -0.0001455 | CA72: -0.0001656 | CB72: -4.54e-05 | CC72: 1.11e-05 | CD72: 0.003636 | CE72: -0.0017311 | CF72: -0.0005398
A73: tr.2520 | B73: 2.26e-05 | C73: 9.28e-05 | D73: 0.0002741 | E73: 0.0008555 | F73: 0.0015749 | G73: 0.002333 | H73: 0.0030897 | I73: 0.0038741 | J73: 0.0052886 | K73: 0.0065288 | L73: 0.0115857 | M73: 0.0156143 | N73: -0.0005495 | O73: -0.0005637 | P73: 2.11e-05 | Q73: 0.0007756 | R73: 0.0014291 | S73: 0.0019298 | T73: 0.0023789 | U73: 0.0030507 | V73: 0.0037279 | W73: 0.0079381 | X73: 0.0116932 | Y73: 0.0149058 | Z73: 0.0178169 | AA73: 0.0205641 | AB73: 0.0232271 | AC73: 0.0258497 | AD73: 0.0284544 | AE73: 0.0310524 | AF73: 2.3e-05 | AG73: 7.67e-05 | AH73: 0.0005595 | AI73: 0.0012753 | AJ73: 0.0019835 | AK73: 0.0025644 | AL73: 0.0031873 | AM73: 0.0041827 | AN73: 0.0049466 | AO73: 0.0081512 | AP73: 0.0111055 | AQ73: 0.0141713 | AR73: 0.0168537 | AS73: 0.0204806 | AT73: 0.0233077 | AU73: 0.0251935 | AV73: 0.0269178 | AW73: 0.0285719 | AX73: 0.0001172 | AY73: 0.0002626 | AZ73: 0.0005899 | BA73: 0.0009337 | BB73: 0.0012611 | BC73: 0.0016365 | BD73: 0.002013 | BE73: 0.0027643 | BF73: 0.0033437 | BG73: 0.0071599 | BH73: 0.0106793 | BI73: 0.0141068 | BJ73: 0.0174823 | BK73: 0.0208309 | BL73: 0.0241655 | BM73: 0.0274924 | BN73: 0.0308147 | BO73: 0.0341341 | BP73: -4e-06 | BQ73: -1.12e-05 | BR73: -1.75e-05 | BS73: -1.04e-05 | BT73: 1.83e-05 | BU73: 5.43e-05 | BV73: 9.1e-05 | BW73: 0.0001197 | BX73: 0.0001523 | BY73: 0.0001324 | BZ73: -0.0003309 | CA73: -0.0003092 | CB73: -8.68e-05 | CC73: 1.62e-05 | CD73: 0.0081724 | CE73: -0.0041702 | CF73: -0.0006152
A74: tr.3780 | B74: 3.17e-05 | C74: 0.0001335 | D74: 0.000398 | E74: 0.0012425 | F74: 0.0022847 | G74: 0.0033846 | H74: 0.0044864 | I74: 0.0056332 | J74: 0.0077157 | K74: 0.0095563 | L74: 0.0171595 | M74: 0.0232813 | N74: -0.0007559 | O74: -0.0007759 | P74: 9.68e-05 | Q74: 0.0012193 | R74: 0.0021878 | S74: 0.002926 | T74: 0.0035879 | U74: 0.0045749 | V74: 0.0055752 | W74: 0.0118507 | X74: 0.0174609 | Y74: 0.0222576 | Z74: 0.0266021 | AA74: 0.0307016 | AB74: 0.0346753 | AC74: 0.0385888 | AD74: 0.0424756 | AE74: 0.0463524 | AF74: 6.46e-05 | AG74: 0.0001093 | AH74: 0.0008173 | AI74: 0.0018777 | AJ74: 0.0029168 | AK74: 0.0037634 | AL74: 0.0046712 | AM74: 0.0061259 | AN74: 0.0072533 | AO74: 0.0120909 | AP74: 0.0165812 | AQ74: 0.0211892 | AR74: 0.0251823 | AS74: 0.0305726 | AT74: 0.0347802 | AU74: 0.0376086 | AV74: 0.0402222 | AW74: 0.0427517 | AX74: 0.0001675 | AY74: 0.0003767 | AZ74: 0.00085 | BA74: 0.0013488 | BB74: 0.0018257 | BC74: 0.0023738 | BD74: 0.0029258 | BE74: 0.0040344 | BF74: 0.0049002 | BG74: 0.0106793 | BH74: 0.0161099 | BI74: 0.0214303 | BJ74: 0.0266793 | BK74: 0.0318884 | BL74: 0.0370755 | BM74: 0.0422499 | BN74: 0.0474165 | BO74: 0.0525781 | BP74: -5.8e-06 | BQ74: -1.63e-05 | BR74: -2.55e-05 | BS74: -1.38e-05 | BT74: 3.16e-05 | BU74: 8.9e-05 | BV74: 0.0001485 | BW74: 0.0001964 | BX74: 0.0002556 | BY74: 0.0002333 | BZ74: -0.0004935 | CA74: -0.0004526 | CB74: -0.0001233 | CC74: 1.94e-05 | CD74: 0.0125782 | CE74: -0.0065182 | CF74: -0.0006638
A75: tr.5040 | B75: 4.08e-05 | C75: 0.0001742 | D75: 0.0005222 | E75: 0.0016276 | F75: 0.0029857 | G75: 0.0044167 | H75: 0.0058511 | I75: 0.0073466 | J75: 0.0100709 | K75: 0.0124891 | L75: 0.0225501 | M75: 0.0306955 | N75: -0.0009467 | O75: -0.0009668 | P75: 0.0001894 | Q75: 0.0016715 | R75: 0.0029476 | S75: 0.0039171 | T75: 0.0047864 | U75: 0.0060789 | V75: 0.007393 | W75: 0.0156834 | X75: 0.0231071 | Y75: 0.0294526 | Z75: 0.0351989 | AA75: 0.0406207 | AB75: 0.0458763 | AC75: 0.0510522 | AD75: 0.056193 | AE75: 0.0613205 | AF75: 0.0001232 | AG75: 0.000145 | AH75: 0.0010792 | AI75: 0.0024841 | AJ75: 0.0038476 | AK75: 0.0049513 | AL75: 0.0061344 | AM75: 0.0080308 | AN75: 0.0095074 | AO75: 0.0159272 | AP75: 0.0219105 | AQ75: 0.0280141 | AR75: 0.0332742 | AS75: 0.0403694 | AT75: 0.0459099 | AU75: 0.0496475 | AV75: 0.0531198 | AW75: 0.0564956 | AX75: 0.0002169 | AY75: 0.0004887 | AZ75: 0.0011054 | BA75: 0.0017557 | BB75: 0.002378 | BC75: 0.0030937 | BD75: 0.0038157 | BE75: 0.0052697 | BF75: 0.0064122 | BG75: 0.0141068 | BH75: 0.0214303 | BI75: 0.0286397 | BJ75: 0.0357634 | BK75: 0.0428357 | BL75: 0.0498783 | BM75: 0.0569033 | BN75: 0.0639173 | BO75: 0.070924 | BP75: -7.5e-06 | BQ75: -2.09e-05 | BR75: -3.26e-05 | BS75: -1.56e-05 | BT75: 4.69e-05 | BU75: 0.0001261 | BV75: 0.000209 | BW75: 0.0002764 | BX75: 0.0003635 | BY75: 0.0003397 | BZ75: -0.0006527 | CA75: -0.0005957 | CB75: -0.0001556 | CC75: 2.21e-05 | CD75: 0.0169266 | CE75: -0.0088459 | CF75: -0.0007311
A76: tr.6300 | B76: 4.97e-05 | C76: 0.0002146 | D76: 0.0006456 | E76: 0.0020102 | F76: 0.0036805 | G76: 0.0054377 | H76: 0.0071989 | I76: 0.0090368 | J76: 0.0123907 | K76: 0.0153754 | L76: 0.0278492 | M76: 0.0379818 | N76: -0.0011324 | O76: -0.0011505 | P76: 0.000286 | Q76: 0.0021234 | R76: 0.0037036 | S76: 0.0049016 | T76: 0.0059756 | U76: 0.0075693 | V76: 0.0091926 | W76: 0.0194708 | X76: 0.0286845 | Y76: 0.0365591 | Z76: 0.0436893 | AA76: 0.0504166 | AB76: 0.0569379 | AC76: 0.0633603 | AD76: 0.0697392 | AE76: 0.0761017 | AF76: 0.0001875 | AG76: 0.0001816 | AH76: 0.0013408 | AI76: 0.0030886 | AJ76: 0.0047729 | AK76: 0.0061295 | AL76: 0.0075833 | AM76: 0.0099133 | AN76: 0.0117326 | AO76: 0.0197076 | AP76: 0.0271603 | AQ76: 0.0347353 | AR76: 0.0412414 | AS76: 0.0500132 | AT76: 0.0568637 | AU76: 0.061494 | AV76: 0.0658093 | AW76: 0.070016 | AX76: 0.0002656 | AY76: 0.0005995 | AZ76: 0.0013578 | BA76: 0.0021578 | BB76: 0.0029233 | BC76: 0.0038043 | BD76: 0.0046935 | BE76: 0.006487 | BF76: 0.0079011 | BG76: 0.0174823 | BH76: 0.0266793 | BI76: 0.0357634 | BJ76: 0.0447496 | BK76: 0.0536738 | BL76: 0.0625609 | BM76: 0.0714255 | BN76: 0.0802757 | BO76: 0.0891164 | BP76: -9.1e-06 | BQ76: -2.55e-05 | BR76: -3.95e-05 | BS76: -1.7e-05 | BT76: 6.26e-05 | BU76: 0.0001635 | BV76: 0.0002695 | BW76: 0.0003564 | BX76: 0.0004711 | BY76: 0.000446 | BZ76: -0.0008104 | CA76: -0.0007374 | CB76: -0.0001855 | CC76: 2.46e-05 | CD76: 0.0212216 | CE76: -0.011155 | CF76: -0.0008029
A77: tr.7560 | B77: 5.86e-05 | C77: 0.0002548 | D77: 0.0007686 | E77: 0.002391 | F77: 0.0043717 | G77: 0.0064526 | H77: 0.008538 | I77: 0.0107154 | J77: 0.0146933 | K77: 0.0182394 | L77: 0.0331041 | M77: 0.0452056 | N77: -0.0013165 | O77: -0.0013319 | P77: 0.0003833 | Q77: 0.0025737 | R77: 0.004456 | S77: 0.0058812 | T77: 0.0071587 | U77: 0.0090514 | V77: 0.0109815 | W77: 0.0232336 | X77: 0.0342248 | Y77: 0.0436178 | Z77: 0.0521222 | AA77: 0.0601462 | AB77: 0.0679243 | AC77: 0.0755846 | AD77: 0.0831931 | AE77: 0.090782 | AF77: 0.0002532 | AG77: 0.0002182 | AH77: 0.0016017 | AI77: 0.0036907 | AJ77: 0.0056939 | AK77: 0.0073016 | AL77: 0.009024 | AM77: 0.0117839 | AN77: 0.0139426 | AO77: 0.0234593 | AP77: 0.0323689 | AQ77: 0.0414031 | AR77: 0.0491448 | AS77: 0.0595795 | AT77: 0.067729 | AU77: 0.0732442 | AV77: 0.078395 | AW77: 0.0834248 | AX77: 0.0003141 | AY77: 0.0007096 | AZ77: 0.0016087 | BA77: 0.0025573 | BB77: 0.0034652 | BC77: 0.00451 | BD77: 0.0055651 | BE77: 0.0076953 | BF77: 0.0093787 | BG77: 0.0208309 | BH77: 0.0318884 | BI77: 0.0428357 | BJ77: 0.0536738 | BK77: 0.0644394 | BL77: 0.0751608 | BM77: 0.0858548 | BN77: 0.0965312 | BO77: 0.1071957 | BP77: -1.07e-05 | BQ77: -3e-05 | BR77: -4.63e-05 | BS77: -1.84e-05 | BT77: 7.83e-05 | BU77: 0.0002006 | BV77: 0.0003296 | BW77: 0.0004358 | BX77: 0.0005781 | BY77: 0.0005516 | BZ77: -0.0009672 | CA77: -0.0008781 | CB77: -0.0002143 | CC77: 2.71e-05 | CD77: 0.0254831 | CE77: -0.0134507 | CF77: -0.0008756
A78: tr.8820 | B78: 6.75e-05 | C78: 0.0002949 | D78: 0.0008911 | E78: 0.0027707 | F78: 0.0050607 | G78: 0.0074642 | H78: 0.0098725 | I78: 0.0123881 | J78: 0.0169873 | K78: 0.0210923 | L78: 0.038337 | M78: 0.0523982 | N78: -0.0015 | O78: -0.0015126 | P78: 0.0004802 | Q78: 0.0030223 | R78: 0.0052059 | S78: 0.0068574 | T78: 0.0083377 | U78: 0.0105283 | V78: 0.0127643 | W78: 0.0269826 | X78: 0.0397446 | Y78: 0.0506501 | Z78: 0.0605235 | AA78: 0.069839 | AB78: 0.0788692 | AC78: 0.0877627 | AD78: 0.0965961 | AE78: 0.1054068 | AF78: 0.000319 | AG78: 0.0002548 | AH78: 0.0018618 | AI78: 0.0042911 | AJ78: 0.0066121 | AK78: 0.0084699 | AL78: 0.0104599 | AM78: 0.013648 | AN78: 0.0161447 | AO78: 0.0271959 | AP78: 0.0375559 | AQ78: 0.0480429 | AR78: 0.0570149 | AS78: 0.0691056 | AT78: 0.0785485 | AU78: 0.0849447 | AV78: 0.0909269 | AW78: 0.0967761 | AX78: 0.0003624 | AY78: 0.0008194 | AZ78: 0.0018587 | BA78: 0.0029555 | BB78: 0.0040052 | BC78: 0.0052133 | BD78: 0.0064337 | BE78: 0.0088992 | BF78: 0.0108506 | BG78: 0.0241655 | BH78: 0.0370755 | BI78: 0.0498783 | BJ78: 0.0625609 | BK78: 0.0751608 | BL78: 0.0877092 | BM78: 0.1002254 | BN78: 0.1127207 | BO78: 0.1252019 | BP78: -1.23e-05 | BQ78: -3.45e-05 | BR78: -5.31e-05 | BS78: -1.97e-05 | BT78: 9.38e-05 | BU78: 0.0002376 | BV78: 0.0003895 | BW78: 0.0005149 | BX78: 0.0006845 | BY78: 0.0006566 | BZ78: -0.0011235 | CA78: -0.0010182 | CB78: -0.0002427 | CC78: 2.95e-05 | CD78: 0.0297252 | CE78: -0.0157375 | CF78: -0.0009486
A79: tr.10080 | B79: 7.64e-05 | C79: 0.0003349 | D79: 0.0010135 | E79: 0.0031497 | F79: 0.0057484 | G79: 0.008474 | H79: 0.0112046 | I79: 0.0140575 | J79: 0.0192768 | K79: 0.0239394 | L79: 0.0435583 | M79: 0.0595741 | N79: -0.0016833 | O79: -0.0016931 | P79: 0.0005766 | Q79: 0.0034698 | R79: 0.005954 | S79: 0.0078314 | T79: 0.009514 | U79: 0.0120021 | V79: 0.0145433 | W79: 0.0307236 | X79: 0.0452522 | Y79: 0.0576669 | Z79: 0.0689063 | AA79: 0.0795106 | AB79: 0.08979 | AC79: 0.099914 | AD79: 0.1099695 | AE79: 0.1199993 | AF79: 0.0003845 | AG79: 0.0002914 | AH79: 0.0021214 | AI79: 0.0048903 | AJ79: 0.0075285 | AK79: 0.0096359 | AL79: 0.011893 | AM79: 0.0155084 | AN79: 0.0183423 | AO79: 0.0309243 | AP79: 0.0427307 | AQ79: 0.0546669 | AR79: 0.0648665 | AS79: 0.0786093 | AT79: 0.0893427 | AU79: 0.0966177 | AV79: 0.1034294 | AW79: 0.1100957 | AX79: 0.0004106 | AY79: 0.000929 | AZ79: 0.0021083 | BA79: 0.003353 | BB79: 0.0045441 | BC79: 0.0059152 | BD79: 0.0073005 | BE79: 0.0101006 | BF79: 0.0123195 | BG79: 0.0274924 | BH79: 0.0422499 | BI79: 0.0569033 | BJ79: 0.0714255 | BK79: 0.0858548 | BL79: 0.1002254 | BM79: 0.114559 | BN79: 0.1288684 | BO79: 0.1431615 | BP79: -1.39e-05 | BQ79: -3.89e-05 | BR79: -5.98e-05 | BS79: -2.11e-05 | BT79: 0.0001094 | BU79: 0.0002744 | BV79: 0.0004491 | BW79: 0.0005936 | BX79: 0.0007904 | BY79: 0.0007612 | BZ79: -0.0012795 | CA79: -0.001158 | CB79: -0.000271 | CC79: 3.2e-05 | CD79: 0.0339557 | CE79: -0.0180184 | CF79: -0.0010221
A80: tr.11340 | B80: 8.53e-05 | C80: 0.0003749 | D80: 0.0011356 | E80: 0.0035282 | F80: 0.0064354 | G80: 0.0094826 | H80: 0.0125351 | I80: 0.0157251 | J80: 0.0215637 | K80: 0.0267832 | L80: 0.0487729 | M80: 0.0667404 | N80: -0.0018666 | O80: -0.0018737 | P80: 0.0006726 | Q80: 0.0039164 | R80: 0.0067008 | S80: 0.0088039 | T80: 0.0106887 | U80: 0.0134739 | V80: 0.0163198 | W80: 0.0344594 | X80: 0.0507523 | Y80: 0.0646741 | Z80: 0.0772776 | AA80: 0.0891688 | AB80: 0.1006958 | AC80: 0.1120486 | AD80: 0.1233246 | AE80: 0.1345717 | AF80: 0.0004498 | AG80: 0.0003278 | AH80: 0.0023807 | AI80: 0.0054886 | AJ80: 0.0084436 | AK80: 0.0108004 | AL80: 0.0133243 | AM80: 0.0173665 | AN80: 0.0205373 | AO80: 0.0346476 | AP80: 0.0478984 | AQ80: 0.0612817 | AR80: 0.0727072 | AS80: 0.0880999 | AT80: 0.1001221 | AU80: 0.1082747 | AV80: 0.1159145 | AW80: 0.1233966 | AX80: 0.0004588 | AY80: 0.0010384 | AZ80: 0.0023577 | BA80: 0.00375 | BB80: 0.0050825 | BC80: 0.0066164 | BD80: 0.0081664 | BE80: 0.0113007 | BF80: 0.0137866 | BG80: 0.0308147 | BH80: 0.0474165 | BI80: 0.0639173 | BJ80: 0.0802757 | BK80: 0.0965312 | BL80: 0.1127207 | BM80: 0.1288684 | BN80: 0.1449887 | BO80: 0.1610904 | BP80: -1.55e-05 | BQ80: -4.34e-05 | BR80: -6.66e-05 | BS80: -2.25e-05 | BT80: 0.0001248 | BU80: 0.0003111 | BV80: 0.0005086 | BW80: 0.0006722 | BX80: 0.0008961 | BY80: 0.0008654 | BZ80: -0.0014353 | CA80: -0.0012977 | CB80: -0.0002993 | CC80: 3.44e-05 | CD80: 0.0381789 | CE80: -0.0202954 | CF80: -0.001096
A81: tr.12600 | B81: 9.41e-05 | C81: 0.0004148 | D81: 0.0012577 | E81: 0.0039064 | F81: 0.0071218 | G81: 0.0104904 | H81: 0.0138647 | I81: 0.0173915 | J81: 0.023849 | K81: 0.0296249 | L81: 0.0539833 | M81: 0.0739006 | N81: -0.0020499 | O81: -0.0020543 | P81: 0.0007683 | Q81: 0.0043624 | R81: 0.0074468 | S81: 0.0097754 | T81: 0.0118621 | U81: 0.0149442 | V81: 0.0180946 | W81: 0.0381919 | X81: 0.0562475 | Y81: 0.071675 | Z81: 0.0856414 | AA81: 0.0988184 | AB81: 0.1115918 | AC81: 0.1241722 | AD81: 0.1366677 | AE81: 0.149131 | AF81: 0.0005149 | AG81: 0.0003643 | AH81: 0.0026397 | AI81: 0.0060864 | AJ81: 0.0093579 | AK81: 0.0119639 | AL81: 0.0147544 | AM81: 0.0192232 | AN81: 0.0227305 | AO81: 0.0383679 | AP81: 0.0530614 | AQ81: 0.0678905 | AR81: 0.0805408 | AS81: 0.0975821 | AT81: 0.1108919 | AU81: 0.1199214 | AV81: 0.1283886 | AW81: 0.1366857 | AX81: 0.000507 | AY81: 0.0011478 | AZ81: 0.0026069 | BA81: 0.0041468 | BB81: 0.0056205 | BC81: 0.0073171 | BD81: 0.0090317 | BE81: 0.0124999 | BF81: 0.0152526 | BG81: 0.0341341 | BH81: 0.0525781 | BI81: 0.070924 | BJ81: 0.0891164 | BK81: 0.1071957 | BL81: 0.1252019 | BM81: 0.1431615 | BN81: 0.1610904 | BO81: 0.1789984 | BP81: -1.71e-05 | BQ81: -4.79e-05 | BR81: -7.33e-05 | BS81: -2.39e-05 | BT81: 0.0001402 | BU81: 0.0003478 | BV81: 0.000568 | BW81: 0.0007507 | BX81: 0.0010017 | BY81: 0.0009695 | BZ81: -0.0015909 | CA81: -0.0014372 | CB81: -0.0003276 | CC81: 3.69e-05 | CD81: 0.0423974 | CE81: -0.0225695 | CF81: -0.0011702
A82: dolar.30 | B82: 1e-07 | C82: 2e-07 | D82: 5e-07 | E82: 6e-07 | F82: 3e-07 | G82: -3e-07 | H82: -1e-06 | I82: -1.6e-06 | J82: -2.7e-06 | K82: -3.7e-06 | L82: -1.04e-05 | M82: -1.86e-05 | N82: -1.5e-06 | O82: -1.2e-06 | P82: -3e-07 | Q82: 0 | R82: 3e-07 | S82: 8e-07 | T82: 1.3e-06 | U82: 1.8e-06 | V82: 1.8e-06 | W82: 3.2e-06 | X82: 9.6e-06 | Y82: 1.75e-05 | Z82: 2.52e-05 | AA82: 3.25e-05 | AB82: 3.94e-05 | AC82: 4.61e-05 | AD82: 5.27e-05 | AE82: 5.91e-05 | AF82: 1.3e-06 | AG82: 1.1e-06 | AH82: 8e-07 | AI82: 0 | AJ82: -8e-07 | AK82: -1.1e-06 | AL82: -1.1e-06 | AM82: -3e-07 | AN82: 1.1e-06 | AO82: 2.3e-06 | AP82: -5.1e-06 | AQ82: -1.13e-05 | AR82: -1.32e-05 | AS82: -1.41e-05 | AT82: -1.52e-05 | AU82: -1.79e-05 | AV82: -2.29e-05 | AW82: -2.96e-05 | AX82: 1e-07 | AY82: 1e-07 | AZ82: 2e-07 | BA82: 2e-07 | BB82: 0 | BC82: -2e-07 | BD82: -5e-07 | BE82: -1.1e-06 | BF82: -1.6e-06 | BG82: -4e-06 | BH82: -5.8e-06 | BI82: -7.5e-06 | BJ82: -9.1e-06 | BK82: -1.07e-05 | BL82: -1.23e-05 | BM82: -1.39e-05 | BN82: -1.55e-05 | BO82: -1.71e-05 | BP82: 5e-07 | BQ82: 1.6e-06 | BR82: 2.7e-06 | BS82: 4e-06 | BT82: 4.1e-06 | BU82: 3.7e-06 | BV82: 3.5e-06 | BW82: 3.4e-06 | BX82: 4.1e-06 | BY82: 5.5e-06 | BZ82: 1.06e-05 | CA82: 1.8e-06 | CB82: 4e-07 | CC82: 0 | CD82: 1.1e-06 | CE82: -6.6e-06 | CF82: -2.32e-05
A83: dolar.90 | B83: 2e-07 | C83: 7e-07 | D83: 1.4e-06 | E83: 1.8e-06 | F83: 9e-07 | G83: -7e-07 | H83: -2.5e-06 | I83: -4.3e-06 | J83: -7.2e-06 | K83: -9.9e-06 | L83: -2.83e-05 | M83: -5.09e-05 | N83: -3.7e-06 | O83: -3e-06 | P83: -9e-07 | Q83: -4e-07 | R83: 7e-07 | S83: 2.2e-06 | T83: 3.8e-06 | U83: 5.7e-06 | V83: 6.3e-06 | W83: 1.1e-05 | X83: 2.9e-05 | Y83: 5.05e-05 | Z83: 7.14e-05 | AA83: 9.11e-05 | AB83: 0.0001098 | AC83: 0.000128 | AD83: 0.0001458 | AE83: 0.0001633 | AF83: 4e-06 | AG83: 3.2e-06 | AH83: 2.5e-06 | AI83: 5e-07 | AJ83: -1.4e-06 | AK83: -2.1e-06 | AL83: -2e-06 | AM83: 7e-07 | AN83: 4.6e-06 | AO83: 7.7e-06 | AP83: -1.47e-05 | AQ83: -3.24e-05 | AR83: -3.74e-05 | AS83: -3.9e-05 | AT83: -4.14e-05 | AU83: -4.93e-05 | AV83: -6.43e-05 | AW83: -8.48e-05 | AX83: 2e-07 | AY83: 5e-07 | AZ83: 8e-07 | BA83: 7e-07 | BB83: 2e-07 | BC83: -5e-07 | BD83: -1.3e-06 | BE83: -2.9e-06 | BF83: -4.4e-06 | BG83: -1.12e-05 | BH83: -1.63e-05 | BI83: -2.09e-05 | BJ83: -2.55e-05 | BK83: -3e-05 | BL83: -3.45e-05 | BM83: -3.89e-05 | BN83: -4.34e-05 | BO83: -4.79e-05 | BP83: 1.6e-06 | BQ83: 4.5e-06 | BR83: 8e-06 | BS83: 1.21e-05 | BT83: 1.28e-05 | BU83: 1.21e-05 | BV83: 1.19e-05 | BW83: 1.19e-05 | BX83: 1.44e-05 | BY83: 1.85e-05 | BZ83: 3.38e-05 | CA83: 4.9e-06 | CB83: 9e-07 | CC83: 1e-07 | CD83: 8.6e-06 | CE83: -2.67e-05 | CF83: -6.99e-05
A84: dolar.180 | B84: 3e-07 | C84: 1.3e-06 | D84: 2.6e-06 | E84: 3.6e-06 | F84: 2.2e-06 | G84: -5e-07 | H84: -3.5e-06 | I84: -6.4e-06 | J84: -1.12e-05 | K84: -1.54e-05 | L84: -4.4e-05 | M84: -8.01e-05 | N84: -4.9e-06 | O84: -4.2e-06 | P84: -2.1e-06 | Q84: -2e-06 | R84: 1e-07 | S84: 3.5e-06 | T84: 7e-06 | U84: 1.19e-05 | V84: 1.43e-05 | W84: 2.63e-05 | X84: 5.72e-05 | Y84: 9.28e-05 | Z84: 0.0001268 | AA84: 0.0001587 | AB84: 0.0001891 | AC84: 0.0002185 | AD84: 0.0002474 | AE84: 0.0002758 | AF84: 8.4e-06 | AG84: 6.2e-06 | AH84: 5e-06 | AI84: 2.4e-06 | AJ84: 3e-07 | AK84: -3e-07 | AL84: 8e-07 | AM84: 6.4e-06 | AN84: 1.36e-05 | AO84: 1.78e-05 | AP84: -2.42e-05 | AQ84: -5.58e-05 | AR84: -6.2e-05 | AS84: -6.06e-05 | AT84: -6.15e-05 | AU84: -7.45e-05 | AV84: -0.0001022 | AW84: -0.0001415 | AX84: 5e-07 | AY84: 1.2e-06 | AZ84: 2e-06 | BA84: 2e-06 | BB84: 1.2e-06 | BC84: 1e-07 | BD84: -1.2e-06 | BE84: -4e-06 | BF84: -6.4e-06 | BG84: -1.75e-05 | BH84: -2.55e-05 | BI84: -3.26e-05 | BJ84: -3.95e-05 | BK84: -4.63e-05 | BL84: -5.31e-05 | BM84: -5.98e-05 | BN84: -6.66e-05 | BO84: -7.33e-05 | BP84: 2.7e-06 | BQ84: 8e-06 | BR84: 1.47e-05 | BS84: 2.33e-05 | BT84: 2.61e-05 | BU84: 2.63e-05 | BV84: 2.72e-05 | BW84: 2.81e-05 | BX84: 3.4e-05 | BY84: 4.22e-05 | BZ84: 7.05e-05 | CA84: 7.7e-06 | CB84: 1.3e-06 | CC84: 1e-07 | CD84: 3.4e-05 | CE84: -7.3e-05 | CF84: -0.0001357
A85: dolar.360 | B85: 6e-07 | C85: 2.3e-06 | D85: 4.8e-06 | E85: 7.5e-06 | F85: 6.7e-06 | G85: 3.8e-06 | H85: 2e-07 | I85: -3.1e-06 | J85: -8.1e-06 | K85: -1.13e-05 | L85: -3.18e-05 | M85: -6.13e-05 | N85: -1e-06 | O85: -2.3e-06 | P85: -6.1e-06 | Q85: -9e-06 | R85: -5.1e-06 | S85: 2.7e-06 | T85: 1.14e-05 | U85: 2.5e-05 | V85: 3.4e-05 | W85: 7.05e-05 | X85: 0.0001173 | Y85: 0.0001634 | Z85: 0.0002051 | AA85: 0.0002433 | AB85: 0.0002795 | AC85: 0.0003146 | AD85: 0.0003492 | AE85: 0.0003834 | AF85: 1.73e-05 | AG85: 1.16e-05 | AH85: 1.03e-05 | AI85: 1.04e-05 | AJ85: 1.19e-05 | AK85: 1.47e-05 | AL85: 1.97e-05 | AM85: 3.2e-05 | AN85: 4.44e-05 | AO85: 4.89e-05 | AP85: -1.81e-05 | AQ85: -6.11e-05 | AR85: -5.57e-05 | AS85: -3.03e-05 | AT85: -1.08e-05 | AU85: -1.81e-05 | AV85: -5.52e-05 | AW85: -0.0001158 | AX85: 1.5e-06 | AY85: 3.3e-06 | AZ85: 5.8e-06 | BA85: 6.6e-06 | BB85: 6.2e-06 | BC85: 5.2e-06 | BD85: 4e-06 | BE85: 1.1e-06 | BF85: -1.6e-06 | BG85: -1.04e-05 | BH85: -1.38e-05 | BI85: -1.56e-05 | BJ85: -1.7e-05 | BK85: -1.84e-05 | BL85: -1.97e-05 | BM85: -2.11e-05 | BN85: -2.25e-05 | BO85: -2.39e-05 | BP85: 4e-06 | BQ85: 1.21e-05 | BR85: 2.33e-05 | BS85: 4.16e-05 | BT85: 5.2e-05 | BU85: 5.79e-05 | BV85: 6.46e-05 | BW85: 7.02e-05 | BX85: 8.66e-05 | BY85: 0.0001035 | BZ85: 0.0001474 | CA85: 6.6e-06 | CB85: 2e-07 | CC85: 0 | CD85: 0.0001325 | CE85: -0.0002113 | CF85: -0.0002528
A86: dolar.540 | B86: 9e-07 | C86: 3.2e-06 | D86: 6.7e-06 | E86: 1.15e-05 | F86: 1.27e-05 | G86: 1.15e-05 | H86: 9.5e-06 | I86: 7.8e-06 | J86: 6.5e-06 | K86: 8.2e-06 | L86: 2.59e-05 | M86: 3.98e-05 | N86: 7.5e-06 | O86: 2.6e-06 | P86: -1.16e-05 | Q86: -1.92e-05 | R86: -1.39e-05 | S86: -1.6e-06 | T86: 1.22e-05 | U86: 3.58e-05 | V86: 5.37e-05 | W86: 0.0001258 | X86: 0.0001835 | Y86: 0.0002274 | Z86: 0.0002626 | AA86: 0.0002932 | AB86: 0.0003218 | AC86: 0.0003496 | AD86: 0.0003772 | AE86: 0.0004048 | AF86: 2.42e-05 | AG86: 1.56e-05 | AH86: 1.52e-05 | AI86: 2.13e-05 | AJ86: 2.99e-05 | AK86: 3.85e-05 | AL86: 4.89e-05 | AM86: 6.82e-05 | AN86: 8.4e-05 | AO86: 9.19e-05 | AP86: 2.34e-05 | AQ86: -8.9e-06 | AR86: 2.31e-05 | AS86: 9.23e-05 | AT86: 0.0001543 | AU86: 0.000177 | AV86: 0.000159 | AW86: 0.000108 | AX86: 2.8e-06 | AY86: 5.8e-06 | AZ86: 1.05e-05 | BA86: 1.29e-05 | BB86: 1.35e-05 | BC86: 1.38e-05 | BD86: 1.37e-05 | BE86: 1.31e-05 | BF86: 1.21e-05 | BG86: 1.83e-05 | BH86: 3.16e-05 | BI86: 4.69e-05 | BJ86: 6.26e-05 | BK86: 7.83e-05 | BL86: 9.38e-05 | BM86: 0.0001094 | BN86: 0.0001248 | BO86: 0.0001402 | BP86: 4.1e-06 | BQ86: 1.28e-05 | BR86: 2.61e-05 | BS86: 5.2e-05 | BT86: 7.16e-05 | BU86: 8.61e-05 | BV86: 0.0001017 | BW86: 0.0001146 | BX86: 0.0001455 | BY86: 0.000173 | BZ86: 0.0002211 | CA86: -5e-07 | CB86: -2.7e-06 | CC86: -2e-07 | CD86: 0.0002594 | CE86: -0.0003612 | CF86: -0.0003417
A87: dolar.720 | B87: 1.1e-06 | C87: 4e-06 | D87: 8.5e-06 | E87: 1.54e-05 | F87: 1.89e-05 | G87: 2.01e-05 | H87: 2.04e-05 | I87: 2.11e-05 | J87: 2.49e-05 | K87: 3.29e-05 | L87: 9.9e-05 | M87: 0.0001697 | N87: 1.56e-05 | O87: 7.1e-06 | P87: -1.82e-05 | Q87: -3.07e-05 | R87: -2.44e-05 | S87: -8.2e-06 | T87: 1.03e-05 | U87: 4.36e-05 | V87: 7.12e-05 | W87: 0.0001861 | X87: 0.000259 | Y87: 0.0003018 | Z87: 0.0003303 | AA87: 0.0003528 | AB87: 0.0003732 | AC87: 0.0003931 | AD87: 0.0004131 | AE87: 0.0004334 | AF87: 2.96e-05 | AG87: 1.89e-05 | AH87: 1.95e-05 | AI87: 3.21e-05 | AJ87: 4.86e-05 | AK87: 6.36e-05 | AL87: 8e-05 | AM87: 0.0001064 | AN87: 0.0001252 | AO87: 0.0001427 | AP87: 8.76e-05 | AQ87: 7.77e-05 | AR87: 0.0001441 | AS87: 0.000269 | AT87: 0.0003889 | AU87: 0.0004604 | AV87: 0.0004844 | AW87: 0.0004679 | AX87: 4.1e-06 | AY87: 8.4e-06 | AZ87: 1.52e-05 | BA87: 1.92e-05 | BB87: 2.12e-05 | BC87: 2.3e-05 | BD87: 2.44e-05 | BE87: 2.69e-05 | BF87: 2.84e-05 | BG87: 5.43e-05 | BH87: 8.9e-05 | BI87: 0.0001261 | BJ87: 0.0001635 | BK87: 0.0002006 | BL87: 0.0002376 | BM87: 0.0002744 | BN87: 0.0003111 | BO87: 0.0003478 | BP87: 3.7e-06 | BQ87: 1.21e-05 | BR87: 2.63e-05 | BS87: 5.79e-05 | BT87: 8.61e-05 | BU87: 0.0001098 | BV87: 0.0001351 | BW87: 0.0001567 | BX87: 0.0002055 | BY87: 0.000247 | BZ87: 0.0003009 | CA87: -8.8e-06 | CB87: -6.3e-06 | CC87: -2e-07 | CD87: 0.0003809 | CE87: -0.0004925 | CF87: -0.0004183
A88: dolar.900 | B88: 1.4e-06 | C88: 5e-06 | D88: 1.07e-05 | E88: 1.96e-05 | F88: 2.52e-05 | G88: 2.87e-05 | H88: 3.14e-05 | I88: 3.46e-05 | J88: 4.38e-05 | K88: 5.81e-05 | L88: 0.0001732 | M88: 0.0003023 | N88: 2.2e-05 | O88: 1.01e-05 | P88: -2.69e-05 | Q88: -4.47e-05 | R88: -3.74e-05 | S88: -1.71e-05 | T88: 6.5e-06 | U88: 5.09e-05 | V88: 8.94e-05 | W88: 0.0002573 | X88: 0.0003559 | Y88: 0.0004057 | Z88: 0.000434 | AA88: 0.0004539 | AB88: 0.0004711 | AC88: 0.0004879 | AD88: 0.0005051 | AE88: 0.0005229 | AF88: 3.62e-05 | AG88: 2.29e-05 | AH88: 2.41e-05 | AI88: 4.32e-05 | AJ88: 6.81e-05 | AK88: 9e-05 | AL88: 0.0001131 | AM88: 0.0001481 | AN88: 0.0001714 | AO88: 0.000206 | AP88: 0.0001695 | AQ88: 0.0001868 | AR88: 0.0002947 | AS88: 0.0004896 | AT88: 0.0006856 | AU88: 0.0008246 | AV88: 0.0009096 | AW88: 0.000946 | AX88: 5.5e-06 | AY88: 1.11e-05 | AZ88: 2e-05 | BA88: 2.57e-05 | BB88: 2.88e-05 | BC88: 3.22e-05 | BD88: 3.51e-05 | BE88: 4.06e-05 | BF88: 4.45e-05 | BG88: 9.1e-05 | BH88: 0.0001485 | BI88: 0.000209 | BJ88: 0.0002695 | BK88: 0.0003296 | BL88: 0.0003895 | BM88: 0.0004491 | BN88: 0.0005086 | BO88: 0.000568 | BP88: 3.5e-06 | BQ88: 1.19e-05 | BR88: 2.72e-05 | BS88: 6.46e-05 | BT88: 0.0001017 | BU88: 0.0001351 | BV88: 0.0001715 | BW88: 0.0002038 | BX88: 0.000276 | BY88: 0.000338 | BZ88: 0.0004128 | CA88: -1.64e-05 | CB88: -1.04e-05 | CC88: -3e-07 | CD88: 0.0005015 | CE88: -0.0006235 | CF88: -0.0005142
A89: dolar.1080 | B89: 1.8e-06 | C89: 6.1e-06 | D89: 1.28e-05 | E89: 2.28e-05 | F89: 2.96e-05 | G89: 3.5e-05 | H89: 3.96e-05 | I89: 4.5e-05 | J89: 5.87e-05 | K89: 7.8e-05 | L89: 0.0002304 | M89: 0.000404 | N89: 2.56e-05 | O89: 1.08e-05 | P89: -3.67e-05 | Q89: -5.94e-05 | R89: -5.15e-05 | S89: -2.75e-05 | T89: 6e-07 | U89: 5.5e-05 | V89: 0.0001038 | W89: 0.0003256 | X89: 0.0004555 | Y89: 0.0005184 | Z89: 0.000552 | AA89: 0.0005741 | AB89: 0.0005926 | AC89: 0.0006106 | AD89: 0.0006291 | AE89: 0.0006484 | AF89: 4.29e-05 | AG89: 2.69e-05 | AH89: 2.81e-05 | AI89: 5.24e-05 | AJ89: 8.43e-05 | AK89: 0.0001125 | AL89: 0.0001418 | AM89: 0.0001852 | AN89: 0.0002138 | AO89: 0.0002716 | AP89: 0.0002575 | AQ89: 0.0003033 | AR89: 0.000454 | AS89: 0.0007236 | AT89: 0.0010042 | AU89: 0.0012222 | AV89: 0.0013815 | AW89: 0.0014851 | AX89: 6.8e-06 | AY89: 1.34e-05 | AZ89: 2.38e-05 | BA89: 3.06e-05 | BB89: 3.46e-05 | BC89: 3.9e-05 | BD89: 4.29e-05 | BE89: 5.07e-05 | BF89: 5.65e-05 | BG89: 0.0001197 | BH89: 0.0001964 | BI89: 0.0002764 | BJ89: 0.0003564 | BK89: 0.0004358 | BL89: 0.0005149 | BM89: 0.0005936 | BN89: 0.0006722 | BO89: 0.0007507 | BP89: 3.4e-06 | BQ89: 1.19e-05 | BR89: 2.81e-05 | BS89: 7.02e-05 | BT89: 0.0001146 | BU89: 0.0001567 | BV89: 0.0002038 | BW89: 0.0002469 | BX89: 0.000345 | BY89: 0.0004319 | BZ89: 0.0005475 | CA89: -2.15e-05 | CB89: -1.41e-05 | CC89: -3e-07 | CD89: 0.0005948 | CE89: -0.0007278 | CF89: -0.0006103
A90: dolar.1440 | B90: 2.6e-06 | C90: 8.6e-06 | D90: 1.71e-05 | E90: 2.68e-05 | F90: 3.33e-05 | G90: 4e-05 | H90: 4.72e-05 | I90: 5.56e-05 | J90: 7.48e-05 | K90: 9.9e-05 | L90: 0.0002784 | M90: 0.0004807 | N90: 2.68e-05 | O90: 6.9e-06 | P90: -6.2e-05 | Q90: -9.58e-05 | R90: -8.69e-05 | S90: -5.51e-05 | T90: -1.72e-05 | U90: 5.89e-05 | V90: 0.0001295 | W90: 0.0004714 | X90: 0.0006841 | Y90: 0.0007912 | Z90: 0.0008496 | AA90: 0.0008884 | AB90: 0.0009203 | AC90: 0.0009507 | AD90: 0.0009817 | AE90: 0.0010137 | AF90: 6.34e-05 | AG90: 3.81e-05 | AH90: 3.69e-05 | AI90: 6.94e-05 | AJ90: 0.000114 | AK90: 0.0001542 | AL90: 0.0001961 | AM90: 0.0002597 | AN90: 0.000304 | AO90: 0.000429 | AP90: 0.0004589 | AQ90: 0.0005607 | AR90: 0.0008097 | AS90: 0.0012608 | AT90: 0.0017537 | AU90: 0.0021734 | AV90: 0.0025231 | AW90: 0.0027982 | AX90: 9e-06 | AY90: 1.73e-05 | AZ90: 2.98e-05 | BA90: 3.75e-05 | BB90: 4.2e-05 | BC90: 4.7e-05 | BD90: 5.16e-05 | BE90: 6.11e-05 | BF90: 6.85e-05 | BG90: 0.0001523 | BH90: 0.0002556 | BI90: 0.0003635 | BJ90: 0.0004711 | BK90: 0.0005781 | BL90: 0.0006845 | BM90: 0.0007904 | BN90: 0.0008961 | BO90: 0.0010017 | BP90: 4.1e-06 | BQ90: 1.44e-05 | BR90: 3.4e-05 | BS90: 8.66e-05 | BT90: 0.0001455 | BU90: 0.0002055 | BV90: 0.000276 | BW90: 0.000345 | BX90: 0.0005092 | BY90: 0.0006675 | BZ90: 0.0009624 | CA90: -2.39e-05 | CB90: -2.08e-05 | CC90: -5e-07 | CD90: 0.0007539 | CE90: -0.0009383 | CF90: -0.0008651
A91: dolar.1800 | B91: 3.4e-06 | C91: 1.07e-05 | D91: 1.94e-05 | E91: 2.34e-05 | F91: 2.4e-05 | G91: 2.83e-05 | H91: 3.5e-05 | I91: 4.32e-05 | J91: 6.04e-05 | K91: 7.85e-05 | L91: 0.0001756 | M91: 0.0002643 | N91: 2.1e-05 | O91: -2.8e-06 | P91: -8.95e-05 | Q91: -0.0001334 | R91: -0.0001248 | S91: -8.72e-05 | T91: -4.18e-05 | U91: 5.15e-05 | V91: 0.0001389 | W91: 0.0005778 | X91: 0.000868 | Y91: 0.0010211 | Z91: 0.0011069 | AA91: 0.0011638 | AB91: 0.0012099 | AC91: 0.001253 | AD91: 0.0012962 | AE91: 0.0013405 | AF91: 9.06e-05 | AG91: 5.17e-05 | AH91: 4.54e-05 | AI91: 8.08e-05 | AJ91: 0.0001316 | AK91: 0.000179 | AL91: 0.0002301 | AM91: 0.0003128 | AN91: 0.0003761 | AO91: 0.0005821 | AP91: 0.000645 | AQ91: 0.0007873 | AR91: 0.0011266 | AS91: 0.0017576 | AT91: 0.00247 | AU91: 0.0031032 | AV91: 0.0036556 | AW91: 0.0041132 | AX91: 1.04e-05 | AY91: 1.91e-05 | AZ91: 3.09e-05 | BA91: 3.71e-05 | BB91: 3.99e-05 | BC91: 4.3e-05 | BD91: 4.58e-05 | BE91: 5.18e-05 | BF91: 5.69e-05 | BG91: 0.0001324 | BH91: 0.0002333 | BI91: 0.0003397 | BJ91: 0.000446 | BK91: 0.0005516 | BL91: 0.0006566 | BM91: 0.0007612 | BN91: 0.0008654 | BO91: 0.0009695 | BP91: 5.5e-06 | BQ91: 1.85e-05 | BR91: 4.22e-05 | BS91: 0.0001035 | BT91: 0.000173 | BU91: 0.000247 | BV91: 0.000338 | BW91: 0.0004319 | BX91: 0.0006675 | BY91: 0.0009133 | BZ91: 0.0015325 | CA91: -1.3e-05 | CB91: -2.38e-05 | CC91: -1e-06 | CD91: 0.0008368 | CE91: -0.0011038 | CF91: -0.001137
A92: dolar.3600 | B92: 2.9e-06 | C92: 7.3e-06 | D92: -6.2e-06 | E92: -7.84e-05 | F92: -0.0001432 | G92: -0.0001793 | H92: -0.0001988 | I92: -0.0002182 | J92: -0.0002784 | K92: -0.0003969 | L92: -0.0018884 | M92: -0.0040214 | N92: -2.42e-05 | O92: -7.83e-05 | P92: -0.0001894 | Q92: -0.0002452 | R92: -0.000242 | S92: -0.0002052 | T92: -0.0001634 | U92: -7.85e-05 | V92: -9.9e-06 | W92: 0.0002878 | X92: 0.0004856 | Y92: 0.0005568 | Z92: 0.0005441 | AA92: 0.0004869 | AB92: 0.0004099 | AC92: 0.0003259 | AD92: 0.0002408 | AE92: 0.0001571 | AF92: 0.0002218 | AG92: 0.0001127 | AH92: 8.67e-05 | AI92: 8.83e-05 | AJ92: 9.52e-05 | AK92: 0.0001103 | AL92: 0.0001438 | AM92: 0.0002452 | AN92: 0.0003715 | AO92: 0.0008272 | AP92: 0.0007894 | AQ92: 0.0007894 | AR92: 0.0011163 | AS92: 0.0018868 | AT92: 0.002842 | AU92: 0.0037348 | AV92: 0.0045195 | AW92: 0.0051619 | AX92: 8.1e-06 | AY92: 8e-06 | AZ92: 3e-07 | BA92: -1.31e-05 | BB92: -2.97e-05 | BC92: -4.94e-05 | BD92: -7.03e-05 | BE92: -0.0001123 | BF92: -0.0001455 | BG92: -0.0003309 | BH92: -0.0004935 | BI92: -0.0006527 | BJ92: -0.0008104 | BK92: -0.0009672 | BL92: -0.0011235 | BM92: -0.0012795 | BN92: -0.0014353 | BO92: -0.0015909 | BP92: 1.06e-05 | BQ92: 3.38e-05 | BR92: 7.05e-05 | BS92: 0.0001474 | BT92: 0.0002211 | BU92: 0.0003009 | BV92: 0.0004128 | BW92: 0.0005475 | BX92: 0.0009624 | BY92: 0.0015325 | BZ92: 0.0046921 | CA92: 0.000133 | CB92: 1.56e-05 | CC92: -9.2e-06 | CD92: 0.0009884 | CE92: -0.0015477 | CF92: -0.0020679
A93: igpm | B93: -5.7e-06 | C93: -2.14e-05 | D93: -5.26e-05 | E93: -0.0001137 | F93: -0.0001519 | G93: -0.0001739 | H93: -0.0001892 | I93: -0.0002053 | J93: -0.000234 | K93: -0.0002635 | L93: -0.0004573 | M93: -0.0006906 | N93: -0.0001154 | O93: -0.0001554 | P93: -0.000187 | Q93: -0.0002111 | R93: -0.0002388 | S93: -0.0002637 | T93: -0.0002926 | U93: -0.0003336 | V93: -0.0003768 | W93: -0.0006408 | X93: -0.0008541 | Y93: -0.0010231 | Z93: -0.00117 | AA93: -0.0013073 | AB93: -0.001441 | AC93: -0.0015738 | AD93: -0.0017067 | AE93: -0.0018402 | AF93: 2.39e-05 | AG93: 1e-06 | AH93: -6.75e-05 | AI93: -0.0001387 | AJ93: -0.0001873 | AK93: -0.0002097 | AL93: -0.000226 | AM93: -0.0002255 | AN93: -0.0002079 | AO93: -0.0002135 | AP93: -0.0003557 | AQ93: -0.0005071 | AR93: -0.0006052 | AS93: -0.0006974 | AT93: -0.0007331 | AU93: -0.0007259 | AV93: -0.000712 | AW93: -0.0006994 | AX93: -1.27e-05 | AY93: -2.63e-05 | AZ93: -5.13e-05 | BA93: -7.23e-05 | BB93: -8.84e-05 | BC93: -0.0001054 | BD93: -0.0001206 | BE93: -0.000148 | BF93: -0.0001656 | BG93: -0.0003092 | BH93: -0.0004526 | BI93: -0.0005957 | BJ93: -0.0007374 | BK93: -0.0008781 | BL93: -0.0010182 | BM93: -0.001158 | BN93: -0.0012977 | BO93: -0.0014372 | BP93: 1.8e-06 | BQ93: 4.9e-06 | BR93: 7.7e-06 | BS93: 6.6e-06 | BT93: -5e-07 | BU93: -8.8e-06 | BV93: -1.64e-05 | BW93: -2.15e-05 | BX93: -2.39e-05 | BY93: -1.3e-05 | BZ93: 0.000133 | CA93: 0.0005462 | CB93: 8.95e-05 | CC93: -4.2e-06 | CD93: -0.0008968 | CE93: -0.0001357 | CF93: 0.0006967
A94: ipca | B94: -1.5e-06 | C94: -6e-06 | D94: -1.53e-05 | E94: -3.25e-05 | F94: -4.51e-05 | G94: -5.54e-05 | H94: -6.5e-05 | I94: -7.52e-05 | J94: -9.35e-05 | K94: -0.0001107 | L94: -0.0002136 | M94: -0.0003356 | N94: -2.51e-05 | O94: -3.07e-05 | P94: -2.45e-05 | Q94: -1.61e-05 | R94: -1.11e-05 | S94: -9.3e-06 | T94: -9.9e-06 | U94: -1.5e-05 | V94: -2.29e-05 | W94: -7.16e-05 | X94: -9.83e-05 | Y94: -0.000106 | Z94: -0.0001045 | AA94: -9.93e-05 | AB94: -9.29e-05 | AC94: -8.62e-05 | AD94: -7.96e-05 | AE94: -7.34e-05 | AF94: -3e-06 | AG94: -1.76e-05 | AH94: -3.25e-05 | AI94: -4.32e-05 | AJ94: -5.22e-05 | AK94: -5.73e-05 | AL94: -6.18e-05 | AM94: -6.02e-05 | AN94: -5e-05 | AO94: 6.9e-06 | AP94: 1.44e-05 | AQ94: 1.3e-06 | AR94: 6e-07 | AS94: 2.41e-05 | AT94: 6.7e-05 | AU94: 0.0001152 | AV94: 0.0001605 | AW94: 0.0001988 | AX94: -1.6e-06 | AY94: -4.4e-06 | AZ94: -1.06e-05 | BA94: -1.67e-05 | BB94: -2.17e-05 | BC94: -2.69e-05 | BD94: -3.16e-05 | BE94: -3.99e-05 | BF94: -4.54e-05 | BG94: -8.68e-05 | BH94: -0.0001233 | BI94: -0.0001556 | BJ94: -0.0001855 | BK94: -0.0002143 | BL94: -0.0002427 | BM94: -0.000271 | BN94: -0.0002993 | BO94: -0.0003276 | BP94: 4e-07 | BQ94: 9e-07 | BR94: 1.3e-06 | BS94: 2e-07 | BT94: -2.7e-06 | BU94: -6.3e-06 | BV94: -1.04e-05 | BW94: -1.41e-05 | BX94: -2.08e-05 | BY94: -2.38e-05 | BZ94: 1.56e-05 | CA94: 8.95e-05 | CB94: 9.35e-05 | CC94: -4.7e-06 | CD94: -0.0001218 | CE94: -7.87e-05 | CF94: 3.35e-05
A95: tr | B95: 1e-07 | C95: 9e-07 | D95: 3.1e-06 | E95: 8.6e-06 | F95: 1.31e-05 | G95: 1.64e-05 | H95: 1.89e-05 | I95: 2.11e-05 | J95: 2.38e-05 | K95: 2.51e-05 | L95: 2.52e-05 | M95: 2.35e-05 | N95: -4.9e-06 | O95: -5.9e-06 | P95: -5.3e-06 | Q95: -3.8e-06 | R95: -2.6e-06 | S95: -1.7e-06 | T95: -1.2e-06 | U95: -3e-07 | V95: 9e-07 | W95: 1.45e-05 | X95: 3.29e-05 | Y95: 5.16e-05 | Z95: 7e-05 | AA95: 8.81e-05 | AB95: 0.0001059 | AC95: 0.0001235 | AD95: 0.0001408 | AE95: 0.0001581 | AF95: -6e-07 | AG95: 1.9e-06 | AH95: 7.3e-06 | AI95: 1.21e-05 | AJ95: 1.54e-05 | AK95: 1.72e-05 | AL95: 1.89e-05 | AM95: 2.05e-05 | AN95: 2.09e-05 | AO95: 2.4e-05 | AP95: 3.37e-05 | AQ95: 4.88e-05 | AR95: 6.49e-05 | AS95: 8.51e-05 | AT95: 0.0001009 | AU95: 0.0001103 | AV95: 0.0001167 | AW95: 0.0001213 | AX95: 8e-07 | AY95: 1.8e-06 | AZ95: 3.8e-06 | BA95: 5.5e-06 | BB95: 6.7e-06 | BC95: 7.9e-06 | BD95: 8.8e-06 | BE95: 1.04e-05 | BF95: 1.11e-05 | BG95: 1.62e-05 | BH95: 1.94e-05 | BI95: 2.21e-05 | BJ95: 2.46e-05 | BK95: 2.71e-05 | BL95: 2.95e-05 | BM95: 3.2e-05 | BN95: 3.44e-05 | BO95: 3.69e-05 | BP95: 0 | BQ95: 1e-07 | BR95: 1e-07 | BS95: 0 | BT95: -2e-07 | BU95: -2e-07 | BV95: -3e-07 | BW95: -3e-07 | BX95: -5e-07 | BY95: -1e-06 | BZ95: -9.2e-06 | CA95: -4.2e-06 | CB95: -4.7e-06 | CC95: 4.1e-06 | CD95: -9.05e-05 | CE95: 2.79e-05 | CF95: -1.45e-05
A96: ibovespa | B96: 4.37e-05 | C96: 0.0001438 | D96: 0.0003335 | E96: 0.0008263 | F96: 0.0014729 | G96: 0.0022316 | H96: 0.003048 | I96: 0.0039382 | J96: 0.0056776 | K96: 0.0073572 | L96: 0.0153426 | M96: 0.0221521 | N96: 0.0001737 | O96: 0.0002484 | P96: 0.0010899 | Q96: 0.0020888 | R96: 0.0029464 | S96: 0.003613 | T96: 0.0042607 | U96: 0.0052745 | V96: 0.006381 | W96: 0.0137188 | X96: 0.020351 | Y96: 0.0260164 | Z96: 0.0311732 | AA96: 0.0360696 | AB96: 0.0408383 | AC96: 0.045548 | AD96: 0.050233 | AE96: 0.0549098 | AF96: 0.0004419 | AG96: 0.0003215 | AH96: 0.0009749 | AI96: 0.0019735 | AJ96: 0.0029054 | AK96: 0.0036475 | AL96: 0.0044715 | AM96: 0.005853 | AN96: 0.007005 | AO96: 0.0122119 | AP96: 0.0166356 | AQ96: 0.0209834 | AR96: 0.0249334 | AS96: 0.0306917 | AT96: 0.035719 | AU96: 0.0396382 | AV96: 0.0434681 | AW96: 0.0472372 | AX96: 0.0001698 | AY96: 0.0003372 | AZ96: 0.0006689 | BA96: 0.0010109 | BB96: 0.0013455 | BC96: 0.0017418 | BD96: 0.0021474 | BE96: 0.0029751 | BF96: 0.003636 | BG96: 0.0081724 | BH96: 0.0125782 | BI96: 0.0169266 | BJ96: 0.0212216 | BK96: 0.0254831 | BL96: 0.0297252 | BM96: 0.0339557 | BN96: 0.0381789 | BO96: 0.0423974 | BP96: 1.1e-06 | BQ96: 8.6e-06 | BR96: 3.4e-05 | BS96: 0.0001325 | BT96: 0.0002594 | BU96: 0.0003809 | BV96: 0.0005015 | BW96: 0.0005948 | BX96: 0.0007539 | BY96: 0.0008368 | BZ96: 0.0009884 | CA96: -0.0008968 | CB96: -0.0001218 | CC96: -9.05e-05 | CD96: 0.045606 | CE96: -0.0226435 | CF96: 0.0028619
A97: dolar | B97: -1.04e-05 | C97: -1.79e-05 | D97: -3.15e-05 | E97: -0.0001533 | F97: -0.0004536 | G97: -0.0008734 | H97: -0.0013407 | I97: -0.0018395 | J97: -0.0027911 | K97: -0.0036908 | L97: -0.0082058 | M97: -0.0124935 | N97: 0.0002708 | O97: 0.0005188 | P97: 0.000488 | Q97: 0.0001659 | R97: -0.00027 | S97: -0.000718 | T97: -0.0011616 | U97: -0.0019218 | V97: -0.0026425 | W97: -0.0064239 | X97: -0.0092636 | Y97: -0.0114239 | Z97: -0.0133123 | AA97: -0.015099 | AB97: -0.0168516 | AC97: -0.0185965 | AD97: -0.0203433 | AE97: -0.0220951 | AF97: -0.0004035 | AG97: -0.0001334 | AH97: -0.0001774 | AI97: -0.0006214 | AJ97: -0.0011888 | AK97: -0.0017331 | AL97: -0.002338 | AM97: -0.0034111 | AN97: -0.0042922 | AO97: -0.0074998 | AP97: -0.0101243 | AQ97: -0.0136705 | AR97: -0.0178927 | AS97: -0.0238802 | AT97: -0.0291845 | AU97: -0.0329786 | AV97: -0.0359798 | AW97: -0.0383132 | AX97: -6.54e-05 | AY97: -0.0001187 | AZ97: -0.0002268 | BA97: -0.0003601 | BB97: -0.0005122 | BC97: -0.0007045 | BD97: -0.0009127 | BE97: -0.0013565 | BF97: -0.0017311 | BG97: -0.0041702 | BH97: -0.0065182 | BI97: -0.0088459 | BJ97: -0.011155 | BK97: -0.0134507 | BL97: -0.0157375 | BM97: -0.0180184 | BN97: -0.0202954 | BO97: -0.0225695 | BP97: -6.6e-06 | BQ97: -2.67e-05 | BR97: -7.3e-05 | BS97: -0.0002113 | BT97: -0.0003612 | BU97: -0.0004925 | BV97: -0.0006235 | BW97: -0.0007278 | BX97: -0.0009383 | BY97: -0.0011038 | BZ97: -0.0015477 | CA97: -0.0001357 | CB97: -7.87e-05 | CC97: 2.79e-05 | CD97: -0.0226435 | CE97: 0.0253317 | CF97: -0.0001365
A98: commodity | B98: -2.81e-05 | C98: -7.13e-05 | D98: -9.31e-05 | E98: -0.0001182 | F98: -0.0002101 | G98: -0.000319 | H98: -0.000394 | I98: -0.0004272 | J98: -0.0003641 | K98: -0.0001882 | L98: 0.0013765 | M98: 0.0031113 | N98: 0.0010141 | O98: 0.0013175 | P98: 0.0013725 | Q98: 0.0011532 | R98: 0.0009756 | S98: 0.0009221 | T98: 0.0010017 | U98: 0.0012917 | V98: 0.0016535 | W98: 0.0029033 | X98: 0.0029555 | Y98: 0.0026279 | Z98: 0.0022344 | AA98: 0.0018518 | AB98: 0.0014948 | AC98: 0.0011624 | AD98: 0.0008503 | AE98: 0.0005547 | AF98: 0.0004757 | AG98: 0.0002609 | AH98: 0.0005153 | AI98: 0.0007117 | AJ98: 0.0007126 | AK98: 0.0005951 | AL98: 0.0004686 | AM98: 0.0002027 | AN98: 3.2e-06 | AO98: -0.0003566 | AP98: -0.0008037 | AQ98: -0.0017776 | AR98: -0.0030303 | AS98: -0.0044423 | AT98: -0.005328 | AU98: -0.0054311 | AV98: -0.0049403 | AW98: -0.0039809 | AX98: -8.14e-05 | AY98: -0.000156 | AZ98: -0.0002696 | BA98: -0.0003467 | BB98: -0.0003945 | BC98: -0.000443 | BD98: -0.0004808 | BE98: -0.0005342 | BF98: -0.0005398 | BG98: -0.0006152 | BH98: -0.0006638 | BI98: -0.0007311 | BJ98: -0.0008029 | BK98: -0.0008756 | BL98: -0.0009486 | BM98: -0.0010221 | BN98: -0.001096 | BO98: -0.0011702 | BP98: -2.32e-05 | BQ98: -6.99e-05 | BR98: -0.0001357 | BS98: -0.0002528 | BT98: -0.0003417 | BU98: -0.0004183 | BV98: -0.0005142 | BW98: -0.0006103 | BX98: -0.0008651 | BY98: -0.001137 | BZ98: -0.0020679 | CA98: 0.0006967 | CB98: 3.35e-05 | CC98: -1.45e-05 | CD98: 0.0028619 | CE98: -0.0001365 | CF98: 0.0327313
A112: V1 | B112: V2 | C112: V3 | D112: V4 | E112: V5 | F112: V6 | G112: V7 | H112: V8 | I112: V9 | J112: V10 | K112: V11 | L112: V12 | M112: V13 | N112: V14 | O112: V15 | P112: V16 | Q112: V17 | R112: V18 | S112: V19 | T112: V20 | U112: V21 | V112: V22 | W112: V23 | X112: V24 | Y112: V25 | Z112: V26 | AA112: V27 | AB112: V28 | AC112: V29 | AD112: V30 | AE112: V31 | AF112: V32 | AG112: V33 | AH112: V34 | AI112: V35 | AJ112: V36 | AK112: V37 | AL112: V38 | AM112: V39 | AN112: V40 | AO112: V41 | AP112: V42 | AQ112: V43 | AR112: V44 | AS112: V45 | AT112: V46 | AU112: V47 | AV112: V48 | AW112: V49 | AX112: V50 | AY112: V51 | AZ112: V52 | BA112: V53 | BB112: V54 | BC112: V55 | BD112: V56 | BE112: V57 | BF112: V58 | BG112: V59 | BH112: V60 | BI112: V61 | BJ112: V62 | BK112: V63 | BL112: V64 | BM112: V65 | BN112: V66 | BO112: V67 | BP112: V68 | BQ112: V69 | BR112: V70 | BS112: V71 | BT112: V72 | BU112: V73 | BV112: V74 | BW112: V75 | BX112: V76 | BY112: V77 | BZ112: V78 | CA112: V79 | CB112: V80 | CC112: V81 | CD112: V82 | CE112: V83
A113: 1 | B113: 1e-06 | C113: 2e-06 | D113: 4e-06 | E113: 7e-06 | F113: 8e-06 | G113: 9e-06 | H113: 1e-05 | I113: 1.1e-05 | J113: 1.2e-05 | K113: 1.4e-05 | L113: 2.3e-05 | M113: 3.4e-05 | N113: 4e-06 | O113: 7e-06 | P113: 1.1e-05 | Q113: 1.3e-05 | R113: 1.4e-05 | S113: 1.4e-05 | T113: 1.5e-05 | U113: 1.7e-05 | V113: 2e-05 | W113: 4e-05 | X113: 5.9e-05 | Y113: 7.5e-05 | Z113: 8.9e-05 | AA113: 0.000102 | AB113: 0.000114 | AC113: 0.000126 | AD113: 0.000139 | AE113: 0.000151 | AF113: 4e-06 | AG113: 4e-06 | AH113: 7e-06 | AI113: 1e-05 | AJ113: 1.2e-05 | AK113: 1.3e-05 | AL113: 1.5e-05 | AM113: 1.8e-05 | AN113: 2e-05 | AO113: 2.9e-05 | AP113: 3.6e-05 | AQ113: 4.5e-05 | AR113: 5.7e-05 | AS113: 7.7e-05 | AT113: 9.6e-05 | AU113: 0.000112 | AV113: 0.000126 | AW113: 0.000138 | AX113: 1e-06 | AY113: 3e-06 | AZ113: 5e-06 | BA113: 6e-06 | BB113: 7e-06 | BC113: 8e-06 | BD113: 9e-06 | BE113: 1.1e-05 | BF113: 1.3e-05 | BG113: 2.3e-05 | BH113: 3.2e-05 | BI113: 4.1e-05 | BJ113: 5e-05 | BK113: 5.9e-05 | BL113: 6.8e-05 | BM113: 7.6e-05 | BN113: 8.5e-05 | BO113: 9.4e-05 | BP113: 0 | BQ113: 0 | BR113: 0 | BS113: 1e-06 | BT113: 1e-06 | BU113: 1e-06 | BV113: 1e-06 | BW113: 2e-06 | BX113: 3e-06 | BY113: 3e-06 | BZ113: 3e-06 | CA113: -6e-06 | CB113: -1e-06 | CC113: 0 | CD113: 4.4e-05 | CE113: -1e-05 | CF113: -2.8e-05
A114: 2 | B114: 2e-06 | C114: 7e-06 | D114: 1.5e-05 | E114: 3.1e-05 | F114: 4.2e-05 | G114: 5e-05 | H114: 5.7e-05 | I114: 6.4e-05 | J114: 7.5e-05 | K114: 8.4e-05 | L114: 0.000131 | M114: 0.00018 | N114: 1.3e-05 | O114: 2.3e-05 | P114: 3.8e-05 | Q114: 4.8e-05 | R114: 5.5e-05 | S114: 6e-05 | T114: 6.7e-05 | U114: 7.6e-05 | V114: 8.8e-05 | W114: 0.000171 | X114: 0.000249 | Y114: 0.000319 | Z114: 0.000385 | AA114: 0.000448 | AB114: 0.000509 | AC114: 0.000569 | AD114: 0.000628 | AE114: 0.000688 | AF114: 1.3e-05 | AG114: 1.5e-05 | AH114: 3.3e-05 | AI114: 4.9e-05 | AJ114: 6.1e-05 | AK114: 6.9e-05 | AL114: 7.8e-05 | AM114: 9e-05 | AN114: 9.9e-05 | AO114: 0.000136 | AP114: 0.000166 | AQ114: 0.000206 | AR114: 0.000254 | AS114: 0.000327 | AT114: 0.000395 | AU114: 0.000446 | AV114: 0.000489 | AW114: 0.000524 | AX114: 5e-06 | AY114: 9e-06 | AZ114: 1.7e-05 | BA114: 2.3e-05 | BB114: 2.8e-05 | BC114: 3.3e-05 | BD114: 3.7e-05 | BE114: 4.5e-05 | BF114: 5.1e-05 | BG114: 9.3e-05 | BH114: 0.000133 | BI114: 0.000174 | BJ114: 0.000215 | BK114: 0.000255 | BL114: 0.000295 | BM114: 0.000335 | BN114: 0.000375 | BO114: 0.000415 | BP114: 0 | BQ114: 1e-06 | BR114: 1e-06 | BS114: 2e-06 | BT114: 3e-06 | BU114: 4e-06 | BV114: 5e-06 | BW114: 6e-06 | BX114: 9e-06 | BY114: 1.1e-05 | BZ114: 7e-06 | CA114: -2.1e-05 | CB114: -6e-06 | CC114: 1e-06 | CD114: 0.000144 | CE114: -1.8e-05 | CF114: -7.1e-05
A115: 3 | B115: 4e-06 | C115: 1.5e-05 | D115: 3.9e-05 | E115: 9e-05 | F115: 0.000133 | G115: 0.000166 | H115: 0.000195 | I115: 0.000224 | J115: 0.000271 | K115: 0.000311 | L115: 0.000491 | M115: 0.000654 | N115: 1.7e-05 | O115: 3.9e-05 | P115: 8.1e-05 | Q115: 0.000116 | R115: 0.000145 | S115: 0.000166 | T115: 0.000189 | U115: 0.000223 | V115: 0.00026 | W115: 0.000494 | X115: 0.000716 | Y115: 0.000924 | Z115: 0.001121 | AA115: 0.001311 | AB115: 0.001497 | AC115: 0.001681 | AD115: 0.001863 | AE115: 0.002045 | AF115: 2.7e-05 | AG115: 3.2e-05 | AH115: 8.6e-05 | AI115: 0.000143 | AJ115: 0.000186 | AK115: 0.000213 | AL115: 0.000242 | AM115: 0.000283 | AN115: 0.000311 | AO115: 0.00042 | AP115: 0.000517 | AQ115: 0.000638 | AR115: 0.000768 | AS115: 0.000961 | AT115: 0.001125 | AU115: 0.001239 | AV115: 0.001337 | AW115: 0.001421 | AX115: 1e-05 | AY115: 2.1e-05 | AZ115: 4.3e-05 | BA115: 6.1e-05 | BB115: 7.5e-05 | BC115: 9.1e-05 | BD115: 0.000104 | BE115: 0.00013 | BF115: 0.000146 | BG115: 0.000274 | BH115: 0.000398 | BI115: 0.000522 | BJ115: 0.000646 | BK115: 0.000769 | BL115: 0.000891 | BM115: 0.001013 | BN115: 0.001136 | BO115: 0.001258 | BP115: 0 | BQ115: 1e-06 | BR115: 3e-06 | BS115: 5e-06 | BT115: 7e-06 | BU115: 8e-06 | BV115: 1.1e-05 | BW115: 1.3e-05 | BX115: 1.7e-05 | BY115: 1.9e-05 | BZ115: -6e-06 | CA115: -5.3e-05 | CB115: -1.5e-05 | CC115: 3e-06 | CD115: 0.000333 | CE115: -3.2e-05 | CF115: -9.3e-05
A116: 4 | B116: 7e-06 | C116: 3.1e-05 | D116: 9e-05 | E116: 0.000247 | F116: 0.000397 | G116: 0.000527 | H116: 0.000642 | I116: 0.000754 | J116: 0.000944 | K116: 0.001105 | L116: 0.001792 | M116: 0.002367 | N116: -4e-05 | O116: -4e-06 | P116: 0.000113 | Q116: 0.000237 | R116: 0.000344 | S116: 0.000427 | T116: 0.000505 | U116: 0.000618 | V116: 0.000729 | W116: 0.001405 | X116: 0.00205 | Y116: 0.002655 | Z116: 0.003236 | AA116: 0.0038 | AB116: 0.004352 | AC116: 0.004898 | AD116: 0.00544 | AE116: 0.00598 | AF116: 4.6e-05 | AG116: 4.8e-05 | AH116: 0.000195 | AI116: 0.000374 | AJ116: 0.000517 | AK116: 0.000614 | AL116: 0.000715 | AM116: 0.000855 | AN116: 0.000948 | AO116: 0.001305 | AP116: 0.001636 | AQ116: 0.002027 | AR116: 0.002404 | AS116: 0.002937 | AT116: 0.003357 | AU116: 0.003628 | AV116: 0.00386 | AW116: 0.00407 | AX116: 2e-05 | AY116: 4.8e-05 | AZ116: 0.000107 | BA116: 0.000161 | BB116: 0.000207 | BC116: 0.000256 | BD116: 0.000302 | BE116: 0.000388 | BF116: 0.000446 | BG116: 0.000856 | BH116: 0.001242 | BI116: 0.001628 | BJ116: 0.00201 | BK116: 0.002391 | BL116: 0.002771 | BM116: 0.00315 | BN116: 0.003528 | BO116: 0.003906 | BP116: 1e-06 | BQ116: 2e-06 | BR116: 4e-06 | BS116: 8e-06 | BT116: 1.1e-05 | BU116: 1.5e-05 | BV116: 2e-05 | BW116: 2.3e-05 | BX116: 2.7e-05 | BY116: 2.3e-05 | BZ116: -7.8e-05 | CA116: -0.000114 | CB116: -3.3e-05 | CC116: 9e-06 | CD116: 0.000826 | CE116: -0.000153 | CF116: -0.000118
A117: 5 | B117: 8e-06 | C117: 4.2e-05 | D117: 0.000133 | E117: 0.000397 | F117: 0.000675 | G117: 0.000931 | H117: 0.001161 | I117: 0.001388 | J117: 0.001774 | K117: 0.002103 | L117: 0.003478 | M117: 0.004608 | N117: -0.000161 | O117: -0.000132 | P117: 5.6e-05 | Q117: 0.000287 | R117: 0.000495 | S117: 0.000656 | T117: 0.000802 | U117: 0.00101 | V117: 0.001207 | W117: 0.0024 | X117: 0.003542 | Y117: 0.00461 | Z117: 0.005632 | AA117: 0.006622 | AB117: 0.007591 | AC117: 0.008548 | AD117: 0.009499 | AE117: 0.010445 | AF117: 5.3e-05 | AG117: 4.5e-05 | AH117: 0.000273 | AI117: 0.000579 | AJ117: 0.000841 | AK117: 0.001028 | AL117: 0.001221 | AM117: 0.001495 | AN117: 0.00168 | AO117: 0.002376 | AP117: 0.003022 | AQ117: 0.003766 | AR117: 0.004459 | AS117: 0.00542 | AT117: 0.00616 | AU117: 0.006631 | AV117: 0.007041 | AW117: 0.00742 | AX117: 2.8e-05 | AY117: 7e-05 | AZ117: 0.000167 | BA117: 0.000263 | BB117: 0.000347 | BC117: 0.000439 | BD117: 0.000527 | BE117: 0.000691 | BF117: 0.000806 | BG117: 0.001575 | BH117: 0.002285 | BI117: 0.002986 | BJ117: 0.003681 | BK117: 0.004372 | BL117: 0.005061 | BM117: 0.005748 | BN117: 0.006435 | BO117: 0.007122 | BP117: 0 | BQ117: 1e-06 | BR117: 2e-06 | BS117: 7e-06 | BT117: 1.3e-05 | BU117: 1.9e-05 | BV117: 2.5e-05 | BW117: 3e-05 | BX117: 3.3e-05 | BY117: 2.4e-05 | BZ117: -0.000143 | CA117: -0.000152 | CB117: -4.5e-05 | CC117: 1.3e-05 | CD117: 0.001473 | CE117: -0.000454 | CF117: -0.00021
A118: 6 | B118: 9e-06 | C118: 5e-05 | D118: 0.000166 | E118: 0.000527 | F118: 0.000931 | G118: 0.001315 | H118: 0.00167 | I118: 0.002022 | J118: 0.002623 | K118: 0.003137 | L118: 0.005256 | M118: 0.006978 | N118: -0.000305 | O118: -0.000293 | P118: -4.1e-05 | Q118: 0.000299 | R118: 0.00061 | S118: 0.000854 | T118: 0.00107 | U118: 0.001378 | V118: 0.001666 | W118: 0.003398 | X118: 0.005052 | Y118: 0.006588 | Z118: 0.008049 | AA118: 0.00946 | AB118: 0.010841 | AC118: 0.012204 | AD118: 0.013557 | AE118: 0.014904 | AF118: 5.3e-05 | AG118: 3.3e-05 | AH118: 0.000326 | AI118: 0.000749 | AJ118: 0.001128 | AK118: 0.001409 | AL118: 0.001699 | AM118: 0.00212 | AN118: 0.002408 | AO118: 0.003488 | AP118: 0.004484 | AQ118: 0.005609 | AR118: 0.006641 | AS118: 0.008061 | AT118: 0.009153 | AU118: 0.009854 | AV118: 0.010476 | AW118: 0.011061 | AX118: 3.5e-05 | AY118: 9e-05 | AZ118: 0.000222 | BA118: 0.000358 | BB118: 0.000482 | BC118: 0.000618 | BD118: 0.00075 | BE118: 0.001 | BF118: 0.001177 | BG118: 0.002333 | BH118: 0.003385 | BI118: 0.004417 | BJ118: 0.005438 | BK118: 0.006453 | BL118: 0.007464 | BM118: 0.008474 | BN118: 0.009483 | BO118: 0.01049 | BP118: 0 | BQ118: -1e-06 | BR118: 0 | BS118: 4e-06 | BT118: 1.2e-05 | BU118: 2e-05 | BV118: 2.9e-05 | BW118: 3.5e-05 | BX118: 4e-05 | BY118: 2.8e-05 | BZ118: -0.000179 | CA118: -0.000174 | CB118: -5.5e-05 | CC118: 1.6e-05 | CD118: 0.002232 | CE118: -0.000873 | CF118: -0.000319
A119: 7 | B119: 1e-05 | C119: 5.7e-05 | D119: 0.000195 | E119: 0.000642 | F119: 0.001161 | G119: 0.00167 | H119: 0.002147 | I119: 0.002624 | J119: 0.003445 | K119: 0.004145 | L119: 0.007011 | M119: 0.009319 | N119: -0.000446 | O119: -0.000456 | P119: -0.000144 | Q119: 0.000303 | R119: 0.000716 | S119: 0.001042 | T119: 0.001327 | U119: 0.001736 | V119: 0.002117 | W119: 0.004391 | X119: 0.006551 | Y119: 0.008539 | Z119: 0.010422 | AA119: 0.012235 | AB119: 0.014008 | AC119: 0.015756 | AD119: 0.017492 | AE119: 0.019221 | AF119: 4.9e-05 | AG119: 1.9e-05 | AH119: 0.000367 | AI119: 0.000895 | AJ119: 0.001384 | AK119: 0.001756 | AL119: 0.002141 | AM119: 0.00271 | AN119: 0.003106 | AO119: 0.004586 | AP119: 0.005937 | AQ119: 0.00744 | AR119: 0.008804 | AS119: 0.010678 | AT119: 0.012125 | AU119: 0.013067 | AV119: 0.013915 | AW119: 0.014724 | AX119: 4.1e-05 | AY119: 0.000108 | AZ119: 0.000272 | BA119: 0.000446 | BB119: 0.000609 | BC119: 0.000789 | BD119: 0.000964 | BE119: 0.001299 | BF119: 0.001541 | BG119: 0.00309 | BH119: 0.004486 | BI119: 0.005851 | BJ119: 0.007199 | BK119: 0.008538 | BL119: 0.009873 | BM119: 0.011205 | BN119: 0.012535 | BO119: 0.013865 | BP119: -1e-06 | BQ119: -3e-06 | BR119: -3e-06 | BS119: 0 | BT119: 1e-05 | BU119: 2e-05 | BV119: 3.1e-05 | BW119: 4e-05 | BX119: 4.7e-05 | BY119: 3.5e-05 | BZ119: -0.000199 | CA119: -0.000189 | CB119: -6.5e-05 | CC119: 1.9e-05 | CD119: 0.003048 | CE119: -0.001341 | CF119: -0.000394
A120: 8 | B120: 1.1e-05 | C120: 6.4e-05 | D120: 0.000224 | E120: 0.000754 | F120: 0.001388 | G120: 0.002022 | H120: 0.002624 | I120: 0.003228 | J120: 0.004277 | K120: 0.005174 | L120: 0.008819 | M120: 0.011738 | N120: -0.000583 | O120: -0.000615 | P120: -0.000242 | Q120: 0.000315 | R120: 0.000833 | S120: 0.001243 | T120: 0.0016 | U120: 0.002115 | V120: 0.002594 | W120: 0.00544 | X120: 0.008125 | Y120: 0.010579 | Z120: 0.012891 | AA120: 0.015114 | AB120: 0.017285 | AC120: 0.019426 | AD120: 0.021551 | AE120: 0.023668 | AF120: 4.2e-05 | AG120: 6e-06 | AH120: 0.000407 | AI120: 0.001038 | AJ120: 0.001637 | AK120: 0.002102 | AL120: 0.002583 | AM120: 0.003304 | AN120: 0.003811 | AO120: 0.005714 | AP120: 0.007435 | AQ120: 0.009321 | AR120: 0.011019 | AS120: 0.013353 | AT120: 0.015164 | AU120: 0.016358 | AV120: 0.017449 | AW120: 0.018502 | AX120: 4.7e-05 | AY120: 0.000125 | AZ120: 0.000322 | BA120: 0.000535 | BB120: 0.000736 | BC120: 0.000961 | BD120: 0.001181 | BE120: 0.001605 | BF120: 0.001913 | BG120: 0.003874 | BH120: 0.005633 | BI120: 0.007347 | BJ120: 0.009037 | BK120: 0.010715 | BL120: 0.012388 | BM120: 0.014058 | BN120: 0.015725 | BO120: 0.017392 | BP120: -2e-06 | BQ120: -4e-06 | BR120: -6e-06 | BS120: -3e-06 | BT120: 8e-06 | BU120: 2.1e-05 | BV120: 3.5e-05 | BW120: 4.5e-05 | BX120: 5.6e-05 | BY120: 4.3e-05 | BZ120: -0.000218 | CA120: -0.000205 | CB120: -7.5e-05 | CC120: 2.1e-05 | CD120: 0.003938 | CE120: -0.00184 | CF120: -0.000427
A121: 9 | B121: 1.2e-05 | C121: 7.5e-05 | D121: 0.000271 | E121: 0.000944 | F121: 0.001774 | G121: 0.002623 | H121: 0.003445 | I121: 0.004277 | J121: 0.005738 | K121: 0.006998 | L121: 0.012131 | M121: 0.016245 | N121: -0.000811 | O121: -0.000885 | P121: -0.000402 | Q121: 0.00035 | R121: 0.001054 | S121: 0.001614 | T121: 0.002101 | U121: 0.002808 | V121: 0.003465 | W121: 0.007371 | X121: 0.011019 | Y121: 0.014315 | Z121: 0.017399 | AA121: 0.020356 | AB121: 0.023239 | AC121: 0.026082 | AD121: 0.028905 | AE121: 0.031716 | AF121: 2.6e-05 | AG121: -1.9e-05 | AH121: 0.000469 | AI121: 0.001276 | AJ121: 0.002066 | AK121: 0.002695 | AL121: 0.003346 | AM121: 0.004337 | AN121: 0.005045 | AO121: 0.007721 | AP121: 0.010104 | AQ121: 0.012661 | AR121: 0.014931 | AS121: 0.018065 | AT121: 0.020515 | AU121: 0.022169 | AV121: 0.023715 | AW121: 0.025234 | AX121: 5.8e-05 | AY121: 0.000155 | AZ121: 0.000407 | BA121: 0.000686 | BB121: 0.000955 | BC121: 0.001259 | BD121: 0.001558 | BE121: 0.002141 | BF121: 0.002572 | BG121: 0.005289 | BH121: 0.007716 | BI121: 0.010071 | BJ121: 0.012391 | BK121: 0.014693 | BL121: 0.016987 | BM121: 0.019277 | BN121: 0.021564 | BO121: 0.023849 | BP121: -3e-06 | BQ121: -7e-06 | BR121: -1.1e-05 | BS121: -8e-06 | BT121: 6e-06 | BU121: 2.5e-05 | BV121: 4.4e-05 | BW121: 5.9e-05 | BX121: 7.5e-05 | BY121: 6e-05 | BZ121: -0.000278 | CA121: -0.000234 | CB121: -9.3e-05 | CC121: 2.4e-05 | CD121: 0.005678 | CE121: -0.002791 | CF121: -0.000364
A122: 10 | B122: 1.4e-05 | C122: 8.4e-05 | D122: 0.000311 | E122: 0.001105 | F122: 0.002103 | G122: 0.003137 | H122: 0.004145 | I122: 0.005174 | J122: 0.006998 | K122: 0.008589 | L122: 0.01519 | M122: 0.020565 | N122: -0.000993 | O122: -0.001103 | P122: -0.000527 | Q122: 0.000392 | R122: 0.001256 | S122: 0.001943 | T122: 0.002541 | U122: 0.003413 | V122: 0.004229 | W122: 0.009098 | X122: 0.013622 | Y122: 0.01768 | Z122: 0.021461 | AA122: 0.025078 | AB122: 0.028603 | AC122: 0.032079 | AD122: 0.035529 | AE122: 0.038966 | AF122: 9e-06 | AG122: -4.2e-05 | AH122: 0.000517 | AI122: 0.001474 | AJ122: 0.00243 | AK122: 0.003203 | AL122: 0.004001 | AM122: 0.005224 | AN122: 0.006105 | AO122: 0.009452 | AP122: 0.012408 | AQ122: 0.015529 | AR122: 0.018273 | AS122: 0.02208 | AT122: 0.025077 | AU122: 0.027136 | AV122: 0.029098 | AW122: 0.031049 | AX122: 6.6e-05 | AY122: 0.000179 | AZ122: 0.000476 | BA122: 0.000811 | BB122: 0.001139 | BC122: 0.001509 | BD122: 0.001878 | BE122: 0.002599 | BF122: 0.003139 | BG122: 0.006529 | BH122: 0.009556 | BI122: 0.012489 | BJ122: 0.015375 | BK122: 0.018239 | BL122: 0.021092 | BM122: 0.023939 | BN122: 0.026783 | BO122: 0.029625 | BP122: -4e-06 | BQ122: -1e-05 | BR122: -1.5e-05 | BS122: -1.1e-05 | BT122: 8e-06 | BU122: 3.3e-05 | BV122: 5.8e-05 | BW122: 7.8e-05 | BX122: 9.9e-05 | BY122: 7.9e-05 | BZ122: -0.000397 | CA122: -0.000263 | CB122: -0.000111 | CC122: 2.5e-05 | CD122: 0.007357 | CE122: -0.003691 | CF122: -0.000188
A123: 11 | B123: 2.3e-05 | C123: 0.000131 | D123: 0.000491 | E123: 0.001792 | F123: 0.003478 | G123: 0.005256 | H123: 0.007011 | I123: 0.008819 | J123: 0.012131 | K123: 0.01519 | L123: 0.03002 | M123: 0.043855 | N123: -0.001653 | O123: -0.001917 | P123: -0.001018 | Q123: 0.000508 | R123: 0.001945 | S123: 0.003087 | T123: 0.00408 | U123: 0.005567 | V123: 0.007012 | W123: 0.016062 | X123: 0.024525 | Y123: 0.031981 | Z123: 0.038853 | AA123: 0.045396 | AB123: 0.051758 | AC123: 0.058027 | AD123: 0.064248 | AE123: 0.070446 | AF123: -7.6e-05 | AG123: -0.000174 | AH123: 0.000637 | AI123: 0.002218 | AJ123: 0.003881 | AK123: 0.005258 | AL123: 0.006669 | AM123: 0.00883 | AN123: 0.010379 | AO123: 0.016273 | AP123: 0.021469 | AQ123: 0.026781 | AR123: 0.031337 | AS123: 0.037728 | AT123: 0.042848 | AU123: 0.046519 | AV123: 0.050156 | AW123: 0.053866 | AX123: 9.2e-05 | AY123: 0.000262 | AZ123: 0.000725 | BA123: 0.001268 | BB123: 0.001821 | BC123: 0.002458 | BD123: 0.003104 | BE123: 0.00439 | BF123: 0.005381 | BG123: 0.011586 | BH123: 0.01716 | BI123: 0.02255 | BJ123: 0.027849 | BK123: 0.033104 | BL123: 0.038337 | BM123: 0.043558 | BN123: 0.048773 | BO123: 0.053983 | BP123: -1e-05 | BQ123: -2.8e-05 | BR123: -4.4e-05 | BS123: -3.2e-05 | BT123: 2.6e-05 | BU123: 9.9e-05 | BV123: 0.000173 | BW123: 0.00023 | BX123: 0.000278 | BY123: 0.000176 | BZ123: -0.001888 | CA123: -0.000457 | CB123: -0.000214 | CC123: 2.5e-05 | CD123: 0.015343 | CE123: -0.008206 | CF123: 0.001376
A124: 12 | B124: 3.4e-05 | C124: 0.00018 | D124: 0.000654 | E124: 0.002367 | F124: 0.004608 | G124: 0.006978 | H124: 0.009319 | I124: 0.011738 | J124: 0.016245 | K124: 0.020565 | L124: 0.043855 | M124: 0.067545 | N124: -0.002138 | O124: -0.002531 | P124: -0.00145 | Q124: 0.000481 | R124: 0.002299 | S124: 0.003744 | T124: 0.005001 | U124: 0.00692 | V124: 0.008837 | W124: 0.021327 | X124: 0.033155 | Y124: 0.043483 | Z124: 0.052942 | AA124: 0.06192 | AB124: 0.07064 | AC124: 0.079226 | AD124: 0.087745 | AE124: 0.09623 | AF124: -0.000174 | AG124: -0.000308 | AH124: 0.000664 | AI124: 0.002728 | AJ124: 0.004971 | AK124: 0.006857 | AL124: 0.008773 | AM124: 0.011697 | AN124: 0.013764 | AO124: 0.021562 | AP124: 0.02853 | AQ124: 0.035587 | AR124: 0.041533 | AS124: 0.049832 | AT124: 0.056415 | AU124: 0.061087 | AV124: 0.065722 | AW124: 0.070462 | AX124: 0.000108 | AY124: 0.000318 | AZ124: 0.000894 | BA124: 0.001586 | BB124: 0.002307 | BC124: 0.003149 | BD124: 0.004014 | BE124: 0.005753 | BF124: 0.007115 | BG124: 0.015614 | BH124: 0.023281 | BI124: 0.030696 | BJ124: 0.037982 | BK124: 0.045206 | BL124: 0.052398 | BM124: 0.059574 | BN124: 0.06674 | BO124: 0.073901 | BP124: -1.9e-05 | BQ124: -5.1e-05 | BR124: -8e-05 | BS124: -6.1e-05 | BT124: 4e-05 | BU124: 0.00017 | BV124: 0.000302 | BW124: 0.000404 | BX124: 0.000481 | BY124: 0.000264 | BZ124: -0.004021 | CA124: -0.000691 | CB124: -0.000336 | CC124: 2.4e-05 | CD124: 0.022152 | CE124: -0.012494 | CF124: 0.003111
A125: 13 | B125: 4e-06 | C125: 1.3e-05 | D125: 1.7e-05 | E125: -4e-05 | F125: -0.000161 | G125: -0.000305 | H125: -0.000446 | I125: -0.000583 | J125: -0.000811 | K125: -0.000993 | L125: -0.001653 | M125: -0.002138 | N125: 0.000871 | O125: 0.001017 | P125: 0.000982 | Q125: 0.000843 | R125: 0.000704 | S125: 0.000588 | T125: 0.000515 | U125: 0.000404 | V125: 0.000341 | W125: 0.000139 | X125: -6.1e-05 | Y125: -0.000213 | Z125: -0.000329 | AA125: -0.000424 | AB125: -0.000508 | AC125: -0.000588 | AD125: -0.000665 | AE125: -0.00074 | AF125: 0.000123 | AG125: 0.000148 | AH125: 0.000218 | AI125: 0.000205 | AJ125: 0.00014 | AK125: 6.4e-05 | AL125: -4e-06 | AM125: -0.000116 | AN125: -0.000199 | AO125: -0.000549 | AP125: -0.000927 | AQ125: -0.001251 | AR125: -0.001436 | AS125: -0.001617 | AT125: -0.001696 | AU125: -0.001718 | AV125: -0.001768 | AW125: -0.001858 | AX125: 1.1e-05 | AY125: 1.6e-05 | AZ125: 7e-06 | BA125: -2e-05 | BB125: -5.5e-05 | BC125: -9.6e-05 | BD125: -0.000137 | BE125: -0.000215 | BF125: -0.000271 | BG125: -0.000549 | BH125: -0.000756 | BI125: -0.000947 | BJ125: -0.001132 | BK125: -0.001316 | BL125: -0.0015 | BM125: -0.001683 | BN125: -0.001867 | BO125: -0.00205 | BP125: -1e-06 | BQ125: -4e-06 | BR125: -5e-06 | BS125: -1e-06 | BT125: 7e-06 | BU125: 1.6e-05 | BV125: 2.2e-05 | BW125: 2.6e-05 | BX125: 2.7e-05 | BY125: 2.1e-05 | BZ125: -2.4e-05 | CA125: -0.000115 | CB125: -2.5e-05 | CC125: -5e-06 | CD125: 0.000174 | CE125: 0.000271 | CF125: 0.001014
A126: 14 | B126: 7e-06 | C126: 2.3e-05 | D126: 3.9e-05 | E126: -4e-06 | F126: -0.000132 | G126: -0.000293 | H126: -0.000456 | I126: -0.000615 | J126: -0.000885 | K126: -0.001103 | L126: -0.001917 | M126: -0.002531 | N126: 0.001017 | O126: 0.001315 | P126: 0.001372 | Q126: 0.001222 | R126: 0.001058 | S126: 0.000923 | T126: 0.000847 | U126: 0.000743 | V126: 0.000708 | W126: 0.000683 | X126: 0.000572 | Y126: 0.00048 | Z126: 0.000419 | AA126: 0.000377 | AB126: 0.000346 | AC126: 0.00032 | AD126: 0.000299 | AE126: 0.00028 | AF126: 0.000157 | AG126: 0.00018 | AH126: 0.000298 | AI126: 0.000316 | AJ126: 0.000256 | AK126: 0.000171 | AL126: 9.8e-05 | AM126: -2.5e-05 | AN126: -0.000117 | AO126: -0.000498 | AP126: -0.000963 | AQ126: -0.001397 | AR126: -0.00167 | AS126: -0.001917 | AT126: -0.002016 | AU126: -0.002025 | AV126: -0.002052 | AW126: -0.002116 | AX126: 1.8e-05 | AY126: 3.1e-05 | AZ126: 3.2e-05 | BA126: 9e-06 | BB126: -2.7e-05 | BC126: -6.9e-05 | BD126: -0.000113 | BE126: -0.000199 | BF126: -0.000264 | BG126: -0.000564 | BH126: -0.000776 | BI126: -0.000967 | BJ126: -0.00115 | BK126: -0.001332 | BL126: -0.001513 | BM126: -0.001693 | BN126: -0.001874 | BO126: -0.002054 | BP126: -1e-06 | BQ126: -3e-06 | BR126: -4e-06 | BS126: -2e-06 | BT126: 3e-06 | BU126: 7e-06 | BV126: 1e-05 | BW126: 1.1e-05 | BX126: 7e-06 | BY126: -3e-06 | BZ126: -7.8e-05 | CA126: -0.000155 | CB126: -3.1e-05 | CC126: -6e-06 | CD126: 0.000248 | CE126: 0.000519 | CF126: 0.001317
A127: 15 | B127: 1.1e-05 | C127: 3.8e-05 | D127: 8.1e-05 | E127: 0.000113 | F127: 5.6e-05 | G127: -4.1e-05 | H127: -0.000144 | I127: -0.000242 | J127: -0.000402 | K127: -0.000527 | L127: -0.001018 | M127: -0.00145 | N127: 0.000982 | O127: 0.001372 | P127: 0.001656 | Q127: 0.001656 | R127: 0.001573 | S127: 0.001479 | T127: 0.001444 | U127: 0.001394 | V127: 0.001429 | W127: 0.001879 | X127: 0.002157 | Y127: 0.002409 | Z127: 0.002673 | AA127: 0.002945 | AB127: 0.003221 | AC127: 0.0035 | AD127: 0.003783 | AE127: 0.004068 | AF127: 0.000194 | AG127: 0.000208 | AH127: 0.000397 | AI127: 0.000503 | AJ127: 0.000507 | AK127: 0.000462 | AL127: 0.000433 | AM127: 0.000383 | AN127: 0.000356 | AO127: 0.000305 | AP127: 0.000105 | AQ127: -0.000115 | AR127: -0.000238 | AS127: -0.000261 | AT127: -0.000185 | AU127: -6e-05 | AV127: 6.9e-05 | AW127: 0.000184 | AX127: 3e-05 | AY127: 6e-05 | AZ127: 9.6e-05 | BA127: 0.000105 | BB127: 9.6e-05 | BC127: 8.4e-05 | BD127: 6.9e-05 | BE127: 3.9e-05 | BF127: 1.7e-05 | BG127: 2.1e-05 | BH127: 9.7e-05 | BI127: 0.000189 | BJ127: 0.000286 | BK127: 0.000383 | BL127: 0.00048 | BM127: 0.000577 | BN127: 0.000673 | BO127: 0.000768 | BP127: 0 | BQ127: -1e-06 | BR127: -2e-06 | BS127: -6e-06 | BT127: -1.2e-05 | BU127: -1.8e-05 | BV127: -2.7e-05 | BW127: -3.7e-05 | BX127: -6.2e-05 | BY127: -8.9e-05 | BZ127: -0.000189 | CA127: -0.000187 | CB127: -2.4e-05 | CC127: -5e-06 | CD127: 0.00109 | CE127: 0.000488 | CF127: 0.001372
A128: 16 | B128: 1.3e-05 | C128: 4.8e-05 | D128: 0.000116 | E128: 0.000237 | F128: 0.000287 | G128: 0.000299 | H128: 0.000303 | I128: 0.000315 | J128: 0.00035 | K128: 0.000392 | L128: 0.000508 | M128: 0.000481 | N128: 0.000843 | O128: 0.001222 | P128: 0.001656 | Q128: 0.001841 | R128: 0.001905 | S128: 0.00191 | T128: 0.001954 | U128: 0.002 | V128: 0.002121 | W128: 0.003092 | X128: 0.003873 | Y128: 0.00461 | Z128: 0.005343 | AA128: 0.006072 | AB128: 0.006798 | AC128: 0.007522 | AD128: 0.008247 | AE128: 0.008972 | AF128: 0.000196 | AG128: 0.000208 | AH128: 0.000458 | AI128: 0.000667 | AJ128: 0.000767 | AK128: 0.000797 | AL128: 0.000848 | AM128: 0.000925 | AN128: 0.001004 | AO128: 0.001451 | AP128: 0.0017 | AQ128: 0.001898 | AR128: 0.0021 | AS128: 0.002514 | AT128: 0.002922 | AU128: 0.003276 | AV128: 0.00364 | AW128: 0.004006 | AX128: 3.8e-05 | AY128: 8.2e-05 | AZ128: 0.000152 | BA128: 0.000197 | BB128: 0.000223 | BC128: 0.000251 | BD128: 0.000277 | BE128: 0.000328 | BF128: 0.000369 | BG128: 0.000776 | BH128: 0.001219 | BI128: 0.001671 | BJ128: 0.002123 | BK128: 0.002574 | BL128: 0.003022 | BM128: 0.00347 | BN128: 0.003916 | BO128: 0.004362 | BP128: 0 | BQ128: 0 | BR128: -2e-06 | BS128: -9e-06 | BT128: -1.9e-05 | BU128: -3.1e-05 | BV128: -4.5e-05 | BW128: -5.9e-05 | BX128: -9.6e-05 | BY128: -0.000133 | BZ128: -0.000245 | CA128: -0.000211 | CB128: -1.6e-05 | CC128: -4e-06 | CD128: 0.002089 | CE128: 0.000166 | CF128: 0.001153
A129: 17 | B129: 1.4e-05 | C129: 5.5e-05 | D129: 0.000145 | E129: 0.000344 | F129: 0.000495 | G129: 0.00061 | H129: 0.000716 | I129: 0.000833 | J129: 0.001054 | K129: 0.001256 | L129: 0.001945 | M129: 0.002299 | N129: 0.000704 | O129: 0.001058 | P129: 0.001573 | Q129: 0.001905 | R129: 0.00211 | S129: 0.002225 | T129: 0.002362 | U129: 0.002527 | V129: 0.002745 | W129: 0.004209 | X129: 0.005449 | Y129: 0.006627 | Z129: 0.007789 | AA129: 0.008937 | AB129: 0.010076 | AC129: 0.011209 | AD129: 0.01234 | AE129: 0.013471 | AF129: 0.00019 | AG129: 0.0002 | AH129: 0.0005 | AI129: 0.000805 | AJ129: 0.001002 | AK129: 0.00111 | AL129: 0.001242 | AM129: 0.00145 | AN129: 0.001633 | AO129: 0.002542 | AP129: 0.003199 | AQ129: 0.003792 | AR129: 0.004328 | AS129: 0.005208 | AT129: 0.005989 | AU129: 0.006607 | AV129: 0.007227 | AW129: 0.007849 | AX129: 4.3e-05 | AY129: 9.8e-05 | AZ129: 0.000196 | BA129: 0.000272 | BB129: 0.000329 | BC129: 0.000393 | BD129: 0.000454 | BE129: 0.000578 | BF129: 0.000674 | BG129: 0.001429 | BH129: 0.002188 | BI129: 0.002948 | BJ129: 0.003704 | BK129: 0.004456 | BL129: 0.005206 | BM129: 0.005954 | BN129: 0.006701 | BO129: 0.007447 | BP129: 0 | BQ129: 1e-06 | BR129: 0 | BS129: -5e-06 | BT129: -1.4e-05 | BU129: -2.4e-05 | BV129: -3.7e-05 | BW129: -5.1e-05 | BX129: -8.7e-05 | BY129: -0.000125 | BZ129: -0.000242 | CA129: -0.000239 | CB129: -1.1e-05 | CC129: -3e-06 | CD129: 0.002946 | CE129: -0.00027 | CF129: 0.000976
A130: 18 | B130: 1.4e-05 | C130: 6e-05 | D130: 0.000166 | E130: 0.000427 | F130: 0.000656 | G130: 0.000854 | H130: 0.001042 | I130: 0.001243 | J130: 0.001614 | K130: 0.001943 | L130: 0.003087 | M130: 0.003744 | N130: 0.000588 | O130: 0.000923 | P130: 0.001479 | Q130: 0.00191 | R130: 0.002225 | S130: 0.002436 | T130: 0.002658 | U130: 0.002942 | V130: 0.003254 | W130: 0.005139 | X130: 0.006732 | Y130: 0.008238 | Z130: 0.009717 | AA130: 0.011175 | AB130: 0.012618 | AC130: 0.014052 | AD130: 0.015484 | AE130: 0.016914 | AF130: 0.000186 | AG130: 0.000191 | AH130: 0.000529 | AI130: 0.00091 | AJ130: 0.001187 | AK130: 0.001362 | AL130: 0.001563 | AM130: 0.001882 | AN130: 0.00215 | AO130: 0.003418 | AP130: 0.00438 | AQ130: 0.005276 | AR130: 0.006089 | AS130: 0.007367 | AT130: 0.008482 | AU130: 0.009344 | AV130: 0.010191 | AW130: 0.011029 | AX130: 4.7e-05 | AY130: 0.000109 | AZ130: 0.000228 | BA130: 0.000328 | BB130: 0.00041 | BC130: 0.000502 | BD130: 0.000592 | BE130: 0.000771 | BF130: 0.00091 | BG130: 0.00193 | BH130: 0.002926 | BI130: 0.003917 | BJ130: 0.004902 | BK130: 0.005881 | BL130: 0.006857 | BM130: 0.007831 | BN130: 0.008804 | BO130: 0.009775 | BP130: 1e-06 | BQ130: 2e-06 | BR130: 3e-06 | BS130: 3e-06 | BT130: -2e-06 | BU130: -8e-06 | BV130: -1.7e-05 | BW130: -2.8e-05 | BX130: -5.5e-05 | BY130: -8.7e-05 | BZ130: -0.000205 | CA130: -0.000264 | CB130: -9e-06 | CC130: -2e-06 | CD130: 0.003613 | CE130: -0.000718 | CF130: 0.000922
A131: 19 | B131: 1.5e-05 | C131: 6.7e-05 | D131: 0.000189 | E131: 0.000505 | F131: 0.000802 | G131: 0.00107 | H131: 0.001327 | I131: 0.0016 | J131: 0.002101 | K131: 0.002541 | L131: 0.00408 | M131: 0.005001 | N131: 0.000515 | O131: 0.000847 | P131: 0.001444 | Q131: 0.001954 | R131: 0.002362 | S131: 0.002658 | T131: 0.002959 | U131: 0.003361 | V131: 0.00377 | W131: 0.006079 | X131: 0.007995 | Y131: 0.009789 | Z131: 0.01154 | AA131: 0.013262 | AB131: 0.014965 | AC131: 0.016658 | AD131: 0.018347 | AE131: 0.020035 | AF131: 0.000192 | AG131: 0.000191 | AH131: 0.000566 | AI131: 0.001018 | AJ131: 0.00137 | AK131: 0.001605 | AL131: 0.001868 | AM131: 0.002285 | AN131: 0.002628 | AO131: 0.00421 | AP131: 0.005423 | AQ131: 0.006571 | AR131: 0.007625 | AS131: 0.009263 | AT131: 0.01069 | AU131: 0.011786 | AV131: 0.012851 | AW131: 0.013895 | AX131: 5.2e-05 | AY131: 0.000122 | AZ131: 0.000261 | BA131: 0.000383 | BB131: 0.000487 | BC131: 0.000603 | BD131: 0.000718 | BE131: 0.000947 | BF131: 0.001123 | BG131: 0.002379 | BH131: 0.003588 | BI131: 0.004786 | BJ131: 0.005976 | BK131: 0.007159 | BL131: 0.008338 | BM131: 0.009514 | BN131: 0.010689 | BO131: 0.011862 | BP131: 1e-06 | BQ131: 4e-06 | BR131: 7e-06 | BS131: 1.1e-05 | BT131: 1.2e-05 | BU131: 1e-05 | BV131: 7e-06 | BW131: 1e-06 | BX131: -1.7e-05 | BY131: -4.2e-05 | BZ131: -0.000163 | CA131: -0.000293 | CB131: -1e-05 | CC131: -1e-06 | CD131: 0.004261 | CE131: -0.001162 | CF131: 0.001002
A132: 20 | B132: 1.7e-05 | C132: 7.6e-05 | D132: 0.000223 | E132: 0.000618 | F132: 0.00101 | G132: 0.001378 | H132: 0.001736 | I132: 0.002115 | J132: 0.002808 | K132: 0.003413 | L132: 0.005567 | M132: 0.00692 | N132: 0.000404 | O132: 0.000743 | P132: 0.001394 | Q132: 0.002 | R132: 0.002527 | S132: 0.002942 | T132: 0.003361 | U132: 0.003951 | V132: 0.004525 | W132: 0.007564 | X132: 0.009997 | Y132: 0.012212 | Z132: 0.014345 | AA132: 0.01643 | AB132: 0.018489 | AC132: 0.020536 | AD132: 0.022578 | AE132: 0.02462 | AF132: 0.000207 | AG132: 0.000192 | AH132: 0.000617 | AI132: 0.001172 | AJ132: 0.001632 | AK132: 0.001958 | AL132: 0.002314 | AM132: 0.002877 | AN132: 0.003331 | AO132: 0.005362 | AP132: 0.00692 | AQ132: 0.008404 | AR132: 0.009784 | AS132: 0.011931 | AT132: 0.013818 | AU132: 0.015276 | AV132: 0.016686 | AW132: 0.018059 | AX132: 6e-05 | AY132: 0.000142 | AZ132: 0.000311 | BA132: 0.000467 | BB132: 0.000603 | BC132: 0.000757 | BD132: 0.000909 | BE132: 0.001211 | BF132: 0.001443 | BG132: 0.003051 | BH132: 0.004575 | BI132: 0.006079 | BJ132: 0.007569 | BK132: 0.009051 | BL132: 0.010528 | BM132: 0.012002 | BN132: 0.013474 | BO132: 0.014944 | BP132: 2e-06 | BQ132: 6e-06 | BR132: 1.2e-05 | BS132: 2.5e-05 | BT132: 3.6e-05 | BU132: 4.4e-05 | BV132: 5.1e-05 | BW132: 5.5e-05 | BX132: 5.9e-05 | BY132: 5.1e-05 | BZ132: -7.8e-05 | CA132: -0.000334 | CB132: -1.5e-05 | CC132: 0 | CD132: 0.005275 | CE132: -0.001922 | CF132: 0.001292
A133: 21 | B133: 2e-05 | C133: 8.8e-05 | D133: 0.00026 | E133: 0.000729 | F133: 0.001207 | G133: 0.001666 | H133: 0.002117 | I133: 0.002594 | J133: 0.003465 | K133: 0.004229 | L133: 0.007012 | M133: 0.008837 | N133: 0.000341 | O133: 0.000708 | P133: 0.001429 | Q133: 0.002121 | R133: 0.002745 | S133: 0.003254 | T133: 0.00377 | U133: 0.004525 | V133: 0.00526 | W133: 0.009128 | X133: 0.012186 | Y133: 0.014899 | Z133: 0.017472 | AA133: 0.019971 | AB133: 0.022431 | AC133: 0.024874 | AD133: 0.027312 | AE133: 0.029749 | AF133: 0.000232 | AG133: 0.000201 | AH133: 0.000679 | AI133: 0.001335 | AJ133: 0.001899 | AK133: 0.002309 | AL133: 0.002753 | AM133: 0.003453 | AN133: 0.004012 | AO133: 0.006485 | AP133: 0.008377 | AQ133: 0.01016 | AR133: 0.011816 | AS133: 0.014413 | AT133: 0.016721 | AU133: 0.018531 | AV133: 0.020296 | AW133: 0.022022 | AX133: 7e-05 | AY133: 0.000165 | AZ133: 0.000366 | BA133: 0.000555 | BB133: 0.000724 | BC133: 0.000914 | BD133: 0.001103 | BE133: 0.001477 | BF133: 0.001764 | BG133: 0.003728 | BH133: 0.005575 | BI133: 0.007393 | BJ133: 0.009193 | BK133: 0.010982 | BL133: 0.012764 | BM133: 0.014543 | BN133: 0.01632 | BO133: 0.018095 | BP133: 2e-06 | BQ133: 6e-06 | BR133: 1.4e-05 | BS133: 3.4e-05 | BT133: 5.4e-05 | BU133: 7.1e-05 | BV133: 8.9e-05 | BW133: 0.000104 | BX133: 0.000129 | BY133: 0.000139 | BZ133: -1e-05 | CA133: -0.000377 | CB133: -2.3e-05 | CC133: 1e-06 | CD133: 0.006381 | CE133: -0.002643 | CF133: 0.001653
A134: 22 | B134: 4e-05 | C134: 0.000171 | D134: 0.000494 | E134: 0.001405 | F134: 0.0024 | G134: 0.003398 | H134: 0.004391 | I134: 0.00544 | J134: 0.007371 | K134: 0.009098 | L134: 0.016062 | M134: 0.021327 | N134: 0.000139 | O134: 0.000683 | P134: 0.001879 | Q134: 0.003092 | R134: 0.004209 | S134: 0.005139 | T134: 0.006079 | U134: 0.007564 | V134: 0.009128 | W134: 0.018768 | X134: 0.027315 | Y134: 0.034739 | Z134: 0.041555 | AA134: 0.048037 | AB134: 0.054344 | AC134: 0.060566 | AD134: 0.066749 | AE134: 0.072917 | AF134: 0.000399 | AG134: 0.000265 | AH134: 0.0011 | AI134: 0.00239 | AJ134: 0.003575 | AK134: 0.004478 | AL134: 0.005439 | AM134: 0.006966 | AN134: 0.008189 | AO134: 0.01364 | AP134: 0.017796 | AQ134: 0.021465 | AR134: 0.024712 | AS134: 0.029962 | AT134: 0.034784 | AU134: 0.038784 | AV134: 0.042862 | AW134: 0.046973 | AX134: 0.000135 | AY134: 0.000316 | AZ134: 0.000711 | BA134: 0.001105 | BB134: 0.001468 | BC134: 0.001879 | BD134: 0.00229 | BE134: 0.003106 | BF134: 0.003732 | BG134: 0.007938 | BH134: 0.011851 | BI134: 0.015683 | BJ134: 0.019471 | BK134: 0.023234 | BL134: 0.026983 | BM134: 0.030724 | BN134: 0.034459 | BO134: 0.038192 | BP134: 3e-06 | BQ134: 1.1e-05 | BR134: 2.6e-05 | BS134: 7.1e-05 | BT134: 0.000126 | BU134: 0.000186 | BV134: 0.000257 | BW134: 0.000326 | BX134: 0.000471 | BY134: 0.000578 | BZ134: 0.000288 | CA134: -0.000641 | CB134: -7.2e-05 | CC134: 1.5e-05 | CD134: 0.013719 | CE134: -0.006424 | CF134: 0.002903
A135: 23 | B135: 5.9e-05 | C135: 0.000249 | D135: 0.000716 | E135: 0.00205 | F135: 0.003542 | G135: 0.005052 | H135: 0.006551 | I135: 0.008125 | J135: 0.011019 | K135: 0.013622 | L135: 0.024525 | M135: 0.033155 | N135: -6.1e-05 | O135: 0.000572 | P135: 0.002157 | Q135: 0.003873 | R135: 0.005449 | S135: 0.006732 | T135: 0.007995 | U135: 0.009997 | V135: 0.012186 | W135: 0.027315 | X135: 0.042229 | Y135: 0.055651 | Z135: 0.068094 | AA135: 0.079942 | AB135: 0.091452 | AC135: 0.102779 | AD135: 0.11401 | AE135: 0.125192 | AF135: 0.000533 | AG135: 0.000288 | AH135: 0.001487 | AI135: 0.003402 | AJ135: 0.005171 | AK135: 0.00652 | AL135: 0.00795 | AM135: 0.010233 | AN135: 0.012082 | AO135: 0.020456 | AP135: 0.026846 | AQ135: 0.03235 | AR135: 0.037111 | AS135: 0.04486 | AT135: 0.05202 | AU135: 0.058037 | AV135: 0.064247 | AW135: 0.070559 | AX135: 0.000188 | AY135: 0.000442 | AZ135: 0.001008 | BA135: 0.001582 | BB135: 0.002116 | BC135: 0.002725 | BD135: 0.003333 | BE135: 0.004544 | BF135: 0.005478 | BG135: 0.011693 | BH135: 0.017461 | BI135: 0.023107 | BJ135: 0.028685 | BK135: 0.034225 | BL135: 0.039745 | BM135: 0.045252 | BN135: 0.050752 | BO135: 0.056247 | BP135: 1e-05 | BQ135: 2.9e-05 | BR135: 5.7e-05 | BS135: 0.000117 | BT135: 0.000183 | BU135: 0.000259 | BV135: 0.000356 | BW135: 0.000456 | BX135: 0.000684 | BY135: 0.000868 | BZ135: 0.000486 | CA135: -0.000854 | CB135: -9.8e-05 | CC135: 3.3e-05 | CD135: 0.020351 | CE135: -0.009264 | CF135: 0.002955
A136: 24 | B136: 7.5e-05 | C136: 0.000319 | D136: 0.000924 | E136: 0.002655 | F136: 0.00461 | G136: 0.006588 | H136: 0.008539 | I136: 0.010579 | J136: 0.014315 | K136: 0.01768 | L136: 0.031981 | M136: 0.043483 | N136: -0.000213 | O136: 0.00048 | P136: 0.002409 | Q136: 0.00461 | R136: 0.006627 | S136: 0.008238 | T136: 0.009789 | U136: 0.012212 | V136: 0.014899 | W136: 0.034739 | X136: 0.055651 | Y136: 0.075074 | Z136: 0.093326 | AA136: 0.110797 | AB136: 0.127793 | AC136: 0.144513 | AD136: 0.161076 | AE136: 0.177548 | AF136: 0.000631 | AG136: 0.000288 | AH136: 0.001857 | AI136: 0.004377 | AJ136: 0.006682 | AK136: 0.008422 | AL136: 0.010257 | AM136: 0.013189 | AN136: 0.015578 | AO136: 0.026531 | AP136: 0.034896 | AQ136: 0.04202 | AR136: 0.048109 | AS136: 0.058045 | AT136: 0.06723 | AU136: 0.074975 | AV136: 0.083007 | AW136: 0.091199 | AX136: 0.00023 | AY136: 0.000547 | AZ136: 0.001261 | BA136: 0.00199 | BB136: 0.002672 | BC136: 0.003449 | BD136: 0.004226 | BE136: 0.005777 | BF136: 0.006973 | BG136: 0.014906 | BH136: 0.022258 | BI136: 0.029453 | BJ136: 0.036559 | BK136: 0.043618 | BL136: 0.05065 | BM136: 0.057667 | BN136: 0.064674 | BO136: 0.071675 | BP136: 1.8e-05 | BQ136: 5.1e-05 | BR136: 9.3e-05 | BS136: 0.000163 | BT136: 0.000227 | BU136: 0.000302 | BV136: 0.000406 | BW136: 0.000518 | BX136: 0.000791 | BY136: 0.001021 | BZ136: 0.000557 | CA136: -0.001023 | CB136: -0.000106 | CC136: 5.2e-05 | CD136: 0.026016 | CE136: -0.011424 | CF136: 0.002628
A137: 25 | B137: 8.9e-05 | C137: 0.000385 | D137: 0.001121 | E137: 0.003236 | F137: 0.005632 | G137: 0.008049 | H137: 0.010422 | I137: 0.012891 | J137: 0.017399 | K137: 0.021461 | L137: 0.038853 | M137: 0.052942 | N137: -0.000329 | O137: 0.000419 | P137: 0.002673 | Q137: 0.005343 | R137: 0.007789 | S137: 0.009717 | T137: 0.01154 | U137: 0.014345 | V137: 0.017472 | W137: 0.041555 | X137: 0.068094 | Y137: 0.093326 | Z137: 0.117303 | AA137: 0.140366 | AB137: 0.162838 | AC137: 0.184948 | AD137: 0.20684 | AE137: 0.2286 | AF137: 0.000709 | AG137: 0.000279 | AH137: 0.002219 | AI137: 0.005329 | AJ137: 0.008144 | AK137: 0.010244 | AL137: 0.012449 | AM137: 0.015965 | AN137: 0.018841 | AO137: 0.032146 | AP137: 0.042315 | AQ137: 0.050917 | AR137: 0.058214 | AS137: 0.07014 | AT137: 0.081163 | AU137: 0.090471 | AV137: 0.100153 | AW137: 0.110046 | AX137: 0.000267 | AY137: 0.000642 | AZ137: 0.001491 | BA137: 0.002362 | BB137: 0.003177 | BC137: 0.004107 | BD137: 0.005037 | BE137: 0.006896 | BF137: 0.00833 | BG137: 0.017817 | BH137: 0.026602 | BI137: 0.035199 | BJ137: 0.043689 | BK137: 0.052122 | BL137: 0.060524 | BM137: 0.068906 | BN137: 0.077278 | BO137: 0.085641 | BP137: 2.5e-05 | BQ137: 7.1e-05 | BR137: 0.000127 | BS137: 0.000205 | BT137: 0.000263 | BU137: 0.00033 | BV137: 0.000434 | BW137: 0.000552 | BX137: 0.00085 | BY137: 0.001107 | BZ137: 0.000544 | CA137: -0.00117 | CB137: -0.000105 | CC137: 7e-05 | CD137: 0.031173 | CE137: -0.013312 | CF137: 0.002234
A138: 26 | B138: 0.000102 | C138: 0.000448 | D138: 0.001311 | E138: 0.0038 | F138: 0.006622 | G138: 0.00946 | H138: 0.012235 | I138: 0.015114 | J138: 0.020356 | K138: 0.025078 | L138: 0.045396 | M138: 0.06192 | N138: -0.000424 | O138: 0.000377 | P138: 0.002945 | Q138: 0.006072 | R138: 0.008937 | S138: 0.011175 | T138: 0.013262 | U138: 0.01643 | V138: 0.019971 | W138: 0.048037 | X138: 0.079942 | Y138: 0.110797 | Z138: 0.140366 | AA138: 0.168916 | AB138: 0.196771 | AC138: 0.224184 | AD138: 0.25132 | AE138: 0.278283 | AF138: 0.000776 | AG138: 0.000266 | AH138: 0.002574 | AI138: 0.006262 | AJ138: 0.009569 | AK138: 0.012012 | AL138: 0.014568 | AM138: 0.018634 | AN138: 0.021967 | AO138: 0.037492 | AP138: 0.049367 | AQ138: 0.059366 | AR138: 0.067803 | AS138: 0.081612 | AT138: 0.094371 | AU138: 0.105154 | AV138: 0.116392 | AW138: 0.127892 | AX138: 0.000301 | AY138: 0.00073 | AZ138: 0.001708 | BA138: 0.002714 | BB138: 0.003656 | BC138: 0.004729 | BD138: 0.005805 | BE138: 0.007952 | BF138: 0.00961 | BG138: 0.020564 | BH138: 0.030702 | BI138: 0.040621 | BJ138: 0.050417 | BK138: 0.060146 | BL138: 0.069839 | BM138: 0.079511 | BN138: 0.089169 | BO138: 0.098818 | BP138: 3.2e-05 | BQ138: 9.1e-05 | BR138: 0.000159 | BS138: 0.000243 | BT138: 0.000293 | BU138: 0.000353 | BV138: 0.000454 | BW138: 0.000574 | BX138: 0.000888 | BY138: 0.001164 | BZ138: 0.000487 | CA138: -0.001307 | CB138: -9.9e-05 | CC138: 8.8e-05 | CD138: 0.03607 | CE138: -0.015099 | CF138: 0.001852
A139: 27 | B139: 0.000114 | C139: 0.000509 | D139: 0.001497 | E139: 0.004352 | F139: 0.007591 | G139: 0.010841 | H139: 0.014008 | I139: 0.017285 | J139: 0.023239 | K139: 0.028603 | L139: 0.051758 | M139: 0.07064 | N139: -0.000508 | O139: 0.000346 | P139: 0.003221 | Q139: 0.006798 | R139: 0.010076 | S139: 0.012618 | T139: 0.014965 | U139: 0.018489 | V139: 0.022431 | W139: 0.054344 | X139: 0.091452 | Y139: 0.127793 | Z139: 0.162838 | AA139: 0.196771 | AB139: 0.229914 | AC139: 0.262537 | AD139: 0.294827 | AE139: 0.326902 | AF139: 0.000839 | AG139: 0.000251 | AH139: 0.002924 | AI139: 0.007181 | AJ139: 0.010969 | AK139: 0.013746 | AL139: 0.016644 | AM139: 0.021241 | AN139: 0.025017 | AO139: 0.042691 | AP139: 0.056219 | AQ139: 0.067573 | AR139: 0.077116 | AS139: 0.092752 | AT139: 0.107195 | AU139: 0.119408 | AV139: 0.132156 | AW139: 0.145214 | AX139: 0.000333 | AY139: 0.000816 | AZ139: 0.001919 | BA139: 0.003055 | BB139: 0.00412 | BC139: 0.005333 | BD139: 0.006549 | BE139: 0.008977 | BF139: 0.010852 | BG139: 0.023227 | BH139: 0.034675 | BI139: 0.045876 | BJ139: 0.056938 | BK139: 0.067924 | BL139: 0.078869 | BM139: 0.08979 | BN139: 0.100696 | BO139: 0.111592 | BP139: 3.9e-05 | BQ139: 0.00011 | BR139: 0.000189 | BS139: 0.00028 | BT139: 0.000322 | BU139: 0.000373 | BV139: 0.000471 | BW139: 0.000593 | BX139: 0.00092 | BY139: 0.00121 | BZ139: 0.00041 | CA139: -0.001441 | CB139: -9.3e-05 | CC139: 0.000106 | CD139: 0.040838 | CE139: -0.016852 | CF139: 0.001495
A140: 28 | B140: 0.000126 | C140: 0.000569 | D140: 0.001681 | E140: 0.004898 | F140: 0.008548 | G140: 0.012204 | H140: 0.015756 | I140: 0.019426 | J140: 0.026082 | K140: 0.032079 | L140: 0.058027 | M140: 0.079226 | N140: -0.000588 | O140: 0.00032 | P140: 0.0035 | Q140: 0.007522 | R140: 0.011209 | S140: 0.014052 | T140: 0.016658 | U140: 0.020536 | V140: 0.024874 | W140: 0.060566 | X140: 0.102779 | Y140: 0.144513 | Z140: 0.184948 | AA140: 0.224184 | AB140: 0.262537 | AC140: 0.300295 | AD140: 0.337665 | AE140: 0.374781 | AF140: 0.0009 | AG140: 0.000236 | AH140: 0.003271 | AI140: 0.008091 | AJ140: 0.012354 | AK140: 0.01546 | AL140: 0.018694 | AM140: 0.023816 | AN140: 0.028026 | AO140: 0.047815 | AP140: 0.062968 | AQ140: 0.075656 | AR140: 0.086289 | AS140: 0.103726 | AT140: 0.119829 | AU140: 0.133451 | AV140: 0.147684 | AW140: 0.162276 | AX140: 0.000365 | AY140: 0.000901 | AZ140: 0.002127 | BA140: 0.003392 | BB140: 0.004577 | BC140: 0.005928 | BD140: 0.007282 | BE140: 0.009987 | BF140: 0.012075 | BG140: 0.02585 | BH140: 0.038589 | BI140: 0.051052 | BJ140: 0.06336 | BK140: 0.075585 | BL140: 0.087763 | BM140: 0.099914 | BN140: 0.112049 | BO140: 0.124172 | BP140: 4.6e-05 | BQ140: 0.000128 | BR140: 0.000219 | BS140: 0.000315 | BT140: 0.00035 | BU140: 0.000393 | BV140: 0.000488 | BW140: 0.000611 | BX140: 0.000951 | BY140: 0.001253 | BZ140: 0.000326 | CA140: -0.001574 | CB140: -8.6e-05 | CC140: 0.000123 | CD140: 0.045548 | CE140: -0.018597 | CF140: 0.001162
A141: 29 | B141: 0.000139 | C141: 0.000628 | D141: 0.001863 | E141: 0.00544 | F141: 0.009499 | G141: 0.013557 | H141: 0.017492 | I141: 0.021551 | J141: 0.028905 | K141: 0.035529 | L141: 0.064248 | M141: 0.087745 | N141: -0.000665 | O141: 0.000299 | P141: 0.003783 | Q141: 0.008247 | R141: 0.01234 | S141: 0.015484 | T141: 0.018347 | U141: 0.022578 | V141: 0.027312 | W141: 0.066749 | X141: 0.11401 | Y141: 0.161076 | Z141: 0.20684 | AA141: 0.25132 | AB141: 0.294827 | AC141: 0.337665 | AD141: 0.380061 | AE141: 0.422163 | AF141: 0.00096 | AG141: 0.000223 | AH141: 0.003616 | AI141: 0.008995 | AJ141: 0.013731 | AK141: 0.017164 | AL141: 0.020732 | AM141: 0.026374 | AN141: 0.031015 | AO141: 0.052901 | AP141: 0.069666 | AQ141: 0.083678 | AR141: 0.095395 | AS141: 0.114621 | AT141: 0.132373 | AU141: 0.147395 | AV141: 0.163102 | AW141: 0.179216 | AX141: 0.000397 | AY141: 0.000985 | AZ141: 0.002334 | BA141: 0.003727 | BB141: 0.005032 | BC141: 0.00652 | BD141: 0.008011 | BE141: 0.010989 | BF141: 0.01329 | BG141: 0.028454 | BH141: 0.042476 | BI141: 0.056193 | BJ141: 0.069739 | BK141: 0.083193 | BL141: 0.096596 | BM141: 0.10997 | BN141: 0.123325 | BO141: 0.136668 | BP141: 5.3e-05 | BQ141: 0.000146 | BR141: 0.000247 | BS141: 0.000349 | BT141: 0.000377 | BU141: 0.000413 | BV141: 0.000505 | BW141: 0.000629 | BX141: 0.000982 | BY141: 0.001296 | BZ141: 0.000241 | CA141: -0.001707 | CB141: -8e-05 | CC141: 0.000141 | CD141: 0.050233 | CE141: -0.020343 | CF141: 0.00085
A142: 30 | B142: 0.000151 | C142: 0.000688 | D142: 0.002045 | E142: 0.00598 | F142: 0.010445 | G142: 0.014904 | H142: 0.019221 | I142: 0.023668 | J142: 0.031716 | K142: 0.038966 | L142: 0.070446 | M142: 0.09623 | N142: -0.00074 | O142: 0.00028 | P142: 0.004068 | Q142: 0.008972 | R142: 0.013471 | S142: 0.016914 | T142: 0.020035 | U142: 0.02462 | V142: 0.029749 | W142: 0.072917 | X142: 0.125192 | Y142: 0.177548 | Z142: 0.2286 | AA142: 0.278283 | AB142: 0.326902 | AC142: 0.374781 | AD142: 0.422163 | AE142: 0.469211 | AF142: 0.001021 | AG142: 0.00021 | AH142: 0.003961 | AI142: 0.009896 | AJ142: 0.015102 | AK142: 0.018861 | AL142: 0.022763 | AM142: 0.028924 | AN142: 0.033995 | AO142: 0.05797 | AP142: 0.07634 | AQ142: 0.091674 | AR142: 0.104471 | AS142: 0.125482 | AT142: 0.144879 | AU142: 0.161296 | AV142: 0.178474 | AW142: 0.196104 | AX142: 0.000429 | AY142: 0.00107 | AZ142: 0.002541 | BA142: 0.004061 | BB142: 0.005486 | BC142: 0.00711 | BD142: 0.008737 | BE142: 0.01199 | BF142: 0.014502 | BG142: 0.031052 | BH142: 0.046352 | BI142: 0.061321 | BJ142: 0.076102 | BK142: 0.090782 | BL142: 0.105407 | BM142: 0.119999 | BN142: 0.134572 | BO142: 0.149131 | BP142: 5.9e-05 | BQ142: 0.000163 | BR142: 0.000276 | BS142: 0.000383 | BT142: 0.000405 | BU142: 0.000433 | BV142: 0.000523 | BW142: 0.000648 | BX142: 0.001014 | BY142: 0.001341 | BZ142: 0.000157 | CA142: -0.00184 | CB142: -7.3e-05 | CC142: 0.000158 | CD142: 0.05491 | CE142: -0.022095 | CF142: 0.000555
A143: 31 | B143: 4e-06 | C143: 1.3e-05 | D143: 2.7e-05 | E143: 4.6e-05 | F143: 5.3e-05 | G143: 5.3e-05 | H143: 4.9e-05 | I143: 4.2e-05 | J143: 2.6e-05 | K143: 9e-06 | L143: -7.6e-05 | M143: -0.000174 | N143: 0.000123 | O143: 0.000157 | P143: 0.000194 | Q143: 0.000196 | R143: 0.00019 | S143: 0.000186 | T143: 0.000192 | U143: 0.000207 | V143: 0.000232 | W143: 0.000399 | X143: 0.000533 | Y143: 0.000631 | Z143: 0.000709 | AA143: 0.000776 | AB143: 0.000839 | AC143: 0.0009 | AD143: 0.00096 | AE143: 0.001021 | AF143: 0.000362 | AG143: 0.000172 | AH143: 0.000169 | AI143: 0.000215 | AJ143: 0.00023 | AK143: 0.000226 | AL143: 0.000229 | AM143: 0.000232 | AN143: 0.000242 | AO143: 0.000341 | AP143: 0.000463 | AQ143: 0.000641 | AR143: 0.000842 | AS143: 0.001086 | AT143: 0.001238 | AU143: 0.001265 | AV143: 0.001214 | AW143: 0.001108 | AX143: 6e-06 | AY143: 1.2e-05 | AZ143: 2.1e-05 | BA143: 2.6e-05 | BB143: 2.8e-05 | BC143: 2.8e-05 | BD143: 2.6e-05 | BE143: 2.2e-05 | BF143: 1.8e-05 | BG143: 2.3e-05 | BH143: 6.5e-05 | BI143: 0.000123 | BJ143: 0.000188 | BK143: 0.000253 | BL143: 0.000319 | BM143: 0.000385 | BN143: 0.00045 | BO143: 0.000515 | BP143: 1e-06 | BQ143: 4e-06 | BR143: 8e-06 | BS143: 1.7e-05 | BT143: 2.4e-05 | BU143: 3e-05 | BV143: 3.6e-05 | BW143: 4.3e-05 | BX143: 6.3e-05 | BY143: 9.1e-05 | BZ143: 0.000222 | CA143: 2.4e-05 | CB143: -3e-06 | CC143: -1e-06 | CD143: 0.000442 | CE143: -0.000403 | CF143: 0.000476
A144: 32 | B144: 4e-06 | C144: 1.5e-05 | D144: 3.2e-05 | E144: 4.8e-05 | F144: 4.5e-05 | G144: 3.3e-05 | H144: 1.9e-05 | I144: 6e-06 | J144: -1.9e-05 | K144: -4.2e-05 | L144: -0.000174 | M144: -0.000308 | N144: 0.000148 | O144: 0.00018 | P144: 0.000208 | Q144: 0.000208 | R144: 0.0002 | S144: 0.000191 | T144: 0.000191 | U144: 0.000192 | V144: 0.000201 | W144: 0.000265 | X144: 0.000288 | Y144: 0.000288 | Z144: 0.000279 | AA144: 0.000266 | AB144: 0.000251 | AC144: 0.000236 | AD144: 0.000223 | AE144: 0.00021 | AF144: 0.000172 | AG144: 0.000161 | AH144: 0.000188 | AI144: 0.000191 | AJ144: 0.000183 | AK144: 0.000175 | AL144: 0.00018 | AM144: 0.000196 | AN144: 0.000213 | AO144: 0.000271 | AP144: 0.0003 | AQ144: 0.000388 | AR144: 0.00053 | AS144: 0.000733 | AT144: 0.000899 | AU144: 0.000988 | AV144: 0.001022 | AW144: 0.001014 | AX144: 1.2e-05 | AY144: 2.4e-05 | AZ144: 4e-05 | BA144: 4.8e-05 | BB144: 5.1e-05 | BC144: 5.3e-05 | BD144: 5.4e-05 | BE144: 5.5e-05 | BF144: 5.3e-05 | BG144: 7.7e-05 | BH144: 0.000109 | BI144: 0.000145 | BJ144: 0.000182 | BK144: 0.000218 | BL144: 0.000255 | BM144: 0.000291 | BN144: 0.000328 | BO144: 0.000364 | BP144: 1e-06 | BQ144: 3e-06 | BR144: 6e-06 | BS144: 1.2e-05 | BT144: 1.6e-05 | BU144: 1.9e-05 | BV144: 2.3e-05 | BW144: 2.7e-05 | BX144: 3.8e-05 | BY144: 5.2e-05 | BZ144: 0.000113 | CA144: 1e-06 | CB144: -1.8e-05 | CC144: 2e-06 | CD144: 0.000321 | CE144: -0.000133 | CF144: 0.000261
A145: 33 | B145: 7e-06 | C145: 3.3e-05 | D145: 8.6e-05 | E145: 0.000195 | F145: 0.000273 | G145: 0.000326 | H145: 0.000367 | I145: 0.000407 | J145: 0.000469 | K145: 0.000517 | L145: 0.000637 | M145: 0.000664 | N145: 0.000218 | O145: 0.000298 | P145: 0.000397 | Q145: 0.000458 | R145: 0.0005 | S145: 0.000529 | T145: 0.000566 | U145: 0.000617 | V145: 0.000679 | W145: 0.0011 | X145: 0.001487 | Y145: 0.001857 | Z145: 0.002219 | AA145: 0.002574 | AB145: 0.002924 | AC145: 0.003271 | AD145: 0.003616 | AE145: 0.003961 | AF145: 0.000169 | AG145: 0.000188 | AH145: 0.000374 | AI145: 0.000523 | AJ145: 0.000605 | AK145: 0.000641 | AL145: 0.000694 | AM145: 0.000767 | AN145: 0.000823 | AO145: 0.001069 | AP145: 0.001256 | AQ145: 0.001525 | AR145: 0.001855 | AS145: 0.002367 | AT145: 0.002821 | AU145: 0.003146 | AV145: 0.003414 | AW145: 0.003633 | AX145: 2.6e-05 | AY145: 5.7e-05 | AZ145: 0.000111 | BA145: 0.000152 | BB145: 0.00018 | BC145: 0.000208 | BD145: 0.000234 | BE145: 0.000279 | BF145: 0.000307 | BG145: 0.000559 | BH145: 0.000817 | BI145: 0.001079 | BJ145: 0.001341 | BK145: 0.001602 | BL145: 0.001862 | BM145: 0.002121 | BN145: 0.002381 | BO145: 0.00264 | BP145: 1e-06 | BQ145: 3e-06 | BR145: 5e-06 | BS145: 1e-05 | BT145: 1.5e-05 | BU145: 2e-05 | BV145: 2.4e-05 | BW145: 2.8e-05 | BX145: 3.7e-05 | BY145: 4.5e-05 | BZ145: 8.7e-05 | CA145: -6.8e-05 | CB145: -3.3e-05 | CC145: 7e-06 | CD145: 0.000975 | CE145: -0.000177 | CF145: 0.000515
A146: 34 | B146: 1e-05 | C146: 4.9e-05 | D146: 0.000143 | E146: 0.000374 | F146: 0.000579 | G146: 0.000749 | H146: 0.000895 | I146: 0.001038 | J146: 0.001276 | K146: 0.001474 | L146: 0.002218 | M146: 0.002728 | N146: 0.000205 | O146: 0.000316 | P146: 0.000503 | Q146: 0.000667 | R146: 0.000805 | S146: 0.00091 | T146: 0.001018 | U146: 0.001172 | V146: 0.001335 | W146: 0.00239 | X146: 0.003402 | Y146: 0.004377 | Z146: 0.005329 | AA146: 0.006262 | AB146: 0.007181 | AC146: 0.008091 | AD146: 0.008995 | AE146: 0.009896 | AF146: 0.000215 | AG146: 0.000191 | AH146: 0.000523 | AI146: 0.000877 | AJ146: 0.001115 | AK146: 0.001245 | AL146: 0.001387 | AM146: 0.001573 | AN146: 0.001702 | AO146: 0.002304 | AP146: 0.002856 | AQ146: 0.003531 | AR146: 0.004253 | AS146: 0.005334 | AT146: 0.006273 | AU146: 0.006955 | AV146: 0.007553 | AW146: 0.008083 | AX146: 3.8e-05 | AY146: 8.8e-05 | AZ146: 0.000185 | BA146: 0.000268 | BB146: 0.000333 | BC146: 0.000402 | BD146: 0.000465 | BE146: 0.000584 | BF146: 0.000664 | BG146: 0.001275 | BH146: 0.001878 | BI146: 0.002484 | BJ146: 0.003089 | BK146: 0.003691 | BL146: 0.004291 | BM146: 0.00489 | BN146: 0.005489 | BO146: 0.006086 | BP146: 0 | BQ146: 0 | BR146: 2e-06 | BS146: 1e-05 | BT146: 2.1e-05 | BU146: 3.2e-05 | BV146: 4.3e-05 | BW146: 5.2e-05 | BX146: 6.9e-05 | BY146: 8.1e-05 | BZ146: 8.8e-05 | CA146: -0.000139 | CB146: -4.3e-05 | CC146: 1.2e-05 | CD146: 0.001973 | CE146: -0.000621 | CF146: 0.000712
A147: 35 | B147: 1.2e-05 | C147: 6.1e-05 | D147: 0.000186 | E147: 0.000517 | F147: 0.000841 | G147: 0.001128 | H147: 0.001384 | I147: 0.001637 | J147: 0.002066 | K147: 0.00243 | L147: 0.003881 | M147: 0.004971 | N147: 0.00014 | O147: 0.000256 | P147: 0.000507 | Q147: 0.000767 | R147: 0.001002 | S147: 0.001187 | T147: 0.00137 | U147: 0.001632 | V147: 0.001899 | W147: 0.003575 | X147: 0.005171 | Y147: 0.006682 | Z147: 0.008144 | AA147: 0.009569 | AB147: 0.010969 | AC147: 0.012354 | AD147: 0.013731 | AE147: 0.015102 | AF147: 0.00023 | AG147: 0.000183 | AH147: 0.000605 | AI147: 0.001115 | AJ147: 0.001496 | AK147: 0.00173 | AL147: 0.001975 | AM147: 0.002305 | AN147: 0.002529 | AO147: 0.003508 | AP147: 0.004426 | AQ147: 0.00553 | AR147: 0.006681 | AS147: 0.008374 | AT147: 0.009832 | AU147: 0.010891 | AV147: 0.011824 | AW147: 0.01266 | AX147: 4.7e-05 | AY147: 0.000112 | AZ147: 0.000246 | BA147: 0.000367 | BB147: 0.000468 | BC147: 0.000577 | BD147: 0.00068 | BE147: 0.000874 | BF147: 0.00101 | BG147: 0.001984 | BH147: 0.002917 | BI147: 0.003848 | BJ147: 0.004773 | BK147: 0.005694 | BL147: 0.006612 | BM147: 0.007528 | BN147: 0.008444 | BO147: 0.009358 | BP147: -1e-06 | BQ147: -1e-06 | BR147: 0 | BS147: 1.2e-05 | BT147: 3e-05 | BU147: 4.9e-05 | BV147: 6.8e-05 | BW147: 8.4e-05 | BX147: 0.000114 | BY147: 0.000132 | BZ147: 9.5e-05 | CA147: -0.000187 | CB147: -5.2e-05 | CC147: 1.5e-05 | CD147: 0.002905 | CE147: -0.001189 | CF147: 0.000713
A148: 36 | B148: 1.3e-05 | C148: 6.9e-05 | D148: 0.000213 | E148: 0.000614 | F148: 0.001028 | G148: 0.001409 | H148: 0.001756 | I148: 0.002102 | J148: 0.002695 | K148: 0.003203 | L148: 0.005258 | M148: 0.006857 | N148: 6.4e-05 | O148: 0.000171 | P148: 0.000462 | Q148: 0.000797 | R148: 0.00111 | S148: 0.001362 | T148: 0.001605 | U148: 0.001958 | V148: 0.002309 | W148: 0.004478 | X148: 0.00652 | Y148: 0.008422 | Z148: 0.010244 | AA148: 0.012012 | AB148: 0.013746 | AC148: 0.01546 | AD148: 0.017164 | AE148: 0.018861 | AF148: 0.000226 | AG148: 0.000175 | AH148: 0.000641 | AI148: 0.001245 | AJ148: 0.00173 | AK148: 0.002055 | AL148: 0.002392 | AM148: 0.002864 | AN148: 0.003186 | AO148: 0.004502 | AP148: 0.005715 | AQ148: 0.007177 | AR148: 0.008701 | AS148: 0.010925 | AT148: 0.012835 | AU148: 0.014215 | AV148: 0.015425 | AW148: 0.016505 | AX148: 5.4e-05 | AY148: 0.000129 | AZ148: 0.00029 | BA148: 0.000441 | BB148: 0.00057 | BC148: 0.000713 | BD148: 0.000848 | BE148: 0.001107 | BF148: 0.001291 | BG148: 0.002564 | BH148: 0.003763 | BI148: 0.004951 | BJ148: 0.00613 | BK148: 0.007302 | BL148: 0.00847 | BM148: 0.009636 | BN148: 0.0108 | BO148: 0.011964 | BP148: -1e-06 | BQ148: -2e-06 | BR148: 0 | BS148: 1.5e-05 | BT148: 3.8e-05 | BU148: 6.4e-05 | BV148: 9e-05 | BW148: 0.000113 | BX148: 0.000154 | BY148: 0.000179 | BZ148: 0.00011 | CA148: -0.00021 | CB148: -5.7e-05 | CC148: 1.7e-05 | CD148: 0.003648 | CE148: -0.001733 | CF148: 0.000595
A149: 37 | B149: 1.5e-05 | C149: 7.8e-05 | D149: 0.000242 | E149: 0.000715 | F149: 0.001221 | G149: 0.001699 | H149: 0.002141 | I149: 0.002583 | J149: 0.003346 | K149: 0.004001 | L149: 0.006669 | M149: 0.008773 | N149: -4e-06 | O149: 9.8e-05 | P149: 0.000433 | Q149: 0.000848 | R149: 0.001242 | S149: 0.001563 | T149: 0.001868 | U149: 0.002314 | V149: 0.002753 | W149: 0.005439 | X149: 0.00795 | Y149: 0.010257 | Z149: 0.012449 | AA149: 0.014568 | AB149: 0.016644 | AC149: 0.018694 | AD149: 0.020732 | AE149: 0.022763 | AF149: 0.000229 | AG149: 0.00018 | AH149: 0.000694 | AI149: 0.001387 | AJ149: 0.001975 | AK149: 0.002392 | AL149: 0.002829 | AM149: 0.00346 | AN149: 0.003898 | AO149: 0.005601 | AP149: 0.007124 | AQ149: 0.008967 | AR149: 0.010897 | AS149: 0.013704 | AT149: 0.016108 | AU149: 0.017837 | AV149: 0.019342 | AW149: 0.020676 | AX149: 6.2e-05 | AY149: 0.000149 | AZ149: 0.000338 | BA149: 0.000521 | BB149: 0.000682 | BC149: 0.000859 | BD149: 0.00103 | BE149: 0.001357 | BF149: 0.001593 | BG149: 0.003187 | BH149: 0.004671 | BI149: 0.006134 | BJ149: 0.007583 | BK149: 0.009024 | BL149: 0.01046 | BM149: 0.011893 | BN149: 0.013324 | BO149: 0.014754 | BP149: -1e-06 | BQ149: -2e-06 | BR149: 1e-06 | BS149: 2e-05 | BT149: 4.9e-05 | BU149: 8e-05 | BV149: 0.000113 | BW149: 0.000142 | BX149: 0.000196 | BY149: 0.00023 | BZ149: 0.000144 | CA149: -0.000226 | CB149: -6.2e-05 | CC149: 1.9e-05 | CD149: 0.004472 | CE149: -0.002338 | CF149: 0.000469
A150: 38 | B150: 1.8e-05 | C150: 9e-05 | D150: 0.000283 | E150: 0.000855 | F150: 0.001495 | G150: 0.00212 | H150: 0.00271 | I150: 0.003304 | J150: 0.004337 | K150: 0.005224 | L150: 0.00883 | M150: 0.011697 | N150: -0.000116 | O150: -2.5e-05 | P150: 0.000383 | Q150: 0.000925 | R150: 0.00145 | S150: 0.001882 | T150: 0.002285 | U150: 0.002877 | V150: 0.003453 | W150: 0.006966 | X150: 0.010233 | Y150: 0.013189 | Z150: 0.015965 | AA150: 0.018634 | AB150: 0.021241 | AC150: 0.023816 | AD150: 0.026374 | AE150: 0.028924 | AF150: 0.000232 | AG150: 0.000196 | AH150: 0.000767 | AI150: 0.001573 | AJ150: 0.002305 | AK150: 0.002864 | AL150: 0.00346 | AM150: 0.004367 | AN150: 0.005022 | AO150: 0.007451 | AP150: 0.0095 | AQ150: 0.011966 | AR150: 0.014562 | AS150: 0.018333 | AT150: 0.021552 | AU150: 0.023845 | AV150: 0.02582 | AW150: 0.027549 | AX150: 7.4e-05 | AY150: 0.000178 | AZ150: 0.00041 | BA150: 0.000641 | BB150: 0.00085 | BC150: 0.001083 | BD150: 0.00131 | BE150: 0.001748 | BF150: 0.002067 | BG150: 0.004183 | BH150: 0.006126 | BI150: 0.008031 | BJ150: 0.009913 | BK150: 0.011784 | BL150: 0.013648 | BM150: 0.015508 | BN150: 0.017366 | BO150: 0.019223 | BP150: 0 | BQ150: 1e-06 | BR150: 6e-06 | BS150: 3.2e-05 | BT150: 6.8e-05 | BU150: 0.000106 | BV150: 0.000148 | BW150: 0.000185 | BX150: 0.00026 | BY150: 0.000313 | BZ150: 0.000245 | CA150: -0.000226 | CB150: -6e-05 | CC150: 2.1e-05 | CD150: 0.005853 | CE150: -0.003411 | CF150: 0.000203
A151: 39 | B151: 2e-05 | C151: 9.9e-05 | D151: 0.000311 | E151: 0.000948 | F151: 0.00168 | G151: 0.002408 | H151: 0.003106 | I151: 0.003811 | J151: 0.005045 | K151: 0.006105 | L151: 0.010379 | M151: 0.013764 | N151: -0.000199 | O151: -0.000117 | P151: 0.000356 | Q151: 0.001004 | R151: 0.001633 | S151: 0.00215 | T151: 0.002628 | U151: 0.003331 | V151: 0.004012 | W151: 0.008189 | X151: 0.012082 | Y151: 0.015578 | Z151: 0.018841 | AA151: 0.021967 | AB151: 0.025017 | AC151: 0.028026 | AD151: 0.031015 | AE151: 0.033995 | AF151: 0.000242 | AG151: 0.000213 | AH151: 0.000823 | AI151: 0.001702 | AJ151: 0.002529 | AK151: 0.003186 | AL151: 0.003898 | AM151: 0.005022 | AN151: 0.005861 | AO151: 0.008975 | AP151: 0.011504 | AQ151: 0.014483 | AR151: 0.017604 | AS151: 0.022136 | AT151: 0.025994 | AU151: 0.028725 | AV151: 0.031063 | AW151: 0.033098 | AX151: 8.3e-05 | AY151: 0.000199 | AZ151: 0.000461 | BA151: 0.000727 | BB151: 0.000971 | BC151: 0.001245 | BD151: 0.001514 | BE151: 0.002037 | BF151: 0.002422 | BG151: 0.004947 | BH151: 0.007253 | BI151: 0.009507 | BJ151: 0.011733 | BK151: 0.013943 | BL151: 0.016145 | BM151: 0.018342 | BN151: 0.020537 | BO151: 0.022731 | BP151: 1e-06 | BQ151: 5e-06 | BR151: 1.4e-05 | BS151: 4.4e-05 | BT151: 8.4e-05 | BU151: 0.000125 | BV151: 0.000171 | BW151: 0.000214 | BX151: 0.000304 | BY151: 0.000376 | BZ151: 0.000371 | CA151: -0.000208 | CB151: -5e-05 | CC151: 2.1e-05 | CD151: 0.007005 | CE151: -0.004292 | CF151: 3e-06
A152: 40 | B152: 2.9e-05 | C152: 0.000136 | D152: 0.00042 | E152: 0.001305 | F152: 0.002376 | G152: 0.003488 | H152: 0.004586 | I152: 0.005714 | J152: 0.007721 | K152: 0.009452 | L152: 0.016273 | M152: 0.021562 | N152: -0.000549 | O152: -0.000498 | P152: 0.000305 | Q152: 0.001451 | R152: 0.002542 | S152: 0.003418 | T152: 0.00421 | U152: 0.005362 | V152: 0.006485 | W152: 0.01364 | X152: 0.020456 | Y152: 0.026531 | Z152: 0.032146 | AA152: 0.037492 | AB152: 0.042691 | AC152: 0.047815 | AD152: 0.052901 | AE152: 0.05797 | AF152: 0.000341 | AG152: 0.000271 | AH152: 0.001069 | AI152: 0.002304 | AJ152: 0.003508 | AK152: 0.004502 | AL152: 0.005601 | AM152: 0.007451 | AN152: 0.008975 | AO152: 0.015602 | AP152: 0.021265 | AQ152: 0.027144 | AR152: 0.03271 | AS152: 0.040532 | AT152: 0.046951 | AU152: 0.051332 | AV152: 0.055081 | AW152: 0.058366 | AX152: 0.000121 | AY152: 0.000284 | AZ152: 0.000662 | BA152: 0.001062 | BB152: 0.001444 | BC152: 0.00188 | BD152: 0.002316 | BE152: 0.003183 | BF152: 0.003844 | BG152: 0.008151 | BH152: 0.012091 | BI152: 0.015927 | BJ152: 0.019708 | BK152: 0.023459 | BL152: 0.027196 | BM152: 0.030924 | BN152: 0.034648 | BO152: 0.038368 | BP152: 2e-06 | BQ152: 8e-06 | BR152: 1.8e-05 | BS152: 4.9e-05 | BT152: 9.2e-05 | BU152: 0.000143 | BV152: 0.000206 | BW152: 0.000272 | BX152: 0.000429 | BY152: 0.000582 | BZ152: 0.000827 | CA152: -0.000213 | CB152: 7e-06 | CC152: 2.4e-05 | CD152: 0.012212 | CE152: -0.0075 | CF152: -0.000357
A153: 41 | B153: 3.6e-05 | C153: 0.000166 | D153: 0.000517 | E153: 0.001636 | F153: 0.003022 | G153: 0.004484 | H153: 0.005937 | I153: 0.007435 | J153: 0.010104 | K153: 0.012408 | L153: 0.021469 | M153: 0.02853 | N153: -0.000927 | O153: -0.000963 | P153: 0.000105 | Q153: 0.0017 | R153: 0.003199 | S153: 0.00438 | T153: 0.005423 | U153: 0.00692 | V153: 0.008377 | W153: 0.017796 | X153: 0.026846 | Y153: 0.034896 | Z153: 0.042315 | AA153: 0.049367 | AB153: 0.056219 | AC153: 0.062968 | AD153: 0.069666 | AE153: 0.07634 | AF153: 0.000463 | AG153: 0.0003 | AH153: 0.001256 | AI153: 0.002856 | AJ153: 0.004426 | AK153: 0.005715 | AL153: 0.007124 | AM153: 0.0095 | AN153: 0.011504 | AO153: 0.021265 | AP153: 0.030722 | AQ153: 0.04041 | AR153: 0.04907 | AS153: 0.060504 | AT153: 0.06936 | AU153: 0.074951 | AV153: 0.079545 | AW153: 0.083487 | AX153: 0.000157 | AY153: 0.000365 | AZ153: 0.000848 | BA153: 0.00137 | BB153: 0.001876 | BC153: 0.002459 | BD153: 0.003048 | BE153: 0.004227 | BF153: 0.005143 | BG153: 0.011106 | BH153: 0.016581 | BI153: 0.021911 | BJ153: 0.02716 | BK153: 0.032369 | BL153: 0.037556 | BM153: 0.042731 | BN153: 0.047898 | BO153: 0.053061 | BP153: -5e-06 | BQ153: -1.5e-05 | BR153: -2.4e-05 | BS153: -1.8e-05 | BT153: 2.3e-05 | BU153: 8.8e-05 | BV153: 0.00017 | BW153: 0.000258 | BX153: 0.000459 | BY153: 0.000645 | BZ153: 0.000789 | CA153: -0.000356 | CB153: 1.4e-05 | CC153: 3.4e-05 | CD153: 0.016636 | CE153: -0.010124 | CF153: -0.000804
A154: 42 | B154: 4.5e-05 | C154: 0.000206 | D154: 0.000638 | E154: 0.002027 | F154: 0.003766 | G154: 0.005609 | H154: 0.00744 | I154: 0.009321 | J154: 0.012661 | K154: 0.015529 | L154: 0.026781 | M154: 0.035587 | N154: -0.001251 | O154: -0.001397 | P154: -0.000115 | Q154: 0.001898 | R154: 0.003792 | S154: 0.005276 | T154: 0.006571 | U154: 0.008404 | V154: 0.01016 | W154: 0.021465 | X154: 0.03235 | Y154: 0.04202 | Z154: 0.050917 | AA154: 0.059366 | AB154: 0.067573 | AC154: 0.075656 | AD154: 0.083678 | AE154: 0.091674 | AF154: 0.000641 | AG154: 0.000388 | AH154: 0.001525 | AI154: 0.003531 | AJ154: 0.00553 | AK154: 0.007177 | AL154: 0.008967 | AM154: 0.011966 | AN154: 0.014483 | AO154: 0.027144 | AP154: 0.04041 | AQ154: 0.054617 | AR154: 0.06756 | AS154: 0.084141 | AT154: 0.096791 | AU154: 0.104494 | AV154: 0.110505 | AW154: 0.115421 | AX154: 0.000204 | AY154: 0.000467 | AZ154: 0.001074 | BA154: 0.001728 | BB154: 0.002366 | BC154: 0.003103 | BD154: 0.00385 | BE154: 0.005352 | BF154: 0.006526 | BG154: 0.014171 | BH154: 0.021189 | BI154: 0.028014 | BJ154: 0.034735 | BK154: 0.041403 | BL154: 0.048043 | BM154: 0.054667 | BN154: 0.061282 | BO154: 0.067891 | BP154: -1.1e-05 | BQ154: -3.2e-05 | BR154: -5.6e-05 | BS154: -6.1e-05 | BT154: -9e-06 | BU154: 7.8e-05 | BV154: 0.000187 | BW154: 0.000303 | BX154: 0.000561 | BY154: 0.000787 | BZ154: 0.000789 | CA154: -0.000507 | CB154: 1e-06 | CC154: 4.9e-05 | CD154: 0.020983 | CE154: -0.013671 | CF154: -0.001778
A155: 43 | B155: 5.7e-05 | C155: 0.000254 | D155: 0.000768 | E155: 0.002404 | F155: 0.004459 | G155: 0.006641 | H155: 0.008804 | I155: 0.011019 | J155: 0.014931 | K155: 0.018273 | L155: 0.031337 | M155: 0.041533 | N155: -0.001436 | O155: -0.00167 | P155: -0.000238 | Q155: 0.0021 | R155: 0.004328 | S155: 0.006089 | T155: 0.007625 | U155: 0.009784 | V155: 0.011816 | W155: 0.024712 | X155: 0.037111 | Y155: 0.048109 | Z155: 0.058214 | AA155: 0.067803 | AB155: 0.077116 | AC155: 0.086289 | AD155: 0.095395 | AE155: 0.104471 | AF155: 0.000842 | AG155: 0.00053 | AH155: 0.001855 | AI155: 0.004253 | AJ155: 0.006681 | AK155: 0.008701 | AL155: 0.010897 | AM155: 0.014562 | AN155: 0.017604 | AO155: 0.03271 | AP155: 0.04907 | AQ155: 0.06756 | AR155: 0.085339 | AS155: 0.108302 | AT155: 0.126464 | AU155: 0.138034 | AV155: 0.147078 | AW155: 0.15437 | AX155: 0.000258 | AY155: 0.000582 | AZ155: 0.001312 | BA155: 0.002084 | BB155: 0.002834 | BC155: 0.003704 | BD155: 0.004586 | BE155: 0.006367 | BF155: 0.007762 | BG155: 0.016854 | BH155: 0.025182 | BI155: 0.033274 | BJ155: 0.041241 | BK155: 0.049145 | BL155: 0.057015 | BM155: 0.064867 | BN155: 0.072707 | BO155: 0.080541 | BP155: -1.3e-05 | BQ155: -3.7e-05 | BR155: -6.2e-05 | BS155: -5.6e-05 | BT155: 2.3e-05 | BU155: 0.000144 | BV155: 0.000295 | BW155: 0.000454 | BX155: 0.00081 | BY155: 0.001127 | BZ155: 0.001116 | CA155: -0.000605 | CB155: 1e-06 | CC155: 6.5e-05 | CD155: 0.024933 | CE155: -0.017893 | CF155: -0.00303
A156: 44 | B156: 7.7e-05 | C156: 0.000327 | D156: 0.000961 | E156: 0.002937 | F156: 0.00542 | G156: 0.008061 | H156: 0.010678 | I156: 0.013353 | J156: 0.018065 | K156: 0.02208 | L156: 0.037728 | M156: 0.049832 | N156: -0.001617 | O156: -0.001917 | P156: -0.000261 | Q156: 0.002514 | R156: 0.005208 | S156: 0.007367 | T156: 0.009263 | U156: 0.011931 | V156: 0.014413 | W156: 0.029962 | X156: 0.04486 | Y156: 0.058045 | Z156: 0.07014 | AA156: 0.081612 | AB156: 0.092752 | AC156: 0.103726 | AD156: 0.114621 | AE156: 0.125482 | AF156: 0.001086 | AG156: 0.000733 | AH156: 0.002367 | AI156: 0.005334 | AJ156: 0.008374 | AK156: 0.010925 | AL156: 0.013704 | AM156: 0.018333 | AN156: 0.022136 | AO156: 0.040532 | AP156: 0.060504 | AQ156: 0.084141 | AR156: 0.108302 | AS156: 0.140422 | AT156: 0.167342 | AU156: 0.185896 | AV156: 0.200967 | AW156: 0.213402 | AX156: 0.000338 | AY156: 0.000753 | AZ156: 0.001655 | BA156: 0.002589 | BB156: 0.003488 | BC156: 0.004535 | BD156: 0.0056 | BE156: 0.007754 | BF156: 0.009444 | BG156: 0.020481 | BH156: 0.030573 | BI156: 0.040369 | BJ156: 0.050013 | BK156: 0.05958 | BL156: 0.069106 | BM156: 0.078609 | BN156: 0.0881 | BO156: 0.097582 | BP156: -1.4e-05 | BQ156: -3.9e-05 | BR156: -6.1e-05 | BS156: -3e-05 | BT156: 9.2e-05 | BU156: 0.000269 | BV156: 0.00049 | BW156: 0.000724 | BX156: 0.001261 | BY156: 0.001758 | BZ156: 0.001887 | CA156: -0.000697 | CB156: 2.4e-05 | CC156: 8.5e-05 | CD156: 0.030692 | CE156: -0.02388 | CF156: -0.004442
A157: 45 | B157: 9.6e-05 | C157: 0.000395 | D157: 0.001125 | E157: 0.003357 | F157: 0.00616 | G157: 0.009153 | H157: 0.012125 | I157: 0.015164 | J157: 0.020515 | K157: 0.025077 | L157: 0.042848 | M157: 0.056415 | N157: -0.001696 | O157: -0.002016 | P157: -0.000185 | Q157: 0.002922 | R157: 0.005989 | S157: 0.008482 | T157: 0.01069 | U157: 0.013818 | V157: 0.016721 | W157: 0.034784 | X157: 0.05202 | Y157: 0.06723 | Z157: 0.081163 | AA157: 0.094371 | AB157: 0.107195 | AC157: 0.119829 | AD157: 0.132373 | AE157: 0.144879 | AF157: 0.001238 | AG157: 0.000899 | AH157: 0.002821 | AI157: 0.006273 | AJ157: 0.009832 | AK157: 0.012835 | AL157: 0.016108 | AM157: 0.021552 | AN157: 0.025994 | AO157: 0.046951 | AP157: 0.06936 | AQ157: 0.096791 | AR157: 0.126464 | AS157: 0.167342 | AT157: 0.20366 | AU157: 0.230647 | AV157: 0.253538 | AW157: 0.27303 | AX157: 0.000412 | AY157: 0.000906 | AZ157: 0.001948 | BA157: 0.003003 | BB157: 0.004012 | BC157: 0.005191 | BD157: 0.006392 | BE157: 0.008831 | BF157: 0.010749 | BG157: 0.023308 | BH157: 0.03478 | BI157: 0.04591 | BJ157: 0.056864 | BK157: 0.067729 | BL157: 0.078548 | BM157: 0.089343 | BN157: 0.100122 | BO157: 0.110892 | BP157: -1.5e-05 | BQ157: -4.1e-05 | BR157: -6.2e-05 | BS157: -1.1e-05 | BT157: 0.000154 | BU157: 0.000389 | BV157: 0.000686 | BW157: 0.001004 | BX157: 0.001754 | BY157: 0.00247 | BZ157: 0.002842 | CA157: -0.000733 | CB157: 6.7e-05 | CC157: 0.000101 | CD157: 0.035719 | CE157: -0.029185 | CF157: -0.005328
A158: 46 | B158: 0.000112 | C158: 0.000446 | D158: 0.001239 | E158: 0.003628 | F158: 0.006631 | G158: 0.009854 | H158: 0.013067 | I158: 0.016358 | J158: 0.022169 | K158: 0.027136 | L158: 0.046519 | M158: 0.061087 | N158: -0.001718 | O158: -0.002025 | P158: -6e-05 | Q158: 0.003276 | R158: 0.006607 | S158: 0.009344 | T158: 0.011786 | U158: 0.015276 | V158: 0.018531 | W158: 0.038784 | X158: 0.058037 | Y158: 0.074975 | Z158: 0.090471 | AA158: 0.105154 | AB158: 0.119408 | AC158: 0.133451 | AD158: 0.147395 | AE158: 0.161296 | AF158: 0.001265 | AG158: 0.000988 | AH158: 0.003146 | AI158: 0.006955 | AJ158: 0.010891 | AK158: 0.014215 | AL158: 0.017837 | AM158: 0.023845 | AN158: 0.028725 | AO158: 0.051332 | AP158: 0.074951 | AQ158: 0.104494 | AR158: 0.138034 | AS158: 0.185896 | AT158: 0.230647 | AU158: 0.266005 | AV158: 0.29713 | AW158: 0.324389 | AX158: 0.000468 | AY158: 0.001019 | AZ158: 0.002156 | BA158: 0.003286 | BB158: 0.00436 | BC158: 0.00562 | BD158: 0.006908 | BE158: 0.009532 | BF158: 0.011603 | BG158: 0.025194 | BH158: 0.037609 | BI158: 0.049648 | BJ158: 0.061494 | BK158: 0.073244 | BL158: 0.084945 | BM158: 0.096618 | BN158: 0.108275 | BO158: 0.119921 | BP158: -1.8e-05 | BQ158: -4.9e-05 | BR158: -7.4e-05 | BS158: -1.8e-05 | BT158: 0.000177 | BU158: 0.00046 | BV158: 0.000825 | BW158: 0.001222 | BX158: 0.002173 | BY158: 0.003103 | BZ158: 0.003735 | CA158: -0.000726 | CB158: 0.000115 | CC158: 0.00011 | CD158: 0.039638 | CE158: -0.032979 | CF158: -0.005431
A159: 47 | B159: 0.000126 | C159: 0.000489 | D159: 0.001337 | E159: 0.00386 | F159: 0.007041 | G159: 0.010476 | H159: 0.013915 | I159: 0.017449 | J159: 0.023715 | K159: 0.029098 | L159: 0.050156 | M159: 0.065722 | N159: -0.001768 | O159: -0.002052 | P159: 6.9e-05 | Q159: 0.00364 | R159: 0.007227 | S159: 0.010191 | T159: 0.012851 | U159: 0.016686 | V159: 0.020296 | W159: 0.042862 | X159: 0.064247 | Y159: 0.083007 | Z159: 0.100153 | AA159: 0.116392 | AB159: 0.132156 | AC159: 0.147684 | AD159: 0.163102 | AE159: 0.178474 | AF159: 0.001214 | AG159: 0.001022 | AH159: 0.003414 | AI159: 0.007553 | AJ159: 0.011824 | AK159: 0.015425 | AL159: 0.019342 | AM159: 0.02582 | AN159: 0.031063 | AO159: 0.055081 | AP159: 0.079545 | AQ159: 0.110505 | AR159: 0.147078 | AS159: 0.200967 | AT159: 0.253538 | AU159: 0.29713 | AV159: 0.336663 | AW159: 0.372089 | AX159: 0.000515 | AY159: 0.001116 | AZ159: 0.002334 | BA159: 0.003527 | BB159: 0.004658 | BC159: 0.005991 | BD159: 0.007356 | BE159: 0.01015 | BF159: 0.012363 | BG159: 0.026918 | BH159: 0.040222 | BI159: 0.05312 | BJ159: 0.065809 | BK159: 0.078395 | BL159: 0.090927 | BM159: 0.103429 | BN159: 0.115914 | BO159: 0.128389 | BP159: -2.3e-05 | BQ159: -6.4e-05 | BR159: -0.000102 | BS159: -5.5e-05 | BT159: 0.000159 | BU159: 0.000484 | BV159: 0.00091 | BW159: 0.001381 | BX159: 0.002523 | BY159: 0.003656 | BZ159: 0.004519 | CA159: -0.000712 | CB159: 0.000161 | CC159: 0.000117 | CD159: 0.043468 | CE159: -0.03598 | CF159: -0.00494
A160: 48 | B160: 0.000138 | C160: 0.000524 | D160: 0.001421 | E160: 0.00407 | F160: 0.00742 | G160: 0.011061 | H160: 0.014724 | I160: 0.018502 | J160: 0.025234 | K160: 0.031049 | L160: 0.053866 | M160: 0.070462 | N160: -0.001858 | O160: -0.002116 | P160: 0.000184 | Q160: 0.004006 | R160: 0.007849 | S160: 0.011029 | T160: 0.013895 | U160: 0.018059 | V160: 0.022022 | W160: 0.046973 | X160: 0.070559 | Y160: 0.091199 | Z160: 0.110046 | AA160: 0.127892 | AB160: 0.145214 | AC160: 0.162276 | AD160: 0.179216 | AE160: 0.196104 | AF160: 0.001108 | AG160: 0.001014 | AH160: 0.003633 | AI160: 0.008083 | AJ160: 0.01266 | AK160: 0.016505 | AL160: 0.020676 | AM160: 0.027549 | AN160: 0.033098 | AO160: 0.058366 | AP160: 0.083487 | AQ160: 0.115421 | AR160: 0.15437 | AS160: 0.213402 | AT160: 0.27303 | AU160: 0.324389 | AV160: 0.372089 | AW160: 0.415633 | AX160: 0.000553 | AY160: 0.001196 | AZ160: 0.002485 | BA160: 0.003737 | BB160: 0.004921 | BC160: 0.006324 | BD160: 0.007765 | BE160: 0.010723 | BF160: 0.013075 | BG160: 0.028572 | BH160: 0.042752 | BI160: 0.056496 | BJ160: 0.070016 | BK160: 0.083425 | BL160: 0.096776 | BM160: 0.110096 | BN160: 0.123397 | BO160: 0.136686 | BP160: -3e-05 | BQ160: -8.5e-05 | BR160: -0.000141 | BS160: -0.000116 | BT160: 0.000108 | BU160: 0.000468 | BV160: 0.000946 | BW160: 0.001485 | BX160: 0.002798 | BY160: 0.004113 | BZ160: 0.005162 | CA160: -0.000699 | CB160: 0.000199 | CC160: 0.000121 | CD160: 0.047237 | CE160: -0.038313 | CF160: -0.003981
A161: 49 | B161: 1e-06 | C161: 5e-06 | D161: 1e-05 | E161: 2e-05 | F161: 2.8e-05 | G161: 3.5e-05 | H161: 4.1e-05 | I161: 4.7e-05 | J161: 5.8e-05 | K161: 6.6e-05 | L161: 9.2e-05 | M161: 0.000108 | N161: 1.1e-05 | O161: 1.8e-05 | P161: 3e-05 | Q161: 3.8e-05 | R161: 4.3e-05 | S161: 4.7e-05 | T161: 5.2e-05 | U161: 6e-05 | V161: 7e-05 | W161: 0.000135 | X161: 0.000188 | Y161: 0.00023 | Z161: 0.000267 | AA161: 0.000301 | AB161: 0.000333 | AC161: 0.000365 | AD161: 0.000397 | AE161: 0.000429 | AF161: 6e-06 | AG161: 1.2e-05 | AH161: 2.6e-05 | AI161: 3.8e-05 | AJ161: 4.7e-05 | AK161: 5.4e-05 | AL161: 6.2e-05 | AM161: 7.4e-05 | AN161: 8.3e-05 | AO161: 0.000121 | AP161: 0.000157 | AQ161: 0.000204 | AR161: 0.000258 | AS161: 0.000338 | AT161: 0.000412 | AU161: 0.000468 | AV161: 0.000515 | AW161: 0.000553 | AX161: 6e-06 | AY161: 1.1e-05 | AZ161: 2.1e-05 | BA161: 2.8e-05 | BB161: 3.3e-05 | BC161: 3.9e-05 | BD161: 4.5e-05 | BE161: 5.5e-05 | BF161: 6.3e-05 | BG161: 0.000117 | BH161: 0.000168 | BI161: 0.000217 | BJ161: 0.000266 | BK161: 0.000314 | BL161: 0.000362 | BM161: 0.000411 | BN161: 0.000459 | BO161: 0.000507 | BP161: 0 | BQ161: 0 | BR161: 1e-06 | BS161: 2e-06 | BT161: 3e-06 | BU161: 4e-06 | BV161: 6e-06 | BW161: 7e-06 | BX161: 9e-06 | BY161: 1e-05 | BZ161: 8e-06 | CA161: -1.3e-05 | CB161: -2e-06 | CC161: 1e-06 | CD161: 0.00017 | CE161: -6.5e-05 | CF161: -8.1e-05
A162: 50 | B162: 3e-06 | C162: 9e-06 | D162: 2.1e-05 | E162: 4.8e-05 | F162: 7e-05 | G162: 9e-05 | H162: 0.000108 | I162: 0.000125 | J162: 0.000155 | K162: 0.000179 | L162: 0.000262 | M162: 0.000318 | N162: 1.6e-05 | O162: 3.1e-05 | P162: 6e-05 | Q162: 8.2e-05 | R162: 9.8e-05 | S162: 0.000109 | T162: 0.000122 | U162: 0.000142 | V162: 0.000165 | W162: 0.000316 | X162: 0.000442 | Y162: 0.000547 | Z162: 0.000642 | AA162: 0.00073 | AB162: 0.000816 | AC162: 0.000901 | AD162: 0.000985 | AE162: 0.00107 | AF162: 1.2e-05 | AG162: 2.4e-05 | AH162: 5.7e-05 | AI162: 8.8e-05 | AJ162: 0.000112 | AK162: 0.000129 | AL162: 0.000149 | AM162: 0.000178 | AN162: 0.000199 | AO162: 0.000284 | AP162: 0.000365 | AQ162: 0.000467 | AR162: 0.000582 | AS162: 0.000753 | AT162: 0.000906 | AU162: 0.001019 | AV162: 0.001116 | AW162: 0.001196 | AX162: 1.1e-05 | AY162: 2.3e-05 | AZ162: 4.4e-05 | BA162: 6e-05 | BB162: 7.2e-05 | BC162: 8.5e-05 | BD162: 9.8e-05 | BE162: 0.000123 | BF162: 0.000139 | BG162: 0.000263 | BH162: 0.000377 | BI162: 0.000489 | BJ162: 0.0006 | BK162: 0.00071 | BL162: 0.000819 | BM162: 0.000929 | BN162: 0.001038 | BO162: 0.001148 | BP162: 0 | BQ162: 0 | BR162: 1e-06 | BS162: 3e-06 | BT162: 6e-06 | BU162: 8e-06 | BV162: 1.1e-05 | BW162: 1.3e-05 | BX162: 1.7e-05 | BY162: 1.9e-05 | BZ162: 8e-06 | CA162: -2.6e-05 | CB162: -4e-06 | CC162: 2e-06 | CD162: 0.000337 | CE162: -0.000119 | CF162: -0.000156
A163: 51 | B163: 5e-06 | C163: 1.7e-05 | D163: 4.3e-05 | E163: 0.000107 | F163: 0.000167 | G163: 0.000222 | H163: 0.000272 | I163: 0.000322 | J163: 0.000407 | K163: 0.000476 | L163: 0.000725 | M163: 0.000894 | N163: 7e-06 | O163: 3.2e-05 | P163: 9.6e-05 | Q163: 0.000152 | R163: 0.000196 | S163: 0.000228 | T163: 0.000261 | U163: 0.000311 | V163: 0.000366 | W163: 0.000711 | X163: 0.001008 | Y163: 0.001261 | Z163: 0.001491 | AA163: 0.001708 | AB163: 0.001919 | AC163: 0.002127 | AD163: 0.002334 | AE163: 0.002541 | AF163: 2.1e-05 | AG163: 4e-05 | AH163: 0.000111 | AI163: 0.000185 | AJ163: 0.000246 | AK163: 0.00029 | AL163: 0.000338 | AM163: 0.00041 | AN163: 0.000461 | AO163: 0.000662 | AP163: 0.000848 | AQ163: 0.001074 | AR163: 0.001312 | AS163: 0.001655 | AT163: 0.001948 | AU163: 0.002156 | AV163: 0.002334 | AW163: 0.002485 | AX163: 2.1e-05 | AY163: 4.4e-05 | AZ163: 8.6e-05 | BA163: 0.000121 | BB163: 0.00015 | BC163: 0.000182 | BD163: 0.000212 | BE163: 0.000269 | BF163: 0.000308 | BG163: 0.00059 | BH163: 0.00085 | BI163: 0.001105 | BJ163: 0.001358 | BK163: 0.001609 | BL163: 0.001859 | BM163: 0.002108 | BN163: 0.002358 | BO163: 0.002607 | BP163: 0 | BQ163: 1e-06 | BR163: 2e-06 | BS163: 6e-06 | BT163: 1.1e-05 | BU163: 1.5e-05 | BV163: 2e-05 | BW163: 2.4e-05 | BX163: 3e-05 | BY163: 3.1e-05 | BZ163: 0 | CA163: -5.1e-05 | CB163: -1.1e-05 | CC163: 4e-06 | CD163: 0.000669 | CE163: -0.000227 | CF163: -0.00027
A164: 52 | B164: 6e-06 | C164: 2.3e-05 | D164: 6.1e-05 | E164: 0.000161 | F164: 0.000263 | G164: 0.000358 | H164: 0.000446 | I164: 0.000535 | J164: 0.000686 | K164: 0.000811 | L164: 0.001268 | M164: 0.001586 | N164: -2e-05 | O164: 9e-06 | P164: 0.000105 | Q164: 0.000197 | R164: 0.000272 | S164: 0.000328 | T164: 0.000383 | U164: 0.000467 | V164: 0.000555 | W164: 0.001105 | X164: 0.001582 | Y164: 0.00199 | Z164: 0.002362 | AA164: 0.002714 | AB164: 0.003055 | AC164: 0.003392 | AD164: 0.003727 | AE164: 0.004061 | AF164: 2.6e-05 | AG164: 4.8e-05 | AH164: 0.000152 | AI164: 0.000268 | AJ164: 0.000367 | AK164: 0.000441 | AL164: 0.000521 | AM164: 0.000641 | AN164: 0.000727 | AO164: 0.001062 | AP164: 0.00137 | AQ164: 0.001728 | AR164: 0.002084 | AS164: 0.002589 | AT164: 0.003003 | AU164: 0.003286 | AV164: 0.003527 | AW164: 0.003737 | AX164: 2.8e-05 | AY164: 6e-05 | AZ164: 0.000121 | BA164: 0.000177 | BB164: 0.000223 | BC164: 0.000274 | BD164: 0.000323 | BE164: 0.000416 | BF164: 0.000482 | BG164: 0.000934 | BH164: 0.001349 | BI164: 0.001756 | BJ164: 0.002158 | BK164: 0.002557 | BL164: 0.002956 | BM164: 0.003353 | BN164: 0.00375 | BO164: 0.004147 | BP164: 0 | BQ164: 1e-06 | BR164: 2e-06 | BS164: 7e-06 | BT164: 1.3e-05 | BU164: 1.9e-05 | BV164: 2.6e-05 | BW164: 3.1e-05 | BX164: 3.7e-05 | BY164: 3.7e-05 | BZ164: -1.3e-05 | CA164: -7.2e-05 | CB164: -1.7e-05 | CC164: 5e-06 | CD164: 0.001011 | CE164: -0.00036 | CF164: -0.000347
A165: 53 | B165: 7e-06 | C165: 2.8e-05 | D165: 7.5e-05 | E165: 0.000207 | F165: 0.000347 | G165: 0.000482 | H165: 0.000609 | I165: 0.000736 | J165: 0.000955 | K165: 0.001139 | L165: 0.001821 | M165: 0.002307 | N165: -5.5e-05 | O165: -2.7e-05 | P165: 9.6e-05 | Q165: 0.000223 | R165: 0.000329 | S165: 0.00041 | T165: 0.000487 | U165: 0.000603 | V165: 0.000724 | W165: 0.001468 | X165: 0.002116 | Y165: 0.002672 | Z165: 0.003177 | AA165: 0.003656 | AB165: 0.00412 | AC165: 0.004577 | AD165: 0.005032 | AE165: 0.005486 | AF165: 2.8e-05 | AG165: 5.1e-05 | AH165: 0.00018 | AI165: 0.000333 | AJ165: 0.000468 | AK165: 0.00057 | AL165: 0.000682 | AM165: 0.00085 | AN165: 0.000971 | AO165: 0.001444 | AP165: 0.001876 | AQ165: 0.002366 | AR165: 0.002834 | AS165: 0.003488 | AT165: 0.004012 | AU165: 0.00436 | AV165: 0.004658 | AW165: 0.004921 | AX165: 3.3e-05 | AY165: 7.2e-05 | AZ165: 0.00015 | BA165: 0.000223 | BB165: 0.000286 | BC165: 0.000356 | BD165: 0.000424 | BE165: 0.000552 | BF165: 0.000643 | BG165: 0.001261 | BH165: 0.001826 | BI165: 0.002378 | BJ165: 0.002923 | BK165: 0.003465 | BL165: 0.004005 | BM165: 0.004544 | BN165: 0.005083 | BO165: 0.005621 | BP165: 0 | BQ165: 0 | BR165: 1e-06 | BS165: 6e-06 | BT165: 1.4e-05 | BU165: 2.1e-05 | BV165: 2.9e-05 | BW165: 3.5e-05 | BX165: 4.2e-05 | BY165: 4e-05 | BZ165: -3e-05 | CA165: -8.8e-05 | CB165: -2.2e-05 | CC165: 7e-06 | CD165: 0.001345 | CE165: -0.000512 | CF165: -0.000395
A166: 54 | B166: 8e-06 | C166: 3.3e-05 | D166: 9.1e-05 | E166: 0.000256 | F166: 0.000439 | G166: 0.000618 | H166: 0.000789 | I166: 0.000961 | J166: 0.001259 | K166: 0.001509 | L166: 0.002458 | M166: 0.003149 | N166: -9.6e-05 | O166: -6.9e-05 | P166: 8.4e-05 | Q166: 0.000251 | R166: 0.000393 | S166: 0.000502 | T166: 0.000603 | U166: 0.000757 | V166: 0.000914 | W166: 0.001879 | X166: 0.002725 | Y166: 0.003449 | Z166: 0.004107 | AA166: 0.004729 | AB166: 0.005333 | AC166: 0.005928 | AD166: 0.00652 | AE166: 0.00711 | AF166: 2.8e-05 | AG166: 5.3e-05 | AH166: 0.000208 | AI166: 0.000402 | AJ166: 0.000577 | AK166: 0.000713 | AL166: 0.000859 | AM166: 0.001083 | AN166: 0.001245 | AO166: 0.00188 | AP166: 0.002459 | AQ166: 0.003103 | AR166: 0.003704 | AS166: 0.004535 | AT166: 0.005191 | AU166: 0.00562 | AV166: 0.005991 | AW166: 0.006324 | AX166: 3.9e-05 | AY166: 8.5e-05 | AZ166: 0.000182 | BA166: 0.000274 | BB166: 0.000356 | BC166: 0.000447 | BD166: 0.000536 | BE166: 0.000705 | BF166: 0.000826 | BG166: 0.001636 | BH166: 0.002374 | BI166: 0.003094 | BJ166: 0.003804 | BK166: 0.00451 | BL166: 0.005213 | BM166: 0.005915 | BN166: 0.006616 | BO166: 0.007317 | BP166: 0 | BQ166: 0 | BR166: 0 | BS166: 5e-06 | BT166: 1.4e-05 | BU166: 2.3e-05 | BV166: 3.2e-05 | BW166: 3.9e-05 | BX166: 4.7e-05 | BY166: 4.3e-05 | BZ166: -4.9e-05 | CA166: -0.000105 | CB166: -2.7e-05 | CC166: 8e-06 | CD166: 0.001742 | CE166: -0.000704 | CF166: -0.000443
A167: 55 | B167: 9e-06 | C167: 3.7e-05 | D167: 0.000104 | E167: 0.000302 | F167: 0.000527 | G167: 0.00075 | H167: 0.000964 | I167: 0.001181 | J167: 0.001558 | K167: 0.001878 | L167: 0.003104 | M167: 0.004014 | N167: -0.000137 | O167: -0.000113 | P167: 6.9e-05 | Q167: 0.000277 | R167: 0.000454 | S167: 0.000592 | T167: 0.000718 | U167: 0.000909 | V167: 0.001103 | W167: 0.00229 | X167: 0.003333 | Y167: 0.004226 | Z167: 0.005037 | AA167: 0.005805 | AB167: 0.006549 | AC167: 0.007282 | AD167: 0.008011 | AE167: 0.008737 | AF167: 2.6e-05 | AG167: 5.4e-05 | AH167: 0.000234 | AI167: 0.000465 | AJ167: 0.00068 | AK167: 0.000848 | AL167: 0.00103 | AM167: 0.00131 | AN167: 0.001514 | AO167: 0.002316 | AP167: 0.003048 | AQ167: 0.00385 | AR167: 0.004586 | AS167: 0.0056 | AT167: 0.006392 | AU167: 0.006908 | AV167: 0.007356 | AW167: 0.007765 | AX167: 4.5e-05 | AY167: 9.8e-05 | AZ167: 0.000212 | BA167: 0.000323 | BB167: 0.000424 | BC167: 0.000536 | BD167: 0.000644 | BE167: 0.000854 | BF167: 0.001006 | BG167: 0.002013 | BH167: 0.002926 | BI167: 0.003816 | BJ167: 0.004693 | BK167: 0.005565 | BL167: 0.006434 | BM167: 0.007301 | BN167: 0.008166 | BO167: 0.009032 | BP167: -1e-06 | BQ167: -1e-06 | BR167: -1e-06 | BS167: 4e-06 | BT167: 1.4e-05 | BU167: 2.4e-05 | BV167: 3.5e-05 | BW167: 4.3e-05 | BX167: 5.2e-05 | BY167: 4.6e-05 | BZ167: -7e-05 | CA167: -0.000121 | CB167: -3.2e-05 | CC167: 9e-06 | CD167: 0.002147 | CE167: -0.000913 | CF167: -0.000481
A168: 56 | B168: 1.1e-05 | C168: 4.5e-05 | D168: 0.00013 | E168: 0.000388 | F168: 0.000691 | G168: 0.001 | H168: 0.001299 | I168: 0.001605 | J168: 0.002141 | K168: 0.002599 | L168: 0.00439 | M168: 0.005753 | N168: -0.000215 | O168: -0.000199 | P168: 3.9e-05 | Q168: 0.000328 | R168: 0.000578 | S168: 0.000771 | T168: 0.000947 | U168: 0.001211 | V168: 0.001477 | W168: 0.003106 | X168: 0.004544 | Y168: 0.005777 | Z168: 0.006896 | AA168: 0.007952 | AB168: 0.008977 | AC168: 0.009987 | AD168: 0.010989 | AE168: 0.01199 | AF168: 2.2e-05 | AG168: 5.5e-05 | AH168: 0.000279 | AI168: 0.000584 | AJ168: 0.000874 | AK168: 0.001107 | AL168: 0.001357 | AM168: 0.001748 | AN168: 0.002037 | AO168: 0.003183 | AP168: 0.004227 | AQ168: 0.005352 | AR168: 0.006367 | AS168: 0.007754 | AT168: 0.008831 | AU168: 0.009532 | AV168: 0.01015 | AW168: 0.010723 | AX168: 5.5e-05 | AY168: 0.000123 | AZ168: 0.000269 | BA168: 0.000416 | BB168: 0.000552 | BC168: 0.000705 | BD168: 0.000854 | BE168: 0.001146 | BF168: 0.00136 | BG168: 0.002764 | BH168: 0.004034 | BI168: 0.00527 | BJ168: 0.006487 | BK168: 0.007695 | BL168: 0.008899 | BM168: 0.010101 | BN168: 0.011301 | BO168: 0.0125 | BP168: -1e-06 | BQ168: -3e-06 | BR168: -4e-06 | BS168: 1e-06 | BT168: 1.3e-05 | BU168: 2.7e-05 | BV168: 4.1e-05 | BW168: 5.1e-05 | BX168: 6.1e-05 | BY168: 5.2e-05 | BZ168: -0.000112 | CA168: -0.000148 | CB168: -4e-05 | CC168: 1e-05 | CD168: 0.002975 | CE168: -0.001356 | CF168: -0.000534
A169: 57 | B169: 1.3e-05 | C169: 5.1e-05 | D169: 0.000146 | E169: 0.000446 | F169: 0.000806 | G169: 0.001177 | H169: 0.001541 | I169: 0.001913 | J169: 0.002572 | K169: 0.003139 | L169: 0.005381 | M169: 0.007115 | N169: -0.000271 | O169: -0.000264 | P169: 1.7e-05 | Q169: 0.000369 | R169: 0.000674 | S169: 0.00091 | T169: 0.001123 | U169: 0.001443 | V169: 0.001764 | W169: 0.003732 | X169: 0.005478 | Y169: 0.006973 | Z169: 0.00833 | AA169: 0.00961 | AB169: 0.010852 | AC169: 0.012075 | AD169: 0.01329 | AE169: 0.014502 | AF169: 1.8e-05 | AG169: 5.3e-05 | AH169: 0.000307 | AI169: 0.000664 | AJ169: 0.00101 | AK169: 0.001291 | AL169: 0.001593 | AM169: 0.002067 | AN169: 0.002422 | AO169: 0.003844 | AP169: 0.005143 | AQ169: 0.006526 | AR169: 0.007762 | AS169: 0.009444 | AT169: 0.010749 | AU169: 0.011603 | AV169: 0.012363 | AW169: 0.013075 | AX169: 6.3e-05 | AY169: 0.000139 | AZ169: 0.000308 | BA169: 0.000482 | BB169: 0.000643 | BC169: 0.000826 | BD169: 0.001006 | BE169: 0.00136 | BF169: 0.001624 | BG169: 0.003344 | BH169: 0.0049 | BI169: 0.006412 | BJ169: 0.007901 | BK169: 0.009379 | BL169: 0.010851 | BM169: 0.012319 | BN169: 0.013787 | BO169: 0.015253 | BP169: -2e-06 | BQ169: -4e-06 | BR169: -6e-06 | BS169: -2e-06 | BT169: 1.2e-05 | BU169: 2.8e-05 | BV169: 4.4e-05 | BW169: 5.6e-05 | BX169: 6.9e-05 | BY169: 5.7e-05 | BZ169: -0.000145 | CA169: -0.000166 | CB169: -4.5e-05 | CC169: 1.1e-05 | CD169: 0.003636 | CE169: -0.001731 | CF169: -0.00054
A170: 58 | B170: 2.3e-05 | C170: 9.3e-05 | D170: 0.000274 | E170: 0.000856 | F170: 0.001575 | G170: 0.002333 | H170: 0.00309 | I170: 0.003874 | J170: 0.005289 | K170: 0.006529 | L170: 0.011586 | M170: 0.015614 | N170: -0.000549 | O170: -0.000564 | P170: 2.1e-05 | Q170: 0.000776 | R170: 0.001429 | S170: 0.00193 | T170: 0.002379 | U170: 0.003051 | V170: 0.003728 | W170: 0.007938 | X170: 0.011693 | Y170: 0.014906 | Z170: 0.017817 | AA170: 0.020564 | AB170: 0.023227 | AC170: 0.02585 | AD170: 0.028454 | AE170: 0.031052 | AF170: 2.3e-05 | AG170: 7.7e-05 | AH170: 0.000559 | AI170: 0.001275 | AJ170: 0.001984 | AK170: 0.002564 | AL170: 0.003187 | AM170: 0.004183 | AN170: 0.004947 | AO170: 0.008151 | AP170: 0.011106 | AQ170: 0.014171 | AR170: 0.016854 | AS170: 0.020481 | AT170: 0.023308 | AU170: 0.025194 | AV170: 0.026918 | AW170: 0.028572 | AX170: 0.000117 | AY170: 0.000263 | AZ170: 0.00059 | BA170: 0.000934 | BB170: 0.001261 | BC170: 0.001636 | BD170: 0.002013 | BE170: 0.002764 | BF170: 0.003344 | BG170: 0.00716 | BH170: 0.010679 | BI170: 0.014107 | BJ170: 0.017482 | BK170: 0.020831 | BL170: 0.024165 | BM170: 0.027492 | BN170: 0.030815 | BO170: 0.034134 | BP170: -4e-06 | BQ170: -1.1e-05 | BR170: -1.8e-05 | BS170: -1e-05 | BT170: 1.8e-05 | BU170: 5.4e-05 | BV170: 9.1e-05 | BW170: 0.00012 | BX170: 0.000152 | BY170: 0.000132 | BZ170: -0.000331 | CA170: -0.000309 | CB170: -8.7e-05 | CC170: 1.6e-05 | CD170: 0.008172 | CE170: -0.00417 | CF170: -0.000615
A171: 59 | B171: 3.2e-05 | C171: 0.000133 | D171: 0.000398 | E171: 0.001242 | F171: 0.002285 | G171: 0.003385 | H171: 0.004486 | I171: 0.005633 | J171: 0.007716 | K171: 0.009556 | L171: 0.01716 | M171: 0.023281 | N171: -0.000756 | O171: -0.000776 | P171: 9.7e-05 | Q171: 0.001219 | R171: 0.002188 | S171: 0.002926 | T171: 0.003588 | U171: 0.004575 | V171: 0.005575 | W171: 0.011851 | X171: 0.017461 | Y171: 0.022258 | Z171: 0.026602 | AA171: 0.030702 | AB171: 0.034675 | AC171: 0.038589 | AD171: 0.042476 | AE171: 0.046352 | AF171: 6.5e-05 | AG171: 0.000109 | AH171: 0.000817 | AI171: 0.001878 | AJ171: 0.002917 | AK171: 0.003763 | AL171: 0.004671 | AM171: 0.006126 | AN171: 0.007253 | AO171: 0.012091 | AP171: 0.016581 | AQ171: 0.021189 | AR171: 0.025182 | AS171: 0.030573 | AT171: 0.03478 | AU171: 0.037609 | AV171: 0.040222 | AW171: 0.042752 | AX171: 0.000168 | AY171: 0.000377 | AZ171: 0.00085 | BA171: 0.001349 | BB171: 0.001826 | BC171: 0.002374 | BD171: 0.002926 | BE171: 0.004034 | BF171: 0.0049 | BG171: 0.010679 | BH171: 0.01611 | BI171: 0.02143 | BJ171: 0.026679 | BK171: 0.031888 | BL171: 0.037075 | BM171: 0.04225 | BN171: 0.047417 | BO171: 0.052578 | BP171: -6e-06 | BQ171: -1.6e-05 | BR171: -2.5e-05 | BS171: -1.4e-05 | BT171: 3.2e-05 | BU171: 8.9e-05 | BV171: 0.000149 | BW171: 0.000196 | BX171: 0.000256 | BY171: 0.000233 | BZ171: -0.000493 | CA171: -0.000453 | CB171: -0.000123 | CC171: 1.9e-05 | CD171: 0.012578 | CE171: -0.006518 | CF171: -0.000664
A172: 60 | B172: 4.1e-05 | C172: 0.000174 | D172: 0.000522 | E172: 0.001628 | F172: 0.002986 | G172: 0.004417 | H172: 0.005851 | I172: 0.007347 | J172: 0.010071 | K172: 0.012489 | L172: 0.02255 | M172: 0.030696 | N172: -0.000947 | O172: -0.000967 | P172: 0.000189 | Q172: 0.001671 | R172: 0.002948 | S172: 0.003917 | T172: 0.004786 | U172: 0.006079 | V172: 0.007393 | W172: 0.015683 | X172: 0.023107 | Y172: 0.029453 | Z172: 0.035199 | AA172: 0.040621 | AB172: 0.045876 | AC172: 0.051052 | AD172: 0.056193 | AE172: 0.061321 | AF172: 0.000123 | AG172: 0.000145 | AH172: 0.001079 | AI172: 0.002484 | AJ172: 0.003848 | AK172: 0.004951 | AL172: 0.006134 | AM172: 0.008031 | AN172: 0.009507 | AO172: 0.015927 | AP172: 0.021911 | AQ172: 0.028014 | AR172: 0.033274 | AS172: 0.040369 | AT172: 0.04591 | AU172: 0.049648 | AV172: 0.05312 | AW172: 0.056496 | AX172: 0.000217 | AY172: 0.000489 | AZ172: 0.001105 | BA172: 0.001756 | BB172: 0.002378 | BC172: 0.003094 | BD172: 0.003816 | BE172: 0.00527 | BF172: 0.006412 | BG172: 0.014107 | BH172: 0.02143 | BI172: 0.02864 | BJ172: 0.035763 | BK172: 0.042836 | BL172: 0.049878 | BM172: 0.056903 | BN172: 0.063917 | BO172: 0.070924 | BP172: -7e-06 | BQ172: -2.1e-05 | BR172: -3.3e-05 | BS172: -1.6e-05 | BT172: 4.7e-05 | BU172: 0.000126 | BV172: 0.000209 | BW172: 0.000276 | BX172: 0.000363 | BY172: 0.00034 | BZ172: -0.000653 | CA172: -0.000596 | CB172: -0.000156 | CC172: 2.2e-05 | CD172: 0.016927 | CE172: -0.008846 | CF172: -0.000731
A173: 61 | B173: 5e-05 | C173: 0.000215 | D173: 0.000646 | E173: 0.00201 | F173: 0.003681 | G173: 0.005438 | H173: 0.007199 | I173: 0.009037 | J173: 0.012391 | K173: 0.015375 | L173: 0.027849 | M173: 0.037982 | N173: -0.001132 | O173: -0.00115 | P173: 0.000286 | Q173: 0.002123 | R173: 0.003704 | S173: 0.004902 | T173: 0.005976 | U173: 0.007569 | V173: 0.009193 | W173: 0.019471 | X173: 0.028685 | Y173: 0.036559 | Z173: 0.043689 | AA173: 0.050417 | AB173: 0.056938 | AC173: 0.06336 | AD173: 0.069739 | AE173: 0.076102 | AF173: 0.000188 | AG173: 0.000182 | AH173: 0.001341 | AI173: 0.003089 | AJ173: 0.004773 | AK173: 0.00613 | AL173: 0.007583 | AM173: 0.009913 | AN173: 0.011733 | AO173: 0.019708 | AP173: 0.02716 | AQ173: 0.034735 | AR173: 0.041241 | AS173: 0.050013 | AT173: 0.056864 | AU173: 0.061494 | AV173: 0.065809 | AW173: 0.070016 | AX173: 0.000266 | AY173: 0.0006 | AZ173: 0.001358 | BA173: 0.002158 | BB173: 0.002923 | BC173: 0.003804 | BD173: 0.004693 | BE173: 0.006487 | BF173: 0.007901 | BG173: 0.017482 | BH173: 0.026679 | BI173: 0.035763 | BJ173: 0.04475 | BK173: 0.053674 | BL173: 0.062561 | BM173: 0.071425 | BN173: 0.080276 | BO173: 0.089116 | BP173: -9e-06 | BQ173: -2.5e-05 | BR173: -3.9e-05 | BS173: -1.7e-05 | BT173: 6.3e-05 | BU173: 0.000163 | BV173: 0.000269 | BW173: 0.000356 | BX173: 0.000471 | BY173: 0.000446 | BZ173: -0.00081 | CA173: -0.000737 | CB173: -0.000185 | CC173: 2.5e-05 | CD173: 0.021222 | CE173: -0.011155 | CF173: -0.000803
A174: 62 | B174: 5.9e-05 | C174: 0.000255 | D174: 0.000769 | E174: 0.002391 | F174: 0.004372 | G174: 0.006453 | H174: 0.008538 | I174: 0.010715 | J174: 0.014693 | K174: 0.018239 | L174: 0.033104 | M174: 0.045206 | N174: -0.001316 | O174: -0.001332 | P174: 0.000383 | Q174: 0.002574 | R174: 0.004456 | S174: 0.005881 | T174: 0.007159 | U174: 0.009051 | V174: 0.010982 | W174: 0.023234 | X174: 0.034225 | Y174: 0.043618 | Z174: 0.052122 | AA174: 0.060146 | AB174: 0.067924 | AC174: 0.075585 | AD174: 0.083193 | AE174: 0.090782 | AF174: 0.000253 | AG174: 0.000218 | AH174: 0.001602 | AI174: 0.003691 | AJ174: 0.005694 | AK174: 0.007302 | AL174: 0.009024 | AM174: 0.011784 | AN174: 0.013943 | AO174: 0.023459 | AP174: 0.032369 | AQ174: 0.041403 | AR174: 0.049145 | AS174: 0.05958 | AT174: 0.067729 | AU174: 0.073244 | AV174: 0.078395 | AW174: 0.083425 | AX174: 0.000314 | AY174: 0.00071 | AZ174: 0.001609 | BA174: 0.002557 | BB174: 0.003465 | BC174: 0.00451 | BD174: 0.005565 | BE174: 0.007695 | BF174: 0.009379 | BG174: 0.020831 | BH174: 0.031888 | BI174: 0.042836 | BJ174: 0.053674 | BK174: 0.064439 | BL174: 0.075161 | BM174: 0.085855 | BN174: 0.096531 | BO174: 0.107196 | BP174: -1.1e-05 | BQ174: -3e-05 | BR174: -4.6e-05 | BS174: -1.8e-05 | BT174: 7.8e-05 | BU174: 0.000201 | BV174: 0.00033 | BW174: 0.000436 | BX174: 0.000578 | BY174: 0.000552 | BZ174: -0.000967 | CA174: -0.000878 | CB174: -0.000214 | CC174: 2.7e-05 | CD174: 0.025483 | CE174: -0.013451 | CF174: -0.000876
A175: 63 | B175: 6.8e-05 | C175: 0.000295 | D175: 0.000891 | E175: 0.002771 | F175: 0.005061 | G175: 0.007464 | H175: 0.009873 | I175: 0.012388 | J175: 0.016987 | K175: 0.021092 | L175: 0.038337 | M175: 0.052398 | N175: -0.0015 | O175: -0.001513 | P175: 0.00048 | Q175: 0.003022 | R175: 0.005206 | S175: 0.006857 | T175: 0.008338 | U175: 0.010528 | V175: 0.012764 | W175: 0.026983 | X175: 0.039745 | Y175: 0.05065 | Z175: 0.060524 | AA175: 0.069839 | AB175: 0.078869 | AC175: 0.087763 | AD175: 0.096596 | AE175: 0.105407 | AF175: 0.000319 | AG175: 0.000255 | AH175: 0.001862 | AI175: 0.004291 | AJ175: 0.006612 | AK175: 0.00847 | AL175: 0.01046 | AM175: 0.013648 | AN175: 0.016145 | AO175: 0.027196 | AP175: 0.037556 | AQ175: 0.048043 | AR175: 0.057015 | AS175: 0.069106 | AT175: 0.078548 | AU175: 0.084945 | AV175: 0.090927 | AW175: 0.096776 | AX175: 0.000362 | AY175: 0.000819 | AZ175: 0.001859 | BA175: 0.002956 | BB175: 0.004005 | BC175: 0.005213 | BD175: 0.006434 | BE175: 0.008899 | BF175: 0.010851 | BG175: 0.024165 | BH175: 0.037075 | BI175: 0.049878 | BJ175: 0.062561 | BK175: 0.075161 | BL175: 0.087709 | BM175: 0.100225 | BN175: 0.112721 | BO175: 0.125202 | BP175: -1.2e-05 | BQ175: -3.4e-05 | BR175: -5.3e-05 | BS175: -2e-05 | BT175: 9.4e-05 | BU175: 0.000238 | BV175: 0.000389 | BW175: 0.000515 | BX175: 0.000684 | BY175: 0.000657 | BZ175: -0.001124 | CA175: -0.001018 | CB175: -0.000243 | CC175: 3e-05 | CD175: 0.029725 | CE175: -0.015738 | CF175: -0.000949
A176: 64 | B176: 7.6e-05 | C176: 0.000335 | D176: 0.001013 | E176: 0.00315 | F176: 0.005748 | G176: 0.008474 | H176: 0.011205 | I176: 0.014058 | J176: 0.019277 | K176: 0.023939 | L176: 0.043558 | M176: 0.059574 | N176: -0.001683 | O176: -0.001693 | P176: 0.000577 | Q176: 0.00347 | R176: 0.005954 | S176: 0.007831 | T176: 0.009514 | U176: 0.012002 | V176: 0.014543 | W176: 0.030724 | X176: 0.045252 | Y176: 0.057667 | Z176: 0.068906 | AA176: 0.079511 | AB176: 0.08979 | AC176: 0.099914 | AD176: 0.10997 | AE176: 0.119999 | AF176: 0.000385 | AG176: 0.000291 | AH176: 0.002121 | AI176: 0.00489 | AJ176: 0.007528 | AK176: 0.009636 | AL176: 0.011893 | AM176: 0.015508 | AN176: 0.018342 | AO176: 0.030924 | AP176: 0.042731 | AQ176: 0.054667 | AR176: 0.064867 | AS176: 0.078609 | AT176: 0.089343 | AU176: 0.096618 | AV176: 0.103429 | AW176: 0.110096 | AX176: 0.000411 | AY176: 0.000929 | AZ176: 0.002108 | BA176: 0.003353 | BB176: 0.004544 | BC176: 0.005915 | BD176: 0.007301 | BE176: 0.010101 | BF176: 0.012319 | BG176: 0.027492 | BH176: 0.04225 | BI176: 0.056903 | BJ176: 0.071425 | BK176: 0.085855 | BL176: 0.100225 | BM176: 0.114559 | BN176: 0.128868 | BO176: 0.143161 | BP176: -1.4e-05 | BQ176: -3.9e-05 | BR176: -6e-05 | BS176: -2.1e-05 | BT176: 0.000109 | BU176: 0.000274 | BV176: 0.000449 | BW176: 0.000594 | BX176: 0.00079 | BY176: 0.000761 | BZ176: -0.00128 | CA176: -0.001158 | CB176: -0.000271 | CC176: 3.2e-05 | CD176: 0.033956 | CE176: -0.018018 | CF176: -0.001022
A177: 65 | B177: 8.5e-05 | C177: 0.000375 | D177: 0.001136 | E177: 0.003528 | F177: 0.006435 | G177: 0.009483 | H177: 0.012535 | I177: 0.015725 | J177: 0.021564 | K177: 0.026783 | L177: 0.048773 | M177: 0.06674 | N177: -0.001867 | O177: -0.001874 | P177: 0.000673 | Q177: 0.003916 | R177: 0.006701 | S177: 0.008804 | T177: 0.010689 | U177: 0.013474 | V177: 0.01632 | W177: 0.034459 | X177: 0.050752 | Y177: 0.064674 | Z177: 0.077278 | AA177: 0.089169 | AB177: 0.100696 | AC177: 0.112049 | AD177: 0.123325 | AE177: 0.134572 | AF177: 0.00045 | AG177: 0.000328 | AH177: 0.002381 | AI177: 0.005489 | AJ177: 0.008444 | AK177: 0.0108 | AL177: 0.013324 | AM177: 0.017366 | AN177: 0.020537 | AO177: 0.034648 | AP177: 0.047898 | AQ177: 0.061282 | AR177: 0.072707 | AS177: 0.0881 | AT177: 0.100122 | AU177: 0.108275 | AV177: 0.115914 | AW177: 0.123397 | AX177: 0.000459 | AY177: 0.001038 | AZ177: 0.002358 | BA177: 0.00375 | BB177: 0.005083 | BC177: 0.006616 | BD177: 0.008166 | BE177: 0.011301 | BF177: 0.013787 | BG177: 0.030815 | BH177: 0.047417 | BI177: 0.063917 | BJ177: 0.080276 | BK177: 0.096531 | BL177: 0.112721 | BM177: 0.128868 | BN177: 0.144989 | BO177: 0.16109 | BP177: -1.6e-05 | BQ177: -4.3e-05 | BR177: -6.7e-05 | BS177: -2.2e-05 | BT177: 0.000125 | BU177: 0.000311 | BV177: 0.000509 | BW177: 0.000672 | BX177: 0.000896 | BY177: 0.000865 | BZ177: -0.001435 | CA177: -0.001298 | CB177: -0.000299 | CC177: 3.4e-05 | CD177: 0.038179 | CE177: -0.020295 | CF177: -0.001096
A178: 66 | B178: 9.4e-05 | C178: 0.000415 | D178: 0.001258 | E178: 0.003906 | F178: 0.007122 | G178: 0.01049 | H178: 0.013865 | I178: 0.017392 | J178: 0.023849 | K178: 0.029625 | L178: 0.053983 | M178: 0.073901 | N178: -0.00205 | O178: -0.002054 | P178: 0.000768 | Q178: 0.004362 | R178: 0.007447 | S178: 0.009775 | T178: 0.011862 | U178: 0.014944 | V178: 0.018095 | W178: 0.038192 | X178: 0.056247 | Y178: 0.071675 | Z178: 0.085641 | AA178: 0.098818 | AB178: 0.111592 | AC178: 0.124172 | AD178: 0.136668 | AE178: 0.149131 | AF178: 0.000515 | AG178: 0.000364 | AH178: 0.00264 | AI178: 0.006086 | AJ178: 0.009358 | AK178: 0.011964 | AL178: 0.014754 | AM178: 0.019223 | AN178: 0.022731 | AO178: 0.038368 | AP178: 0.053061 | AQ178: 0.067891 | AR178: 0.080541 | AS178: 0.097582 | AT178: 0.110892 | AU178: 0.119921 | AV178: 0.128389 | AW178: 0.136686 | AX178: 0.000507 | AY178: 0.001148 | AZ178: 0.002607 | BA178: 0.004147 | BB178: 0.005621 | BC178: 0.007317 | BD178: 0.009032 | BE178: 0.0125 | BF178: 0.015253 | BG178: 0.034134 | BH178: 0.052578 | BI178: 0.070924 | BJ178: 0.089116 | BK178: 0.107196 | BL178: 0.125202 | BM178: 0.143161 | BN178: 0.16109 | BO178: 0.178998 | BP178: -1.7e-05 | BQ178: -4.8e-05 | BR178: -7.3e-05 | BS178: -2.4e-05 | BT178: 0.00014 | BU178: 0.000348 | BV178: 0.000568 | BW178: 0.000751 | BX178: 0.001002 | BY178: 0.00097 | BZ178: -0.001591 | CA178: -0.001437 | CB178: -0.000328 | CC178: 3.7e-05 | CD178: 0.042397 | CE178: -0.02257 | CF178: -0.00117
A179: 67 | B179: 0 | C179: 0 | D179: 0 | E179: 1e-06 | F179: 0 | G179: 0 | H179: -1e-06 | I179: -2e-06 | J179: -3e-06 | K179: -4e-06 | L179: -1e-05 | M179: -1.9e-05 | N179: -1e-06 | O179: -1e-06 | P179: 0 | Q179: 0 | R179: 0 | S179: 1e-06 | T179: 1e-06 | U179: 2e-06 | V179: 2e-06 | W179: 3e-06 | X179: 1e-05 | Y179: 1.8e-05 | Z179: 2.5e-05 | AA179: 3.2e-05 | AB179: 3.9e-05 | AC179: 4.6e-05 | AD179: 5.3e-05 | AE179: 5.9e-05 | AF179: 1e-06 | AG179: 1e-06 | AH179: 1e-06 | AI179: 0 | AJ179: -1e-06 | AK179: -1e-06 | AL179: -1e-06 | AM179: 0 | AN179: 1e-06 | AO179: 2e-06 | AP179: -5e-06 | AQ179: -1.1e-05 | AR179: -1.3e-05 | AS179: -1.4e-05 | AT179: -1.5e-05 | AU179: -1.8e-05 | AV179: -2.3e-05 | AW179: -3e-05 | AX179: 0 | AY179: 0 | AZ179: 0 | BA179: 0 | BB179: 0 | BC179: 0 | BD179: -1e-06 | BE179: -1e-06 | BF179: -2e-06 | BG179: -4e-06 | BH179: -6e-06 | BI179: -7e-06 | BJ179: -9e-06 | BK179: -1.1e-05 | BL179: -1.2e-05 | BM179: -1.4e-05 | BN179: -1.6e-05 | BO179: -1.7e-05 | BP179: 1e-06 | BQ179: 2e-06 | BR179: 3e-06 | BS179: 4e-06 | BT179: 4e-06 | BU179: 4e-06 | BV179: 3e-06 | BW179: 3e-06 | BX179: 4e-06 | BY179: 5e-06 | BZ179: 1.1e-05 | CA179: 2e-06 | CB179: 0 | CC179: 0 | CD179: 1e-06 | CE179: -7e-06 | CF179: -2.3e-05
A180: 68 | B180: 0 | C180: 1e-06 | D180: 1e-06 | E180: 2e-06 | F180: 1e-06 | G180: -1e-06 | H180: -3e-06 | I180: -4e-06 | J180: -7e-06 | K180: -1e-05 | L180: -2.8e-05 | M180: -5.1e-05 | N180: -4e-06 | O180: -3e-06 | P180: -1e-06 | Q180: 0 | R180: 1e-06 | S180: 2e-06 | T180: 4e-06 | U180: 6e-06 | V180: 6e-06 | W180: 1.1e-05 | X180: 2.9e-05 | Y180: 5.1e-05 | Z180: 7.1e-05 | AA180: 9.1e-05 | AB180: 0.00011 | AC180: 0.000128 | AD180: 0.000146 | AE180: 0.000163 | AF180: 4e-06 | AG180: 3e-06 | AH180: 3e-06 | AI180: 0 | AJ180: -1e-06 | AK180: -2e-06 | AL180: -2e-06 | AM180: 1e-06 | AN180: 5e-06 | AO180: 8e-06 | AP180: -1.5e-05 | AQ180: -3.2e-05 | AR180: -3.7e-05 | AS180: -3.9e-05 | AT180: -4.1e-05 | AU180: -4.9e-05 | AV180: -6.4e-05 | AW180: -8.5e-05 | AX180: 0 | AY180: 0 | AZ180: 1e-06 | BA180: 1e-06 | BB180: 0 | BC180: 0 | BD180: -1e-06 | BE180: -3e-06 | BF180: -4e-06 | BG180: -1.1e-05 | BH180: -1.6e-05 | BI180: -2.1e-05 | BJ180: -2.5e-05 | BK180: -3e-05 | BL180: -3.4e-05 | BM180: -3.9e-05 | BN180: -4.3e-05 | BO180: -4.8e-05 | BP180: 2e-06 | BQ180: 4e-06 | BR180: 8e-06 | BS180: 1.2e-05 | BT180: 1.3e-05 | BU180: 1.2e-05 | BV180: 1.2e-05 | BW180: 1.2e-05 | BX180: 1.4e-05 | BY180: 1.9e-05 | BZ180: 3.4e-05 | CA180: 5e-06 | CB180: 1e-06 | CC180: 0 | CD180: 9e-06 | CE180: -2.7e-05 | CF180: -7e-05
A181: 69 | B181: 0 | C181: 1e-06 | D181: 3e-06 | E181: 4e-06 | F181: 2e-06 | G181: 0 | H181: -3e-06 | I181: -6e-06 | J181: -1.1e-05 | K181: -1.5e-05 | L181: -4.4e-05 | M181: -8e-05 | N181: -5e-06 | O181: -4e-06 | P181: -2e-06 | Q181: -2e-06 | R181: 0 | S181: 3e-06 | T181: 7e-06 | U181: 1.2e-05 | V181: 1.4e-05 | W181: 2.6e-05 | X181: 5.7e-05 | Y181: 9.3e-05 | Z181: 0.000127 | AA181: 0.000159 | AB181: 0.000189 | AC181: 0.000219 | AD181: 0.000247 | AE181: 0.000276 | AF181: 8e-06 | AG181: 6e-06 | AH181: 5e-06 | AI181: 2e-06 | AJ181: 0 | AK181: 0 | AL181: 1e-06 | AM181: 6e-06 | AN181: 1.4e-05 | AO181: 1.8e-05 | AP181: -2.4e-05 | AQ181: -5.6e-05 | AR181: -6.2e-05 | AS181: -6.1e-05 | AT181: -6.2e-05 | AU181: -7.4e-05 | AV181: -0.000102 | AW181: -0.000141 | AX181: 1e-06 | AY181: 1e-06 | AZ181: 2e-06 | BA181: 2e-06 | BB181: 1e-06 | BC181: 0 | BD181: -1e-06 | BE181: -4e-06 | BF181: -6e-06 | BG181: -1.8e-05 | BH181: -2.5e-05 | BI181: -3.3e-05 | BJ181: -3.9e-05 | BK181: -4.6e-05 | BL181: -5.3e-05 | BM181: -6e-05 | BN181: -6.7e-05 | BO181: -7.3e-05 | BP181: 3e-06 | BQ181: 8e-06 | BR181: 1.5e-05 | BS181: 2.3e-05 | BT181: 2.6e-05 | BU181: 2.6e-05 | BV181: 2.7e-05 | BW181: 2.8e-05 | BX181: 3.4e-05 | BY181: 4.2e-05 | BZ181: 7e-05 | CA181: 8e-06 | CB181: 1e-06 | CC181: 0 | CD181: 3.4e-05 | CE181: -7.3e-05 | CF181: -0.000136
A182: 70 | B182: 1e-06 | C182: 2e-06 | D182: 5e-06 | E182: 8e-06 | F182: 7e-06 | G182: 4e-06 | H182: 0 | I182: -3e-06 | J182: -8e-06 | K182: -1.1e-05 | L182: -3.2e-05 | M182: -6.1e-05 | N182: -1e-06 | O182: -2e-06 | P182: -6e-06 | Q182: -9e-06 | R182: -5e-06 | S182: 3e-06 | T182: 1.1e-05 | U182: 2.5e-05 | V182: 3.4e-05 | W182: 7.1e-05 | X182: 0.000117 | Y182: 0.000163 | Z182: 0.000205 | AA182: 0.000243 | AB182: 0.00028 | AC182: 0.000315 | AD182: 0.000349 | AE182: 0.000383 | AF182: 1.7e-05 | AG182: 1.2e-05 | AH182: 1e-05 | AI182: 1e-05 | AJ182: 1.2e-05 | AK182: 1.5e-05 | AL182: 2e-05 | AM182: 3.2e-05 | AN182: 4.4e-05 | AO182: 4.9e-05 | AP182: -1.8e-05 | AQ182: -6.1e-05 | AR182: -5.6e-05 | AS182: -3e-05 | AT182: -1.1e-05 | AU182: -1.8e-05 | AV182: -5.5e-05 | AW182: -0.000116 | AX182: 2e-06 | AY182: 3e-06 | AZ182: 6e-06 | BA182: 7e-06 | BB182: 6e-06 | BC182: 5e-06 | BD182: 4e-06 | BE182: 1e-06 | BF182: -2e-06 | BG182: -1e-05 | BH182: -1.4e-05 | BI182: -1.6e-05 | BJ182: -1.7e-05 | BK182: -1.8e-05 | BL182: -2e-05 | BM182: -2.1e-05 | BN182: -2.2e-05 | BO182: -2.4e-05 | BP182: 4e-06 | BQ182: 1.2e-05 | BR182: 2.3e-05 | BS182: 4.2e-05 | BT182: 5.2e-05 | BU182: 5.8e-05 | BV182: 6.5e-05 | BW182: 7e-05 | BX182: 8.7e-05 | BY182: 0.000103 | BZ182: 0.000147 | CA182: 7e-06 | CB182: 0 | CC182: 0 | CD182: 0.000133 | CE182: -0.000211 | CF182: -0.000253
A183: 71 | B183: 1e-06 | C183: 3e-06 | D183: 7e-06 | E183: 1.1e-05 | F183: 1.3e-05 | G183: 1.2e-05 | H183: 1e-05 | I183: 8e-06 | J183: 6e-06 | K183: 8e-06 | L183: 2.6e-05 | M183: 4e-05 | N183: 7e-06 | O183: 3e-06 | P183: -1.2e-05 | Q183: -1.9e-05 | R183: -1.4e-05 | S183: -2e-06 | T183: 1.2e-05 | U183: 3.6e-05 | V183: 5.4e-05 | W183: 0.000126 | X183: 0.000183 | Y183: 0.000227 | Z183: 0.000263 | AA183: 0.000293 | AB183: 0.000322 | AC183: 0.00035 | AD183: 0.000377 | AE183: 0.000405 | AF183: 2.4e-05 | AG183: 1.6e-05 | AH183: 1.5e-05 | AI183: 2.1e-05 | AJ183: 3e-05 | AK183: 3.8e-05 | AL183: 4.9e-05 | AM183: 6.8e-05 | AN183: 8.4e-05 | AO183: 9.2e-05 | AP183: 2.3e-05 | AQ183: -9e-06 | AR183: 2.3e-05 | AS183: 9.2e-05 | AT183: 0.000154 | AU183: 0.000177 | AV183: 0.000159 | AW183: 0.000108 | AX183: 3e-06 | AY183: 6e-06 | AZ183: 1.1e-05 | BA183: 1.3e-05 | BB183: 1.4e-05 | BC183: 1.4e-05 | BD183: 1.4e-05 | BE183: 1.3e-05 | BF183: 1.2e-05 | BG183: 1.8e-05 | BH183: 3.2e-05 | BI183: 4.7e-05 | BJ183: 6.3e-05 | BK183: 7.8e-05 | BL183: 9.4e-05 | BM183: 0.000109 | BN183: 0.000125 | BO183: 0.00014 | BP183: 4e-06 | BQ183: 1.3e-05 | BR183: 2.6e-05 | BS183: 5.2e-05 | BT183: 7.2e-05 | BU183: 8.6e-05 | BV183: 0.000102 | BW183: 0.000115 | BX183: 0.000146 | BY183: 0.000173 | BZ183: 0.000221 | CA183: 0 | CB183: -3e-06 | CC183: 0 | CD183: 0.000259 | CE183: -0.000361 | CF183: -0.000342
A184: 72 | B184: 1e-06 | C184: 4e-06 | D184: 8e-06 | E184: 1.5e-05 | F184: 1.9e-05 | G184: 2e-05 | H184: 2e-05 | I184: 2.1e-05 | J184: 2.5e-05 | K184: 3.3e-05 | L184: 9.9e-05 | M184: 0.00017 | N184: 1.6e-05 | O184: 7e-06 | P184: -1.8e-05 | Q184: -3.1e-05 | R184: -2.4e-05 | S184: -8e-06 | T184: 1e-05 | U184: 4.4e-05 | V184: 7.1e-05 | W184: 0.000186 | X184: 0.000259 | Y184: 0.000302 | Z184: 0.00033 | AA184: 0.000353 | AB184: 0.000373 | AC184: 0.000393 | AD184: 0.000413 | AE184: 0.000433 | AF184: 3e-05 | AG184: 1.9e-05 | AH184: 2e-05 | AI184: 3.2e-05 | AJ184: 4.9e-05 | AK184: 6.4e-05 | AL184: 8e-05 | AM184: 0.000106 | AN184: 0.000125 | AO184: 0.000143 | AP184: 8.8e-05 | AQ184: 7.8e-05 | AR184: 0.000144 | AS184: 0.000269 | AT184: 0.000389 | AU184: 0.00046 | AV184: 0.000484 | AW184: 0.000468 | AX184: 4e-06 | AY184: 8e-06 | AZ184: 1.5e-05 | BA184: 1.9e-05 | BB184: 2.1e-05 | BC184: 2.3e-05 | BD184: 2.4e-05 | BE184: 2.7e-05 | BF184: 2.8e-05 | BG184: 5.4e-05 | BH184: 8.9e-05 | BI184: 0.000126 | BJ184: 0.000163 | BK184: 0.000201 | BL184: 0.000238 | BM184: 0.000274 | BN184: 0.000311 | BO184: 0.000348 | BP184: 4e-06 | BQ184: 1.2e-05 | BR184: 2.6e-05 | BS184: 5.8e-05 | BT184: 8.6e-05 | BU184: 0.00011 | BV184: 0.000135 | BW184: 0.000157 | BX184: 0.000206 | BY184: 0.000247 | BZ184: 0.000301 | CA184: -9e-06 | CB184: -6e-06 | CC184: 0 | CD184: 0.000381 | CE184: -0.000493 | CF184: -0.000418
A185: 73 | B185: 1e-06 | C185: 5e-06 | D185: 1.1e-05 | E185: 2e-05 | F185: 2.5e-05 | G185: 2.9e-05 | H185: 3.1e-05 | I185: 3.5e-05 | J185: 4.4e-05 | K185: 5.8e-05 | L185: 0.000173 | M185: 0.000302 | N185: 2.2e-05 | O185: 1e-05 | P185: -2.7e-05 | Q185: -4.5e-05 | R185: -3.7e-05 | S185: -1.7e-05 | T185: 7e-06 | U185: 5.1e-05 | V185: 8.9e-05 | W185: 0.000257 | X185: 0.000356 | Y185: 0.000406 | Z185: 0.000434 | AA185: 0.000454 | AB185: 0.000471 | AC185: 0.000488 | AD185: 0.000505 | AE185: 0.000523 | AF185: 3.6e-05 | AG185: 2.3e-05 | AH185: 2.4e-05 | AI185: 4.3e-05 | AJ185: 6.8e-05 | AK185: 9e-05 | AL185: 0.000113 | AM185: 0.000148 | AN185: 0.000171 | AO185: 0.000206 | AP185: 0.00017 | AQ185: 0.000187 | AR185: 0.000295 | AS185: 0.00049 | AT185: 0.000686 | AU185: 0.000825 | AV185: 0.00091 | AW185: 0.000946 | AX185: 6e-06 | AY185: 1.1e-05 | AZ185: 2e-05 | BA185: 2.6e-05 | BB185: 2.9e-05 | BC185: 3.2e-05 | BD185: 3.5e-05 | BE185: 4.1e-05 | BF185: 4.4e-05 | BG185: 9.1e-05 | BH185: 0.000149 | BI185: 0.000209 | BJ185: 0.000269 | BK185: 0.00033 | BL185: 0.000389 | BM185: 0.000449 | BN185: 0.000509 | BO185: 0.000568 | BP185: 3e-06 | BQ185: 1.2e-05 | BR185: 2.7e-05 | BS185: 6.5e-05 | BT185: 0.000102 | BU185: 0.000135 | BV185: 0.000171 | BW185: 0.000204 | BX185: 0.000276 | BY185: 0.000338 | BZ185: 0.000413 | CA185: -1.6e-05 | CB185: -1e-05 | CC185: 0 | CD185: 0.000502 | CE185: -0.000624 | CF185: -0.000514
A186: 74 | B186: 2e-06 | C186: 6e-06 | D186: 1.3e-05 | E186: 2.3e-05 | F186: 3e-05 | G186: 3.5e-05 | H186: 4e-05 | I186: 4.5e-05 | J186: 5.9e-05 | K186: 7.8e-05 | L186: 0.00023 | M186: 0.000404 | N186: 2.6e-05 | O186: 1.1e-05 | P186: -3.7e-05 | Q186: -5.9e-05 | R186: -5.1e-05 | S186: -2.8e-05 | T186: 1e-06 | U186: 5.5e-05 | V186: 0.000104 | W186: 0.000326 | X186: 0.000456 | Y186: 0.000518 | Z186: 0.000552 | AA186: 0.000574 | AB186: 0.000593 | AC186: 0.000611 | AD186: 0.000629 | AE186: 0.000648 | AF186: 4.3e-05 | AG186: 2.7e-05 | AH186: 2.8e-05 | AI186: 5.2e-05 | AJ186: 8.4e-05 | AK186: 0.000113 | AL186: 0.000142 | AM186: 0.000185 | AN186: 0.000214 | AO186: 0.000272 | AP186: 0.000258 | AQ186: 0.000303 | AR186: 0.000454 | AS186: 0.000724 | AT186: 0.001004 | AU186: 0.001222 | AV186: 0.001381 | AW186: 0.001485 | AX186: 7e-06 | AY186: 1.3e-05 | AZ186: 2.4e-05 | BA186: 3.1e-05 | BB186: 3.5e-05 | BC186: 3.9e-05 | BD186: 4.3e-05 | BE186: 5.1e-05 | BF186: 5.6e-05 | BG186: 0.00012 | BH186: 0.000196 | BI186: 0.000276 | BJ186: 0.000356 | BK186: 0.000436 | BL186: 0.000515 | BM186: 0.000594 | BN186: 0.000672 | BO186: 0.000751 | BP186: 3e-06 | BQ186: 1.2e-05 | BR186: 2.8e-05 | BS186: 7e-05 | BT186: 0.000115 | BU186: 0.000157 | BV186: 0.000204 | BW186: 0.000247 | BX186: 0.000345 | BY186: 0.000432 | BZ186: 0.000548 | CA186: -2.1e-05 | CB186: -1.4e-05 | CC186: 0 | CD186: 0.000595 | CE186: -0.000728 | CF186: -0.00061
A187: 75 | B187: 3e-06 | C187: 9e-06 | D187: 1.7e-05 | E187: 2.7e-05 | F187: 3.3e-05 | G187: 4e-05 | H187: 4.7e-05 | I187: 5.6e-05 | J187: 7.5e-05 | K187: 9.9e-05 | L187: 0.000278 | M187: 0.000481 | N187: 2.7e-05 | O187: 7e-06 | P187: -6.2e-05 | Q187: -9.6e-05 | R187: -8.7e-05 | S187: -5.5e-05 | T187: -1.7e-05 | U187: 5.9e-05 | V187: 0.000129 | W187: 0.000471 | X187: 0.000684 | Y187: 0.000791 | Z187: 0.00085 | AA187: 0.000888 | AB187: 0.00092 | AC187: 0.000951 | AD187: 0.000982 | AE187: 0.001014 | AF187: 6.3e-05 | AG187: 3.8e-05 | AH187: 3.7e-05 | AI187: 6.9e-05 | AJ187: 0.000114 | AK187: 0.000154 | AL187: 0.000196 | AM187: 0.00026 | AN187: 0.000304 | AO187: 0.000429 | AP187: 0.000459 | AQ187: 0.000561 | AR187: 0.00081 | AS187: 0.001261 | AT187: 0.001754 | AU187: 0.002173 | AV187: 0.002523 | AW187: 0.002798 | AX187: 9e-06 | AY187: 1.7e-05 | AZ187: 3e-05 | BA187: 3.7e-05 | BB187: 4.2e-05 | BC187: 4.7e-05 | BD187: 5.2e-05 | BE187: 6.1e-05 | BF187: 6.9e-05 | BG187: 0.000152 | BH187: 0.000256 | BI187: 0.000363 | BJ187: 0.000471 | BK187: 0.000578 | BL187: 0.000684 | BM187: 0.00079 | BN187: 0.000896 | BO187: 0.001002 | BP187: 4e-06 | BQ187: 1.4e-05 | BR187: 3.4e-05 | BS187: 8.7e-05 | BT187: 0.000146 | BU187: 0.000206 | BV187: 0.000276 | BW187: 0.000345 | BX187: 0.000509 | BY187: 0.000667 | BZ187: 0.000962 | CA187: -2.4e-05 | CB187: -2.1e-05 | CC187: 0 | CD187: 0.000754 | CE187: -0.000938 | CF187: -0.000865
A188: 76 | B188: 3e-06 | C188: 1.1e-05 | D188: 1.9e-05 | E188: 2.3e-05 | F188: 2.4e-05 | G188: 2.8e-05 | H188: 3.5e-05 | I188: 4.3e-05 | J188: 6e-05 | K188: 7.9e-05 | L188: 0.000176 | M188: 0.000264 | N188: 2.1e-05 | O188: -3e-06 | P188: -8.9e-05 | Q188: -0.000133 | R188: -0.000125 | S188: -8.7e-05 | T188: -4.2e-05 | U188: 5.1e-05 | V188: 0.000139 | W188: 0.000578 | X188: 0.000868 | Y188: 0.001021 | Z188: 0.001107 | AA188: 0.001164 | AB188: 0.00121 | AC188: 0.001253 | AD188: 0.001296 | AE188: 0.001341 | AF188: 9.1e-05 | AG188: 5.2e-05 | AH188: 4.5e-05 | AI188: 8.1e-05 | AJ188: 0.000132 | AK188: 0.000179 | AL188: 0.00023 | AM188: 0.000313 | AN188: 0.000376 | AO188: 0.000582 | AP188: 0.000645 | AQ188: 0.000787 | AR188: 0.001127 | AS188: 0.001758 | AT188: 0.00247 | AU188: 0.003103 | AV188: 0.003656 | AW188: 0.004113 | AX188: 1e-05 | AY188: 1.9e-05 | AZ188: 3.1e-05 | BA188: 3.7e-05 | BB188: 4e-05 | BC188: 4.3e-05 | BD188: 4.6e-05 | BE188: 5.2e-05 | BF188: 5.7e-05 | BG188: 0.000132 | BH188: 0.000233 | BI188: 0.00034 | BJ188: 0.000446 | BK188: 0.000552 | BL188: 0.000657 | BM188: 0.000761 | BN188: 0.000865 | BO188: 0.00097 | BP188: 5e-06 | BQ188: 1.9e-05 | BR188: 4.2e-05 | BS188: 0.000103 | BT188: 0.000173 | BU188: 0.000247 | BV188: 0.000338 | BW188: 0.000432 | BX188: 0.000667 | BY188: 0.000913 | BZ188: 0.001532 | CA188: -1.3e-05 | CB188: -2.4e-05 | CC188: -1e-06 | CD188: 0.000837 | CE188: -0.001104 | CF188: -0.001137
A189: 77 | B189: 3e-06 | C189: 7e-06 | D189: -6e-06 | E189: -7.8e-05 | F189: -0.000143 | G189: -0.000179 | H189: -0.000199 | I189: -0.000218 | J189: -0.000278 | K189: -0.000397 | L189: -0.001888 | M189: -0.004021 | N189: -2.4e-05 | O189: -7.8e-05 | P189: -0.000189 | Q189: -0.000245 | R189: -0.000242 | S189: -0.000205 | T189: -0.000163 | U189: -7.8e-05 | V189: -1e-05 | W189: 0.000288 | X189: 0.000486 | Y189: 0.000557 | Z189: 0.000544 | AA189: 0.000487 | AB189: 0.00041 | AC189: 0.000326 | AD189: 0.000241 | AE189: 0.000157 | AF189: 0.000222 | AG189: 0.000113 | AH189: 8.7e-05 | AI189: 8.8e-05 | AJ189: 9.5e-05 | AK189: 0.00011 | AL189: 0.000144 | AM189: 0.000245 | AN189: 0.000371 | AO189: 0.000827 | AP189: 0.000789 | AQ189: 0.000789 | AR189: 0.001116 | AS189: 0.001887 | AT189: 0.002842 | AU189: 0.003735 | AV189: 0.004519 | AW189: 0.005162 | AX189: 8e-06 | AY189: 8e-06 | AZ189: 0 | BA189: -1.3e-05 | BB189: -3e-05 | BC189: -4.9e-05 | BD189: -7e-05 | BE189: -0.000112 | BF189: -0.000145 | BG189: -0.000331 | BH189: -0.000493 | BI189: -0.000653 | BJ189: -0.00081 | BK189: -0.000967 | BL189: -0.001124 | BM189: -0.00128 | BN189: -0.001435 | BO189: -0.001591 | BP189: 1.1e-05 | BQ189: 3.4e-05 | BR189: 7e-05 | BS189: 0.000147 | BT189: 0.000221 | BU189: 0.000301 | BV189: 0.000413 | BW189: 0.000548 | BX189: 0.000962 | BY189: 0.001532 | BZ189: 0.004692 | CA189: 0.000133 | CB189: 1.6e-05 | CC189: -9e-06 | CD189: 0.000988 | CE189: -0.001548 | CF189: -0.002068
A190: 78 | B190: -6e-06 | C190: -2.1e-05 | D190: -5.3e-05 | E190: -0.000114 | F190: -0.000152 | G190: -0.000174 | H190: -0.000189 | I190: -0.000205 | J190: -0.000234 | K190: -0.000263 | L190: -0.000457 | M190: -0.000691 | N190: -0.000115 | O190: -0.000155 | P190: -0.000187 | Q190: -0.000211 | R190: -0.000239 | S190: -0.000264 | T190: -0.000293 | U190: -0.000334 | V190: -0.000377 | W190: -0.000641 | X190: -0.000854 | Y190: -0.001023 | Z190: -0.00117 | AA190: -0.001307 | AB190: -0.001441 | AC190: -0.001574 | AD190: -0.001707 | AE190: -0.00184 | AF190: 2.4e-05 | AG190: 1e-06 | AH190: -6.8e-05 | AI190: -0.000139 | AJ190: -0.000187 | AK190: -0.00021 | AL190: -0.000226 | AM190: -0.000226 | AN190: -0.000208 | AO190: -0.000213 | AP190: -0.000356 | AQ190: -0.000507 | AR190: -0.000605 | AS190: -0.000697 | AT190: -0.000733 | AU190: -0.000726 | AV190: -0.000712 | AW190: -0.000699 | AX190: -1.3e-05 | AY190: -2.6e-05 | AZ190: -5.1e-05 | BA190: -7.2e-05 | BB190: -8.8e-05 | BC190: -0.000105 | BD190: -0.000121 | BE190: -0.000148 | BF190: -0.000166 | BG190: -0.000309 | BH190: -0.000453 | BI190: -0.000596 | BJ190: -0.000737 | BK190: -0.000878 | BL190: -0.001018 | BM190: -0.001158 | BN190: -0.001298 | BO190: -0.001437 | BP190: 2e-06 | BQ190: 5e-06 | BR190: 8e-06 | BS190: 7e-06 | BT190: 0 | BU190: -9e-06 | BV190: -1.6e-05 | BW190: -2.1e-05 | BX190: -2.4e-05 | BY190: -1.3e-05 | BZ190: 0.000133 | CA190: 0.000546 | CB190: 9e-05 | CC190: -4e-06 | CD190: -0.000897 | CE190: -0.000136 | CF190: 0.000697
A191: 79 | B191: -1e-06 | C191: -6e-06 | D191: -1.5e-05 | E191: -3.3e-05 | F191: -4.5e-05 | G191: -5.5e-05 | H191: -6.5e-05 | I191: -7.5e-05 | J191: -9.3e-05 | K191: -0.000111 | L191: -0.000214 | M191: -0.000336 | N191: -2.5e-05 | O191: -3.1e-05 | P191: -2.4e-05 | Q191: -1.6e-05 | R191: -1.1e-05 | S191: -9e-06 | T191: -1e-05 | U191: -1.5e-05 | V191: -2.3e-05 | W191: -7.2e-05 | X191: -9.8e-05 | Y191: -0.000106 | Z191: -0.000105 | AA191: -9.9e-05 | AB191: -9.3e-05 | AC191: -8.6e-05 | AD191: -8e-05 | AE191: -7.3e-05 | AF191: -3e-06 | AG191: -1.8e-05 | AH191: -3.3e-05 | AI191: -4.3e-05 | AJ191: -5.2e-05 | AK191: -5.7e-05 | AL191: -6.2e-05 | AM191: -6e-05 | AN191: -5e-05 | AO191: 7e-06 | AP191: 1.4e-05 | AQ191: 1e-06 | AR191: 1e-06 | AS191: 2.4e-05 | AT191: 6.7e-05 | AU191: 0.000115 | AV191: 0.000161 | AW191: 0.000199 | AX191: -2e-06 | AY191: -4e-06 | AZ191: -1.1e-05 | BA191: -1.7e-05 | BB191: -2.2e-05 | BC191: -2.7e-05 | BD191: -3.2e-05 | BE191: -4e-05 | BF191: -4.5e-05 | BG191: -8.7e-05 | BH191: -0.000123 | BI191: -0.000156 | BJ191: -0.000185 | BK191: -0.000214 | BL191: -0.000243 | BM191: -0.000271 | BN191: -0.000299 | BO191: -0.000328 | BP191: 0 | BQ191: 1e-06 | BR191: 1e-06 | BS191: 0 | BT191: -3e-06 | BU191: -6e-06 | BV191: -1e-05 | BW191: -1.4e-05 | BX191: -2.1e-05 | BY191: -2.4e-05 | BZ191: 1.6e-05 | CA191: 9e-05 | CB191: 9.4e-05 | CC191: -5e-06 | CD191: -0.000122 | CE191: -7.9e-05 | CF191: 3.4e-05
A192: 80 | B192: 0 | C192: 1e-06 | D192: 3e-06 | E192: 9e-06 | F192: 1.3e-05 | G192: 1.6e-05 | H192: 1.9e-05 | I192: 2.1e-05 | J192: 2.4e-05 | K192: 2.5e-05 | L192: 2.5e-05 | M192: 2.4e-05 | N192: -5e-06 | O192: -6e-06 | P192: -5e-06 | Q192: -4e-06 | R192: -3e-06 | S192: -2e-06 | T192: -1e-06 | U192: 0 | V192: 1e-06 | W192: 1.5e-05 | X192: 3.3e-05 | Y192: 5.2e-05 | Z192: 7e-05 | AA192: 8.8e-05 | AB192: 0.000106 | AC192: 0.000123 | AD192: 0.000141 | AE192: 0.000158 | AF192: -1e-06 | AG192: 2e-06 | AH192: 7e-06 | AI192: 1.2e-05 | AJ192: 1.5e-05 | AK192: 1.7e-05 | AL192: 1.9e-05 | AM192: 2.1e-05 | AN192: 2.1e-05 | AO192: 2.4e-05 | AP192: 3.4e-05 | AQ192: 4.9e-05 | AR192: 6.5e-05 | AS192: 8.5e-05 | AT192: 0.000101 | AU192: 0.00011 | AV192: 0.000117 | AW192: 0.000121 | AX192: 1e-06 | AY192: 2e-06 | AZ192: 4e-06 | BA192: 5e-06 | BB192: 7e-06 | BC192: 8e-06 | BD192: 9e-06 | BE192: 1e-05 | BF192: 1.1e-05 | BG192: 1.6e-05 | BH192: 1.9e-05 | BI192: 2.2e-05 | BJ192: 2.5e-05 | BK192: 2.7e-05 | BL192: 3e-05 | BM192: 3.2e-05 | BN192: 3.4e-05 | BO192: 3.7e-05 | BP192: 0 | BQ192: 0 | BR192: 0 | BS192: 0 | BT192: 0 | BU192: 0 | BV192: 0 | BW192: 0 | BX192: 0 | BY192: -1e-06 | BZ192: -9e-06 | CA192: -4e-06 | CB192: -5e-06 | CC192: 4e-06 | CD192: -9.1e-05 | CE192: 2.8e-05 | CF192: -1.4e-05
A193: 81 | B193: 4.4e-05 | C193: 0.000144 | D193: 0.000333 | E193: 0.000826 | F193: 0.001473 | G193: 0.002232 | H193: 0.003048 | I193: 0.003938 | J193: 0.005678 | K193: 0.007357 | L193: 0.015343 | M193: 0.022152 | N193: 0.000174 | O193: 0.000248 | P193: 0.00109 | Q193: 0.002089 | R193: 0.002946 | S193: 0.003613 | T193: 0.004261 | U193: 0.005275 | V193: 0.006381 | W193: 0.013719 | X193: 0.020351 | Y193: 0.026016 | Z193: 0.031173 | AA193: 0.03607 | AB193: 0.040838 | AC193: 0.045548 | AD193: 0.050233 | AE193: 0.05491 | AF193: 0.000442 | AG193: 0.000321 | AH193: 0.000975 | AI193: 0.001973 | AJ193: 0.002905 | AK193: 0.003648 | AL193: 0.004472 | AM193: 0.005853 | AN193: 0.007005 | AO193: 0.012212 | AP193: 0.016636 | AQ193: 0.020983 | AR193: 0.024933 | AS193: 0.030692 | AT193: 0.035719 | AU193: 0.039638 | AV193: 0.043468 | AW193: 0.047237 | AX193: 0.00017 | AY193: 0.000337 | AZ193: 0.000669 | BA193: 0.001011 | BB193: 0.001345 | BC193: 0.001742 | BD193: 0.002147 | BE193: 0.002975 | BF193: 0.003636 | BG193: 0.008172 | BH193: 0.012578 | BI193: 0.016927 | BJ193: 0.021222 | BK193: 0.025483 | BL193: 0.029725 | BM193: 0.033956 | BN193: 0.038179 | BO193: 0.042397 | BP193: 1e-06 | BQ193: 9e-06 | BR193: 3.4e-05 | BS193: 0.000133 | BT193: 0.000259 | BU193: 0.000381 | BV193: 0.000502 | BW193: 0.000595 | BX193: 0.000754 | BY193: 0.000837 | BZ193: 0.000988 | CA193: -0.000897 | CB193: -0.000122 | CC193: -9.1e-05 | CD193: 0.045606 | CE193: -0.022644 | CF193: 0.002862
A194: 82 | B194: -1e-05 | C194: -1.8e-05 | D194: -3.2e-05 | E194: -0.000153 | F194: -0.000454 | G194: -0.000873 | H194: -0.001341 | I194: -0.00184 | J194: -0.002791 | K194: -0.003691 | L194: -0.008206 | M194: -0.012494 | N194: 0.000271 | O194: 0.000519 | P194: 0.000488 | Q194: 0.000166 | R194: -0.00027 | S194: -0.000718 | T194: -0.001162 | U194: -0.001922 | V194: -0.002643 | W194: -0.006424 | X194: -0.009264 | Y194: -0.011424 | Z194: -0.013312 | AA194: -0.015099 | AB194: -0.016852 | AC194: -0.018597 | AD194: -0.020343 | AE194: -0.022095 | AF194: -0.000403 | AG194: -0.000133 | AH194: -0.000177 | AI194: -0.000621 | AJ194: -0.001189 | AK194: -0.001733 | AL194: -0.002338 | AM194: -0.003411 | AN194: -0.004292 | AO194: -0.0075 | AP194: -0.010124 | AQ194: -0.013671 | AR194: -0.017893 | AS194: -0.02388 | AT194: -0.029185 | AU194: -0.032979 | AV194: -0.03598 | AW194: -0.038313 | AX194: -6.5e-05 | AY194: -0.000119 | AZ194: -0.000227 | BA194: -0.00036 | BB194: -0.000512 | BC194: -0.000704 | BD194: -0.000913 | BE194: -0.001356 | BF194: -0.001731 | BG194: -0.00417 | BH194: -0.006518 | BI194: -0.008846 | BJ194: -0.011155 | BK194: -0.013451 | BL194: -0.015738 | BM194: -0.018018 | BN194: -0.020295 | BO194: -0.02257 | BP194: -7e-06 | BQ194: -2.7e-05 | BR194: -7.3e-05 | BS194: -0.000211 | BT194: -0.000361 | BU194: -0.000493 | BV194: -0.000624 | BW194: -0.000728 | BX194: -0.000938 | BY194: -0.001104 | BZ194: -0.001548 | CA194: -0.000136 | CB194: -7.9e-05 | CC194: 2.8e-05 | CD194: -0.022644 | CE194: 0.025332 | CF194: -0.000137
A195: 83 | B195: -2.8e-05 | C195: -7.1e-05 | D195: -9.3e-05 | E195: -0.000118 | F195: -0.00021 | G195: -0.000319 | H195: -0.000394 | I195: -0.000427 | J195: -0.000364 | K195: -0.000188 | L195: 0.001376 | M195: 0.003111 | N195: 0.001014 | O195: 0.001317 | P195: 0.001372 | Q195: 0.001153 | R195: 0.000976 | S195: 0.000922 | T195: 0.001002 | U195: 0.001292 | V195: 0.001653 | W195: 0.002903 | X195: 0.002955 | Y195: 0.002628 | Z195: 0.002234 | AA195: 0.001852 | AB195: 0.001495 | AC195: 0.001162 | AD195: 0.00085 | AE195: 0.000555 | AF195: 0.000476 | AG195: 0.000261 | AH195: 0.000515 | AI195: 0.000712 | AJ195: 0.000713 | AK195: 0.000595 | AL195: 0.000469 | AM195: 0.000203 | AN195: 3e-06 | AO195: -0.000357 | AP195: -0.000804 | AQ195: -0.001778 | AR195: -0.00303 | AS195: -0.004442 | AT195: -0.005328 | AU195: -0.005431 | AV195: -0.00494 | AW195: -0.003981 | AX195: -8.1e-05 | AY195: -0.000156 | AZ195: -0.00027 | BA195: -0.000347 | BB195: -0.000395 | BC195: -0.000443 | BD195: -0.000481 | BE195: -0.000534 | BF195: -0.00054 | BG195: -0.000615 | BH195: -0.000664 | BI195: -0.000731 | BJ195: -0.000803 | BK195: -0.000876 | BL195: -0.000949 | BM195: -0.001022 | BN195: -0.001096 | BO195: -0.00117 | BP195: -2.3e-05 | BQ195: -7e-05 | BR195: -0.000136 | BS195: -0.000253 | BT195: -0.000342 | BU195: -0.000418 | BV195: -0.000514 | BW195: -0.00061 | BX195: -0.000865 | BY195: -0.001137 | BZ195: -0.002068 | CA195: 0.000697 | CB195: 3.4e-05 | CC195: -1.4e-05 | CD195: 0.002862 | CE195: -0.000137 | CF195: 0.032731
A197: V1 | B197: V2 | C197: V3 | D197: V4 | E197: V5 | F197: V6 | G197: V7 | H197: V8 | I197: V9 | J197: V10 | K197: V11 | L197: V12 | M197: V13 | N197: V14 | O197: V15 | P197: V16 | Q197: V17 | R197: V18 | S197: V19 | T197: V20 | U197: V21 | V197: V22 | W197: V23 | X197: V24 | Y197: V25 | Z197: V26 | AA197: V27 | AB197: V28 | AC197: V29 | AD197: V30 | AE197: V31 | AF197: V32 | AG197: V33 | AH197: V34 | AI197: V35 | AJ197: V36 | AK197: V37 | AL197: V38 | AM197: V39 | AN197: V40 | AO197: V41 | AP197: V42 | AQ197: V43 | AR197: V44 | AS197: V45 | AT197: V46 | AU197: V47 | AV197: V48 | AW197: V49 | AX197: V50 | AY197: V51 | AZ197: V52 | BA197: V53 | BB197: V54 | BC197: V55 | BD197: V56 | BE197: V57 | BF197: V58 | BG197: V59 | BH197: V60 | BI197: V61 | BJ197: V62 | BK197: V63 | BL197: V64 | BM197: V65 | BN197: V66 | BO197: V67 | BP197: V68 | BQ197: V69 | BR197: V70 | BS197: V71 | BT197: V72 | BU197: V73 | BV197: V74 | BW197: V75 | BX197: V76 | BY197: V77 | BZ197: V78 | CA197: V79 | CB197: V80 | CC197: V81 | CD197: V82 | CE197: V83
A198: 1 | B198: =ROUND(B16,7) -> 6e-07 | C198: =ROUND(C16,7) -> 1.9e-06 | D198: 3.8e-06 | E198: 6.5e-06 | F198: 8.2e-06 | G198: 9.3e-06 | H198: 1.02e-05 | I198: 1.1e-05 | J198: 1.23e-05 | K198: 1.35e-05 | L198: 2.26e-05 | M198: 3.4e-05 | N198: 4e-06 | O198: 7.1e-06 | P198: 1.09e-05 | Q198: 1.28e-05 | R198: 1.37e-05 | S198: 1.43e-05 | T198: 1.52e-05 | U198: 1.69e-05 | V198: 1.96e-05 | W198: 4.01e-05 | X198: 5.91e-05 | Y198: 7.49e-05 | Z198: 8.89e-05 | AA198: 0.0001018 | AB198: 0.0001143 | AC198: 0.0001265 | AD198: 0.0001386 | AE198: 0.0001507 | AF198: 3.5e-06 | AG198: 4.3e-06 | AH198: 7.3e-06 | AI198: 9.9e-06 | AJ198: 1.19e-05 | AK198: 1.33e-05 | AL198: 1.51e-05 | AM198: 1.78e-05 | AN198: 1.99e-05 | AO198: 2.89e-05 | AP198: 3.59e-05 | AQ198: 4.51e-05 | AR198: 5.71e-05 | AS198: 7.68e-05 | AT198: 9.64e-05 | AU198: 0.0001125 | AV198: 0.0001264 | AW198: 0.0001381 | AX198: 1.5e-06 | AY198: 2.8e-06 | AZ198: 4.8e-06 | BA198: 6.2e-06 | BB198: 7.2e-06 | BC198: 8.3e-06 | BD198: 9.4e-06 | BE198: 1.13e-05 | BF198: 1.26e-05 | BG198: 2.26e-05 | BH198: 3.17e-05 | BI198: 4.08e-05 | BJ198: 4.97e-05 | BK198: 5.86e-05 | BL198: 6.75e-05 | BM198: 7.64e-05 | BN198: 8.53e-05 | BO198: =ROUND(BO16,7) -> 9.41e-05 | BP198: 1e-07 | BQ198: 2e-07 | BR198: 3e-07 | BS198: 6e-07 | BT198: 9e-07 | BU198: 1.1e-06 | BV198: 1.4e-06 | BW198: 1.8e-06 | BX198: 2.6e-06 | BY198: 3.4e-06 | BZ198: 2.9e-06 | CA198: -5.7e-06 | CB198: -1.5e-06 | CC198: 1e-07 | CD198: 4.37e-05 | CE198: -1.04e-05 | CF198: -2.81e-05
A199: 2 | B199: =ROUND(B17,7) -> 1.9e-06 | C199: 6.9e-06 | D199: 1.53e-05 | E199: 3.08e-05 | F199: 4.19e-05 | G199: 5.02e-05 | H199: 5.71e-05 | I199: 6.38e-05 | J199: 7.47e-05 | K199: 8.4e-05 | L199: 0.0001315 | M199: 0.0001797 | N199: 1.28e-05 | O199: 2.3e-05 | P199: 3.79e-05 | Q199: 4.79e-05 | R199: =ROUND(R17,7) -> 5.5e-05 | S199: 6.03e-05 | T199: 6.65e-05 | U199: 7.65e-05 | V199: 8.84e-05 | W199: 0.0001706 | X199: 0.0002488 | Y199: 0.0003194 | Z199: 0.0003852 | AA199: 0.0004478 | AB199: 0.0005087 | AC199: 0.0005687 | AD199: 0.0006283 | AE199: 0.0006876 | AF199: 1.28e-05 | AG199: 1.52e-05 | AH199: 3.25e-05 | AI199: 4.91e-05 | AJ199: 6.11e-05 | AK199: 6.86e-05 | AL199: 7.75e-05 | AM199: 9.03e-05 | AN199: 9.93e-05 | AO199: 0.0001356 | AP199: 0.0001658 | AQ199: 0.0002057 | AR199: 0.0002535 | AS199: 0.0003274 | AT199: 0.0003949 | AU199: 0.0004456 | AV199: 0.0004886 | AW199: 0.0005244 | AX199: 4.6e-06 | AY199: 9.4e-06 | AZ199: 1.73e-05 | BA199: 2.34e-05 | BB199: 2.79e-05 | BC199: 3.28e-05 | BD199: 3.72e-05 | BE199: 4.54e-05 | BF199: 5.07e-05 | BG199: 9.28e-05 | BH199: 0.0001335 | BI199: 0.0001742 | BJ199: 0.0002146 | BK199: 0.0002548 | BL199: 0.0002949 | BM199: 0.0003349 | BN199: 0.0003749 | BO199: 0.0004148 | BP199: 2e-07 | BQ199: 7e-07 | BR199: 1.3e-06 | BS199: 2.3e-06 | BT199: 3.2e-06 | BU199: 4e-06 | BV199: 5e-06 | BW199: 6.1e-06 | BX199: 8.6e-06 | BY199: 1.07e-05 | BZ199: 7.3e-06 | CA199: -2.14e-05 | CB199: -6e-06 | CC199: 9e-07 | CD199: =ROUND(CD17,7) -> 0.0001438 | CE199: -1.79e-05 | CF199: -7.13e-05
A200: 3 | B200: 3.8e-06 | C200: 1.53e-05 | D200: 3.9e-05 | E200: 9.04e-05 | F200: 0.0001326 | G200: 0.0001664 | H200: 0.0001951 | I200: 0.0002235 | J200: 0.0002706 | K200: 0.0003108 | L200: 0.0004912 | M200: 0.0006539 | N200: 1.67e-05 | O200: 3.86e-05 | P200: 8.08e-05 | Q200: 0.0001162 | R200: =ROUND(R18,7) -> 0.0001446 | S200: 0.0001665 | T200: 0.0001892 | U200: 0.0002233 | V200: 0.0002599 | W200: 0.0004936 | X200: 0.0007163 | Y200: 0.0009235 | Z200: 0.0011207 | AA200: 0.0013111 | AB200: 0.0014973 | AC200: 0.001681 | AD200: 0.0018635 | AE200: 0.0020452 | AF200: 2.68e-05 | AG200: 3.16e-05 | AH200: 8.58e-05 | AI200: 0.0001432 | AJ200: 0.0001858 | AK200: 0.0002128 | AL200: 0.0002424 | AM200: 0.0002832 | AN200: 0.0003106 | AO200: 0.0004197 | AP200: 0.0005167 | AQ200: 0.0006382 | AR200: 0.0007681 | AS200: 0.0009608 | AT200: 0.0011246 | AU200: 0.0012395 | AV200: 0.001337 | AW200: 0.0014209 | AX200: 9.9e-06 | AY200: 2.15e-05 | AZ200: 4.32e-05 | BA200: 6.14e-05 | BB200: 7.55e-05 | BC200: 9.05e-05 | BD200: 0.0001043 | BE200: 0.0001297 | BF200: 0.0001464 | BG200: 0.0002741 | BH200: 0.000398 | BI200: 0.0005222 | BJ200: 0.0006456 | BK200: 0.0007686 | BL200: 0.0008911 | BM200: 0.0010135 | BN200: 0.0011356 | BO200: 0.0012577 | BP200: 5e-07 | BQ200: 1.4e-06 | BR200: 2.6e-06 | BS200: 4.8e-06 | BT200: 6.7e-06 | BU200: 8.5e-06 | BV200: 1.07e-05 | BW200: 1.28e-05 | BX200: 1.71e-05 | BY200: 1.94e-05 | BZ200: -6.2e-06 | CA200: -5.26e-05 | CB200: -1.53e-05 | CC200: 3.1e-06 | CD200: =ROUND(CD18,7) -> 0.0003335 | CE200: -3.15e-05 | CF200: -9.31e-05
A201: 4 | B201: 6.5e-06 | C201: 3.08e-05 | D201: 9.04e-05 | E201: 0.0002469 | F201: 0.000397 | G201: 0.0005272 | H201: 0.0006417 | I201: 0.0007544 | J201: 0.0009438 | K201: 0.0011054 | L201: 0.0017917 | M201: 0.0023669 | N201: -3.96e-05 | O201: -3.7e-06 | P201: 0.0001129 | Q201: 0.0002368 | R201: =ROUND(R19,7) -> 0.0003442 | S201: 0.0004274 | T201: 0.0005055 | U201: 0.0006179 | V201: 0.0007286 | W201: 0.0014049 | X201: 0.0020497 | Y201: 0.0026554 | Z201: 0.0032365 | AA201: 0.0038 | AB201: 0.0043524 | AC201: 0.0048981 | AD201: 0.00544 | AE201: 0.0059797 | AF201: 4.59e-05 | AG201: 4.84e-05 | AH201: 0.0001955 | AI201: 0.000374 | AJ201: 0.0005174 | AK201: 0.000614 | AL201: 0.000715 | AM201: 0.0008551 | AN201: 0.0009479 | AO201: 0.0013054 | AP201: 0.0016362 | AQ201: 0.002027 | AR201: 0.0024042 | AS201: 0.0029372 | AT201: 0.0033565 | AU201: 0.0036279 | AV201: 0.0038604 | AW201: 0.0040697 | AX201: 1.99e-05 | AY201: 4.76e-05 | AZ201: 0.0001066 | BA201: 0.0001611 | BB201: 0.0002069 | BC201: 0.0002561 | BD201: 0.0003021 | BE201: 0.0003876 | BF201: 0.0004458 | BG201: 0.0008555 | BH201: 0.0012425 | BI201: 0.0016276 | BJ201: 0.0020102 | BK201: 0.002391 | BL201: 0.0027707 | BM201: 0.0031497 | BN201: 0.0035282 | BO201: 0.0039064 | BP201: 6e-07 | BQ201: 1.8e-06 | BR201: 3.6e-06 | BS201: 7.5e-06 | BT201: 1.15e-05 | BU201: 1.54e-05 | BV201: 1.96e-05 | BW201: 2.28e-05 | BX201: 2.68e-05 | BY201: 2.34e-05 | BZ201: -7.84e-05 | CA201: -0.0001137 | CB201: -3.25e-05 | CC201: 8.6e-06 | CD201: =ROUND(CD19,7) -> 0.0008263 | CE201: -0.0001533 | CF201: -0.0001182
A202: 5 | B202: 8.2e-06 | C202: 4.19e-05 | D202: 0.0001326 | E202: 0.000397 | F202: 0.0006754 | G202: 0.0009306 | H202: 0.0011611 | I202: 0.0013885 | J202: 0.0017741 | K202: 0.0021029 | L202: 0.0034778 | M202: 0.0046077 | N202: -0.0001615 | O202: -0.0001318 | P202: 5.63e-05 | Q202: 0.0002874 | R202: =ROUND(R20,7) -> 0.0004946 | S202: 0.0006565 | T202: 0.0008019 | U202: 0.0010095 | V202: 0.001207 | W202: 0.0024001 | X202: 0.0035418 | Y202: 0.0046103 | Z202: 0.0056322 | AA202: 0.0066219 | AB202: 0.0075912 | AC202: 0.0085485 | AD202: 0.0094988 | AE202: 0.0104453 | AF202: 5.31e-05 | AG202: 4.46e-05 | AH202: 0.000273 | AI202: 0.0005794 | AJ202: 0.0008414 | AK202: 0.0010281 | AL202: 0.0012208 | AM202: 0.0014952 | AN202: 0.0016797 | AO202: 0.0023757 | AP202: 0.003022 | AQ202: 0.0037662 | AR202: 0.0044595 | AS202: 0.0054198 | AT202: 0.0061596 | AU202: 0.0066306 | AV202: 0.0070407 | AW202: 0.0074199 | AX202: 2.8e-05 | AY202: 7.03e-05 | AZ202: 0.0001673 | BA202: 0.000263 | BB202: 0.0003474 | BC202: 0.0004393 | BD202: 0.0005268 | BE202: 0.0006912 | BF202: 0.000806 | BG202: 0.0015749 | BH202: 0.0022847 | BI202: 0.0029857 | BJ202: 0.0036805 | BK202: 0.0043717 | BL202: 0.0050607 | BM202: 0.0057484 | BN202: 0.0064354 | BO202: 0.0071218 | BP202: 3e-07 | BQ202: 9e-07 | BR202: 2.2e-06 | BS202: 6.7e-06 | BT202: 1.27e-05 | BU202: 1.89e-05 | BV202: 2.52e-05 | BW202: 2.96e-05 | BX202: 3.33e-05 | BY202: 2.4e-05 | BZ202: -0.0001432 | CA202: -0.0001519 | CB202: -4.51e-05 | CC202: 1.31e-05 | CD202: =ROUND(CD20,7) -> 0.0014729 | CE202: -0.0004536 | CF202: -0.0002101
A203: 6 | B203: 9.3e-06 | C203: 5.02e-05 | D203: 0.0001664 | E203: 0.0005272 | F203: 0.0009306 | G203: 0.0013151 | H203: 0.0016698 | I203: 0.0020217 | J203: 0.0026235 | K203: 0.0031365 | L203: 0.0052558 | M203: 0.006978 | N203: -0.000305 | O203: -0.0002933 | P203: -4.1e-05 | Q203: 0.0002992 | R203: =ROUND(R21,7) -> 0.00061 | S203: 0.0008543 | T203: 0.0010698 | U203: 0.0013777 | V203: 0.0016662 | W203: 0.0033979 | X203: 0.0050517 | Y203: 0.0065875 | Z203: 0.0080487 | AA203: 0.0094602 | AB203: 0.010841 | AC203: 0.012204 | AD203: 0.0135569 | AE203: 0.0149043 | AF203: 5.3e-05 | AG203: 3.25e-05 | AH203: 0.0003262 | AI203: 0.0007493 | AJ203: 0.0011281 | AK203: 0.001409 | AL203: 0.0016985 | AM203: 0.00212 | AN203: 0.0024085 | AO203: 0.0034883 | AP203: 0.004484 | AQ203: 0.0056092 | AR203: 0.0066408 | AS203: 0.0080605 | AT203: 0.0091528 | AU203: 0.0098543 | AV203: 0.0104758 | AW203: 0.0110607 | AX203: 3.49e-05 | AY203: 9e-05 | AZ203: 0.000222 | BA203: 0.000358 | BB203: 0.000482 | BC203: 0.0006184 | BD203: 0.00075 | BE203: 0.0009996 | BF203: 0.0011771 | BG203: 0.002333 | BH203: 0.0033846 | BI203: 0.0044167 | BJ203: 0.0054377 | BK203: 0.0064526 | BL203: 0.0074642 | BM203: 0.008474 | BN203: 0.0094826 | BO203: 0.0104904 | BP203: -3e-07 | BQ203: -7e-07 | BR203: -5e-07 | BS203: 3.8e-06 | BT203: 1.15e-05 | BU203: 2.01e-05 | BV203: 2.87e-05 | BW203: 3.5e-05 | BX203: 4e-05 | BY203: 2.83e-05 | BZ203: -0.0001793 | CA203: -0.0001739 | CB203: -5.54e-05 | CC203: 1.64e-05 | CD203: =ROUND(CD21,7) -> 0.0022316 | CE203: -0.0008734 | CF203: -0.000319
A204: 7 | B204: 1.02e-05 | C204: 5.71e-05 | D204: 0.0001951 | E204: 0.0006417 | F204: 0.0011611 | G204: 0.0016698 | H204: 0.0021472 | I204: 0.0026236 | J204: 0.0034447 | K204: 0.0041454 | L204: 0.0070107 | M204: 0.0093188 | N204: -0.0004461 | O204: -0.000456 | P204: -0.0001438 | Q204: 0.0003031 | R204: =ROUND(R22,7) -> 0.000716 | S204: 0.001042 | T204: 0.0013272 | U204: 0.0017363 | V204: 0.0021171 | W204: 0.0043913 | X204: 0.0065508 | Y204: 0.0085395 | Z204: 0.0104216 | AA204: 0.0122352 | AB204: 0.0140075 | AC204: 0.0157563 | AD204: 0.0174921 | AE204: 0.0192209 | AF204: 4.86e-05 | AG204: 1.89e-05 | AH204: 0.0003672 | AI204: 0.0008951 | AJ204: 0.0013836 | AK204: 0.0017564 | AL204: 0.0021409 | AM204: 0.0027101 | AN204: 0.0031057 | AO204: 0.0045861 | AP204: 0.0059374 | AQ204: 0.0074403 | AR204: 0.0088038 | AS204: 0.0106778 | AT204: 0.0121248 | AU204: 0.0130666 | AV204: 0.0139149 | AW204: 0.014724 | AX204: 4.11e-05 | AY204: 0.0001077 | AZ204: 0.0002719 | BA204: 0.0004461 | BB204: 0.0006085 | BC204: 0.0007887 | BD204: 0.0009639 | BE204: 0.0012992 | BF204: 0.0015407 | BG204: 0.0030897 | BH204: 0.0044864 | BI204: 0.0058511 | BJ204: 0.0071989 | BK204: 0.008538 | BL204: 0.0098725 | BM204: 0.0112046 | BN204: 0.0125351 | BO204: 0.0138647 | BP204: -1e-06 | BQ204: -2.5e-06 | BR204: -3.5e-06 | BS204: 2e-07 | BT204: 9.5e-06 | BU204: 2.04e-05 | BV204: 3.14e-05 | BW204: 3.96e-05 | BX204: 4.72e-05 | BY204: 3.5e-05 | BZ204: -0.0001988 | CA204: -0.0001892 | CB204: -6.5e-05 | CC204: 1.89e-05 | CD204: =ROUND(CD22,7) -> 0.003048 | CE204: -0.0013407 | CF204: -0.000394
